Workbook

Sheet Adviesformulier
A1: Adviesformulier verantwoorde zorg thuis
K2: Versie 10 december 2019
A3: Om te beoordelen of de door u aangevraagde zorg thuis verantwoord is, ontvangen wij graag uw professionele advies. | O3: Woont zelfstandig
A4: CLIENTGEGEVENS | O4: Woont geclusterd
A5: Naam | F5: Klik hier om tekst in te voeren | O5: Woont met partner (beide Wlz geïndiceerd) | W5: =IF(F5="Klik hier om een tekst in te voeren",1,2) -> 2
A6: BSN | F6: Klik hier om tekst in te voeren | O6: Woont met partner (partner heeft geen Wlz indicatie)
A7: Woonsituatie | F7: Klik hier om een keuze te maken | O7: Woont bij ouder(s)/verzorger(s)
O8: Klik hier om een keuze te maken
A9: CONTACTGEGEVENS ZORGAANBIEDER
A10: Naam contactpersoon: | H10: klik hier om tekst in te voeren
A11: Organisatie contactpersoon | H11: klik hier om tekst in te voeren
A12: Telefoonnummer contactpersoon | H12: klik hier om tekst in te voeren
A13: Bereikbaarheid contactpersoon | H13: klik hier om tekst in te voeren
A15: ADVIES ZORGAANBIEDER VERANTWOORD THUIS VPT/MPT, EVENTUEEL IN COMBINATIE MET DTV
A16: 1. | B16: Wat is uw advies voor (overbruggings) zorg thuis als betrokken zorgprofessional?
D17: Regulier VPT of MPT, eventueel in combinatie met DTV is verantwoord | O17: =IF(B17="x",1,0) -> 0
D18: Regulier VPT of MPT, eventueel in combinatie met DTV is niet verantwoord | O18: =IF(B18="x",1,0) -> 0 | Q18: =SUM(O17:O21) -> 0 | R18: =IF(Q18=0,"X","") -> X
D19: Overbruggingszorg thuis, eventueel in combinatie met DTV tot opname is verantwoord | O19: =IF(B19="x",1,0) -> 0
D20: Overbruggingszorg thuis, eventueel in combinatie met DTV tot opname is niet verantwoord | O20: =IF(B20="x",1,0) -> 0
D21: Er is nog geen advies mogelijk, graag nader overleg met het zorgkantoor | O21: =IF(B21="x",1,0) -> 0
A23: Is zorg thuis verantwoord, maar is er sprake van hoge inzet behandeling, ga dan direct naar vraag 5
A25: 2. | B25: Kan de cliënt goed bepalen wat hij wil, zijn situatie goed inschatten en daarvoor zijn verantwoordelijkheid nemen (mate van zelfregie)?
D26: Er is afdoende zelfregie | O26: =IF(B26="x",1,0) -> 0 | Q26: =SUM(O25:O28) -> 0 | R26: =IF(Q26=0,"X","") -> X
D27: Er is verminderde zelfregie | O27: =IF(B27="x",1,0) -> 0
D28: Er is geen sprake van zelfregie | O28: =IF(B28="X",1,0) -> 0
D29: Toelichting:
A32: 3. | B32: Is er sprake van een gevaarscriterium als gevolg van ernstig verminderde zelfregie?
D33: Nee | O33: =IF(B33="x",1,0) -> 0 | Q33: =SUM(O32:O35) -> 0 | R33: =IF(Q33=0,"X","") -> X
D34: Ja, er is sprake van een gevaarscriterium omdat de cliënt: | O34: =IF(B34="x",1,0) -> 0
F35: een ernstig gevaar voor zichzelf vormt (is gedesoriënteerd in tijd en/of plaats en/of persoon en/of kan gevaar niet inschatten). | R35: =IF(B34="X",1,0) -> 0 | S35: =IF(D35="X",0,1) -> 1 | U35: =IF(R35+S44=7,"X","") -> 
F37: zichzelf ernstig verwaarloost (ernstig tekort aan voeding/vocht/medicatie inname, lichamelijke verzorging en/of hygiene van de omgeving). | S37: =IF(D37="X",0,1) -> 1
F39: met zijn gedrag een risico vormt voor mensen in zijn omgeving (door bijvoorbeeld gedragsproblematiek naar andere mensen). | S39: =IF(D39="X",0,1) -> 1
F41: spullen in zijn omgeving kapot maakt en daardoor een risico vormt voor de algemene veiligheid. | S41: =IF(D41="X",0,1) -> 1
S42: =IF(D43="X",0,1) -> 1
F43: zelf niet adequaat kan alarmeren en er geen permanent 24 uurs toezicht is geborgd. Daardoor is er risico op acuut levensgevaar (bijvoorbeeld bij ernstige ademhalingsproblematiek en/of continue risico op verslikking). | S43: =IF(D45="X",0,1) -> 1
S44: =SUM(S35:S43) -> 6
F45: er niet zeker van is dat bij acuut levensgevaar een (bekwame) zorgverlener of mantelzorger binnen 10 minuten aanwezig is of omdat medische zorg niet geborgd is binnen 30 minuten.
D47: Toelichting:
A50: 4. | B50: Is noodzakelijke achterwacht (mantelzorg) ingeregeld?
D51: Ja, noodzakelijke achterwacht is 24 uur per dag beschikbaar | O51: =IF(B51="x",1,0) -> 0
D52: Ja, noodzakelijke achterwacht is 24 uur per dag beschikbaar, maar overbelasting dreigt | O52: =IF(B52="x",1,0) -> 0
D53: Nee, noodzakelijke achterwacht is niet 24 uur per dag in te regelen | O53: =IF(B53="x",1,0) -> 0 | Q53: =SUM(O51:O55) -> 0 | R53: =IF(Q53=0,"X","") -> X
D54: Nee, de cliënt weigert noodzakelijke achterwacht | O54: =IF(B54="x",1,0) -> 0
D55: Nee, het is niet noodzakelijk om achterwacht in te regelen | O55: =IF(B55="X",1,0) -> 0
D56: Toelichting:
A59: 5. | B59: Is er noodzaak tot specifieke Wlz behandeling?
D60: Nee, er is geen noodzaak tot Wlz behandeling | O60: =IF(B60="x",1,0) -> 0
D61: Ja, maar de cliënt ontvangt passende Wlz behandeling | O61: =IF(B61="x",1,0) -> 0 | Q61: =SUM(O60:O64) -> 0 | R61: =IF(Q61=0,"X","") -> X
D62: Ja, Wlz behandeling is noodzakelijk maar de cliënt weigert dit | O62: =IF(B62="X",1,0) -> 0
D63: Ja, thuiswonend kind met ontwikkelperspectief | O63: =IF(B63="X",1,0) -> 0
D64: Ja er is extra behandeling noodzakelijk op de (al) geleverde WLZ behandeling. Deze behandeling | O64: =IF(B64="x",1,0) -> 0
D65: wordt niet vergoed vanuit de Zvw. Licht de volgende vragen altijd toe:
D66: * | E66: Welke diagnose maakt inzet van (extra) behandeling noodzakelijk?
D67: * | E67: Wie is eindverantwoordelijkheid voor de behandeling (arts/behandelaar)?
D68: * | E68: Welke methodiek wordt toegepast voor de behandeling?
D69: * | E69: Wat is het te behalen resultaat van de behandeling?
D70: * | E70: Hoe wordt het te behalen resultaat (verbeterdoel) getoetst?
D71: * | E71: Wat is het aantal benodigde (extra) uren behandeling (individueel) of dagdelen (groep) per week?
D72: Toelichting:
A79: 6. | B79: Is de medische en/of gedragskundige zorg in de thuissituatie verantwoord (meerdere antwoorden mogelijk)?
D81: Ja, de huisarts is van mening dat medische zorg thuis verantwoord is | O81: =IF(B81="x",1,0) -> 0
D82: Nee, de huisarts is van mening dat medische zorg thuis niet verantwoord is maar er is geen sprake van een spoedsituatie voor opname (toelichten) | O82: =IF(B82="x",1,0) -> 0 | Q82: =SUM(O81:O89) -> 0 | R82: X
D84: Nee, de huisarts is van mening dat de medische zorg thuis niet verantwoord is, er is sprake van een spoedsituatie voor opname (toelichten) | O84: =IF(B84="X",1,0) -> 0
D86: Nee, de huisarts is niet bereid mee te werken aan een advies | O86: =IF(B86="X",1,0) -> 0
D87: De betrokken AVG arts en/of gedragsdeskundige deelt de mening van de huisarts | O87: =IF(B87="X",1,0) -> 0
D88: De betrokken AVG arts en/of gedragsdeskundige deelt de mening v/d huisarts niet (toelichten) | O88: =IF(B88="X",1,0) -> 0
D89: Er is geen AVG arts of gedragsdeskundige bij deze cliënt betrokken | O89: =IF(B89="X",1,0) -> 0
A94: 7. | B94: Zijn de noodzakelijke mobiliteitshulpmiddelen en woningaanpassingen thuis (en bij deeltijd verblijf ook in een instelling) georganiseerd?
D96: Er zijn geen mobiliteitshulmiddelen of woningaanpassingen nodig | O96: =IF(B96="X",1,0) -> 0
D97: Ja, dit is georganiseerd | O97: =IF(B97="X",1,0) -> 0 | Q97: =SUM(O96:O98) -> 0 | R97: =IF(Q97=0,"X","") -> X
D98: Nee, dit is nog niet georganiseerd. (toelichten) | O98: =IF(B98="X",1,0) -> 0
D99: Toelichting
A101: 8. | B101: Is er sprake van onvrijwillige zorg in het kader van de Wet zorg en dwang?
D102: Nee, er is geen sprake van onvrijwillige zorg | O102: =IF(B102="X",1,0) -> 0
D103: Ja , er is sprake van onvrijwillige zorg (toelichten) | O103: =IF(B103="X",1,0) -> 0 | Q103: =SUM(O102:O103) -> 0 | R103: =IF(Q103=0,"X","") -> X
D104: Toelichting:
A107: 9. | B107: Is de cliënt en/of zijn mantelzorg het eens met uw advies?
D108: Ja, ons advies wordt gedeeld | O108: =IF(B108="x",1,0) -> 0
D109: Nee, ons advies wordt niet gedeeld (altijd toelichten) | O109: =IF(B109="x",1,0) -> 0 | Q109: =SUM(O108:O112) -> 0 | R109: =IF(Q109=0,"X","") -> X
D110: Toelichting:

Sheet Rekenblad
H1: 0.97 | M1: versie: 06-01-2020 | T1: =IF($I$33>0,$M$6+$FS$8+$T$20,$M$6+$FS$8) -> 0 | U1: =IFERROR(BR10,0) -> 0 | V1: =M8/M6 ->  | BA1: 30.16 | DP1: =VLOOKUP(DQ1,$DS$2:$DT$50,2,FALSE) ->  | DQ1: =G10 -> 0 | DR1: Etmalen deeltijd verblijf | DU1: meerzorg | DV1: ZZP | DW1: Dagbesteding | DX1: Meerzorg | DY1: Max uren +25% | DZ1: Uren geleverd | EE1: =G10 -> 0 | EF1: =IFERROR(VLOOKUP(EE1,DV2:DX83,3,0),0) -> 0 | EG1: =IF(EF1="nee",1,2) -> 2 | EH1: =IF(Q24="Meerzorg",3,4) -> 4 | EI1: =SUM(EG1:EH1) -> 6 | EJ1: =IF(EI1=4,"Meerzorg is niet toegestaan bij dit ZZP tenzij client Wlz indiceerbaar is en recht op het vangnet heeft"," ") ->  | EL1: Te kiezen leveringsvormen | EO1: MPT | EP1: Deelrijd verblijf icm MPT | EQ1: Logeren icm MPT | ER1: Overbruggingszorg | ES1: VPT | ET1: Opname | EU1: Opname2 | EW1: Z015 ZZP 1vv incl.db | EX1: V015 VPT 1vv excl.bh incl.db | FB1: ZZP | FC1: 100% prestatie | FF1: 100% per dag | FG1: 100% per week | FH1: DTV | FL1: ZZP's | FM1: Dagbesteding apart? | FQ1: Etmalen | FR1: Deeltijd verblijf icm zorg thuis | FS1: ='Deeltijd verblijf'!M9 ->  | FX1: AGB | FY1: DTV | FZ1: VBL
B2: Naam: | D2: "vul hier de naam van cliënt in" | N2: =IFERROR(IF(OR($F$5="opname",$F$5="VPT"),$FI$7*$H$1,$BR$10),0) -> 0 | T2: Koppeling tijdseenheid aan functie | V2: Koppeling grondslag aan ZZP's | AB2: Gunningsperceptage | AC2: Koppeling prestaties bij bijbehorende functies | AO2: Koppeling uren aan klasse | AR2: =IF(OR(F5="Deeltijd verblijf icm MPT",F5="logeren icm MPT"),"MPT",F5) -> 0 | AY2: Koppeling prestatie aan tarief | BC2: Berekening totaalbedragen: | BE2: Berekening ZZP waarde | BL2: Ruimte behandeling bepalen | BN2: Keuzelijst EKT | BO2: Berekening EKT | BP2: Extramurale ruimte en beademing | BR2: =IFERROR(VLOOKUP(Q23,BO12:BQ14,3,FALSE),0) -> 0 | BS2: Aanvraag akkoord? | BW2: Logeren | BZ2: Omrekening naar huidige rekenmodule | CJ2: Dagbesteding | CM2: PGBbedrag bepalen | CZ2: Opslag bepaling | DR2: 3.5 | DS2: 1vg | DT2: Licht | DU2: =IF(D42="meerzorg","ja","nee") -> nee | DV2: 1GGZ B | DW2: ja | DX2: Nee | DY2: 0 | DZ2: 10 | EL2: MPT | EO2: Bgind | EP2: Bgind | EQ2: Bgind | ER2: Bgind | ES2: VPTprestatie | ET2: Verblijfsprestatie | EU2: Verblijfsprestatie | EW2: Z025 ZZP 2vv incl.db | EX2: V025 VPT 2vv excl.bh incl.db | FB2: 1vv | FC2: Z015 ZZP 1vv incl.db | FD2: Opname | FE2: =CONCATENATE(FB2,FD2) -> 1vvOpname | FF2: =VLOOKUP(FC2,'Tarieven ZZP'!$D$6:$J$134,7,FALSE) -> 102.29 | FG2: =FF2*7 -> 716.03 | FL2: 1GGZ B | FM2: 2 | FQ2: 1 | FR2: Logeren icm MPT | FS2: ='Deeltijd verblijf'!M17 ->  | FX2: =E18 -> 0 | FY2: =IF(B18="Deeltijd_verblijf",1,0) -> 0 | FZ2: =IF(B18="Verblijfsprestatie",1,0) -> 0 | GA2: =SUM(FY2:FZ2) -> 0 | GB2: =IFERROR(IF(FX2=0,"",(IF(GA2=0,"Nee","Ja"))),0) ->  | GC2: =E18 -> 0 | GD2: =IFERROR(VLOOKUP(GC2,$GA$18:$GB$18,2,0),0) -> 0 | GE2: =IF(GD2="ja","ja","Nee") -> Nee
B3: BSN | D3: "vul hier het BSN van cliënt in" | DR3: 4 | EL3: VPT | EO3: PV | EP3: PV | EQ3: PV | ER3: PV | ES3: Dagbesteding | ET3: Dagbesteding | EU3: BHind | EW3: Z031 ZZP 3vv excl.bh incl.db | EX3: V031 VPT 3vv excl.bh incl.db | FB3: 2vv | FC3: Z025 ZZP 2vv incl.db | FD3: Opname | FE3: 2vvOpname | FF3: =VLOOKUP(FC3,'Tarieven ZZP'!$D$6:$J$134,7,FALSE) -> 131.03 | FG3: =FF3*7 -> 917.21 | FL3: 2GGZ B | FM3: 2 | FQ3: 2 | FR3: MPT | FS3: =IFERROR(IF(OR($F$5="opname",$F$5="VPT"),$FI$7*$H$1,$BR$10),0) -> 0 | FX3: 0 | FY3: =IF(B19="Deeltijd_verblijf",1,0) -> 0 | FZ3: =IF(B19="Verblijfsprestatie",1,0) -> 0 | GA3: =SUM(FY3:FZ3) -> 0 | GB3: =IFERROR(IF(FX3=0,"",(IF(GA3=0,"Nee","Ja"))),0) ->  | GC3: =E19 -> 0 | GD3: =IFERROR(VLOOKUP(GC3,$GA$18:$GB$18,2,0),0) -> 0 | GE3: =IF(GD3="ja","ja","Nee") -> Nee
B4: Datum aanvraag | D4: "vul hier dagtekening aanvraag in" | DR4: 4.5 | EL4: Opname | EO4: VP | EP4: VP | EQ4: VP | ER4: VP | ES4: Bhind | ET4: Bhind | EW4: Z033 ZZP 3vv incl.bh incl.db | EX4: V033 VPT 3vv incl.bh incl.db | FB4: 3vv | FC4: Z033 ZZP 3vv incl.bh incl.db | FD4: Opname | FE4: 3vvOpname | FF4: =VLOOKUP(FC4,'Tarieven ZZP'!$D$6:$J$134,7,FALSE) -> 186.8 | FG4: 1307.6 | FL4: 3GGZ B | FM4: 2 | FQ4: 3 | FR4: VPT | FS4: =IFERROR(IF(OR($F$5="opname",$F$5="VPT"),$FI$7*$H$1,$BR$10),0) -> 0 | FX4: 0 | FY4: =IF(B20="Deeltijd_verblijf",1,0) -> 0 | FZ4: =IF(B20="Verblijfsprestatie",1,0) -> 0 | GA4: 0 | GC4: 0 | GD4: 0 | GE4: Nee
I5: Aantal etmalen verblijf p/w | M5: =IF(F5="MPT","Ruimte",IF(OR(F5="logeren icm MPT",F5="deeltijd verblijf icm zorg thuis"),"Ruimte","Financiële ruimte")) -> Financiële ruimte | BN5: Ja; Extra kosten thuis | BO5: =$M$6*25% -> 0 | EL5: Deeltijd verblijf icm zorg thuis | EO5: Logeren | EP5: BGgrp | EQ5: BGgrp | ER5: BGgrp | ES5: BHgrp | ET5: BHgrp | EU5: VPT2 | EW5: Z041 ZZP 4vv excl.bh incl.db | EX5: V041 VPT 4vv excl.bh incl.db | FB5: 4vv | FC5: Z043 ZZP 4vv incl.bh incl.db | FD5: Opname | FE5: 4vvOpname | FF5: =VLOOKUP(FC5,'Tarieven ZZP'!$D$6:$J$134,7,FALSE) -> 165.03 | FG5: 1155.21 | FL5: 4GGZ B | FM5: 2 | FQ5: 3.5 | FR5: Opname | FS5: =IFERROR(IF(OR($F$5="opname",$F$5="VPT"),$FI$7*$H$1,$BR$10),0) -> 0 | FX5: 0 | FY5: 0 | FZ5: 0 | GA5: 0 | GC5: 0 | GD5: 0 | GE5: Nee
B6: Aan te vragen zorg: | M6: =IFERROR(VLOOKUP(F5,FR1:FS5,2,FALSE),0) -> 0 | N6: Doelmatigheidsbedrag DTV en zorg thuis samen | BF6: code | BG6: groep | BN6: Ja; opgroeiend kind thuis jonger dan 23 jaar | BO6: =$M$6*25% -> 0 | BP6: Tarief beademing | BR6: 0 | BS6: Totale ruimte | BU6: =$M$10+$FS$8+$BX$14 -> 0 | BW6: Totaal ingezet | BX6: =BD9 -> 0 | CK6: code | CL6: groep | CM6: ZZP | CN6: ZZP | CO6: PV | CQ6: VP | CS6: Bgind | CU6: BGgrp | CW6: ZZP- | CX6: Totaal | CY6: Totaal minus ophoging | CZ6: 25 | DA6: K8 | DC6: KD09 | DL6: =IFERROR(VLOOKUP(B18,$T$7:$U$19,2,FALSE),0) -> 0 | DM6: =IF(D18="F125 Dagactiviteit LZA","Minuten",0) -> 0 | DN6: =IF(DM6="minuten",DM6,DL6) -> 0 | DO6: =E18 -> 0 | DP6: Dagbesteding koppelen aan ZZP | DS6: 2vg | DT6: Licht | DV6: 2GGZ B | DW6: ja | DX6: Nee | DY6: 0 | DZ6: 12.5 | EB6: Grensuren | EC6: =IFERROR(IF(DU2="ja",VLOOKUP($G$10,$DV$2:$DZ$35,4,FALSE),VLOOKUP($G$10,$DV$36:$DZ$83,4,FALSE)),0) -> 0 | EL6: Logeren icm MPT | EO6: BGgrp | EP6: Bhgrp | EQ6: Bhgrp | ER6: Bhgrp | EU6: VPTprestatie | EW6: Z043 ZZP 4vv incl.bh incl.db | EX6: V043 VPT 4vv incl.bh incl.db | FB6: 5vv | FC6: Z053 ZZP 5vv incl.bh incl.db | FD6: Opname | FE6: 5vvOpname | FF6: =VLOOKUP(FC6,'Tarieven ZZP'!$D$6:$J$134,7,FALSE) -> 266.47 | FG6: 1865.29 | FL6: 5GGZ B | FM6: 2 | FQ6: 4 | FX6: 0 | FY6: 0 | FZ6: 0 | GA6: 0 | GC6: 0 | GD6: 0 | GE6: Nee
M7: =FS3 -> 0 | N7: 100%, hiermee worden toewijspercentages berekend | T7: Bgind | U7: Minuten | V7: SOM | W7: PG | X7: PA | Y7: VG | Z7: LG | AA7: ZG | AB7: 0.7 | AC7: BH-IND | AD7: BH-GRP | AE7: BG-GRP | AF7: Deeltijd_verblijf | AG7: Schoonmaak | AH7: Logeren | AI7: VP | AJ7: PV | AK7: Verblijf | AL7: VPT | AM7: Vervoer | AN7: BG-IND | AO7: omvang uren | AP7: Klasse | AQ7: Functie | AR7: Totaal uren per functie | AS7: Gedeeld door 60 | AT7: Afronding | AU7: Om 0 te compenceren | AW7: Klasse | AX7: Compensatie K0 bij VP | AY7: F125 Dagactiviteit LZA | AZ7: F125 | BA7: =VLOOKUP(AZ7,'Tarieven ZIN prestaties'!$B$1:$D$110,2,FALSE) -> 12.15 | BC7: Bedrag aan Behandeling ind: | BD7: =SUMIF($B$18:$G$31,"Bhind",$I$18:$I$31) -> 0 | BE7: 1GGZ B | BF7: 860 | BG7: ja | BH7: =VLOOKUP(BE7,'PGB tarieven'!$A$7:$M$53,13,FALSE) -> 30587.60806 | BI7: =BH7/365*7 -> 586.6116615 | BJ7: JA | BK7: =VLOOKUP(G10,BE7:BI54,5,FALSE) ->  | BL7: 1VV | BM7: =VLOOKUP(BL7,'Ruimte behandeling basis MPT'!$A$2:$H$41,8,FALSE) -> 0 | BN7: Ja; ouder met kind jonger dan 18 die thuis woont | BO7: =$M$6*25% -> 0 | BR7: =BK7 ->  | BS7: Totale omvang ZIN | BU7: =I32 -> 0 | BZ7: Klasse | CA7: Omvang oud | CB7: Functie | CC7: Bedrag | CD7: prestatie | CJ7: 1GGZ B | CK7: wel | CL7: nvt | CN7: code | CW7: ophoging | DA7: Totaal minuten/dagdelen | DB7: Uren/dagdelen | DC7: Max klasse | DF7: =VLOOKUP(G$10,$CJ$7:$CL$54,2,FALSE) ->  | DI7: =IF(G10="10VV",DH9,DI9) -> Lijst4 | DL7: 0 | DM7: 0 | DN7: =IF(DM7="minuten",DM7,DL7) -> 0 | DO7: =E19 -> 0 | DP7: Licht | DQ7: Midden | DR7: Zwaar | DS7: 3vg | DT7: Licht | DV7: 3GGZ B | DW7: ja | DX7: Nee | DY7: 0 | DZ7: 16 | EL7: Verblijf2 | EO7: Bhgrp | EP7: Deeltijd_verblijf | EQ7: Logeren | ER7: Bhind | EU7: BHind | EW7: Z051 ZZP 5vv excl.bh incl.db | EX7: V051 VPT 5vv excl.bh incl.db | FB7: 6vv | FC7: Z063 ZZP 6vv incl.bh incl.db | FD7: Opname | FE7: 6vvOpname | FF7: =VLOOKUP(FC7,'Tarieven ZZP'!$D$6:$J$134,7,FALSE) -> 249.07 | FG7: 1743.49 | FH7: =IF(F5="Deeltijd verblijf icm zorg thuis",CONCATENATE(G10,FH1),CONCATENATE(G10,F5)) ->  | FI7: =IFERROR(VLOOKUP(FH7,FE2:FG122,3,FALSE),0) -> 0 | FL7: 6GGZ B | FM7: 2 | FQ7: 4.5 | FX7: 0 | FY7: 0 | FZ7: 0 | GA7: 0 | GC7: 0 | GD7: 0 | GE7: Nee
B8: Wlz sector (Som, PG, VG,LG of ZG) | I8: Vul weekbedrag PGB in: | N8: =IFERROR(IF(F5="MPT",M8/M6,M8/U1)," ") ->  | O8: Let op: percentage van MPT | T8: PV | U8: Minuten | V8: 1VV | W8: 4VV | X8: 1GGZ B | Y8: 1LVG | Z8: 1LG | AA8: 1ZGvis | AB8: 0.9 | AC8: H325 Behandeling lvg | AD8: H802 Dagbehandeling ouderen som en pg | AE8: F125 Dagactiviteit LZA | AF8: D031 DTV 3VV | AG8: H117 Huishoudelijke hulp | AH8: Z999 Logeren GHZ-VG | AI8: H104 Verpleging | AJ8: H126 Persoonlijke verzorging | AK8: Z015 ZZP 1vv incl.db | AL8: V015 VPT 1vv excl.bh incl.db | AM8: H803 Vervoer dagbesteding/dagbehandeling V&V | AN8: H150 Begeleiding incl. beschikbaarheid | AO8: 0 | AP8: Nvt | AQ8: Bgind | AR8: =SUMIF($B$18:$B$31,"bgind",$F$18:$F$31) -> 0 | AS8: =AR8/60 -> 0 | AT8: =FLOOR(AS8,1) -> 0 | AU8: =IF(AR8>0,1,0) -> 0 | AV8: =IF(AT8+AU8<=1,AU8,AT8) -> 0 | AW8: =IFERROR(VLOOKUP(AV8,$AO$8:$AP$33,2,FALSE),"K8") -> Nvt | AY8: H104 Verpleging | AZ8: H104 | BA8: =VLOOKUP(AZ8,'Tarieven ZIN prestaties'!$B$1:$D$110,2,FALSE) -> 72.79 | BC8: Bedrag aan behandeling grp | BD8: =SUMIF($B$18:$G$31,"Bhgrp",$I$18:$I$31) -> 0 | BE8: 2GGZ B | BF8: 862 | BG8: ja | BH8: =VLOOKUP(BE8,'PGB tarieven'!$A$7:$M$53,13,FALSE) -> 37093.60806 | BI8: =BH8/365*7 -> 711.3842642 | BL8: 2VV | BM8: =VLOOKUP(BL8,'Ruimte behandeling basis MPT'!$A$2:$H$41,8,FALSE) -> 0 | BN8: ja; sprake van betaalde arbeid | BO8: =$M$6*25% -> 0 | BR8: =IFERROR(VLOOKUP(G10,BN16:BR31,5,FALSE),0) -> 0 | BU8: =(2+BU6)-BU7 -> 2 | BZ8: K0 | CA8: 0.5 | CB8: Bgind | CC8: 123.79 | CD8: H302 | CJ8: 2GGZ B | CK8: wel | CL8: nvt | CM8: 1GGZ B | CN8: 860 | CO8: 1497 | CP8: =CO8/52 -> 28.78846154 | CQ8: 1281 | CR8: =CQ8/52 -> 24.63461538 | CS8: 10907 | CT8: =CS8/52 -> 209.75 | CU8: 10974 | CV8: =CU8/52 -> 211.0384615 | CW8: 3357 | CX8: 28016 | CY8: 24659 | CZ8: Bgind | DA8: =SUMIF($B$18:$B$31,"bgind",$F$18:$F$31) -> 0 | DB8: =DA8/60 -> 0 | DC8: 25 | DD8: =DB8-DC8 -> -25 | DE8: =IF(DD8>0,DD8,0) -> 0 | DL8: 0 | DM8: 0 | DN8: 0 | DO8: 0 | DP8: F125 Dagactiviteit LZA | DQ8: F125 Dagactiviteit LZA | DR8: F125 Dagactiviteit LZA | DS8: 4vg | DT8: Licht | DV8: 4GGZ B | DW8: ja | DX8: Nee | DY8: 0 | DZ8: 18.5 | EL8: VolPT2 | EO8: Bhind | EP8: Schoonmaak | EQ8: Schoonmaak | ER8: Schoonmaak | EW8: Z053 ZZP 5vv incl.bh incl.db | EX8: V053 VPT 5vv incl.bh incl.db | FB8: 7vv | FC8: Z073 ZZP 7vv incl.bh incl.db | FD8: Opname | FE8: 7vvOpname | FF8: =VLOOKUP(FC8,'Tarieven ZZP'!$D$6:$J$134,7,FALSE) -> 322.86 | FG8: 2260.02 | FL8: 7GGZ B | FM8: 2 | FR8: Ruimte EKT | FS8: =IF(OR($Q$22="",$Q$22="Nee",$BN$12<0),0,FS3/100*25) -> 0 | FX8: 0 | FY8: 0 | FZ8: 0 | GA8: 0 | GC8: 0 | GD8: 0 | GE8: Nee
M9: Ruimte voor zorg in natura | T9: VP | U9: Minuten | V9: 2VV | W9: 5VV | X9: 2GGZ B | Y9: 2LVG | Z9: 2LG | AA9: 2ZGvis | AB9: 0.905 | AC9: H326 Behandeling basis sglvg traject | AD9: H817 Dagbehandeling VG kind emg | AE9: H132 Nachtverzorging | AF9: D041 DTV 4VV | AH9: Z1000 Logeren GHZ-LG | AI9: H106 Gespecialiseerde verpleging | AJ9: H120 Persoonlijke verzorging speciaal | AK9: Z025 ZZP 2vv incl.db | AL9: V025 VPT 2vv excl.bh incl.db | AM9: H881 Vervoer dagbesteding/dagbehandeling ghz - categorie 1 | AN9: H152 Begeleiding speciaal 1 (nah) | AO9: 1 | AP9: K1 | AQ9: PV | AR9: =SUMIF($B$18:$B$31,"PV",$F$18:$F$31) -> 0 | AS9: =AR9/60 -> 0 | AT9: =FLOOR(AS9,1) -> 0 | AU9: =IF(AR9>0,1,0) -> 0 | AV9: =IF(AT9+AU9<=1,AU9,AT9) -> 0 | AW9: =IFERROR(VLOOKUP(AV9,AO8:AP33,2,FALSE),"k8") -> Nvt | AY9: H106 Gespecialiseerde verpleging | AZ9: H106 | BA9: =VLOOKUP(AZ9,'Tarieven ZIN prestaties'!$B$1:$D$110,2,FALSE) -> 91.29 | BC9: Bedrag aan logeren | BD9: =SUMIF($B$18:$G$31,"logeren",$I$18:$I$31) -> 0 | BE9: 3GGZ B | BF9: 864 | BG9: ja | BH9: =VLOOKUP(BE9,'PGB tarieven'!$A$7:$M$53,13,FALSE) -> 43559.60806 | BI9: 835.3897437 | BL9: 3VV | BM9: =VLOOKUP(BL9,'Ruimte behandeling basis MPT'!$A$2:$H$41,8,FALSE) -> 155.89 | BN9: Ja; Cliënt is Wlz indiceerbaar | BO9: =$M$6*25% -> 0 | BP9: =BR7-BR8 ->  | BS9: =IF(BU8>=0,1,0) -> 1 | BZ9: K1 | CA9: 1 | CB9: PV | CC9: 81.48 | CD9: H128 | CJ9: 3GGZ B | CK9: wel | CL9: nvt | CM9: 2GGZ B | CN9: 862 | CO9: 1497 | CP9: =CO9/52 -> 28.78846154 | CQ9: 1281 | CR9: =CQ9/52 -> 24.63461538 | CS9: 16866 | CT9: =CS9/52 -> 324.3461538 | CU9: 10974 | CV9: =CU9/52 -> 211.0384615 | CW9: 3357 | CX9: 33975 | CY9: 30618 | CZ9: PV | DA9: =SUMIF($B$18:$B$31,"PV",$F$18:$F$31) -> 0 | DB9: =DA9/60 -> 0 | DC9: 25 | DD9: =DB9-DC9 -> -25 | DE9: 0 | DF9: 1 | DG9: 2 | DH9: lijst4 | DI9: Lijst4 | DJ9: Lijst 3 | DL9: 0 | DM9: 0 | DN9: 0 | DO9: 0 | DP9: H132 Nachtverzorging | DQ9: H132 Nachtverzorging | DR9: H132 Nachtverzorging | DS9: 5vg | DT9: Midden | DV9: 5GGZ B | DW9: ja | DX9: Nee | DY9: 0 | DZ9: 20 | EO9: Schoonmaak | EP9: Bhind | EQ9: Bhind | EW9: Z061 ZZP 6vv excl.bh incl.db | EX9: V061 VPT 6vv excl.bh incl.db | FB9: 8vv | FC9: Z083 ZZP 8vv incl.bh incl.db | FD9: Opname | FE9: 8vvOpname | FF9: =VLOOKUP(FC9,'Tarieven ZZP'!$D$6:$J$134,7,FALSE) -> 397.61 | FG9: 2783.27 | FL9: 1VG | FM9: 1 | FR9: EKT bij DTV | FS9: =IF(OR($Q$22="",$Q$22="Nee",$BN$12<0),0,IF(F5="Deeltijd verblijf icm zorg thuis",FS8/7*'Deeltijd verblijf'!L7,0)+'Deeltijd verblijf'!M6*25%) -> 0 | FX9: 0 | FY9: 0 | FZ9: 0 | GA9: 0 | GC9: 0 | GD9: 0 | GE9: Nee
B10: Geïndiceerd profiel | M10: =IF(M8>=0,M6-M8,"fout, PGB bedrag") -> 0 | T10: BGgrp | U10: Dagdelen | V10: 3VV | W10: 7VV | X10: 3GGZ B | Y10: 3LVG | Z10: 3LG | AA10: 3ZGvis | AB10: 0.91 | AC10: H327 Behandeling basis sglvg deeltijd | AD10: H819 Dagbehandeling VG EMG volwassenen | AE10: H180 Nachtverpleging | AF10: D051 DTV 5VV | AH10: Z1001 Logeren GHZ-LVG | AI10: H118 Verpleging speciaal aan kinderen tot 18 jaar incl. beschikbaarheid | AJ10: H127 Persoonlijke verzorging incl. beschikbaarheid | AK10: Z031 ZZP 3vv excl.bh incl.db | AL10: V031 VPT 3vv excl.bh incl.db | AM10: H882 Vervoer dagbesteding/dagbehandeling ghz - categorie 2 | AN10: H153 Begeleiding speciaal 2 (psy) | AO10: 2 | AP10: K2 | AQ10: VP | AR10: =SUMIF($B$18:$B$31,"VP",$F$18:$F$31) -> 0 | AS10: =AR10/60 -> 0 | AT10: =FLOOR(AS10,1) -> 0 | AU10: =IF(AR10>0,1,0) -> 0 | AV10: =IF(AT10+AU10<=1,AU10,AT10) -> 0 | AW10: =IF(IFERROR(VLOOKUP(AV10,AO8:AP33,2,FALSE),"K8")="k8","K7",VLOOKUP(AV10,AO8:AP33,2,FALSE)) -> Nvt | AX10: =IF(AND(AS10<1,AU10=1),"K0",AW10) -> Nvt | AY10: H118 Verpleging speciaal aan kinderen tot 18 jaar incl. beschikbaarheid | AZ10: H118 | BA10: =VLOOKUP(AZ10,'Tarieven ZIN prestaties'!$B$1:$D$110,2,FALSE) -> 94.86 | BE10: 4GGZ B | BF10: 766 | BG10: ja | BH10: =VLOOKUP(BE10,'PGB tarieven'!$A$7:$M$53,13,FALSE) -> 47234.60806 | BI10: 905.8691957 | BL10: 4VV | BM10: =VLOOKUP(BL10,'Ruimte behandeling basis MPT'!$A$2:$H$41,8,FALSE) -> 77.98 | BN10: Nee | BO10: 0 | BR10: =IF(BR7=BR8,BR7,SUM(BR6:BR9)) ->  | BZ10: K2 | CA10: 3 | CB10: VP | CC10: 82.37 | CD10: H106 | CJ10: 4GGZ B | CK10: wel | CL10: nvt | CM10: 3GGZ B | CN10: 864 | CO10: 1497 | CP10: 28.78846154 | CQ10: 1281 | CR10: 24.63461538 | CS10: 22788 | CT10: 438.2307692 | CU10: 10974 | CV10: 211.0384615 | CW10: 3357 | CX10: 39897 | CY10: 36540 | CZ10: VP | DA10: =SUMIF($B$18:$B$31,"VP",$F$18:$F$31) -> 0 | DB10: =DA10/60 -> 0 | DC10: 20 | DD10: =DB10-DC10 -> -20 | DE10: 0 | DF10: Ja | DG10: Nvt | DL10: 0 | DM10: 0 | DN10: 0 | DO10: 0 | DP10: H180 Nachtverpleging | DQ10: H180 Nachtverpleging | DR10: H180 Nachtverpleging | DS10: 6vg | DT10: Midden | DV10: 6GGZ B | DW10: ja | DX10: Nee | DY10: 0 | DZ10: 27 | EL10: =IFERROR(VLOOKUP(G10,FL2:FM49,2,FALSE),0) -> 0 | ES10: V015 VPT 1vv excl.bh incl.db | EW10: Z063 ZZP 6vv incl.bh incl.db | EX10: V063 VPT 6vv incl.bh incl.db | FB10: 9vvb | FC10: Z097 ZZP 9bvv incl.bh incl.db | FD10: Opname | FE10: 9vvbOpname | FF10: =VLOOKUP(FC10,'Tarieven ZZP'!$D$6:$J$134,7,FALSE) -> 293.41 | FG10: 2053.87 | FL10: 2VG | FM10: 1 | FR10: EKT bij Logeren | FS10: 0 | FX10: 0 | FY10: 0 | FZ10: 0 | GA10: 0 | GC10: 0 | GD10: 0 | GE10: Nee
M11: Maximale ruimte Extra kosten thuis | T11: Vervoer | U11: Dag | V11: 4VV | W11: 9VVb | X11: 4GGZ B | Y11: 4LVG | Z11: 4LG | AA11: 4ZGvis | AB11: 0.915 | AC11: H329 Behandeling gedragswetenschapper | AD11: H820 Dagbehandeling VG kind midden | AE11: H531 Dagbesteding basis | AF11: D061 DTV 6VV | AH11: Z1002 Logeren GHZ-ZG | AI11: H139 Thuiszorgtechnologie ten behoeve van verpleging | AJ11: H138 Thuiszorgtechnologie ten behoeve van persoonlijke verzorging | AK11: Z041 ZZP 4vv excl.bh incl.db | AL11: V041 VPT 4vv excl.bh incl.db | AM11: H883 Vervoer dagbesteding/dagbehandeling ghz - categorie 3 | AN11: H300 Begeleiding | AO11: 3 | AP11: K2 | AQ11: Bhind | AR11: =SUMIF($B$18:$B$31,"bhind",$F$18:$F$31) -> 0 | AS11: =AR11/60 -> 0 | AT11: =FLOOR(AS11,1) -> 0 | AU11: =IF(AR11>0,1,0) -> 0 | AV11: =IF(AT11+AU11<=1,AU11,AT11) -> 0 | AW11: =IF(AV11>0,99,"Nvt") -> Nvt | AY11: H117 Schoonmaak | AZ11: H117 | BA11: =VLOOKUP(AZ11,'Tarieven ZIN prestaties'!$B$1:$D$110,2,FALSE) -> 32.98 | BC11: Totaal behandeling | BD11: =SUM(BD7:BD8) -> 0 | BE11: 5GGZ B | BF11: 768 | BG11: ja | BH11: =VLOOKUP(BE11,'PGB tarieven'!$A$7:$M$53,13,FALSE) -> 52629 | BI11: 1009.323288 | BL11: 5VV | BM11: =VLOOKUP(BL11,'Ruimte behandeling basis MPT'!$A$2:$H$41,8,FALSE) -> 96.46 | BN11: =IF(R21="ja",BO6,BO10) -> 0 | BO11: =IFERROR(VLOOKUP(Q22,BN5:BO10,2,0),0) -> 0 | BR11: =SUM(BR7:BR9) ->  | BS11: Behandeling ruimte | BU11: =T20 -> 0 | BW11: Toegestaan logeren | BX11: 0 | BZ11: K3 | CA11: 5.5 | CB11: Bhind | CC11: 155.15 | CD11: H332 | CJ11: 5GGZ B | CK11: wel | CL11: nvt | CM11: 4GGZ B | CN11: 766 | CO11: 8220 | CP11: 158.0769231 | CQ11: 3845 | CR11: 73.94230769 | CS11: 16866 | CT11: 324.3461538 | CU11: 10974 | CV11: 211.0384615 | CW11: 3357 | CX11: 43262 | CY11: 39905 | CZ11: Bhind | DA11: =SUMIF($B$18:$B$31,"bhind",$F$18:$F$31) -> 0 | DB11: =DA11/60 -> 0 | DC11: nvt | DD11: =IFERROR(DB11-DC11,0) -> 0 | DE11: 0 | DF11: Nee | DH11: Ja; opgroeiend kind thuis jonger dan 23 jaar | DI11: Ja; opgroeiend kind thuis jonger dan 23 jaar | DJ11: Extra overbruggingszorg (actief wachtend) | DL11: 0 | DM11: 0 | DN11: 0 | DO11: 0 | DP11: H531 Dagbesteding basis | DQ11: H531 Dagbesteding basis | DR11: H531 Dagbesteding basis | DS11: 7vg | DT11: Zwaar | DV11: 7GGZ B | DW11: ja | DX11: Nee | DY11: 0 | DZ11: 33 | EL11: =IF(F5="opname",6,IF(F5="VPT",10,IF(F5="deeltijd verblijf icm MPT",20,IF(F5="logeren icm MPT",30,0)))) -> 0 | ES11: V025 VPT 2vv excl.bh incl.db | EW11: Z071 ZZP 7vv excl.bh incl.db | EX11: V071 VPT 7vv excl.bh incl.db | FB11: 10vv | FC11: Z103 ZZP 10vv incl.bh incl.db | FD11: Opname | FE11: 10vvOpname | FF11: =VLOOKUP(FC11,'Tarieven ZZP'!$D$6:$J$134,7,FALSE) -> 439.29 | FG11: 3075.03 | FL11: 3VG | FM11: 1 | FX11: 0 | FY11: 0 | FZ11: 0 | GA11: 0 | GC11: 0 | GD11: 0 | GE11: Nee
B12: Is er sprake van PGB naast ZIN? | M12: =IF(F5="MPT",FS8,IF(F5="deeltijd verblijf icm zorg thuis",FS9,FS10)) -> 0 | O12: LET OP: Meerzorg gekozen, klik hier voor onderbouwing! | T12: Bhgrp | U12: Dagdelen | V12: 6VV | W12: 10VV | X12: 5GGZ B | Y12: 5LVG | Z12: 5LG | AA12: 5ZGvis | AB12: 0.92 | AC12: H330 Behandeling paramedisch | AD12: H821 Dagbehandeling VG kind zwaar | AE12: H533 Dagbesteding psychogeriatrisch | AF12: D071 DTV 7VV | AH12: Z1003 Logeren VV | AI12: H128 Verpleging extra | AK12: Z051 ZZP 5vv excl.bh incl.db | AL12: V051 VPT 5vv excl.bh incl.db | AM12: H884 Vervoer dagbesteding/dagbehandeling ghz - categorie 4 | AN12: H301 Begeleiding ZG visueel | AO12: 4 | AP12: K3 | AQ12: BGgrp | AR12: =AW16+AW19 -> 0 | AS12: nvt | AT12: =AR12 -> 0 | AU12: nvt | AV12: =IF(AT12<=9,AT12,9) -> 0 | AW12: =VLOOKUP(AV12,AQ16:AR25,2,FALSE) -> Nvt | AY12: H120 Persoonlijke verzorging speciaal | AZ12: H120 | BA12: =VLOOKUP(AZ12,'Tarieven ZIN prestaties'!$B$1:$D$110,2,FALSE) -> 72.79 | BE12: 6GGZ B | BF12: 770 | BG12: ja | BH12: =VLOOKUP(BE12,'PGB tarieven'!$A$7:$M$53,13,FALSE) -> 62801.60806 | BI12: 1204.414401 | BL12: 6VV | BM12: =VLOOKUP(BL12,'Ruimte behandeling basis MPT'!$A$2:$H$41,8,FALSE) -> 104.44 | BN12: =BO11-BN15 -> 0 | BO12: ja invasieve beademing | BP12: 211.42 | BQ12: =BP12*7 -> 1479.94 | BS12: Aanvraag BH | BU12: =I33 -> 0 | BW12: per week | BX12: =BX11/365*7 -> 0 | BZ12: K4 | CA12: 8.5 | CB12: BGgrp | CC12: 147.47 | CD12: H822 | CJ12: 6GGZ B | CK12: wel | CL12: nvt | CM12: 5GGZ B | CN12: 768 | CO12: 4491 | CP12: 86.36538462 | CQ12: 3845 | CR12: 73.94230769 | CS12: 22788 | CT12: 438.2307692 | CU12: 13721 | CV12: 263.8653846 | CW12: 3357 | CX12: 48202 | CY12: 44845 | CZ12: BGgrp | DA12: =DB19+DA20 -> 0 | DB12: =CEILING(DA12,1) -> 0 | DC12: 9 | DD12: =DB12-DC12 -> -9 | DE12: 0 | DH12: Ja; ouder met kind jonger dan 18 die thuis woont | DI12: Ja; ouder met kind jonger dan 18 die thuis woont | DJ12: Palliatief terminale zorg | DL12: 0 | DM12: 0 | DN12: 0 | DO12: 0 | DP12: H533 Dagbesteding psychogeriatrisch | DQ12: H533 Dagbesteding psychogeriatrisch | DR12: H533 Dagbesteding psychogeriatrisch | DS12: 8vg | DT12: Midden | DV12: 1VG | DW12: ja | DX12: Nee | DY12: 0 | DZ12: 11.5 | EL12: =SUM(EL10:EL11) -> 0 | ER12: Z015 ZZP 1vv incl.db | ES12: V031 VPT 3vv excl.bh incl.db | EW12: Z073 ZZP 7vv incl.bh incl.db | EX12: V073 VPT 7vv incl.bh incl.db | FB12: 1vg | FC12: Z415 ZZP 1vg incl.db | FD12: Opname | FE12: 1vgOpname | FF12: =VLOOKUP(FC12,'Tarieven ZZP'!$D$6:$J$134,7,FALSE) -> 131.99 | FG12: 923.93 | FL12: 4VG | FM12: 1 | FR12: Ruimte BH | FS12: =IF(AND($I$33>0,$F$5="MPT"),$T$20,0) -> 0 | FX12: 0 | FY12: 0 | FZ12: 0 | GA12: 0 | GC12: 0 | GD12: 0 | GE12: Nee
B13: =IFERROR(VLOOKUP("verblijfsprestatie",B18:G31,5,0),0) -> 0 | C13: =IF(B13=7,0,1) -> 1 | D13: =IF(AND(F5="opname",C13=1),1,2) -> 2 | O13: LET OP: inzet uren past binnen reguliere ZZP uren. Meerzorg niet toegestaan | T13: Schoonmaak | U13: Minuten | V13: 7VV | X13: 6GGZ B | Y13: 1SGLVG | Z13: 6LG | AA13: 1ZGaud | AB13: 0.925 | AC13: H331 Behandeling Families First lvg | AD13: H822 Dagbehandeling VG kind gedrag | AE13: H800 Dagbesteding somatisch ondersteunend | AF13: D081 DTV 8VV | AK13: Z061 ZZP 6vv excl.bh incl.db | AL13: V061 VPT 6vv excl.bh incl.db | AM13: H885 Vervoer dagbesteding/dagbehandeling ghz - categorie 5 | AN13: H302 Begeleiding speciaal 2 (visueel) | AO13: 5 | AP13: K3 | AQ13: BHgrp | AR13: =SUMIF($B$18:$B$31,"BHgrp",$F$18:$F$31) -> 0 | AS13: nvt | AT13: =AR13 -> 0 | AU13: nvt | AV13: =IF(AT13<=9,AT13,9) -> 0 | AW13: =VLOOKUP(AV13,AQ16:AR25,2,FALSE) -> Nvt | AY13: H126 Persoonlijke verzorging | AZ13: H126 | BA13: =VLOOKUP(AZ13,'Tarieven ZIN prestaties'!$B$1:$D$110,2,FALSE) -> 55.97 | BC13: Totale omvang zorg thuis: | BD13: =SUM(I18:I31)-I33 -> 0 | BE13: 7GGZ B | BF13: 772 | BG13: ja | BH13: =VLOOKUP(BE13,'PGB tarieven'!$A$7:$M$53,13,FALSE) -> 74976 | BI13: 1437.89589 | BL13: 7VV | BM13: =VLOOKUP(BL13,'Ruimte behandeling basis MPT'!$A$2:$H$41,8,FALSE) -> 129.5 | BN13: =IF(R21="ja",0,BR2) -> 0 | BO13: ja non-invasieve beademing | BP13: 39.69 | BQ13: =BP13*7 -> 277.83 | BU13: =BU11-BU12 -> 0 | BZ13: K5 | CA13: 11.5 | CB13: BHgrp | CC13: 147.47 | CD13: H822 | CJ13: 7GGZ B | CK13: wel | CL13: nvt | CM13: 6GGZ B | CN13: 770 | CO13: 12711 | CP13: 244.4423077 | CQ13: 7690 | CR13: 147.8846154 | CS13: 22788 | CT13: 438.2307692 | CU13: 10974 | CV13: 211.0384615 | CW13: 3357 | CX13: 57520 | CY13: 54163 | CZ13: BHgrp | DA13: =SUMIF($B$18:$B$31,"BHgrp",$F$18:$F$31) -> 0 | DB13: =DA13 -> 0 | DC13: 9 | DD13: =DB13-DC13 -> -9 | DE13: 0 | DH13: ja; sprake van betaalde arbeid | DI13: ja; sprake van betaalde arbeid | DJ13: Meerzorg | DL13: 0 | DM13: 0 | DN13: 0 | DO13: 0 | DP13: H800 Dagbesteding somatisch ondersteunend | DQ13: H800 Dagbesteding somatisch ondersteunend | DR13: H800 Dagbesteding somatisch ondersteunend | DS13: 1vv | DT13: BGgrp | DV13: 2VG | DW13: ja | DX13: Nee | DY13: 0 | DZ13: 14.5 | ER13: Z025 ZZP 2vv incl.db | ES13: V033 VPT 3vv incl.bh incl.db | EW13: Z081 ZZP 8vv excl.bh incl.db | EX13: V081 VPT 8vv excl.bh incl.db | FB13: 2vg | FC13: Z425 ZZP 2vg incl.db | FD13: Opname | FE13: 2vgOpname | FF13: =VLOOKUP(FC13,'Tarieven ZZP'!$D$6:$J$134,7,FALSE) -> 146.64 | FG13: 1026.48 | FL13: 5VG | FM13: 1 | FR13: BH bij DTV | FS13: =IF(AND($I$33>0,$F$5="Deeltijd verblijf icm zorg thuis"),$T$20,0) -> 0 | FX13: 0 | FY13: 0 | FZ13: 0 | GA13: 0 | GC13: 0 | GD13: 0 | GE13: Nee
D14: LET OP: Verblijf moet 7 etmalen bevatten of keuze DTV! | F14: De rekenmodule is afgestemd met de cliënt: | M14: Ruimte voor behandeling | P14: "Vul hier onderbouwing bijzondere situatie in" | T14: Deeltijd_verblijf | U14: Etmalen | V14: 8VV | X14: 7GGZ B | Y14: 1VG | Z14: 7LG | AA14: 4ZGaud | AB14: 0.93 | AC14: H332 Behandeling ZG visueel | AD14: H837 Dagbehandeling LG licht | AE14: H811 Dagbesteding VG licht | AF14: D430 DTV 3VG | AK14: Z071 ZZP 7vv excl.bh incl.db | AL14: V071 VPT 7vv excl.bh incl.db | AM14: H321 Reiskosten prestaties behandeling (H325 t/m H331 en H334 t/m H336) | AN14: H303 Begeleiding ZG auditief | AO14: 6 | AP14: K3 | AQ14: Logeren | AR14: =SUMIF($B$18:$B$31,"logeren",$F$18:$F$31) -> 0 | AS14: nvt | AT14: =AR14 -> 0 | AU14: nvt | AV14: =IF(AT14<=7,AT14,7) -> 0 | AW14: =VLOOKUP(AV14,AS16:AT23,2,FALSE) -> Nvt | AY14: H127 Persoonlijke verzorging incl. beschikbaarheid | AZ14: H127 | BA14: =VLOOKUP(AZ14,'Tarieven ZIN prestaties'!$B$1:$D$110,2,FALSE) -> 59.95 | BC14: MPT bedrag | BD14: =BD13-BD11 -> 0 | BE14: 1VG | BF14: 800 | BG14: ja | BH14: =VLOOKUP(BE14,'PGB tarieven'!$A$7:$M$53,13,FALSE) -> 36104 | BI14: 692.4054795 | BL14: 8VV | BM14: =VLOOKUP(BL14,'Ruimte behandeling basis MPT'!$A$2:$H$41,8,FALSE) -> 98.42 | BO14: Nee | BP14: 0 | BQ14: 0 | BS14: =IF(BU13<0,3,0) -> 0 | BW14: Toeslag op te tellen | BX14: =IF(BX12>=BX6,BX6,BX12) -> 0 | BZ14: K6 | CA14: 14.5 | CJ14: 1VG | CK14: wel | CL14: nvt | CM14: 7GGZ B | CN14: 772 | CO14: 8220 | CP14: 158.0769231 | CQ14: 7690 | CR14: 147.8846154 | CS14: 35682 | CT14: 686.1923077 | CU14: 13721 | CV14: 263.8653846 | CW14: 3357 | CX14: 68670 | CY14: 65313 | CZ14: HV | DA14: =SUMIF($B$18:$B$31,"schoonmaak",$F$18:$F$31) -> 0 | DB14: =DA14/60 -> 0 | DC14: 25 | DD14: =DB14-DC14 -> -25 | DE14: 0 | DH14: Ja; Extra kosten thuis | DI14: Ja; Cliënt is Wlz indiceerbaar | DJ14: Extra budget voor behandeling | DL14: 0 | DM14: 0 | DN14: 0 | DO14: 0 | DP14: H811 Dagbesteding VG licht | DQ14: H811 Dagbesteding VG licht | DR14: H811 Dagbesteding VG licht | DS14: 2vv | DT14: BGgrp | DV14: 3VG | DW14: ja | DX14: Nee | DY14: 0 | DZ14: 17.5 | ER14: Z031 ZZP 3vv excl.bh incl.db | ES14: V041 VPT 4vv excl.bh incl.db | EW14: Z083 ZZP 8vv incl.bh incl.db | EX14: V083 VPT 8vv incl.bh incl.db | FB14: 3vg | FC14: Z433 ZZP 3vg incl.bh incl.db | FD14: Opname | FE14: 3vgOpname | FF14: =VLOOKUP(FC14,'Tarieven ZZP'!$D$6:$J$134,7,FALSE) -> 189.68 | FG14: 1327.76 | FL14: 6VG | FM14: 1 | FR14: BH bij Logeren | FS14: =IF(AND($I$33>0,$F$5="Logeren icm MPT"),$T$20,0) -> 0 | FX14: 0 | FY14: 0 | FZ14: 0 | GA14: 0 | GC14: 0 | GD14: 0 | GE14: Nee
K15: bedrag incl EKT: | M15: =IF(F5="MPT",FS12,IF(F5="deeltijd verblijf icm zorg thuis",FS13,FS14)) -> 0 | N15: =IFERROR(M15/M17,0) -> 0 | T15: Bhind | U15: Minuten | V15: 9VVb | Y15: 2VG | AA15: 2ZGaud | AB15: 0.935 | AC15: H333 Behandeling ZG auditief | AD15: H838 Dagbehandeling LG midden | AE15: H812 Dagbesteding VG midden | AF15: D440 DTV 4VG | AK15: Z081 ZZP 8vv excl.bh incl.db | AL15: V081 VPT 8vv excl.bh incl.db | AM15: H337 Reiskosten prestatie behandeling (H332 en H333) | AN15: H304 Begeleiding speciaal 2 (auditief) | AO15: 7 | AP15: K4 | AQ15: Schoonmaak | AR15: =SUMIF($B$18:$B$31,"Schoonmaak",$F$18:$F$31) -> 0 | AS15: =AR15/60 -> 0 | AT15: =FLOOR(AS15,1) -> 0 | AU15: =IF(AR15>0,1,0) -> 0 | AV15: =IF(AT15+AU15<=1,AU15,AT15) -> 0 | AW15: =IFERROR(VLOOKUP(AV15,$AO$8:$AP$33,2,FALSE),"K8") -> Nvt | AY15: H128 Verpleging extra | AZ15: H128 | BA15: =VLOOKUP(AZ15,'Tarieven ZIN prestaties'!$B$1:$D$110,2,FALSE) -> 77.97 | BE15: 2VG | BF15: 802 | BG15: ja | BH15: =VLOOKUP(BE15,'PGB tarieven'!$A$7:$M$53,13,FALSE) -> 42729 | BI15: 819.460274 | BL15: 9VVb | BM15: =VLOOKUP(BL15,'Ruimte behandeling basis MPT'!$A$2:$H$41,8,FALSE) -> 410.48 | BN15: =IF(R25="ja",BO10,0) -> 0 | BS15: incl beh | BU15: =BU6+BU11 -> 0 | BZ15: K7 | CA15: 18 | CJ15: 2VG | CK15: wel | CL15: nvt | CM15: 1LVG | CN15: 780 | CO15: 4491 | CP15: 86.36538462 | CQ15: 0 | CR15: 0 | CS15: 16866 | CT15: 324.3461538 | CU15: 2744 | CV15: 52.76923077 | CW15: 3357 | CX15: 27458 | CY15: 24101 | DH15: Nee | DI15: Ja; Extra kosten thuis | DJ15: Gespecialiseerde verpleging | DL15: 0 | DM15: 0 | DN15: 0 | DO15: 0 | DP15: H814 Dagbesteding VG kind licht | DQ15: H812 Dagbesteding VG midden | DR15: H812 Dagbesteding VG midden | DS15: 3vv | DT15: BGgrp | DV15: 4VG | DW15: ja | DX15: Nee | DY15: 0 | DZ15: 20 | ER15: Z033 ZZP 3vv incl.bh incl.db | ES15: V043 VPT 4vv incl.bh incl.db | EW15: Z095 ZZP 9bvv excl.bh incl.db | EX15: V095 VPT 9bvv excl.bh incl.db | FB15: 4vg | FC15: Z443 ZZP 4vg incl.bh incl.db | FD15: Opname | FE15: 4vgOpname | FF15: =VLOOKUP(FC15,'Tarieven ZZP'!$D$6:$J$134,7,FALSE) -> 223.15 | FG15: 1562.05 | FL15: 7VG | FM15: 1 | FX15: 0 | FY15: 0 | FZ15: 0 | GA15: 0 | GC15: 0 | GD15: 0 | GE15: Nee
B16: Aangevraagde zorg op weekbasis | G16: Eenheid | K16: =IF(AND(Q22="Ja; Extra kosten thuis",M15>0),1,0) -> 0 | M16: =IF(M5="financiële ruimte","Bedrag ZIN","Bedrag ZIN") -> Bedrag ZIN | T16: Logeren | U16: Etmalen | V16: 10VV | Y16: 3VG | AA16: 3ZGaud | AB16: 0.94 | AC16: H334 Behandeling IOG lvg | AD16: H839 Dagbehandeling LG zwaar | AE16: H813 Dagbesteding VG zwaar | AF16: D454 DTV 5VG | AK16: Z095 ZZP 9bvv excl.bh incl.db | AL16: V095 VPT 9bvv excl.bh incl.db | AN16: H306 Thuiszorgtechnologie ten behoeve van begeleiding | AO16: 8 | AP16: K4 | AQ16: 0 | AR16: Nvt | AS16: 0 | AT16: Nvt | AW16: =SUMIFS(F18:F31,B18:B31,"BGgrp",G18:G31,"Dagdelen") -> 0 | AY16: H132 Nachtverzorging | AZ16: H132 | BA16: =VLOOKUP(AZ16,'Tarieven ZIN prestaties'!$B$1:$D$110,2,FALSE) -> 52.68 | BE16: 3VG | BF16: 804 | BG16: ja | BH16: =VLOOKUP(BE16,'PGB tarieven'!$A$7:$M$53,13,FALSE) -> 48706 | BI16: 934.0876712 | BL16: 10VV | BM16: =VLOOKUP(BL16,'Ruimte behandeling basis MPT'!$A$2:$H$41,8,FALSE) -> 0 | BN16: 1VV | BO16: 750 | BP16: nvt | BQ16: =VLOOKUP(BN16,'PGB tarieven'!$A$7:$M$53,13,FALSE) -> 16294 | BR16: =BQ16/365*7 -> 312.4876712 | BS16: omvang | BU16: =BU7+BU12 -> 0 | BZ16: K8 | CA16: 22.5 | CJ16: 3VG | CK16: wel | CL16: nvt | CM16: 2LVG | CN16: 781 | CO16: 4491 | CP16: 86.36538462 | CQ16: 0 | CR16: 0 | CS16: 28748 | CT16: 552.8461538 | CU16: 2744 | CV16: 52.76923077 | CW16: 3357 | CX16: 39340 | CY16: 35983 | DB16: Voor voorwaardelijke opmaak "opslag" | DI16: Nee | DJ16: Overig | DL16: 0 | DM16: 0 | DN16: 0 | DO16: 0 | DP16: H818 Dagactiviteit (begeleiding) VG kind gedrag | DQ16: H814 Dagbesteding VG kind licht | DR16: H813 Dagbesteding VG zwaar | DS16: 4vv | DT16: BGgrp | DV16: 5VG | DW16: ja | DX16: Ja | DY16: =DZ16*1.25 -> 31.875 | DZ16: 25.5 | EM16: =IF(F5="deeltijd verblijf icm zorg thuis","Deeltijd",IF(F5="logeren icm MPT","LOG",F5)) -> 0 | ER16: Z041 ZZP 4vv excl.bh incl.db | ES16: V051 VPT 5vv excl.bh incl.db | EW16: Z097 ZZP 9bvv incl.bh incl.db | EX16: V097 VPT 9bvv incl.bhincl.db | FB16: 5vg | FC16: Z457 ZZP 5vg incl.bh incl.db | FD16: Opname | FE16: 5vgOpname | FF16: =VLOOKUP(FC16,'Tarieven ZZP'!$D$6:$J$134,7,FALSE) -> 286.06 | FG16: 2002.42 | FL16: 8VG | FM16: 1 | GA16: =SUM(GA2:GA15) -> 0
B17: Soort zorg | D17: Prestatie | E17: Leverende AGBcode | F17: Aantal | H17: Tarief | I17: Bedrag per week | K17: Percentage | M17: =M10+M12+M15 -> 0 | N17: =IFERROR(IF(F5="deeltijd verblijf icm zorg thuis",(M17/'Deeltijd verblijf'!P2),(M17/M6)),0) -> 0 | T17: verblijfsprestatie | U17: Etmalen | Y17: 4VG | AB17: 0.945 | AC17: H335 Behandeling som, pg, vg, lg, zg (SO) | AD17: H891 Dagbehandeling LVG | AE17: H814 Dagbesteding VG kind licht | AF17: D460 DTV 6VG | AK17: Z101 ZZP 10vv excl.bh incl.db | AL17: V101 VPT 10vv excl.bh incl.db | AO17: 9 | AP17: K4 | AQ17: 1 | AR17: KD01 | AS17: 1 | AT17: KE1 | AW17: =SUMIFS(F18:F31,B18:B31,"BGgrp",G18:G31,"Minuten") -> 0 | AY17: H138 Thuiszorgtechnologie ten behoeve van persoonlijke verzorging | AZ17: H138 | BA17: =VLOOKUP(AZ17,'Tarieven ZIN prestaties'!$B$1:$D$110,2,FALSE) -> 55.97 | BE17: 4VG | BF17: 806 | BG17: ja | BH17: =VLOOKUP(BE17,'PGB tarieven'!$A$7:$M$53,13,FALSE) -> 53459 | BI17: 1025.241096 | BL17: 1VG | BM17: =VLOOKUP(BL17,'Ruimte behandeling basis MPT'!$A$2:$H$41,8,FALSE) -> 0 | BN17: 2VV | BO17: 751 | BP17: nvt | BQ17: =VLOOKUP(BN17,'PGB tarieven'!$A$7:$M$53,13,FALSE) -> 23627 | BR17: =BQ17/365*7 -> 453.1205479 | BU17: =BU15-BU16 -> 0 | BZ17: KD01 | CA17: 1 | CJ17: 4VG | CK17: wel | CL17: nvt | CM17: 3LVG | CN17: 782 | CO17: 12711 | CP17: 244.4423077 | CQ17: 0 | CR17: 0 | CS17: 28748 | CT17: 552.8461538 | CU17: 2744 | CV17: 52.76923077 | CW17: 3357 | CX17: 47560 | CY17: 44203 | DB17: =SUM(DE8:DE14) -> 0 | DJ17: Nee | DL17: 0 | DM17: 0 | DN17: 0 | DP17: H831 Dagbesteding LG licht | DQ17: H815 Dagbesteding VG kind midden | DR17: H814 Dagbesteding VG kind licht | DS17: 5vv | DT17: BGgrp | DV17: 6VG | DW17: ja | DX17: Nee | DY17: =DZ17*1.25 -> 31.25 | DZ17: 25 | ER17: Z043 ZZP 4vv incl.bh incl.db | ES17: V053 VPT 5vv incl.bh incl.db | EW17: Z101 ZZP 10vv excl.bh incl.db | EX17: V101 VPT 10vv excl.bh incl.db | FB17: 6vg | FC17: Z463 ZZP 6vg incl.bh incl.db | FD17: Opname | FE17: 6vgOpname | FF17: =VLOOKUP(FC17,'Tarieven ZZP'!$D$6:$J$134,7,FALSE) -> 256.14 | FG17: 1792.98 | FL17: 1LG | FM17: 1
C18: =IF(B18="onklaar",$DP$1,B18) -> 0 | G18: =DN6 -> 0 | H18: =IFERROR(IF(OR(COUNTIF(B18:B31,"VPTprestatie")>1,(COUNTIF(B18:B31,"verblijfsprestatie")>1)),"fout splitsing",U30),U30) -> 0 | I18: =IF(G18="minuten",(H18/60)*F18,F18*H18) -> 0 | K18: =IFERROR(IF($F$5="deeltijd verblijf icm zorg thuis",(I18/'Deeltijd verblijf'!$P$2)*100%,I18/($T$28+$M$8)*100%),0) -> 0 | T18: Dagbesteding | U18: Dagdelen | Y18: 5VG | AB18: 0.95 | AC18: H336 Behandeling som, pg, vg, lg, zg (AVG) | AE18: H815 Dagbesteding VG kind midden | AF18: D470 DTV 7VG | AK18: Z033 ZZP 3vv incl.bh incl.db | AL18: V414 VPT 1vg excl.bh excl.db | AO18: 10 | AP18: K5 | AQ18: 2 | AR18: KD02 | AS18: 2 | AT18: KE2 | AW18: =AW17/60 -> 0 | AY18: H139 Thuiszorgtechnologie ten behoeve van verpleging | AZ18: H139 | BA18: =VLOOKUP(AZ18,'Tarieven ZIN prestaties'!$B$1:$D$110,2,FALSE) -> 72.79 | BE18: 5VG | BF18: 808 | BG18: ja | BH18: =VLOOKUP(BE18,'PGB tarieven'!$A$7:$M$53,13,FALSE) -> 68173 | BI18: 1307.427397 | BL18: 2VG | BM18: =VLOOKUP(BL18,'Ruimte behandeling basis MPT'!$A$2:$H$41,8,FALSE) -> 0 | BN18: 3VV | BO18: 752 | BP18: nvt | BQ18: =VLOOKUP(BN18,'PGB tarieven'!$A$7:$M$53,13,FALSE) -> 28761 | BR18: 551.5808219 | BS18: =IF(BU17<0,0,4) -> 4 | BZ18: KD02 | CA18: 2 | CJ18: 5VG | CK18: wel | CL18: nvt | CM18: 4LVG | CN18: 783 | CO18: 17176 | CP18: 330.3076923 | CQ18: 0 | CR18: 0 | CS18: 35682 | CT18: 686.1923077 | CU18: 5487 | CV18: 105.5192308 | CW18: 3357 | CX18: 61702 | CY18: 58345 | DL18: 0 | DM18: 0 | DN18: 0 | DP18: H834 Dagbesteding LG kind licht | DQ18: H818 Dagactiviteit (begeleiding) VG kind gedrag | DR18: H815 Dagbesteding VG kind midden | DS18: 6vv | DT18: BGgrp | DV18: 7VG | DW18: ja | DX18: Ja | DY18: 45 | DZ18: 36 | ER18: Z051 ZZP 5vv excl.bh incl.db | ES18: V061 VPT 6vv excl.bh incl.db | EW18: Z103 ZZP 10vv incl.bh incl.db | EX18: V103 VPT 10vv incl.bhincl.db | FB18: 7vg | FC18: Z473 ZZP 7vg incl.bh incl.db | FD18: Opname | FE18: 7vgOpname | FF18: =VLOOKUP(FC18,'Tarieven ZZP'!$D$6:$J$134,7,FALSE) -> 357.44 | FG18: 2502.08 | FL18: 2LG | FM18: 1 | FZ18: Ja | GA18: =VLOOKUP(FZ18,GB2:GC15,2,0) ->  | GB18: ja
C19: =IF(B19="onklaar",$DP$1,B19) -> 0 | G19: 0 | H19: =U31 -> 0 | I19: 0 | K19: =IFERROR(IF($F$5="deeltijd verblijf icm zorg thuis",(I19/'Deeltijd verblijf'!$P$2)*100%,I19/($T$28+$M$8)*100%),0) -> 0 | M19: Vervolgactie na rekenmodule | T19: VPTprestatie | U19: Etmalen | Y19: 6VG | AB19: 0.955 | AE19: H816 Dagbesteding VG kind zwaar | AF19: D480 DTV 8VG | AK19: Z043 ZZP 4vv incl.bh incl.db | AL19: V424 VPT 2vg excl.bh excl.db | AO19: 11 | AP19: K5 | AQ19: 3 | AR19: KD03 | AS19: 3 | AT19: KE3 | AW19: =CEILING(AW18,1) -> 0 | AY19: H150 Begeleiding incl. beschikbaarheid | AZ19: H150 | BA19: =VLOOKUP(AZ19,'Tarieven ZIN prestaties'!$B$1:$D$110,2,FALSE) -> 67.13 | BE19: 6VG | BF19: 810 | BG19: ja | BH19: =VLOOKUP(BE19,'PGB tarieven'!$A$7:$M$53,13,FALSE) -> 64111 | BI19: 1229.526027 | BL19: 3VG | BM19: =VLOOKUP(BL19,'Ruimte behandeling basis MPT'!$A$2:$H$41,8,FALSE) -> 157.92 | BN19: 4VV | BO19: 753 | BP19: nvt | BQ19: =VLOOKUP(BN19,'PGB tarieven'!$A$7:$M$53,13,FALSE) -> 38537 | BR19: 739.0657534 | BS19: =IF(BU8=0,8,0) -> 0 | BZ19: KD03 | CA19: 3 | CJ19: 6VG | CK19: wel | CL19: nvt | CM19: 5LVG | CN19: 784 | CO19: 17176 | CP19: 330.3076923 | CQ19: 0 | CR19: 0 | CS19: 35682 | CT19: 686.1923077 | CU19: 5487 | CV19: 105.5192308 | CW19: 3357 | CX19: 61702 | CY19: 58345 | DA19: =SUMIFS(F18:F31,B18:B31,"BGgrp",G18:G31,"minuten") -> 0 | DB19: =DA19/60 -> 0 | DL19: 0 | DM19: 0 | DN19: 0 | DP19: H851 Dagbesteding ZG auditief licht | DQ19: H831 Dagbesteding LG licht | DR19: H816 Dagbesteding VG kind zwaar | DS19: 7vv | DT19: BGgrp | DV19: 8VG | DW19: ja | DX19: Ja | DY19: 37.5 | DZ19: 30 | ER19: Z053 ZZP 5vv incl.bh incl.db | ES19: V063 VPT 6vv incl.bh incl.db | EW19: Z414 ZZP 1vg excl.db | EX19: V414 VPT 1vg excl.bh excl.db | FB19: 8vg | FC19: Z483 ZZP 8vg incl.bh incl.db | FD19: Opname | FE19: 8vgOpname | FF19: =VLOOKUP(FC19,'Tarieven ZZP'!$D$6:$J$134,7,FALSE) -> 351.97 | FG19: 2463.79 | FL19: 3LG | FM19: 1 | FZ19: Nee
C20: 0 | G20: 0 | H20: 0 | I20: 0 | K20: =IFERROR(IF($F$5="deeltijd verblijf icm zorg thuis",(I20/'Deeltijd verblijf'!$P$2)*100%,I20/($T$28+$M$8)*100%),0) -> 0 | M20: =IFERROR(IF(Q24="gespecialiseerde verpleging",BT22,VLOOKUP(BS20,BS22:BT276,2,FALSE))," ") -> Eerst zorgvraag invullen | T20: =IF(FS8>0,U20*125%,U20) -> 0 | U20: =IFERROR(VLOOKUP($G$10,$BL$7:$BM$83,2,FALSE),0) -> 0 | Y20: 7VG | AB20: 0.96 | AE20: H818 Dagactiviteit (begeleiding) VG kind gedrag | AF20: D624 DTV 2LG | AK20: Z053 ZZP 5vv incl.bh incl.db | AL20: V430 VPT 3vg excl.bh excl.db | AO20: 12 | AP20: K5 | AQ20: 4 | AR20: KD04 | AS20: 4 | AT20: KE4 | AY20: H152 Begeleiding speciaal 1 (nah) | AZ20: H152 | BA20: =VLOOKUP(AZ20,'Tarieven ZIN prestaties'!$B$1:$D$110,2,FALSE) -> 100.07 | BE20: 7VG | BF20: 812 | BG20: ja | BH20: =VLOOKUP(BE20,'PGB tarieven'!$A$7:$M$53,13,FALSE) -> 85104 | BI20: 1632.131507 | BL20: 4VG | BM20: =VLOOKUP(BL20,'Ruimte behandeling basis MPT'!$A$2:$H$41,8,FALSE) -> 270.41 | BN20: 5VV | BO20: 754 | BP20: nvt | BQ20: =VLOOKUP(BN20,'PGB tarieven'!$A$7:$M$53,13,FALSE) -> 52286 | BR20: 1002.745205 | BS20: =IF(AND(BS21=2085,M17<I35),2,BS21) -> 1105 | BT20: =IF(E45=0,100,0) -> 100 | BU20: =IF(R21="ja",80,0) -> 0 | BV20: =IF(G12="ja",500,0) -> 0 | BW20: =IF(R21="ja",1000,0) -> 0 | BX20: =IF(Q24="palliatief terminale zorg",1000,0) -> 0 | BZ20: KD04 | CA20: 4 | CJ20: 7VG | CK20: wel | CL20: nvt | CM20: 1SGLVG | CN20: 790 | CO20: 8220 | CP20: 158.0769231 | CQ20: 0 | CR20: 0 | CS20: 35682 | CT20: 686.1923077 | CU20: 8232 | CV20: 158.3076923 | CW20: 3357 | CX20: 55491 | CY20: 52134 | DA20: =SUMIFS(F18:F31,B18:B31,"BGgrp",G18:G31,"Dagdelen") -> 0 | DH20: =IF($F$5="opname","Verblijf",IF($F$5="MPT","MPT",IF($F$5="VPT","VPT","DTV"))) -> DTV | DP20: H854 Dagbesteding ZG kind auditief licht | DQ20: H832 Dagbesteding LG midden | DR20: H818 Dagactiviteit (begeleiding) VG kind gedrag | DS20: 8vv | DT20: BGgrp | DV20: 1LG | DW20: ja | DX20: Nee | DY20: 18.125 | DZ20: 14.5 | ER20: Z061 ZZP 6vv excl.bh incl.db | ES20: V071 VPT 7vv excl.bh incl.db | EW20: Z415 ZZP 1vg incl.db | EX20: V415 VPT 1vg excl.bh incl.db | FB20: 1lvg | FC20: Z513 ZZP 1lvg incl.bh incl.db | FD20: Opname | FE20: 1lvgOpname | FF20: =VLOOKUP(FC20,'Tarieven ZZP'!$D$6:$J$134,7,FALSE) -> 222.44 | FG20: 1557.08 | FL20: 4LG | FM20: 1
C21: 0 | G21: 0 | H21: 0 | I21: 0 | K21: =IFERROR(IF($F$5="deeltijd verblijf icm zorg thuis",(I21/'Deeltijd verblijf'!$P$2)*100%,I21/($T$28+$M$8)*100%),0) -> 0 | M21: Aanvraag past niet. Is er sprake van een bijzondere situatie? | T21: =BX14 -> 0 | U21: F125 | Y21: 8VG | AB21: 0.965 | AE21: H831 Dagbesteding LG licht | AF21: D640 DTV 4LG | AK21: Z063 ZZP 6vv incl.bh incl.db | AL21: V440 VPT 4vg excl.bh excl.db | AO21: 13 | AP21: K6 | AQ21: 5 | AR21: KD05 | AS21: 5 | AT21: KE5 | AY21: H153 Begeleiding speciaal 2 (psy) | AZ21: H153 | BA21: =VLOOKUP(AZ21,'Tarieven ZIN prestaties'!$B$1:$D$110,2,FALSE) -> 107.23 | BE21: 8VG | BF21: 814 | BG21: ja | BH21: =VLOOKUP(BE21,'PGB tarieven'!$A$7:$M$53,13,FALSE) -> 75007 | BI21: 1438.490411 | BL21: 5VG | BM21: =VLOOKUP(BL21,'Ruimte behandeling basis MPT'!$A$2:$H$41,8,FALSE) -> 225.89 | BN21: 6VV | BO21: 755 | BP21: nvt | BQ21: =VLOOKUP(BN21,'PGB tarieven'!$A$7:$M$53,13,FALSE) -> 52286 | BR21: 1002.745205 | BS21: =IF(AND(F5="opname",SUM(F18:F20)=16),1,IF(AND(F5="VPT",SUM(F18:F20)=16),1,$BS$14+$BS$18+$BS$9+$BS$19+$BT$20+$BU$20+$BV$20+$BW$20+$BX$21)) -> 1105 | BX21: =IF(OR(BX20=1000,K35<126%),1000,0) -> 1000 | BZ21: KD05 | CA21: 5 | CJ21: 8VG | CK21: wel | CL21: nvt | CM21: 1VG | CN21: 800 | CO21: 4491 | CP21: 86.36538462 | CQ21: 0 | CR21: 0 | CS21: 10907 | CT21: 209.75 | CU21: 13721 | CV21: 263.8653846 | CW21: 3357 | CX21: 32476 | CY21: 29119 | DH21: =IF($F$5="opname","Verblijf",IF($F$5="MPT","MPT",IF($F$5="VPT","VPT","DTV"))) -> DTV | DP21: H871 Dagbesteding ZG visueel licht | DQ21: H834 Dagbesteding LG kind licht | DR21: H831 Dagbesteding LG licht | DS21: 9vv | DT21: BGgrp | DV21: 2LG | DW21: ja | DX21: Nee | DY21: 25 | DZ21: 20 | ER21: Z063 ZZP 6vv incl.bh incl.db | ES21: V073 VPT 7vv incl.bh incl.db | EW21: Z424 ZZP 2vg excl.db | EX21: V424 VPT 2vg excl.bh excl.db | FB21: 2lvg | FC21: Z523 ZZP 2lvg incl.bh incl.db | FD21: Opname | FE21: 2lvgOpname | FF21: =VLOOKUP(FC21,'Tarieven ZZP'!$D$6:$J$134,7,FALSE) -> 264.51 | FG21: 1851.57 | FL21: 5LG | FM21: 1
C22: 0 | G22: 0 | H22: 0 | I22: 0 | K22: =IFERROR(IF($F$5="deeltijd verblijf icm zorg thuis",(I22/'Deeltijd verblijf'!$P$2)*100%,I22/($T$28+$M$8)*100%),0) -> 0 | M22: Is er sprake van extra kosten thuis? | T22: =IF(M20="PGB: rekenmodule voorleggen aan zorgkantoor",1,0) -> 0 | AB22: 0.97 | AE22: H832 Dagbesteding LG midden | AF22: D650 DTV 5LG | AK22: Z073 ZZP 7vv incl.bh incl.db | AL22: V454 VPT 5vg excl.bh excl.db | AO22: 14 | AP22: K6 | AQ22: 6 | AR22: KD06 | AS22: 6 | AT22: KE6 | AY22: H180 Nachtverpleging | AZ22: H180 | BA22: =VLOOKUP(AZ22,'Tarieven ZIN prestaties'!$B$1:$D$110,2,FALSE) -> 98.94 | BE22: 1LG | BF22: 820 | BG22: ja | BH22: =VLOOKUP(BE22,'PGB tarieven'!$A$7:$M$53,13,FALSE) -> 46875 | BI22: 898.9726027 | BL22: 6VG | BM22: =VLOOKUP(BL22,'Ruimte behandeling basis MPT'!$A$2:$H$41,8,FALSE) -> 300.37 | BN22: 7VV | BO22: 756 | BP22: nvt | BQ22: =VLOOKUP(BN22,'PGB tarieven'!$A$7:$M$53,13,FALSE) -> 65495 | BR22: 1256.068493 | BS22: 1 | BT22: Zorg aanvragen via iWLZ, geen extra toestemming vereist | BZ22: KD06 | CA22: 6 | CJ22: 1LG | CK22: wel | CL22: nvt | CM22: 2VG | CN22: 802 | CO22: 4491 | CP22: 86.36538462 | CQ22: 0 | CR22: 0 | CS22: 16866 | CT22: 324.3461538 | CU22: 13721 | CV22: 263.8653846 | CW22: 3357 | CX22: 38435 | CY22: 35078 | DH22: DTV | DP22: H874 Dagbesteding ZG kind visueel licht | DQ22: H835 Dagbesteding LG kind midden | DR22: H832 Dagbesteding LG midden | DS22: 10vv | DT22: BGgrp | DV22: 3LG | DW22: ja | DX22: Nee | DY22: 25 | DZ22: 20 | ER22: Z071 ZZP 7vv excl.bh incl.db | ES22: V081 VPT 8vv excl.bh incl.db | EW22: Z425 ZZP 2vg incl.db | EX22: V425 VPT 2vg excl.bh incl.db | FB22: 3lvg | FC22: Z533 ZZP 3lvg incl.bh incl.db | FD22: Opname | FE22: 3lvgOpname | FF22: =VLOOKUP(FC22,'Tarieven ZZP'!$D$6:$J$134,7,FALSE) -> 343.78 | FG22: 2406.46 | FL22: 6LG | FM22: 1
C23: 0 | G23: =DN11 -> 0 | H23: 0 | I23: 0 | K23: =IFERROR(IF($F$5="deeltijd verblijf icm zorg thuis",(I23/'Deeltijd verblijf'!$P$2)*100%,I23/($T$28+$M$8)*100%),0) -> 0 | M23: Is er spake van een toeslag in verband met beademing? | T23: =IF(I32>T1,2,0) -> 0 | X23: EKT | Y23: Beademing | Z23: Extra overbruggingszorg (Actief wachtend) | AB23: 0.975 | AE23: H833 Dagbesteding LG zwaar | AF23: D660 DTV 6LG | AK23: Z083 ZZP 8vv incl.bh incl.db | AL23: V460 VPT 6vg excl.bh excl.db | AO23: 15 | AP23: K6 | AQ23: 7 | AR23: KD07 | AS23: 7 | AT23: KE7 | AY23: H300 Begeleiding | AZ23: H300 | BA23: =VLOOKUP(AZ23,'Tarieven ZIN prestaties'!$B$1:$D$110,2,FALSE) -> 62.68 | BE23: 2LG | BF23: 822 | BG23: ja | BH23: =VLOOKUP(BE23,'PGB tarieven'!$A$7:$M$53,13,FALSE) -> 56012 | BI23: 1074.20274 | BL23: 7VG | BM23: =VLOOKUP(BL23,'Ruimte behandeling basis MPT'!$A$2:$H$41,8,FALSE) -> 522.97 | BN23: 8VV | BO23: 757 | BP23: nvt | BQ23: =VLOOKUP(BN23,'PGB tarieven'!$A$7:$M$53,13,FALSE) -> 78167 | BR23: 1499.093151 | BS23: 2 | BT23: Rekenmodule voorleggen aan Zorgkantoor | BZ23: KD07 | CA23: 7 | CJ23: 2LG | CK23: wel | CL23: nvt | CM23: 3VG | CN23: 804 | CO23: 1497 | CP23: 28.78846154 | CQ23: 0 | CR23: 0 | CS23: 22788 | CT23: 438.2307692 | CU23: 16170 | CV23: 310.9615385 | CW23: 3357 | CX23: 43812 | CY23: 40455 | DH23: DTV | DQ23: H851 Dagbesteding ZG auditief licht | DR23: H833 Dagbesteding LG zwaar | DS23: 1lg | DT23: Zwaar | DV23: 4LG | DW23: ja | DX23: Nee | DY23: 28.75 | DZ23: 23 | ER23: Z073 ZZP 7vv incl.bh incl.db | ES23: V083 VPT 8vv incl.bh incl.db | EW23: Z430 ZZP 3vg excl.bh excl.db | EX23: V430 VPT 3vg excl.bh excl.db | FB23: 4lvg | FC23: Z543 ZZP 4lvg incl.bh incl.db | FD23: Opname | FE23: 4lvgOpname | FF23: =VLOOKUP(FC23,'Tarieven ZZP'!$D$6:$J$134,7,FALSE) -> 392.81 | FG23: 2749.67 | FL23: 7LG | FM23: 1
C24: 0 | G24: 0 | H24: 0 | I24: 0 | K24: =IFERROR(IF($F$5="deeltijd verblijf icm zorg thuis",(I24/'Deeltijd verblijf'!$P$2)*100%,I24/($T$28+$M$8)*100%),0) -> 0 | M24: Is er sprake van een overige reden? | T24: =SUM(T22:T23) -> 0 | V24: Ja; sprake van thuiswonend kind | W24: Ja; sprake van thuiswonend kind | X24: =IF(Q22="Ja; extra kosten thuis",X26,IF(Q22="Ja; ouder met kind jonger dan 18 die thuis woont",X27,IF(Q22="Ja; sprake van betaalde arbeid",X28,""))) ->  | Y24: =IF(Q23="ja invasieve beademing","invasieve beademing",IF(Q23="ja non-invasieve beademing","non-invasieve beademing","")) ->  | Z24: Palliatief terminale zorg (PTZ) | AB24: 0.98 | AE24: H834 Dagbesteding LG kind licht | AF24: D670 DTV 7LG | AK24: Z097 ZZP 9bvv incl.bh incl.db | AL24: V470 VPT 7vg excl.bh excl.db | AO24: 16 | AP24: K7 | AQ24: 8 | AR24: KD08 | AY24: H301 Begeleiding ZG visueel | AZ24: H301 | BA24: =VLOOKUP(AZ24,'Tarieven ZIN prestaties'!$B$1:$D$110,2,FALSE) -> 111.4 | BE24: 3LG | BF24: 824 | BG24: ja | BH24: =VLOOKUP(BE24,'PGB tarieven'!$A$7:$M$53,13,FALSE) -> 52114 | BI24: 999.4465753 | BL24: 8VG | BM24: =VLOOKUP(BL24,'Ruimte behandeling basis MPT'!$A$2:$H$41,8,FALSE) -> 311.64 | BN24: 9vvb | BO24: 191 | BP24: nvt | BQ24: =VLOOKUP(BN24,'PGB tarieven'!$A$7:$M$53,13,FALSE) -> 50125 | BR24: 961.3013699 | BS24: 3 | BT24: Rekenmodule voorleggen aan Zorgkantoor | BV24: 3357 | BZ24: KD08 | CA24: 8 | CJ24: 3LG | CK24: wel | CL24: nvt | CM24: 4VG | CN24: 806 | CO24: 4491 | CP24: 86.36538462 | CQ24: 1281 | CR24: 24.63461538 | CS24: 22788 | CT24: 438.2307692 | CU24: 16170 | CV24: 310.9615385 | CW24: 3357 | CX24: 48087 | CY24: 44730 | DH24: DTV | DQ24: H852 Dagbesteding ZG auditief midden | DR24: H834 Dagbesteding LG kind licht | DS24: 2lg | DT24: Midden | DV24: 5LG | DW24: ja | DX24: Ja | DY24: 35.625 | DZ24: 28.5 | ER24: Z081 ZZP 8vv excl.bh incl.db | ES24: V095 VPT 9bvv excl.bh incl.db | EW24: Z431 ZZP 3vg excl.bh incl.db | EX24: V431 VPT 3vg excl.bh incl.db | FB24: 5lvg | FC24: Z553 ZZP 5lvg incl.bh incl.db | FD24: Opname | FE24: 5lvgOpname | FF24: =VLOOKUP(FC24,'Tarieven ZZP'!$D$6:$J$134,7,FALSE) -> 374.76 | FG24: 2623.32 | FL24: 1ZGvis | FM24: 1
C25: 0 | G25: 0 | H25: 0 | I25: 0 | K25: =IFERROR(IF($F$5="deeltijd verblijf icm zorg thuis",(I25/'Deeltijd verblijf'!$P$2)*100%,I25/($T$28+$M$8)*100%),0) -> 0 | M25: Is er sprake van een kleinschalige woonvoorziening? | V25: ja; sprake van betaalde arbeid | W25: ja; sprake van betaalde arbeid | X25: Overig | Y25: =IF(Q24="extra overbruggingszorg (actief wachtend)",Z23,IF(Q24="palliatief terminale zorg",Z24,IF(Q24="meerzorg",Z25,IF(Q24="extra budget voor behandeling",Z26,IF(Q24="overig",Z27,IF(Q24="Gespecialiseerde verpleging",Z28,"")))))) ->  | Z25: Meerzorg | AB25: 0.985 | AE25: H835 Dagbesteding LG kind midden | AF25: D710 DTV ZGaud1 | AK25: Z103 ZZP 10vv incl.bh incl.db | AL25: V480 VPT 8vg excl.bh excl.db | AO25: 17 | AP25: K7 | AQ25: 9 | AR25: KD09 | AY25: H302 Begeleiding speciaal 2 (visueel) | AZ25: H302 | BA25: =VLOOKUP(AZ25,'Tarieven ZIN prestaties'!$B$1:$D$110,2,FALSE) -> 136.91 | BE25: 4LG | BF25: 826 | BG25: ja | BH25: =VLOOKUP(BE25,'PGB tarieven'!$A$7:$M$53,13,FALSE) -> 56012 | BI25: 1074.20274 | BL25: 1LVG | BM25: =VLOOKUP(BL25,'Ruimte behandeling basis MPT'!$A$2:$H$41,8,FALSE) -> 0 | BN25: 10VV | BO25: 759 | BP25: nvt | BQ25: =VLOOKUP(BN25,'PGB tarieven'!$A$7:$M$53,13,FALSE) -> 85153 | BR25: 1633.071233 | BS25: 4 | BT25: Rekenmodule voorleggen aan Zorgkantoor | BV25: =BV24/365 -> 9.197260274 | BZ25: KD09 | CA25: 9 | CC25: Bedrag | CJ25: 4LG | CK25: wel | CL25: nvt | CM25: 5VG | CN25: 808 | CO25: 12711 | CP25: 244.4423077 | CQ25: 3845 | CR25: 73.94230769 | CS25: 22788 | CT25: 438.2307692 | CU25: 18622 | CV25: 358.1153846 | CW25: 3357 | CX25: 61323 | CY25: 57966 | DH25: DTV | DQ25: H854 Dagbesteding ZG kind auditief licht | DR25: H835 Dagbesteding LG kind midden | DS25: 3lg | DT25: Zwaar | DV25: 6LG | DW25: ja | DX25: Ja | DY25: 35.625 | DZ25: 28.5 | ER25: Z083 ZZP 8vv incl.bh incl.db | EW25: Z432 ZZP 3vg incl.bh excl.db | EX25: V432 VPT 3vg incl.bh excl.db | FB25: 1sglvg | FC25: Z573 ZZP 1sglvg incl.bh incl.db | FD25: Opname | FE25: 1sglvgOpname | FF25: =VLOOKUP(FC25,'Tarieven ZZP'!$D$6:$J$134,7,FALSE) -> 428.97 | FG25: 3002.79 | FL25: 2ZGvis | FM25: 1
C26: 0 | G26: 0 | H26: 0 | I26: 0 | K26: =IFERROR(IF($F$5="deeltijd verblijf icm zorg thuis",(I26/'Deeltijd verblijf'!$P$2)*100%,I26/($T$28+$M$8)*100%),0) -> 0 | L26: Zorg aan te vragen conform iWLZ | T26: =IF(I33<M15,I33,M15) -> 0 | V26: Ja; sprake van terminale zorg | W26: Nee | X26: Extra kosten thuis | Z26: Extra budget voor behandeling | AB26: 0.99 | AE26: H836 Dagbesteding LG kind zwaar | AF26: D720 DTV ZGaud2 | AK26: Z212 ZZP 1ggz-b incl.bh excl.db | AL26: V513 VPT 1lvg incl.bh incl.db | AO26: 18 | AP26: K7 | AY26: H303 Begeleiding ZG auditief | AZ26: H303 | BA26: =VLOOKUP(AZ26,'Tarieven ZIN prestaties'!$B$1:$D$110,2,FALSE) -> 93.02 | BE26: 5LG | BF26: 828 | BG26: ja | BH26: =VLOOKUP(BE26,'PGB tarieven'!$A$7:$M$53,13,FALSE) -> 66553 | BI26: 1276.358904 | BL26: 2LVG | BM26: =VLOOKUP(BL26,'Ruimte behandeling basis MPT'!$A$2:$H$41,8,FALSE) -> 0 | BN26: 1LVG | BO26: 780 | BP26: nvt | BQ26: =VLOOKUP(BN26,'PGB tarieven'!$A$7:$M$53,13,FALSE) -> 29980 | BR26: 574.9589041 | BS26: 5 | BT26: Zorg aanvragen via iWLZ, geen extra toestemming vereist | BV26: =BV25*7 -> 64.38082192 | CA26: BG-IND | CB26: =IFERROR(VLOOKUP(N28,$BZ$8:$CA$25,2,FALSE),0) -> 0 | CC26: 123.79 | CD26: H302 | CE26: =CB26*CC26 -> 0 | CJ26: 5LG | CK26: wel | CL26: nvt | CM26: 6VG | CN26: 810 | CO26: 4491 | CP26: 86.36538462 | CQ26: 0 | CR26: 0 | CS26: 28748 | CT26: 552.8461538 | CU26: 21072 | CV26: 405.2307692 | CW26: 3357 | CX26: 57668 | CY26: 54311 | DH26: DTV | DQ26: H855 Dagbesteding ZG kind auditief midden | DR26: H836 Dagbesteding LG kind zwaar | DS26: 4lg | DT26: Midden | DV26: 7LG | DW26: ja | DX26: Ja | DY26: 38.125 | DZ26: 30.5 | EC26: 26 | ED26: 32 | EE26: =EC26+ED26 -> 58 | ER26: Z095 ZZP 9bvv excl.bh incl.db | EW26: Z433 ZZP 3vg incl.bh incl.db | EX26: V433 VPT 3vg incl.bh incl.db | FB26: 1lg | FC26: Z615 ZZP 1lg incl.db | FD26: Opname | FE26: 1lgOpname | FF26: =VLOOKUP(FC26,'Tarieven ZZP'!$D$6:$J$134,7,FALSE) -> 176 | FG26: 1232 | FL26: 3ZGvis | FM26: 1
C27: 0 | G27: 0 | H27: =U39 -> 0 | I27: 0 | K27: =IFERROR(IF($F$5="deeltijd verblijf icm zorg thuis",(I27/'Deeltijd verblijf'!$P$2)*100%,I27/($T$28+$M$8)*100%),0) -> 0 | L27: AGBcode | N27: Percentage | O27: Opname | P27: Leveringsvorm | Q27: Doelmatig | R27: =IF(SUM(N28:N38)<101%,"Ja","Nee") -> Ja | V27: Nee | X27: Extra kosten thuis | Z27: Overig | AB27: 0.995 | AE27: H851 Dagbesteding ZG auditief licht | AF27: D730 DTV ZGaud3 | AK27: Z222 ZZP 2ggz-b incl.bh excl.db | AL27: V523 VPT 2lvg incl.bh incl.db | AO27: 19 | AP27: K7 | AY27: H304 Begeleiding speciaal 2 (auditief) | AZ27: H304 | BA27: =VLOOKUP(AZ27,'Tarieven ZIN prestaties'!$B$1:$D$110,2,FALSE) -> 118.57 | BE27: 6LG | BF27: 830 | BG27: ja | BH27: =VLOOKUP(BE27,'PGB tarieven'!$A$7:$M$53,13,FALSE) -> 73095 | BI27: 1401.821918 | BL27: 3LVG | BM27: =VLOOKUP(BL27,'Ruimte behandeling basis MPT'!$A$2:$H$41,8,FALSE) -> 0 | BN27: 2LVG | BO27: 781 | BP27: nvt | BQ27: =VLOOKUP(BN27,'PGB tarieven'!$A$7:$M$53,13,FALSE) -> 42953 | BR27: 823.7561644 | BS27: 6 | BT27: Rekenmodule voorleggen aan Zorgkantoor | CA27: BG-GRP | CB27: =IFERROR(VLOOKUP(N29,$BZ$8:$CA$25,2,FALSE),0) -> 0 | CC27: 14.47 | CD27: H822 | CE27: 0 | CJ27: 6LG | CK27: wel | CL27: nvt | CM27: 7VG | CN27: 812 | CO27: 12711 | CP27: 244.4423077 | CQ27: 1281 | CR27: 24.63461538 | CS27: 35682 | CT27: 686.1923077 | CU27: 23523 | CV27: 452.3653846 | CW27: 3357 | CX27: 76554 | CY27: 73197 | DH27: DTV | DQ27: H871 Dagbesteding ZG visueel licht | DR27: H851 Dagbesteding ZG auditief licht | DS27: 5lg | DT27: Zwaar | DV27: 1ZGvis | DW27: ja | DX27: Nee | DY27: 15.625 | DZ27: 12.5 | EE27: =EE26/2 -> 29 | ER27: Z097 ZZP 9bvv incl.bh incl.db | EW27: Z440 ZZP 4vg excl.bh excl.db | EX27: V440 VPT 4vg excl.bh excl.db | FB27: 2lg | FC27: Z625 ZZP 2lg incl.db | FD27: Opname | FE27: 2lgOpname | FF27: =VLOOKUP(FC27,'Tarieven ZZP'!$D$6:$J$134,7,FALSE) -> 203.69 | FG27: 1425.83 | FL27: 4ZGvis | FM27: 1
C28: =IF(B28="onklaar",$DP$1,B28) -> 0 | G28: 0 | H28: =U41 -> 0 | I28: 0 | K28: =IFERROR(IF($F$5="deeltijd verblijf icm zorg thuis",(I28/'Deeltijd verblijf'!$P$2)*100%,I28/($T$28+$M$8)*100%),0) -> 0 | L28: =IFERROR(VLOOKUP(M93,E93:F106,2,0)," ") -> 0 | N28: =IFERROR(SUMIF($E$18:$E$31,L28,$K$18:$K$31),0) -> 0 | O28: =IFERROR(VLOOKUP(L28,$GC$2:$GE$15,3,0),"") -> Nee | P28: =IF($N28>0,$DH20,"") ->  | Q28: EKT | R28: =IF(B43="restant",X24,"") ->  | T28: =M10 -> 0 | X28: Persoon met SOM, LG en/of ZG beperking met betaalde arbeid of die opleiding/studie volgt | Z28: Gespecialiseerd Verpleegkundig Handelen (GVP) | AB28: 1 | AE28: H852 Dagbesteding ZG auditief midden | AF28: D740 DTV Zgaud4 | AK28: Z232 ZZP 3ggz-b incl.bh excl.db | AL28: V533 VPT 3lvg incl.bh incl.db | AO28: 20 | AP28: K8 | AY28: H306 Thuiszorgtechnologie ten behoeve van begeleiding | AZ28: H306 | BA28: =VLOOKUP(AZ28,'Tarieven ZIN prestaties'!$B$1:$D$110,2,FALSE) -> 62.68 | BE28: 7LG | BF28: 832 | BG28: ja | BH28: =VLOOKUP(BE28,'PGB tarieven'!$A$7:$M$53,13,FALSE) -> 76956 | BI28: 1475.868493 | BL28: 4LVG | BM28: =VLOOKUP(BL28,'Ruimte behandeling basis MPT'!$A$2:$H$41,8,FALSE) -> 0 | BN28: 3LVG | BO28: 782 | BP28: nvt | BQ28: =VLOOKUP(BN28,'PGB tarieven'!$A$7:$M$53,13,FALSE) -> 51927 | BR28: 995.860274 | BS28: 7 | BT28: Rekenmodule voorleggen aan Zorgkantoor | CA28: VP | CB28: =IFERROR(VLOOKUP(N30,$BZ$8:$CA$25,2,FALSE),0) -> 0 | CC28: 82.37 | CD28: H106 | CE28: 0 | CJ28: 7LG | CK28: wel | CL28: nvt | CM28: 8VG | CN28: 814 | CO28: 26894 | CP28: 517.1923077 | CQ28: 7690 | CR28: 147.8846154 | CS28: 10907 | CT28: 209.75 | CU28: 18622 | CV28: 358.1153846 | CW28: 3357 | CX28: 67470 | CY28: 64113 | DH28: DTV | DQ28: H872 Dagbesteding ZG visueel midden | DR28: H852 Dagbesteding ZG auditief midden | DS28: 6lg | DT28: Midden | DV28: 2ZGvis | DW28: ja | DX28: Nee | DY28: 20.625 | DZ28: 16.5 | ER28: Z101 ZZP 10vv excl.bh incl.db | ES28: =IF(OR(B18="verblijfsprestatie",B18="vptprestatie"),1,0) -> 0 | EW28: Z441 ZZP 4vg excl.bh incl.db | EX28: V441 VPT 4vg excl.bh incl.db | FB28: 3lg | FC28: Z633 ZZP 3lg incl.bh incl.db | FD28: Opname | FE28: 3lgOpname | FF28: =VLOOKUP(FC28,'Tarieven ZZP'!$D$6:$J$134,7,FALSE) -> 202.72 | FG28: 1419.04 | FL28: 5ZGvis | FM28: 1
C29: 0 | G29: 0 | H29: =U42 -> 0 | I29: 0 | K29: =IFERROR(IF($F$5="deeltijd verblijf icm zorg thuis",(I29/'Deeltijd verblijf'!$P$2)*100%,I29/($T$28+$M$8)*100%),0) -> 0 | L29: =IFERROR(VLOOKUP(M94,E94:F107,2,0)," ") ->  | N29: 0 | O29: =IFERROR(VLOOKUP(L29,$GC$2:$GE$15,3,0),"") ->  | P29: =IF($N29>0,$DH21,"") ->  | Q29: Beademing | R29: =IF(B43="Restant",Y24,"") ->  | X29: =IF(Y25="","",1) ->  | AB29: =VLOOKUP($D24,$A$62:$H$170,5,FALSE) ->  | AE29: H853 Dagbesteding ZG auditief zwaar | AF29: D814 DTV ZGvis1 | AK29: Z242 ZZP 4ggz-b incl.bh excl.db | AL29: V543 VPT 4lvg incl.bh incl.db | AO29: 21 | AP29: K8 | AY29: H321 Reiskosten prestaties Behandeling (H325 t/m H331 en H334 t/m H336) | AZ29: H321 | BA29: =VLOOKUP(AZ29,'Tarieven ZIN prestaties'!$B$1:$D$110,2,FALSE) -> 30.12 | BE29: 1ZGvis | BF29: 840 | BG29: ja | BH29: =VLOOKUP(BE29,'PGB tarieven'!$A$7:$M$53,13,FALSE) -> 38827 | BI29: 744.6273973 | BL29: 5LVG | BM29: =VLOOKUP(BL29,'Ruimte behandeling basis MPT'!$A$2:$H$41,8,FALSE) -> 0 | BN29: 4LVG | BO29: 783 | BP29: nvt | BQ29: =VLOOKUP(BN29,'PGB tarieven'!$A$7:$M$53,13,FALSE) -> 67368 | BR29: 1291.989041 | BS29: 8 | BT29: Zorg aanvragen via iWLZ, geen extra toestemming vereist | CA29: PV | CB29: =IFERROR(VLOOKUP(N31,$BZ$8:$CA$25,2,FALSE),0) -> 0 | CC29: 81.48 | CD29: H128 | CE29: 0 | CJ29: 1ZGvis | CK29: wel | CL29: nvt | CM29: 1LG | CN29: 820 | CO29: 4491 | CP29: 86.36538462 | CQ29: 1281 | CR29: 24.63461538 | CS29: 16866 | CT29: 324.3461538 | CU29: 16170 | CV29: 310.9615385 | CW29: 3357 | CX29: 42165 | CY29: 38808 | DH29: DTV | DQ29: H874 Dagbesteding ZG kind visueel licht | DR29: H853 Dagbesteding ZG auditief zwaar | DS29: 7lg | DT29: Licht | DV29: 3ZGvis | DW29: ja | DX29: Nee | DY29: 26.25 | DZ29: 21 | ER29: Z103 ZZP 10vv incl.bh incl.db | ES29: 0 | EW29: Z442 ZZP 4vg incl.bh excl.db | EX29: V442 VPT 4vg incl.bh excl.db | FB29: 4lg | FC29: Z643 ZZP 4lg incl.bh incl.db | FD29: Opname | FE29: 4lgOpname | FF29: =VLOOKUP(FC29,'Tarieven ZZP'!$D$6:$J$134,7,FALSE) -> 259.81 | FG29: 1818.67 | FL29: 1ZGaud | FM29: 1
C30: 0 | G30: 0 | H30: =U43 -> 0 | I30: 0 | K30: =IFERROR(IF($F$5="deeltijd verblijf icm zorg thuis",(I30/'Deeltijd verblijf'!$P$2)*100%,I30/($T$28+$M$8)*100%),0) -> 0 | L30: =IFERROR(VLOOKUP(M95,E95:F108,2,0)," ") ->  | N30: 0 | Q30: Overig | R30: =IF(AND(R28="",R29="",R27="Nee",X29=""),Z27,IF(AND(R28="",R29="",R27="Nee",X29=1),Y25,"")) ->  | U30: =IFERROR(IF($B18="schoonmaak",$BA$1,IF($B18="Logeren",X30,IF($B18="BGgrp",VLOOKUP(D18,$AY$12:$BA$384,3,0),$V30))),0) -> 0 | V30: =IFERROR(IF(B18="BGgrp",U30,(VLOOKUP(LEFT(D18,4),$AZ$7:$BA$616,2,FALSE)*$H$1+IF($B18="Logeren",VLOOKUP(LEFT(D18,5),$AZ$7:$BB$628,3,FALSE),0))),0) -> 0 | W30: =IFERROR(VLOOKUP(D18,$AY$133:$BB$137,3),0) -> 0 | X30: =W30*$H$1 -> 0 | AE30: H854 Dagbesteding ZG kind auditief licht | AF30: D824 DTV ZGvis2 | AK30: Z252 ZZP 5ggz-b incl.bh excl.db | AL30: V553 VPT 5lvg incl.bh incl.db | AO30: 22 | AP30: K8 | AY30: H325 Behandeling lvg | AZ30: H325 | BA30: =VLOOKUP(AZ30,'Tarieven ZIN prestaties'!$B$1:$D$110,2,FALSE) -> 130.24 | BE30: 2ZGvis | BF30: 842 | BG30: ja | BH30: =VLOOKUP(BE30,'PGB tarieven'!$A$7:$M$53,13,FALSE) -> 49312 | BI30: 945.709589 | BL30: 1SGLVG | BM30: =VLOOKUP(BL30,'Ruimte behandeling basis MPT'!$A$2:$H$41,8,FALSE) -> 0 | BN30: 5LVG | BO30: 784 | BP30: nvt | BQ30: =VLOOKUP(BN30,'PGB tarieven'!$A$7:$M$53,13,FALSE) -> 67368 | BR30: 1291.989041 | BS30: 0 | BT30: Rekenmodule voorleggen aan Zorgkantoor | CA30: BH-GRP | CB30: =IFERROR(VLOOKUP(N32,$BZ$8:$CA$25,2,FALSE),0) -> 0 | CC30: 147.47 | CD30: H822 | CE30: 0 | CJ30: 2ZGvis | CK30: wel | CL30: nvt | CM30: 2LG | CN30: 822 | CO30: 12711 | CP30: 244.4423077 | CQ30: 1281 | CR30: 24.63461538 | CS30: 16866 | CT30: 324.3461538 | CU30: 16170 | CV30: 310.9615385 | CW30: 3357 | CX30: 50385 | CY30: 47028 | DH30: DTV | DQ30: H875 Dagbesteding ZG kind visueel midden | DR30: H854 Dagbesteding ZG kind auditief licht | DS30: 1ggzb | DT30: BGgrp | DV30: 4ZGvis | DW30: ja | DX30: Nee | DY30: 37.5 | DZ30: 30 | ES30: 0 | EW30: Z443 ZZP 4vg incl.bh incl.db | EX30: V443 VPT 4vg incl.bh incl.db | FB30: 5lg | FC30: Z653 ZZP 5lg incl.bh incl.db | FD30: Opname | FE30: 5lgOpname | FF30: =VLOOKUP(FC30,'Tarieven ZZP'!$D$6:$J$134,7,FALSE) -> 279.87 | FG30: 1959.09 | FL30: 2ZGaud | FM30: 1
C31: 0 | G31: 0 | H31: =U44 -> 0 | I31: 0 | K31: =IFERROR(IF($F$5="deeltijd verblijf icm zorg thuis",(I31/'Deeltijd verblijf'!$P$2)*100%,I31/($T$28+$M$8)*100%),0) -> 0 | L31: =IFERROR(IFERROR(VLOOKUP(M96,E96:F109,2,0)," ")," ") ->  | N31: 0 | U31: 0 | V31: 0 | W31: 0 | X31: =W31*$H$1 -> 0 | AE31: H855 Dagbesteding ZG kind auditief midden | AF31: D830 DTV ZGvis3 | AK31: Z262 ZZP 6ggz-b incl.bh excl.db | AL31: V573 VPT 1sglvg incl.bh incl.db | AO31: 23 | AP31: K8 | AY31: H326 Behandeling basis sglvg traject | AZ31: H326 | BA31: =VLOOKUP(AZ31,'Tarieven ZIN prestaties'!$B$1:$D$110,2,FALSE) -> 130.24 | BE31: 3ZGvis | BF31: 844 | BG31: ja | BH31: =VLOOKUP(BE31,'PGB tarieven'!$A$7:$M$53,13,FALSE) -> 57732 | BI31: 1107.189041 | BL31: 1LG | BM31: =VLOOKUP(BL31,'Ruimte behandeling basis MPT'!$A$2:$H$41,8,FALSE) -> 0 | BN31: 1SGLVG | BO31: 790 | BP31: nvt | BQ31: =VLOOKUP(BN31,'PGB tarieven'!$A$7:$M$53,13,FALSE) -> 60587 | BR31: 1161.942466 | BS31: 2085 | BT31: Zorg aanvragen via iWLZ, geen extra toestemming vereist | CA31: BH-IND | CB31: =IFERROR(VLOOKUP(N33,$BZ$8:$CA$25,2,FALSE),0) -> 0 | CC31: 155.15 | CD31: H332 | CE31: 0 | CJ31: 3ZGvis | CK31: wel | CL31: nvt | CM31: 3LG | CN31: 824 | CO31: 12711 | CP31: 244.4423077 | CQ31: 1281 | CR31: 24.63461538 | CS31: 10907 | CT31: 209.75 | CU31: 18622 | CV31: 358.1153846 | CW31: 3357 | CX31: 46878 | CY31: 43521 | DR31: H855 Dagbesteding ZG kind auditief midden | DS31: 2ggzb | DT31: BGgrp | DV31: 5ZGvis | DW31: ja | DX31: Ja | DY31: 41.25 | DZ31: 33 | EP31: =IF(F5="deeltijd verblijf icm MPT","Opname",F5) -> 0 | ER31: =CONCATENATE($EP$31,$G$8,B18) -> 0 | ES31: 0 | EW31: Z454 ZZP 5vg excl.bh excl.db | EX31: V454 VPT 5vg excl.bh excl.db | FB31: 6lg | FC31: Z663 ZZP 6lg incl.bh incl.db | FD31: Opname | FE31: 6lgOpname | FF31: =VLOOKUP(FC31,'Tarieven ZZP'!$D$6:$J$134,7,FALSE) -> 346.73 | FG31: 2427.11 | FL31: 3ZGaud | FM31: 1
B32: =IF(M5="extramurale ruimte","Totale omvang ZIN thuis excl. Behandeling","Totale omvang ZIN") -> Totale omvang ZIN | I32: =IF(M6="extramurale ruimte",BD14,BD14+BD11) -> 0 | K32: =IFERROR(IF($F$5="deeltijd verblijf icm zorg thuis",(I32/'Deeltijd verblijf'!P2),(I32/M6)),0) -> 0 | L32: =IFERROR(IFERROR(VLOOKUP(M97,E97:F110,2,0)," ")," ") ->  | N32: 0 | U32: 0 | V32: 0 | W32: 0 | X32: 0 | AE32: H856 Dagbesteding ZG kind auditief zwaar | AF32: D840 DTV ZGvis4 | AK32: Z272 ZZP 7ggz-b incl.bh excl.db | AL32: V614 VPT 1lg excl.bh excl.db | AO32: 24 | AP32: K8 | AY32: H327 Behandeling basis sglvg deeltijd | AZ32: H327 | BA32: =VLOOKUP(AZ32,'Tarieven ZIN prestaties'!$B$1:$D$110,2,FALSE) -> 130.24 | BE32: 4ZGvis | BF32: 846 | BG32: ja | BH32: =VLOOKUP(BE32,'PGB tarieven'!$A$7:$M$53,13,FALSE) -> 78130 | BI32: 1498.383562 | BL32: 2LG | BM32: =VLOOKUP(BL32,'Ruimte behandeling basis MPT'!$A$2:$H$41,8,FALSE) -> 0 | BS32: 85 | BT32: Rekenmodule voorleggen aan Zorgkantoor | CD32: totaal EM | CE32: =SUM(CE26:CE31) -> 0 | CJ32: 4ZGvis | CK32: wel | CL32: nvt | CM32: 4LG | CN32: 826 | CO32: 12711 | CP32: 244.4423077 | CQ32: 1281 | CR32: 24.63461538 | CS32: 16866 | CT32: 324.3461538 | CU32: 16170 | CV32: 310.9615385 | CW32: 3357 | CX32: 50385 | CY32: 47028 | DR32: H856 Dagbesteding ZG kind auditief zwaar | DS32: 3ggzb | DT32: BGgrp | DV32: 1ZGaud | DW32: ja | DX32: Nee | DY32: 24.375 | DZ32: 19.5 | ER32: 0 | ES32: 0 | EW32: Z455 ZZP 5vg excl.bh incl.db | EX32: V455 VPT 5vg excl.bh incl.db | FB32: 7lg | FC32: Z673 ZZP 7lg incl.bh incl.db | FD32: Opname | FE32: 7lgOpname | FF32: =VLOOKUP(FC32,'Tarieven ZZP'!$D$6:$J$134,7,FALSE) -> 358.26 | FG32: 2507.82 | FL32: 4ZGaud | FM32: 1
B33: =IF(M5="ruimte","Totale omvang behandeling"," ") ->  | I33: =IF(M5="ruimte",BD11,0) -> 0 | K33: =IFERROR(IF($F$5="deeltijd verblijf icm zorg thuis",(I33/'Deeltijd verblijf'!$P$2),(I33/$M$6)),0) -> 0 | L33: =IFERROR(VLOOKUP(M98,E98:F111,2,0)," ") ->  | N33: 0 | U33: 0 | V33: 0 | W33: 0 | X33: 0 | Z33: =IFERROR(VLOOKUP($Q$22,$T$46:$V$50,2,FALSE),0) -> 0 | AA33: =IF(Z33=0,1,2) -> 1 | AB33: =IF(AA36="ja",4,2) -> 2 | AE33: H871 Dagbesteding ZG visueel licht | AF33: D850 DTV ZGvis5 | AK33: Z213 ZZP 1ggz-b incl.bh incl.db | AL33: V624 VPT 2lg excl.bh excl.db | AO33: 25 | AP33: K8 | AY33: H329 Behandeling gedragswetenschapper | AZ33: H329 | BA33: =VLOOKUP(AZ33,'Tarieven ZIN prestaties'!$B$1:$D$110,2,FALSE) -> 128.38 | BE33: 5ZGvis | BF33: 848 | BG33: ja | BH33: =VLOOKUP(BE33,'PGB tarieven'!$A$7:$M$53,13,FALSE) -> 84755 | BI33: 1625.438356 | BL33: 3LG | BM33: =VLOOKUP(BL33,'Ruimte behandeling basis MPT'!$A$2:$H$41,8,FALSE) -> 166.18 | BS33: 84 | BT33: Rekenmodule voorleggen aan Zorgkantoor | CJ33: 5ZGvis | CK33: wel | CL33: nvt | CM33: 5LG | CN33: 828 | CO33: 17176 | CP33: 330.3076923 | CQ33: 3845 | CR33: 73.94230769 | CS33: 16866 | CT33: 324.3461538 | CU33: 18622 | CV33: 358.1153846 | CW33: 3357 | CX33: 59866 | CY33: 56509 | DR33: H871 Dagbesteding ZG visueel licht | DS33: 4ggzb | DT33: BGgrp | DV33: 2ZGaud | DW33: ja | DX33: Nee | DY33: 48.125 | DZ33: 38.5 | ER33: 0 | ES33: 0 | EW33: Z456 ZZP 5vg incl.bh excl.db | EX33: V456 VPT 5vg incl.bh excl.db | FB33: 1zgaud | FC33: Z713 ZZP 1zg-auditief incl.bh incl.db | FD33: Opname | FE33: 1zgaudOpname | FF33: =VLOOKUP(FC33,'Tarieven ZZP'!$D$6:$J$134,7,FALSE) -> 218.59 | FG33: 1530.13 | FL33: 10VV | FM33: 2
B34: PGB bedrag | I34: =M8 -> 0 | K34: =IFERROR(IF($F$5="deeltijd verblijf icm zorg thuis",(I34/'Deeltijd verblijf'!$P$2),(I34/$M$6)),0) -> 0 | N34: 0 | U34: 0 | V34: 0 | W34: 0 | X34: 0 | Z34: =IFERROR(VLOOKUP(Q24,U53:U56,1,FALSE),0) -> 0 | AA34: =IF(Z34=0,1,2) -> 1 | AB34: =SUM(AA33:AB33) -> 3 | AE34: H872 Dagbesteding ZG visueel midden | AK34: Z223 ZZP 2ggz-b incl.bh incl.db | AL34: V630 VPT 3lg excl.bh excl.db | AO34: 5 | AP34: K3 | AY34: H330 Behandeling paramedisch | AZ34: H330 | BA34: =VLOOKUP(AZ34,'Tarieven ZIN prestaties'!$B$1:$D$110,2,FALSE) -> 91.18 | BE34: 1ZGaud | BF34: 850 | BG34: ja | BH34: =VLOOKUP(BE34,'PGB tarieven'!$A$7:$M$53,13,FALSE) -> 54156 | BI34: 1038.608219 | BL34: 4LG | BM34: =VLOOKUP(BL34,'Ruimte behandeling basis MPT'!$A$2:$H$41,8,FALSE) -> 260.12 | BS34: 83 | BT34: Rekenmodule voorleggen aan Zorgkantoor | CF34: ZZP waarde-PGB | CH34: =M10 -> 0 | CJ34: 1ZGaud | CK34: wel | CL34: nvt | CM34: 6LG | CN34: 830 | CO34: 21667 | CP34: 416.6730769 | CQ34: 7690 | CR34: 147.8846154 | CS34: 16866 | CT34: 324.3461538 | CU34: 16170 | CV34: 310.9615385 | CW34: 3357 | CX34: 65750 | CY34: 62393 | DR34: H872 Dagbesteding ZG visueel midden | DS34: 5ggzb | DT34: BGgrp | DV34: 3ZGaud | DW34: ja | DX34: Ja | DY34: 58.75 | DZ34: 47 | ER34: 0 | ES34: 0 | EW34: Z457 ZZP 5vg incl.bh incl.db | EX34: V457 VPT 5vg incl.bh incl.db | FB34: 2zgaud | FC34: Z723 ZZP 2zg-auditief incl.bh incl.db | FD34: Opname | FE34: 2zgaudOpname | FF34: =VLOOKUP(FC34,'Tarieven ZZP'!$D$6:$J$134,7,FALSE) -> 398.22 | FG34: 2787.54 | FL34: 1VV | FM34: 2
B35: Totale zorg | I35: =SUM(I32:I34) -> 0 | K35: =SUM(K32:K34) -> 0 | N35: 0 | U35: 0 | V35: 0 | W35: 0 | X35: 0 | AE35: H873 Dagbesteding ZG visueel zwaar | AK35: Z233 ZZP 3ggz-b incl.bh incl.db | AL35: V640 VPT 4lg excl.bh excl.db | AO35: 6 | AP35: K3 | AY35: H331 Behandeling Families First lvg | AZ35: H331 | BA35: =VLOOKUP(AZ35,'Tarieven ZIN prestaties'!$B$1:$D$110,2,FALSE) -> 135.22 | BE35: 2ZGaud | BF35: 852 | BG35: ja | BH35: =VLOOKUP(BE35,'PGB tarieven'!$A$7:$M$53,13,FALSE) -> 97193 | BI35: 1863.975342 | BL35: 5LG | BM35: =VLOOKUP(BL35,'Ruimte behandeling basis MPT'!$A$2:$H$41,8,FALSE) -> 266.28 | BS35: 80 | BT35: Rekenmodule voorleggen aan Zorgkantoor | CF35: Totaal EM ZIN | CH35: =CE32 -> 0 | CJ35: 2ZGaud | CK35: wel | CL35: nvt | CM35: 7LG | CN35: 832 | CO35: 21667 | CP35: 416.6730769 | CQ35: 7690 | CR35: 147.8846154 | CS35: 22788 | CT35: 438.2307692 | CU35: 13721 | CV35: 263.8653846 | CW35: 3357 | CX35: 69223 | CY35: 65866 | DR35: H873 Dagbesteding ZG visueel zwaar | DS35: 1zgvis | DT35: Midden | DV35: 4ZGaud | DW35: ja | DX35: Nee | DY35: 35 | DZ35: 28 | ER35: 0 | ES35: 0 | EW35: Z460 ZZP 6vg excl.bh excl.db | EX35: V460 VPT 6vg excl.bh excl.db | FB35: 3zgaud | FC35: Z733 ZZP 3zg-auditief incl.bh incl.db | FD35: Opname | FE35: 3zgaudOpname | FF35: =VLOOKUP(FC35,'Tarieven ZZP'!$D$6:$J$134,7,FALSE) -> 466.55 | FG35: 3265.85 | FL35: 2VV | FM35: 2
B36: Let op: Overschrijding ivm duurdere dagbesteding: | I36: =D38 -> 0 | N36: 0 | U36: 0 | V36: 0 | W36: 0 | X36: 0 | Z36: =IFERROR(IF(AA36="ja","toeslag beademing",VLOOKUP(Q24,U52:U56,1,0)),0) -> 0 | AA36: =LEFT(Q23,2) ->  | AE36: H874 Dagbesteding ZG kind visueel licht | AK36: Z243 ZZP 4ggz-b incl.bh incl.db | AL36: V650 VPT 5lg excl.bh excl.db | AO36: 7 | AP36: K4 | AY36: H332 Behandeling ZG visueel | AZ36: H332 | BA36: =VLOOKUP(AZ36,'Tarieven ZIN prestaties'!$B$1:$D$110,2,FALSE) -> 147.62 | BE36: 3ZGaud | BF36: 854 | BG36: ja | BH36: =VLOOKUP(BE36,'PGB tarieven'!$A$7:$M$53,13,FALSE) -> 115122 | BI36: 2207.819178 | BL36: 6LG | BM36: =VLOOKUP(BL36,'Ruimte behandeling basis MPT'!$A$2:$H$41,8,FALSE) -> 362.32 | BS36: 88 | BT36: Rekenmodule voorleggen aan Zorgkantoor | CH36: =CH34-CH35 -> 0 | CJ36: 3ZGaud | CK36: wel | CL36: nvt | CM36: 1ZGvis | CN36: 840 | CO36: 4491 | CP36: 86.36538462 | CQ36: 0 | CR36: 0 | CS36: 10907 | CT36: 209.75 | CU36: 16170 | CV36: 310.9615385 | CW36: 3357 | CX36: 34925 | CY36: 31568 | DR36: H874 Dagbesteding ZG kind visueel licht | DS36: 2zgvis | DT36: Licht | DV36: 1GGZ B | DW36: nee | DX36: Nee | DY36: 8.75 | DZ36: 7 | ER36: 0 | ES36: 0 | EW36: Z461 ZZP 6vg excl.bh incl.db | EX36: V461 VPT 6vg excl.bh incl.db | FB36: 4zgaud | FC36: Z743 ZZP 4zg-auditief incl.bh incl.db | FD36: Opname | FE36: 4zgaudOpname | FF36: =VLOOKUP(FC36,'Tarieven ZZP'!$D$6:$J$134,7,FALSE) -> 301.34 | FG36: 2109.38 | FL36: 3VV | FM36: 2
B37: Let op: Overschrijding ivm duurdere behandeling | I37: =D43 -> 0 | N37: 0 | U37: 0 | V37: 0 | W37: 0 | X37: 0 | AB37: =IF(SUM($I$32:$I$33)-($M$10+$T$20)<=0,SUM($I$32:$I$33),$M$10+$T$20) -> 0 | AE37: H875 Dagbesteding ZG kind visueel midden | AK37: Z253 ZZP 5ggz-b incl.bh incl.db | AL37: V660 VPT 6lg excl.bh excl.db | AO37: 8 | AP37: K4 | AY37: H333 Behandeling ZG auditief | AZ37: H333 | BA37: =VLOOKUP(AZ37,'Tarieven ZIN prestaties'!$B$1:$D$110,2,FALSE) -> 130.9 | BE37: 4ZGaud | BF37: 856 | BG37: ja | BH37: =VLOOKUP(BE37,'PGB tarieven'!$A$7:$M$53,13,FALSE) -> 73240 | BI37: 1404.60274 | BL37: 7LG | BM37: =VLOOKUP(BL37,'Ruimte behandeling basis MPT'!$A$2:$H$41,8,FALSE) -> 387.03 | BS37: 101 | BT37: Eerst zorgvraag invullen | CJ37: 4ZGaud | CK37: wel | CL37: nvt | CM37: 2ZGvis | CN37: 842 | CO37: 4491 | CP37: 86.36538462 | CQ37: 0 | CR37: 0 | CS37: 22788 | CT37: 438.2307692 | CU37: 13721 | CV37: 263.8653846 | CW37: 3357 | CX37: 44357 | CY37: 41000 | DR37: H875 Dagbesteding ZG kind visueel midden | DS37: 3zgvis | DT37: Licht | DV37: 2GGZ B | DW37: nee | DX37: Nee | DY37: 12.5 | DZ37: 10 | ER37: 0 | ES37: 0 | EW37: Z462 ZZP 6vg incl.bh excl.db | EX37: V462 VPT 6vg incl.bh excl.db | FB37: 1zgvis | FC37: Z815 ZZP 1zg-visueel incl.db | FD37: Opname | FE37: 1zgvisOpname | FF37: =VLOOKUP(FC37,'Tarieven ZZP'!$D$6:$J$134,7,FALSE) -> 161.13 | FG37: 1127.91 | FL37: 4VV | FM37: 2
B38: =SUMIF(B18:B31,"bggrp",I18:I31) -> 0 | C38: =IFERROR('Deeltijd verblijf'!M6*125%,0) -> 0 | D38: =IF(C38>0,B38-C38,0) -> 0 | K38: =IFERROR(I38/M6,0) -> 0 | N38: 0 | U38: 0 | V38: 0 | W38: 0 | X38: 0 | AB38: =IF(BR6>0,BR8+T20,AB37) -> 0 | AE38: H876 Dagbesteding ZG kind visueel zwaar | AK38: Z263 ZZP 6ggz-b incl.bh incl.db | AL38: V670 VPT 7lg excl.bh excl.db | AO38: 9 | AP38: K4 | AY38: H334 Behandeling IOG lvg | AZ38: H334 | BA38: =VLOOKUP(AZ38,'Tarieven ZIN prestaties'!$B$1:$D$110,2,FALSE) -> 117.52 | BE38: 10VV | BF38: 759 | BG38: nvt | BH38: =VLOOKUP(BE38,'PGB tarieven'!$A$7:$M$53,13,FALSE) -> 85153 | BI38: 1633.071233 | BL38: 1ZGaud | BM38: =VLOOKUP(BL38,'Ruimte behandeling basis MPT'!$A$2:$H$41,8,FALSE) -> 0 | BS38: 102 | BT38: Eerst zorgvraag invullen | CJ38: 1VV | CK38: Niet | CL38: nvt | CM38: 3ZGvis | CN38: 844 | CO38: 8220 | CP38: 158.0769231 | CQ38: 3845 | CR38: 73.94230769 | CS38: 22788 | CT38: 438.2307692 | CU38: 13721 | CV38: 263.8653846 | CW38: 3357 | CX38: 51931 | CY38: 48574 | DR38: H876 Dagbesteding ZG kind visueel zwaar | DS38: 4zgvis | DT38: Zwaar | DV38: 3GGZ B | DW38: nee | DX38: Nee | DY38: 16.25 | DZ38: 13 | ER38: 0 | ES38: 0 | EW38: Z463 ZZP 6vg incl.bh incl.db | EX38: V463 VPT 6vg incl.bh incl.db | FB38: 2zgvis | FC38: Z825 ZZP 2zg-visueel incl.db | FD38: Opname | FE38: 2zgvisOpname | FF38: =VLOOKUP(FC38,'Tarieven ZZP'!$D$6:$J$134,7,FALSE) -> 198.78 | FG38: 1391.46 | FL38: 5VV | FM38: 2
I39: =N8+N17 ->  | U39: =IFERROR(IF($B27="schoonmaak",$BA$1,IF($B27="Logeren",X39,IF($B27="BGgrp",VLOOKUP(D27,$AY$12:$BA$384,3,0),$V39))),0) -> 0 | V39: =IFERROR(IF(B27="BGgrp",U39,(VLOOKUP(LEFT(D27,4),$AZ$7:$BA$616,2,FALSE)*$H$1+IF($B27="Logeren",VLOOKUP(LEFT(D27,5),$AZ$7:$BB$628,3,FALSE),0))),0) -> 0 | W39: 0 | X39: 0 | BL39: 2ZGaud | BM39: =VLOOKUP(BL39,'Ruimte behandeling basis MPT'!$A$2:$H$41,8,FALSE) -> 31.57 | ER39: 0 | FF39: =VLOOKUP(FC39,'Tarieven ZZP'!$D$6:$J$134,7,FALSE) -> 
U40: 0 | V40: 0 | W40: 0 | X40: 0 | AK40: Z273 ZZP 7ggz-b incl.bh incl.db | AL40: V710 VPT 1zg-auditief excl.bh excl.db | AO40: 10 | AP40: K5 | AY40: H335 Behandeling som, pg, vg, lg, zg (SO) | AZ40: H335 | BA40: =VLOOKUP(AZ40,'Tarieven ZIN prestaties'!$B$1:$D$110,2,FALSE) -> 160.15 | BE40: 1VV | BF40: 750 | BG40: nvt | BH40: =VLOOKUP(BE40,'PGB tarieven'!$A$7:$M$53,13,FALSE) -> 16294 | BI40: 312.4876712 | BL40: 3ZGaud | BM40: =VLOOKUP(BL40,'Ruimte behandeling basis MPT'!$A$2:$H$41,8,FALSE) -> 45.57 | BS40: 103 | BT40: Eerst zorgvraag invullen | CJ40: 2VV | CK40: Niet | CL40: nvt | CM40: 4ZGvis | CN40: 846 | CO40: 21667 | CP40: 416.6730769 | CQ40: 3845 | CR40: 73.94230769 | CS40: 22788 | CT40: 438.2307692 | CU40: 18622 | CV40: 358.1153846 | CW40: 3357 | CX40: 70279 | CY40: 66922 | DS40: 5zgvis | DT40: Zwaar | DV40: 4GGZ B | DW40: nee | DX40: Nee | DY40: 19.375 | DZ40: 15.5 | ER40: 0 | ES40: =IF(OR(B29="verblijfsprestatie",B29="vptprestatie"),1,0) -> 0 | EW40: Z470 ZZP 7vg excl.bh excl.db | EX40: V470 VPT 7vg excl.bh excl.db | FB40: 3zgvis | FC40: Z833 ZZP 3zg-visueel incl.bh incl.db | FD40: Opname | FE40: 3zgvisOpname | FF40: =VLOOKUP(FC40,'Tarieven ZZP'!$D$6:$J$134,7,FALSE) -> 244.99 | FG40: 1714.93 | FL40: 6VV | FM40: 2
N41: =D46/7 -> 0 | U41: 0 | V41: 0 | W41: 0 | X41: 0 | AK41: Z414 ZZP 1vg excl.db | AL41: V740 VPT 4zg-auditief excl.bh excl.db | AO41: 11 | AP41: K5 | AY41: H336 Behandeling som, pg, vg, lg, zg (AVG) | AZ41: H336 | BA41: =VLOOKUP(AZ41,'Tarieven ZIN prestaties'!$B$1:$D$110,2,FALSE) -> 160.15 | BE41: 2VV | BF41: 751 | BG41: nvt | BH41: =VLOOKUP(BE41,'PGB tarieven'!$A$7:$M$53,13,FALSE) -> 23627 | BI41: 453.1205479 | BL41: 4ZGaud | BM41: =VLOOKUP(BL41,'Ruimte behandeling basis MPT'!$A$2:$H$41,8,FALSE) -> 166.18 | BS41: 104 | BT41: Eerst zorgvraag invullen | CJ41: 3VV | CK41: Niet | CL41: nvt | CM41: 5ZGvis | CN41: 848 | CO41: 21667 | CP41: 416.6730769 | CQ41: 3845 | CR41: 73.94230769 | CS41: 28748 | CT41: 552.8461538 | CU41: 18622 | CV41: 358.1153846 | CW41: 3357 | CX41: 76239 | CY41: 72882 | DS41: 1zgaud | DT41: Licht | DV41: 5GGZ B | DW41: nee | DX41: Nee | DY41: 20 | DZ41: 16 | ER41: 0 | ES41: =IF(OR(B30="verblijfsprestatie",B30="vptprestatie"),1,0) -> 0 | EW41: Z471 ZZP 7vg excl.bh incl.db | EX41: V471 VPT 7vg excl.bh incl.db | FB41: 4zgvis | FC41: Z843 ZZP 4zg-visueel incl.bh incl.db | FD41: Opname | FE41: 4zgvisOpname | FF41: =VLOOKUP(FC41,'Tarieven ZZP'!$D$6:$J$134,7,FALSE) -> 316.44 | FG41: 2215.08 | FL41: 7VV | FM41: 2
B42: =SUMIF(B18:B31,"BHgrp",I18:I31) -> 0 | D42: =SUM(B42:B43) -> 0 | N42: =N41*7 -> 0 | U42: 0 | V42: 0 | W42: 0 | X42: 0 | AK42: Z424 ZZP 2vg excl.db | AL42: V730 VPT 3zg-auditief excl.bh excl.db | AO42: 12 | AP42: K5 | AY42: H337 Reiskosten prestaties Behandeling (H332 en H333) | AZ42: H337 | BA42: =VLOOKUP(AZ42,'Tarieven ZIN prestaties'!$B$1:$D$110,2,FALSE) -> 24.34 | BE42: 3VV | BF42: 752 | BG42: nvt | BH42: =VLOOKUP(BE42,'PGB tarieven'!$A$7:$M$53,13,FALSE) -> 28761 | BI42: =BH42/365*7 -> 551.5808219 | BL42: 1ZGvis | BM42: =VLOOKUP(BL42,'Ruimte behandeling basis MPT'!$A$2:$H$41,8,FALSE) -> 0 | BS42: 105 | BT42: Eerst zorgvraag invullen | CJ42: 4VV | CK42: Niet | CL42: nvt | CM42: 1ZGaud | CN42: 850 | CO42: 1497 | CP42: 28.78846154 | CQ42: 0 | CR42: 0 | CS42: 22788 | CT42: 438.2307692 | CU42: 21072 | CV42: 405.2307692 | CW42: 3357 | CX42: 48714 | CY42: 45357 | DS42: 2zgaud | DT42: Midden | DV42: 6GGZ B | DW42: nee | DX42: Nee | DY42: 28.75 | DZ42: 23 | ER42: 0 | ES42: =IF(OR(B31="verblijfsprestatie",B31="vptprestatie"),1,0) -> 0 | EW42: Z472 ZZP 7vg incl.bh excl.db | EX42: V472 VPT 7vg incl.bh excl.db | FB42: 5zgvis | FC42: Z853 ZZP 5zg-visueel incl.bh incl.db | FD42: Opname | FE42: 5zgvisOpname | FF42: =VLOOKUP(FC42,'Tarieven ZZP'!$D$6:$J$134,7,FALSE) -> 349.71 | FG42: 2447.97 | FL42: 8VV | FM42: 2
B43: =SUMIF(B18:B31,"Bhind",I18:I31) -> 0 | D43: =D42-M15 -> 0 | U43: 0 | V43: 0 | W43: 0 | X43: 0 | AK43: Z415 ZZP 1vg incl.db | AL43: V720 VPT 2zg-auditief excl.bh excl.db | AO43: 13 | AP43: K6 | AY43: H531 Dagbesteding basis | AZ43: H531 | BA43: =VLOOKUP(AZ43,'Tarieven ZIN prestaties'!$B$1:$D$110,2,FALSE) -> 40.17 | BE43: 4VV | BF43: 753 | BG43: nvt | BH43: =VLOOKUP(BE43,'PGB tarieven'!$A$7:$M$53,13,FALSE) -> 38537 | BI43: 739.0657534 | BL43: 2ZGvis | BM43: =VLOOKUP(BL43,'Ruimte behandeling basis MPT'!$A$2:$H$41,8,FALSE) -> 0 | BS43: 106 | BT43: Eerst zorgvraag invullen | CJ43: 5VV | CK43: Niet | CL43: nvt | CM43: 2ZGaud | CN43: 852 | CO43: 17176 | CP43: 330.3076923 | CQ43: 7690 | CR43: 147.8846154 | CS43: 35682 | CT43: 686.1923077 | CU43: 23523 | CV43: 452.3653846 | CW43: 3357 | CX43: 87428 | CY43: 84071 | DS43: 3zgaud | DT43: Zwaar | DV43: 7GGZ B | DW43: nee | DX43: Nee | DY43: 33.125 | DZ43: 26.5 | ER43: 0 | EW43: Z473 ZZP 7vg incl.bh incl.db | EX43: V473 VPT 7vg incl.bh incl.db | FB43: 1vv | FC43: V015 VPT 1vv excl.bh incl.db | FD43: VPT | FE43: 1vvVPT | FF43: =VLOOKUP(FC43,'Tarieven VPT'!$D$6:$I$113,6,FALSE) -> 72.23 | FG43: =FF43*7 -> 505.61 | FL43: 9vvb | FM43: 2
D44: =IFERROR(IF($B$43="restant",$G$44,$E$45-$I$56-$I$40-$I$42),0) -> 0 | G44: =IF(I33=0,I45,I44)-I39 ->  | I44: =I45+IF(M44<0,0,M44) -> 0 | M44: =T20-I33 -> 0 | N44: =IF(SUM($I$32:$I$33)-($BR$11+IF($I$33>0,$T$20,0))<=0,SUM($I$32:$I$33),$BR$11+IF($I$33>0,$T$20,0)) ->  | O44: =SUM(M44:N44) ->  | U44: 0 | V44: 0 | W44: 0 | X44: 0 | AK44: Z425 ZZP 2vg incl.db | AL44: V814 VPT 1zg-visueel excl.bh excl.db | AO44: 14 | AP44: K6 | AY44: H533 Dagbesteding psychogeriatrisch | AZ44: H533 | BA44: =VLOOKUP(AZ44,'Tarieven ZIN prestaties'!$B$1:$D$110,2,FALSE) -> 57.72 | BE44: 5VV | BF44: 754 | BG44: nvt | BH44: =VLOOKUP(BE44,'PGB tarieven'!$A$7:$M$53,13,FALSE) -> 52286 | BI44: 1002.745205 | BL44: 3ZGvis | BM44: =VLOOKUP(BL44,'Ruimte behandeling basis MPT'!$A$2:$H$41,8,FALSE) -> 92.75 | BS44: 107 | BT44: Eerst zorgvraag invullen | CJ44: 6VV | CK44: Niet | CL44: nvt | CM44: 3ZGaud | CN44: 854 | CO44: 26894 | CP44: 517.1923077 | CQ44: 14099 | CR44: 271.1346154 | CS44: 35682 | CT44: 686.1923077 | CU44: 23523 | CV44: 452.3653846 | CW44: 3357 | CX44: 103555 | CY44: 100198 | DS44: 4zgaud | DT44: Licht | DV44: 1VG | DW44: nee | DX44: Nee | DY44: 8.125 | DZ44: 6.5 | ER44: 0 | EW44: Z480 ZZP 8vg excl.bh excl.db | EX44: V480 VPT 8vg excl.bh excl.db | FB44: 2vv | FC44: V025 VPT 2vv excl.bh incl.db | FD44: VPT | FE44: 2vvVPT | FF44: =VLOOKUP(FC44,'Tarieven VPT'!$D$6:$I$113,6,FALSE) -> 95.63 | FG44: 669.41 | FL44: 1LVG | FM44: 2
E45: =I35 -> 0 | I45: =IF(AND(G53=1,I33=0),M6-E45,IF(AND(G53=1,I33>0),M6-E45-G46,T1-E45)) -> 0 | Q45: =IF(D42=0,1,0) -> 1 | R45: =I35-I40-I41 -> 0 | AB45: =IF(BN12=0,0,IF(BN12<0,0,SUM($I$32:$I$33)-$I$38)) -> 0 | AK45: Z430 ZZP 3vg excl.bh excl.db | AL45: V824 VPT 2zg-visueel excl.bh excl.db | AO45: 15 | AP45: K6 | AY45: H800 Dagbesteding somatisch ondersteunend | AZ45: H800 | BA45: =VLOOKUP(AZ45,'Tarieven ZIN prestaties'!$B$1:$D$110,2,FALSE) -> 55.65 | BE45: 6VV | BF45: 755 | BG45: nvt | BH45: =VLOOKUP(BE45,'PGB tarieven'!$A$7:$M$53,13,FALSE) -> 52286 | BI45: 1002.745205 | BL45: 4ZGvis | BM45: =VLOOKUP(BL45,'Ruimte behandeling basis MPT'!$A$2:$H$41,8,FALSE) -> 136.15 | BS45: 108 | BT45: Eerst zorgvraag invullen | CJ45: 7VV | CK45: Niet | CL45: nvt | CM45: 4ZGaud | CN45: 856 | CO45: 8220 | CP45: 158.0769231 | CQ45: 0 | CR45: 0 | CS45: 35682 | CT45: 686.1923077 | CU45: 18622 | CV45: 358.1153846 | CW45: 3357 | CX45: 65881 | CY45: 62524 | DS45: 1lvg | DT45: BGgrp | DV45: 2VG | DW45: nee | DX45: Nee | DY45: 11.875 | DZ45: 9.5 | ER45: 0Totale omvang ZIN | EW45: Z481 ZZP 8vg excl.bh incl.db | EX45: V481 VPT 8vg excl.bh incl.db | FB45: 3vv | FC45: V033 VPT 3vv incl.bh incl.db | FD45: VPT | FE45: 3vvVPT | FF45: =VLOOKUP(FC45,'Tarieven VPT'!$D$6:$I$113,6,FALSE) -> 148.89 | FG45: 1042.23 | FL45: 2LVG | FM45: 2
B46: =E45-I38 -> 0 | D46: =IF($D$50>=0,$D$50,IF(SUM($I$38:$I$42)<($M$6+$D$48),$M$6+$D$48-$I$38-$I$39-$I$41-$I$40-$I$42,IF($D$47-$D$49>0,$D$47-$D$49,$D$49-$D$47))) -> 0 | G46: =IF(G47>0,G47,H47) -> 0 | M46: =M6-I32 -> 0 | Q46: =IFERROR(IF(D42= "Gespecialiseerde verpleging",10,IF(D42="extra budget voor behandeling",1,IF(Q24="meerzorg",3,IF(D42="toeslag beademing",2,IF(AND(D42=0,Q24="overig"),3,5))))),0) -> 5 | R46: =IF(Q48=1,V56,IF(Q48=2,V57,IF(Q48=5,0,IF(Q48=6,V54,V53)))) -> 0 | AK46: Z440 ZZP 4vg excl.bh excl.db | AL46: V830 VPT 3zg-visueel excl.bh excl.db | AO46: 16 | AP46: K7 | AY46: H802 Dagbehandeling ouderen som en pg | AZ46: H802 | BA46: =VLOOKUP(AZ46,'Tarieven ZIN prestaties'!$B$1:$D$110,2,FALSE) -> 74.51 | BE46: 7VV | BF46: 756 | BG46: nvt | BH46: =VLOOKUP(BE46,'PGB tarieven'!$A$7:$M$53,13,FALSE) -> 65495 | BI46: 1256.068493 | BL46: 5ZGvis | BM46: =VLOOKUP(BL46,'Ruimte behandeling basis MPT'!$A$2:$H$41,8,FALSE) -> 176.89 | BS46: 109 | BT46: Eerst zorgvraag invullen | CJ46: 8VV | CK46: Niet | CL46: nvt | CM46: 1VV | CN46: 750 | CO46: 1497 | CP46: 28.78846154 | CQ46: 3845 | CR46: 73.94230769 | CS46: 5959 | CT46: 114.5961538 | CU46: 0 | CV46: 0 | CW46: 3357 | CX46: 14658 | CY46: 11301 | DS46: 2lvg | DT46: BGgrp | DV46: 3VG | DW46: nee | DX46: Nee | DY46: 15.625 | DZ46: 12.5 | EW46: Z482 ZZP 8vg incl.bh excl.db | EX46: V482 VPT 8vg incl.bh excl.db | FB46: 4vv | FC46: V043 VPT 4vv incl.bh incl.db | FD46: VPT | FE46: 4vvVPT | FF46: =VLOOKUP(FC46,'Tarieven VPT'!$D$6:$I$113,6,FALSE) -> 115.46 | FG46: 808.22 | FL46: 3LVG | FM46: 2
D47: =I35 -> 0 | F47: verschil | G47: =T20-I33 -> 0 | H47: =I33-T20 -> 0 | I47: =IF($G$55=1,$N$44-$G$47,$N$44) ->  | M47: =T20-I33 -> 0 | Q47: =IFERROR(IF(D42="palliatief terminale zorg",1,IF(D42="Extra overbruggingszorg (actief wachtend)",2,0)),0) -> 0 | T47: Ja; Extra kosten thuis | U47: Ja; Extra kosten thuis | V47: =SUM($I$32:$I$33)-$I$38-$I$41 -> 0 | W47: =$M$6*25% -> 0 | X47: =V47-W47 -> 0 | Y47: =IF(X47>0,W47,V47) -> 0 | AK47: Z454 ZZP 5vg excl.bh excl.db | AL47: V840 VPT 4zg-visueel excl.bh excl.db | AO47: 17 | AP47: K7 | AY47: H803 Vervoer dagbesteding/dagbehandeling V&V | AZ47: H803 | BA47: =VLOOKUP(AZ47,'Tarieven ZIN prestaties'!$B$1:$D$110,2,FALSE) -> 7.46 | BE47: 8VV | BF47: 757 | BG47: nvt | BH47: =VLOOKUP(BE47,'PGB tarieven'!$A$7:$M$53,13,FALSE) -> 78167 | BI47: 1499.093151 | BS47: 600 | BT47: PGB: Rekenmodule voorleggen aan Zorgkantoor | CJ47: 9vvb | CK47: Niet | CL47: nvt | CM47: 2VV | CN47: 751 | CO47: 8220 | CP47: 158.0769231 | CQ47: 7690 | CR47: 147.8846154 | CS47: 1987 | CT47: 38.21153846 | CU47: 0 | CV47: 0 | CW47: 3357 | CX47: 21254 | CY47: 17897 | DS47: 3lvg | DT47: BGgrp | DV47: 4VG | DW47: nee | DX47: Nee | DY47: 18.75 | DZ47: 15 | EW47: Z483 ZZP 8vg incl.bh incl.db | EX47: V483 VPT 8vg incl.bh incl.db | FB47: 5vv | FC47: V053 VPT 5vv incl.bh incl.db | FD47: VPT | FE47: 5vvVPT | FF47: =VLOOKUP(FC47,'Tarieven VPT'!$D$6:$I$113,6,FALSE) -> 219.93 | FG47: 1539.51 | FL47: 4LVG | FM47: 2
D48: =IF(I33=0,0,M15) -> 0 | E48: =IF(OR(Q24<>"",Q24<>"Nee"),1,2) -> 1 | F48: geen beh | G48: =IF(T20=0,0,1) -> 0 | I48: =IF(M10-I47>0,E45,I47) ->  | M48: =E45-T1 -> 0 | P48: Palliatief terminale zorg | Q48: =SUM(Q46:Q47) -> 5 | T48: Ja; Extra kosten thuis | V48: =SUM($I$32:$I$33)-$I$38-$I$41 -> 0 | W48: =$M$6*25% -> 0 | X48: =V48-W48 -> 0 | Y48: =IF(X48>0,W48,V48) -> 0 | AK48: Z460 ZZP 6vg excl.bh excl.db | AL48: V850 VPT 5zg-visueel excl.bh excl.db | AO48: 18 | AP48: K7 | AY48: H811 Dagbesteding VG licht | AZ48: H811 | BA48: =VLOOKUP(AZ48,'Tarieven ZIN prestaties'!$B$1:$D$110,2,FALSE) -> 38.13 | BE48: 9vvb | BF48: 191 | BG48: nvt | BH48: =VLOOKUP(BE48,'PGB tarieven'!$A$7:$M$53,13,FALSE) -> 50125 | BI48: 961.3013699 | BS48: 601 | BT48: PGB: Rekenmodule voorleggen aan Zorgkantoor | CJ48: 10VV | CK48: Niet | CL48: nvt | CM48: 3VV | CN48: 752 | CO48: 12711 | CP48: 244.4423077 | CQ48: 3845 | CR48: 73.94230769 | CS48: 5959 | CT48: 114.5961538 | CU48: 0 | CV48: 0 | CW48: 3357 | CX48: 25872 | CY48: 22515 | DS48: 4lvg | DT48: BGgrp | DV48: 5VG | DW48: nee | DX48: Ja | DY48: 23.125 | DZ48: 18.5 | EW48: Z513 ZZP 1lvg incl.bh incl.db | EX48: V513 VPT 1lvg incl.bh incl.db | FB48: 6vv | FC48: V063 VPT 6vv incl.bh incl.db | FD48: VPT | FE48: 6vvVPT | FF48: =VLOOKUP(FC48,'Tarieven VPT'!$D$6:$I$113,6,FALSE) -> 197.54 | FG48: 1382.78 | FL48: 5LVG | FM48: 2
D49: =D48+M17+FS8+M8 -> 0 | I49: =IF(M6-I48<0,M6,I48) ->  | M49: =IF(I33=0,1,0) -> 1 | T49: Ja; Extra kosten thuis | V49: =SUM($I$32:$I$33)-$I$38-$I$41 -> 0 | W49: =$M$6*25% -> 0 | X49: =V49-W49 -> 0 | Y49: =IF(X50>0,W50,V50) -> 0 | AK49: Z470 ZZP 7vg excl.bh excl.db | AO49: 19 | AP49: K7 | AY49: H812 Dagbesteding VG midden | AZ49: H812 | BA49: =VLOOKUP(AZ49,'Tarieven ZIN prestaties'!$B$1:$D$110,2,FALSE) -> 53.75 | BE49: 1LVG | BF49: 780 | BG49: nvt | BH49: =VLOOKUP(BE49,'PGB tarieven'!$A$7:$M$53,13,FALSE) -> 29980 | BI49: 574.9589041 | BS49: 602 | BT49: PGB: Rekenmodule voorleggen aan Zorgkantoor | CJ49: 1LVG | CK49: Niet | CL49: nvt | CM49: 4VV | CN49: 753 | CO49: 12711 | CP49: 244.4423077 | CQ49: 7690 | CR49: 147.8846154 | CS49: 10907 | CT49: 209.75 | CU49: 0 | CV49: 0 | CW49: 3357 | CX49: 34665 | CY49: 31308 | DS49: 5lvg | DT49: BGgrp | DV49: 6VG | DW49: nee | DX49: Nee | DY49: 23.75 | DZ49: 19 | EW49: Z523 ZZP 2lvg incl.bh incl.db | EX49: V523 VPT 2lvg incl.bh incl.db | FB49: 7vv | FC49: V073 VPT 7vv incl.bh incl.db | FD49: VPT | FE49: 7vvVPT | FF49: =VLOOKUP(FC49,'Tarieven VPT'!$D$6:$I$113,6,FALSE) -> 269.98 | FG49: 1889.86 | FL49: 1SGLVG | FM49: 2
D50: =IF(B43="overschrijding",D49-D47,D47-D49-I40-I42) -> 0 | E50: =IF($E$20=E19,3,0) -> 3 | I50: =IF($T$20-$I$33>0,$I$33,$T$20) -> 0 | M50: =IF(M46<0,1,0) -> 0 | T50: Ja; Extra kosten thuis | U50: betaalde arbeid | V50: =SUM($I$32:$I$33)-$I$38-$I$41 -> 0 | W50: =$M$6*25% -> 0 | X50: =V50-W50 -> 0 | Y50: =IF(X51>0,W51,V51) -> 0 | AK50: Z480 ZZP 8vg excl.bh excl.db | AO50: 20 | AP50: K8 | AY50: H813 Dagbesteding VG zwaar | AZ50: H813 | BA50: =VLOOKUP(AZ50,'Tarieven ZIN prestaties'!$B$1:$D$110,2,FALSE) -> 91.8 | BE50: 2LVG | BF50: 781 | BG50: nvt | BH50: =VLOOKUP(BE50,'PGB tarieven'!$A$7:$M$53,13,FALSE) -> 42953 | BI50: 823.7561644 | BS50: 603 | BT50: PGB: Rekenmodule voorleggen aan Zorgkantoor | CJ50: 2LVG | CK50: Niet | CL50: nvt | CM50: 5VV | CN50: 754 | CO50: 12711 | CP50: 244.4423077 | CQ50: 14099 | CR50: 271.1346154 | CS50: 16866 | CT50: 324.3461538 | CU50: 0 | CV50: 0 | CW50: 3357 | CX50: 47033 | CY50: 43676 | DS50: 1sglvg | DT50: BGgrp | DV50: 7VG | DW50: nee | DX50: Ja | DY50: 30 | DZ50: 24 | EW50: Z533 ZZP 3lvg incl.bh incl.db | EX50: V533 VPT 3lvg incl.bh incl.db | FB50: 8vv | FC50: V083 VPT 8vv incl.bh incl.db | FD50: VPT | FE50: 8vvVPT | FF50: =VLOOKUP(FC50,'Tarieven VPT'!$D$6:$I$113,6,FALSE) -> 346.39 | FG50: 2424.73
D51: =IF($E$19=E19,2,0) -> 2 | E51: 3 | G51: =IF(OR(G47>0,G47<0),1,100) -> 100 | I51: =IF(I49-M6=0,I49+I50,I49) ->  | M51: =IF(M47<0,3,4) -> 4 | O51: =I35-M6-FS8-T26 -> 0 | T51: Ja; Extra kosten thuis | U51: Wlz indiceerbaar | V51: =SUM($I$32:$I$33)-$I$38-$I$41 -> 0 | W51: =$M$6*25% -> 0 | X51: =V51-W51 -> 0 | Y51: =Y50 -> 0 | AK51: Z431 ZZP 3vg excl.bh incl.db | AO51: 21 | AP51: K8 | AY51: H814 Dagbesteding VG kind licht | AZ51: H814 | BA51: =VLOOKUP(AZ51,'Tarieven ZIN prestaties'!$B$1:$D$110,2,FALSE) -> 71.47 | BE51: 3LVG | BF51: 782 | BG51: nvt | BH51: =VLOOKUP(BE51,'PGB tarieven'!$A$7:$M$53,13,FALSE) -> 51927 | BI51: 995.860274 | BS51: 604 | BT51: PGB: Rekenmodule voorleggen aan Zorgkantoor | CJ51: 3LVG | CK51: Niet | CL51: nvt | CM51: 6VV | CN51: 755 | CO51: 12711 | CP51: 244.4423077 | CQ51: 14099 | CR51: 271.1346154 | CS51: 16866 | CT51: 324.3461538 | CU51: 0 | CV51: 0 | CW51: 3357 | CX51: 47033 | CY51: 43676 | DV51: 8VG | DW51: nee | DX51: Ja | DY51: 28.75 | DZ51: 23 | EW51: Z543 ZZP 4lvg incl.bh incl.db | EX51: V543 VPT 4lvg incl.bh incl.db | FB51: 9vvb | FC51: V097 VPT 9bvv incl.bhincl.db | FD51: VPT | FE51: 9vvbVPT | FF51: =VLOOKUP(FC51,'Tarieven VPT'!$D$6:$I$113,6,FALSE) -> 238.44 | FG51: 1669.08
B52: =IF($E$18=E19,1,0) -> 1 | D52: 2 | E52: 3 | I52: =IF(M8>0,M6-M8,0) -> 0 | M52: =SUM(M49:M51) -> 5 | T52: 10 | U52: Gespecialiseerde verpleging | V52: =$D$111-$I$38-$I$40-$I$39-I40 ->  | AK52: Z441 ZZP 4vg excl.bh incl.db | AO52: 22 | AP52: K8 | AY52: H815 Dagbesteding VG kind midden | AZ52: H815 | BA52: =VLOOKUP(AZ52,'Tarieven ZIN prestaties'!$B$1:$D$110,2,FALSE) -> 88.04 | BE52: 4LVG | BF52: 783 | BG52: nvt | BH52: =VLOOKUP(BE52,'PGB tarieven'!$A$7:$M$53,13,FALSE) -> 67368 | BI52: 1291.989041 | BS52: 605 | BT52: Bedrag PGB controleren bij het Zorgkantoor, daarna ZIN aanvragen | CJ52: 4LVG | CK52: Niet | CL52: nvt | CM52: 7VV | CN52: 756 | CO52: 12711 | CP52: 244.4423077 | CQ52: 14099 | CR52: 271.1346154 | CS52: 28748 | CT52: 552.8461538 | CU52: 0 | CV52: 0 | CW52: 3357 | CX52: 58915 | CY52: 55558 | DV52: 1LG | DW52: nee | DX52: Nee | DY52: 11.25 | DZ52: 9 | EW52: Z553 ZZP 5lvg incl.bh incl.db | EX52: V553 VPT 5lvg incl.bh incl.db | FB52: 10vv | FC52: V103 VPT 10vv incl.bhincl.db | FD52: VPT | FE52: 10vvVPT | FF52: =VLOOKUP(FC52,'Tarieven VPT'!$D$6:$I$113,6,FALSE) -> 392.85 | FG52: 2749.95
B53: 1 | D53: 2 | E53: 3 | G53: =IF(G48+G51=2,1,0) -> 0 | I53: =IF(T20-I33>0,I52,T1-FS8) -> 0 | M53: =IF(M52=5,M44,M48) -> 0 | T53: 3 | U53: Extra overbruggingszorg (actief wachtend) | V53: =$D$111-$I$38-$I$40-$I$39-I41 ->  | AK53: Z455 ZZP 5vg excl.bh incl.db | AO53: 23 | AP53: K8 | AY53: H816 Dagbesteding VG kind zwaar | AZ53: H816 | BA53: =VLOOKUP(AZ53,'Tarieven ZIN prestaties'!$B$1:$D$110,2,FALSE) -> 131.24 | BE53: 5LVG | BF53: 784 | BG53: nvt | BH53: =VLOOKUP(BE53,'PGB tarieven'!$A$7:$M$53,13,FALSE) -> 67368 | BI53: 1291.989041 | BS53: 606 | BT53: PGB: Rekenmodule voorleggen aan Zorgkantoor | CJ53: 5LVG | CK53: Niet | CL53: nvt | CM53: 8VV | CN53: 757 | CO53: 17176 | CP53: 330.3076923 | CQ53: 14099 | CR53: 271.1346154 | CS53: 35682 | CT53: 686.1923077 | CU53: 0 | CV53: 0 | CW53: 3357 | CX53: 70314 | CY53: 66957 | DV53: 2LG | DW53: nee | DX53: Nee | DY53: 18.125 | DZ53: 14.5 | EW53: Z573 ZZP 1sglvg incl.bh incl.db | EX53: V573 VPT 1sglvg incl.bh incl.db | FB53: 1vg | FC53: V415 VPT 1vg excl.bh incl.db | FD53: VPT | FE53: 1vgVPT | FF53: =VLOOKUP(FC53,'Tarieven VPT'!$D$6:$I$113,6,FALSE) -> 98.27 | FG53: 687.89
B54: 1 | D54: 2 | E54: 3 | G54: =IF(M10-E45>=0,1,0) -> 1 | I54: =IF(M8>0,I53,I51) ->  | M54: =IF(I38+D46>E45,E45-I38,M53) -> 0 | T54: 3 | U54: Palliatief terminale zorg | V54: =$D$111-$I$38-$I$40-$I$39-I41 ->  | AK54: Z461 ZZP 6vg excl.bh incl.db | AO54: 24 | AP54: K8 | AY54: H817 Dagbehandeling VG kind emg | AZ54: H817 | BA54: =VLOOKUP(AZ54,'Tarieven ZIN prestaties'!$B$1:$D$110,2,FALSE) -> 151.86 | BE54: 1SGLVG | BF54: 790 | BG54: nvt | BH54: =VLOOKUP(BE54,'PGB tarieven'!$A$7:$M$53,13,FALSE) -> 60587 | BI54: 1161.942466 | BS54: 607 | BT54: PGB: Rekenmodule voorleggen aan Zorgkantoor | CJ54: 1SGLVG | CK54: Niet | CL54: nvt | CM54: 9bVV | CN54: 191 | CO54: 17176 | CP54: 330.3076923 | CQ54: 7690 | CR54: 147.8846154 | CS54: 16866 | CT54: 324.3461538 | CU54: 0 | CV54: 0 | CW54: 3357 | CX54: 45089 | CY54: 41732 | DV54: 3LG | DW54: nee | DX54: Nee | DY54: 18.125 | DZ54: 14.5 | EW54: Z614 ZZP 1lg excl.db | EX54: V614 VPT 1lg excl.bh excl.db | FB54: 2vg | FC54: V425 VPT 2vg excl.bh incl.db | FD54: VPT | FE54: 2vgVPT | FF54: =VLOOKUP(FC54,'Tarieven VPT'!$D$6:$I$113,6,FALSE) -> 109.79 | FG54: 768.53
B55: 1 | D55: 2 | E55: 3 | G55: =SUM(G53:G54) -> 1 | I55: =IF(L62=2,I50,I54) ->  | M55: =IF(D46+I38>E45,6,0) -> 0 | T55: 3 | U55: Meerzorg | V55: =$D$111-$I$38-$I$40-$I$39-I41 ->  | AB55: =E45-I38-I40 -> 0 | AK55: Z471 ZZP 7vg excl.bh incl.db | AO55: 25 | AP55: K8 | AY55: H818 Dagactiviteit (begeleiding) VG kind gedrag | AZ55: H818 | BA55: =VLOOKUP(AZ55,'Tarieven ZIN prestaties'!$B$1:$D$110,2,FALSE) -> 131.24 | BS55: 608 | BT55: PGB: Rekenmodule voorleggen aan Zorgkantoor | CM55: 10VV | CN55: 759 | CO55: 26894 | CP55: 517.1923077 | CQ55: 29480 | CR55: 566.9230769 | CS55: 16866 | CT55: 324.3461538 | CU55: 0 | CV55: 0 | CW55: 3357 | CX55: 76597 | CY55: 73240 | DV55: 4LG | DW55: nee | DX55: Nee | DY55: 21.875 | DZ55: 17.5 | EW55: Z615 ZZP 1lg incl.db | EX55: V615 VPT 1lg excl.bh incl.db | FB55: 3vg | FC55: V433 VPT 3vg incl.bh incl.db | FD55: VPT | FE55: 3vgVPT | FF55: =VLOOKUP(FC55,'Tarieven VPT'!$D$6:$I$113,6,FALSE) -> 157.58 | FG55: 1103.06
B56: 1 | D56: 2 | E56: 3 | F56: =als ->  | I56: =IF(E45-O57>0,O57,I55) ->  | T56: 1 | U56: Extra budget voor behandeling | V56: =IF(W60=3,V59,IF(W60=4,U59,0)) -> 0 | Y56: ja invasieve beademing | Z56: =BQ12 -> 1479.94 | AA56: =IFERROR(VLOOKUP(Q23,Y56:Z57,2),0) -> 0 | AK56: Z481 ZZP 8vg excl.bh incl.db | AY56: H819 Dagbehandeling VG EMG volwassenen | AZ56: H819 | BA56: =VLOOKUP(AZ56,'Tarieven ZIN prestaties'!$B$1:$D$110,2,FALSE) -> 110.74 | BS56: 609 | BT56: PGB: Rekenmodule voorleggen aan Zorgkantoor | DV56: 5LG | DW56: nee | DX56: Ja | DY56: 28.75 | DZ56: 23 | EW56: Z624 ZZP 2lg excl.db | EX56: V624 VPT 2lg excl.bh excl.db | FB56: 4vg | FC56: V443 VPT 4vg incl.bh incl.db | FD56: VPT | FE56: 4vgVPT | FF56: =VLOOKUP(FC56,'Tarieven VPT'!$D$6:$I$113,6,FALSE) -> 182.69 | FG56: 1278.83
B57: 1 | D57: 2 | E57: 3 | G57: =IF(T20-I33>=0,1,0) -> 1 | O57: =IF(I33=0,M17,M17-M15) -> 0 | Q57: =E45-I38 -> 0 | T57: 2 | U57: toeslag beademing | V57: =IF(AB55>AA56,AA56,AB55) -> 0 | Y57: ja non-invasieve beademing | Z57: =BQ13 -> 277.83 | AK57: Z432 ZZP 3vg incl.bh excl.db | AY57: H820 Dagbehandeling VG kind midden | AZ57: H820 | BA57: =VLOOKUP(AZ57,'Tarieven ZIN prestaties'!$B$1:$D$110,2,FALSE) -> 108.12 | BS57: 610 | BT57: PGB: Rekenmodule voorleggen aan Zorgkantoor | CJ57: =VLOOKUP(G10,CJ7:CL54,2,FALSE) ->  | DV57: 6LG | DW57: nee | DX57: Ja | DY57: 28.75 | DZ57: 23 | EW57: Z625 ZZP 2lg incl.db | EX57: V625 VPT 2lg excl.bh incl.db | FB57: 5vg | FC57: V457 VPT 5vg incl.bh incl.db | FD57: VPT | FE57: 5vgVPT | FF57: =VLOOKUP(FC57,'Tarieven VPT'!$D$6:$I$113,6,FALSE) -> 249.53 | FG57: 1746.71
B58: 1 | D58: 2 | E58: 3 | G58: =IF(M6-I35<0,3,4) -> 4 | V58: =M10-I32 -> 0 | W58: =IF(V58<1,1,2) -> 1 | AK58: Z442 ZZP 4vg incl.bh excl.db | AY58: H821 Dagbehandeling VG kind zwaar | AZ58: H821 | BA58: =VLOOKUP(AZ58,'Tarieven ZIN prestaties'!$B$1:$D$110,2,FALSE) -> 151.86 | BS58: 611 | BT58: PGB: Rekenmodule voorleggen aan Zorgkantoor | CP58: Telling | DV58: 7LG | DW58: nee | DX58: Ja | DY58: 32.5 | DZ58: 26 | EW58: Z630 ZZP 3lg excl.bh excl.db | EX58: V630 VPT 3lg excl.bh excl.db | FB58: 6vg | FC58: V463 VPT 6vg incl.bh incl.db | FD58: VPT | FE58: 6vgVPT | FF58: =VLOOKUP(FC58,'Tarieven VPT'!$D$6:$I$113,6,FALSE) -> 212.57 | FG58: 1487.99
B59: 1 | D59: 2 | E59: 3 | G59: =G58+G57 -> 5 | T59: =IF(U59<V59,U59,V59) -> 0 | U59: =IF(U60>0,U60,U61) -> 0 | V59: =I33 -> 0 | W59: =IF(V59<1,1,2) -> 1 | AK59: Z456 ZZP 5vg incl.bh excl.db | AY59: H822 Dagbehandeling VG kind gedrag | AZ59: H822 | BA59: =VLOOKUP(AZ59,'Tarieven ZIN prestaties'!$B$1:$D$110,2,FALSE) -> 180.71 | BS59: 612 | BT59: PGB: Rekenmodule voorleggen aan Zorgkantoor | CM59: PV | CN59: =VLOOKUP($G$10,$CM$8:$CX$55,4,FALSE) ->  | CP59: =IFERROR(VLOOKUP(#REF!,$CM$59:$CN$62,2,FALSE),0) -> 0 | CQ59: =IFERROR(VLOOKUP(H12,$CM$59:$CN$62,2,FALSE),0) -> 0 | CR59: =IFERROR(VLOOKUP(I14,$CM$59:$CN$62,2,FALSE),0) -> 0 | CS59: =IFERROR(VLOOKUP(J14,$CM$59:$CN$62,2,FALSE),0) -> 0 | DV59: 1ZGvis | DW59: nee | DX59: Nee | DY59: 8.125 | DZ59: 6.5 | EW59: Z631 ZZP 3lg excl.bh incl.db | EX59: V631 VPT 3lg excl.bh incl.db | FB59: 7vg | FC59: V473 VPT 7vg incl.bh incl.db | FD59: VPT | FE59: 7vgVPT | FF59: =VLOOKUP(FC59,'Tarieven VPT'!$D$6:$I$113,6,FALSE) -> 242.58 | FG59: 1698.06
B60: 1 | D60: 2 | E60: 3 | G60: =IF(G59=4,I45,I44) -> 0 | J60: Geen Zin | L60: =IF(I32=0,1,0) -> 1 | U60: =$M$17-($I$32+$I$33) -> 0 | W60: =SUM(W58:W59) -> 2 | AK60: Z462 ZZP 6vg incl.bh excl.db | AY60: H831 Dagbesteding LG licht | AZ60: H831 | BA60: =VLOOKUP(AZ60,'Tarieven ZIN prestaties'!$B$1:$D$110,2,FALSE) -> 54.51 | BS60: 613 | BT60: PGB: Rekenmodule voorleggen aan Zorgkantoor | CJ60: wel | CK60: Niet | CM60: VP | CN60: =VLOOKUP($G$10,$CM$8:$CX$55,6,FALSE) ->  | CP60: =IFERROR(VLOOKUP(G16,$CM$59:$CN$62,2,FALSE),0) -> 0 | CQ60: 0 | CR60: 0 | CS60: 0 | DV60: 2ZGvis | DW60: nee | DX60: Nee | DY60: 14.375 | DZ60: 11.5 | EW60: Z632 ZZP 3lg incl.bh excl.db | EX60: V632 VPT 3lg incl.bh excl.db | FB60: 8vg | FC60: V483 VPT 8vg incl.bh incl.db | FD60: VPT | FE60: 8vgVPT | FF60: =VLOOKUP(FC60,'Tarieven VPT'!$D$6:$I$113,6,FALSE) -> 307.46 | FG60: 2152.22
B61: 1 | D61: 2 | E61: 3 | J61: BH Pos | L61: =IF($T$20-$I$33>0,1,0) -> 0 | U61: =($I$32+$I$33)-M17 -> 0 | AK61: Z472 ZZP 7vg incl.bh excl.db | AY61: H832 Dagbesteding LG midden | AZ61: H832 | BA61: =VLOOKUP(AZ61,'Tarieven ZIN prestaties'!$B$1:$D$110,2,FALSE) -> 63.91 | BS61: 614 | BT61: PGB: Rekenmodule voorleggen aan Zorgkantoor | CJ61: Ja | CK61: Nvt | CM61: Bgind | CN61: =VLOOKUP($G$10,$CM$8:$CX$55,8,FALSE) ->  | CP61: 0 | CQ61: 0 | CR61: 0 | CS61: 0 | DV61: 3ZGvis | DW61: nee | DX61: Nee | DY61: 20 | DZ61: 16 | EW61: Z633 ZZP 3lg incl.bh incl.db | EX61: V633 VPT 3lg incl.bh incl.db | FB61: 1lvg | FC61: V513 VPT 1lvg incl.bh incl.db | FD61: VPT | FE61: 1lvgVPT | FF61: =VLOOKUP(FC61,'Tarieven VPT'!$D$6:$I$113,6,FALSE) -> 184.96 | FG61: 1294.72
B62: 1 | D62: 2 | E62: 3 | L62: =SUM(L60:L61) -> 1 | AK62: Z482 ZZP 8vg incl.bh excl.db | AY62: H833 Dagbesteding LG zwaar | AZ62: H833 | BA62: =VLOOKUP(AZ62,'Tarieven ZIN prestaties'!$B$1:$D$110,2,FALSE) -> 70.07 | BS62: 615 | BT62: PGB: Rekenmodule voorleggen aan Zorgkantoor | CJ62: Nee | CM62: BGgrp | CN62: =VLOOKUP($G$10,$CM$8:$CX$55,10,FALSE) ->  | CP62: 0 | CQ62: 0 | CR62: 0 | CS62: 0 | DV62: 4ZGvis | DW62: nee | DX62: Nee | DY62: 28.75 | DZ62: 23 | EW62: Z640 ZZP 4lg excl.bh excl.db | EX62: V640 VPT 4lg excl.bh excl.db | FB62: 2lvg | FC62: V523 VPT 2lvg incl.bh incl.db | FD62: VPT | FE62: 2lvgVPT | FF62: =VLOOKUP(FC62,'Tarieven VPT'!$D$6:$I$113,6,FALSE) -> 227.03 | FG62: 1589.21
B63: 1 | D63: 2 | N63: =IF(I33>P65,P65,I33) -> 0 | AK63: Z433 ZZP 3vg incl.bh incl.db | AY63: H834 Dagbesteding LG kind licht | AZ63: H834 | BA63: =VLOOKUP(AZ63,'Tarieven ZIN prestaties'!$B$1:$D$110,2,FALSE) -> 78.02 | BS63: 616 | BT63: PGB: Rekenmodule voorleggen aan Zorgkantoor | DV63: 5ZGvis | DW63: nee | DX63: Ja | DY63: 32.5 | DZ63: 26 | EW63: Z641 ZZP 4lg excl.bh incl.db | EX63: V641 VPT 4lg excl.bh incl.db | FB63: 3lvg | FC63: V533 VPT 3lvg incl.bh incl.db | FD63: VPT | FE63: 3lvgVPT | FF63: =VLOOKUP(FC63,'Tarieven VPT'!$D$6:$I$113,6,FALSE) -> 293.25 | FG63: 2052.75
B64: 1 | D64: =IF(E19="",1,0) -> 1 | N64: =IF(AND(I40=0,I33>1),I33,0) -> 0 | AK64: Z443 ZZP 4vg incl.bh incl.db | AY64: H835 Dagbesteding LG kind midden | AZ64: H835 | BA64: =VLOOKUP(AZ64,'Tarieven ZIN prestaties'!$B$1:$D$110,2,FALSE) -> 90.39 | BS64: 617 | BT64: PGB: Rekenmodule voorleggen aan Zorgkantoor | DV64: 1ZGaud | DW64: nee | DX64: Nee | DY64: 15.625 | DZ64: 12.5 | EW64: Z642 ZZP 4lg incl.bh excl.db | EX64: V642 VPT 4lg incl.bh excl.db | FB64: 4lvg | FC64: V543 VPT 4lvg incl.bh incl.db | FD64: VPT | FE64: 4lvgVPT | FF64: =VLOOKUP(FC64,'Tarieven VPT'!$D$6:$I$113,6,FALSE) -> 342.28 | FG64: 2395.96
B65: =IF(E18="",1,0) -> 1 | P65: =IF($T$20-$I$33>0,$I$33,$T$20) -> 0 | AK65: Z457 ZZP 5vg incl.bh incl.db | AY65: H836 Dagbesteding LG kind zwaar | AZ65: H836 | BA65: =VLOOKUP(AZ65,'Tarieven ZIN prestaties'!$B$1:$D$110,2,FALSE) -> 108.81 | BS65: 618 | BT65: PGB: Rekenmodule voorleggen aan Zorgkantoor | DV65: 2ZGaud | DW65: nee | DX65: Nee | DY65: 36.875 | DZ65: 29.5 | EW65: Z643 ZZP 4lg incl.bh incl.db | EX65: V643 VPT 4lg incl.bh incl.db | FB65: 5lvg | FC65: V553 VPT 5lvg incl.bh incl.db | FD65: VPT | FE65: 5lvgVPT | FF65: =VLOOKUP(FC65,'Tarieven VPT'!$D$6:$I$113,6,FALSE) -> 324.23 | FG65: 2269.61
N66: =IF(N65=2,N64,N63) -> 0 | AK66: Z463 ZZP 6vg incl.bh incl.db | AY66: H837 Dagbehandeling LG licht | AZ66: H837 | BA66: =VLOOKUP(AZ66,'Tarieven ZIN prestaties'!$B$1:$D$110,2,FALSE) -> 80.06 | BS66: 619 | BT66: PGB: Rekenmodule voorleggen aan Zorgkantoor | DV66: 3ZGaud | DW66: nee | DX66: Ja | DY66: 43.75 | DZ66: 35 | EW66: Z650 ZZP 5lg excl.bh excl.db | EX66: V650 VPT 5lg excl.bh excl.db | FB66: 1sglvg | FC66: V573 VPT 1sglvg incl.bh incl.db | FD66: VPT | FE66: =CONCATENATE(FB66,FD66) -> 1sglvgVPT | FF66: =VLOOKUP(FC66,'Tarieven VPT'!$D$6:$I$113,6,FALSE) -> 355.13 | FG66: 2485.91
B67: =IF($E$21=E22,4,0) -> 4 | C67: =IF($E$22=E23,5,0) -> 5 | D67: =IF($E$23=E24,6,0) -> 6 | E67: =IF($E$24=E25,7,0) -> 7 | N67: =IF(N66>P65,P65,N66) -> 0 | AK67: Z473 ZZP 7vg incl.bh incl.db | AY67: H838 Dagbehandeling LG midden | AZ67: H838 | BA67: =VLOOKUP(AZ67,'Tarieven ZIN prestaties'!$B$1:$D$110,2,FALSE) -> 87.33 | BS67: 620 | BT67: PGB: Rekenmodule voorleggen aan Zorgkantoor | DV67: 4ZGaud | DW67: nee | DX67: Nee | DY67: 26.25 | DZ67: 21 | EW67: Z651 ZZP 5lg excl.bh incl.db | EX67: V651 VPT 5lg excl.bh incl.db | FB67: 1lg | FC67: V615 VPT 1lg excl.bh incl.db | FD67: VPT | FE67: 1lgVPT | FF67: =VLOOKUP(FC67,'Tarieven VPT'!$D$6:$I$113,6,FALSE) -> 139.99 | FG67: 979.93
B68: 4 | C68: 5 | D68: 6 | E68: 7 | AK68: Z483 ZZP 8vg incl.bh incl.db | AY68: H839 Dagbehandeling LG zwaar | AZ68: H839 | BA68: =VLOOKUP(AZ68,'Tarieven ZIN prestaties'!$B$1:$D$110,2,FALSE) -> 91.8 | BS68: 621 | BT68: PGB: Rekenmodule voorleggen aan Zorgkantoor | DV68: 10VV | DW68: nvt | DX68: Nee | DY68: 35.625 | DZ68: 28.5 | EW68: Z652 ZZP 5lg incl.bh excl.db | EX68: V652 VPT 5lg incl.bh excl.db | FB68: 2lg | FC68: V625 VPT 2lg excl.bh incl.db | FD68: VPT | FE68: 2lgVPT | FF68: =VLOOKUP(FC68,'Tarieven VPT'!$D$6:$I$113,6,FALSE) -> 166.83 | FG68: 1167.81
B69: 4 | C69: 5 | D69: 6 | E69: 7 | H69: =I32+I33 -> 0 | AY69: H851 Dagbesteding ZG auditief licht | AZ69: H851 | BA69: =VLOOKUP(AZ69,'Tarieven ZIN prestaties'!$B$1:$D$110,2,FALSE) -> 54.61 | BS69: 622 | BT69: PGB: Rekenmodule voorleggen aan Zorgkantoor | DV69: 1VV | DW69: nvt | DX69: Nee | DY69: 5.625 | DZ69: 4.5 | EW69: Z653 ZZP 5lg incl.bh incl.db | EX69: V653 VPT 5lg incl.bh incl.db | FB69: 3lg | FC69: V633 VPT 3lg incl.bh incl.db | FD69: VPT | FE69: 3lgVPT | FF69: =VLOOKUP(FC69,'Tarieven VPT'!$D$6:$I$113,6,FALSE) -> 173.08 | FG69: 1211.56
B70: 4 | C70: 5 | D70: 6 | E70: 7 | H70: =IF(H69>M6-M8,1,2) -> 2 | AK70: Z513 ZZP 1lvg incl.bh incl.db | AY70: H852 Dagbesteding ZG auditief midden | AZ70: H852 | BA70: =VLOOKUP(AZ70,'Tarieven ZIN prestaties'!$B$1:$D$110,2,FALSE) -> 65.73 | BS70: 623 | BT70: PGB: Rekenmodule voorleggen aan Zorgkantoor | DV70: 2VV | DW70: nvt | DX70: Nee | DY70: 8.75 | DZ70: 7 | EW70: Z660 ZZP 6lg excl.bh excl.db | EX70: V660 VPT 6lg excl.bh excl.db | FB70: 4lg | FC70: V643 VPT 4lg incl.bh incl.db | FD70: VPT | FE70: 4lgVPT | FF70: =VLOOKUP(FC70,'Tarieven VPT'!$D$6:$I$113,6,FALSE) -> 216.25 | FG70: 1513.75
B71: 4 | C71: 5 | D71: 6 | E71: 7 | H71: =IF(I32>M6-M8,5,6) -> 6 | J71: 6 | K71: =M6-M8 -> 0 | AK71: Z523 ZZP 2lvg incl.bh incl.db | AY71: H853 Dagbesteding ZG auditief zwaar | AZ71: H853 | BA71: =VLOOKUP(AZ71,'Tarieven ZIN prestaties'!$B$1:$D$110,2,FALSE) -> 78.36 | BS71: 624 | BT71: PGB: Rekenmodule voorleggen aan Zorgkantoor | DV71: 3VV | DW71: nvt | DX71: Nee | DY71: 13.75 | DZ71: 11 | EW71: Z661 ZZP 6lg excl.bh incl.db | EX71: V661 VPT 6lg excl.bh incl.db | FB71: 5lg | FC71: V653 VPT 5lg incl.bh incl.db | FD71: VPT | FE71: 5lgVPT | FF71: =VLOOKUP(FC71,'Tarieven VPT'!$D$6:$I$113,6,FALSE) -> 241.33 | FG71: 1689.31
B72: 4 | C72: 5 | D72: 6 | E72: 7 | J72: 7 | K72: =M6-M8 -> 0 | AK72: Z533 ZZP 3lvg incl.bh incl.db | AY72: H854 Dagbesteding ZG kind auditief licht | AZ72: H854 | BA72: =VLOOKUP(AZ72,'Tarieven ZIN prestaties'!$B$1:$D$110,2,FALSE) -> 83.59 | BS72: 625 | BT72: PGB: Rekenmodule voorleggen aan Zorgkantoor | DV72: 4VV | DW72: nvt | DX72: Nee | DY72: 15.625 | DZ72: 12.5 | EW72: Z662 ZZP 6lg incl.bh excl.db | EX72: V662 VPT 6lg incl.bh excl.db | FB72: 6lg | FC72: V663 VPT 6lg incl.bh incl.db | FD72: VPT | FE72: 6lgVPT | FF72: =VLOOKUP(FC72,'Tarieven VPT'!$D$6:$I$113,6,FALSE) -> 302.91 | FG72: 2120.37
B73: 4 | C73: 5 | D73: 6 | E73: 7 | H73: =IF(AND(I33>0,I33-M15>0,I35<(M6+M15)),9,0) -> 0 | J73: 16 | K73: =H69-M15 -> 0 | AK73: Z543 ZZP 4lvg incl.bh incl.db | AY73: H855 Dagbesteding ZG kind auditief midden | AZ73: H855 | BA73: =VLOOKUP(AZ73,'Tarieven ZIN prestaties'!$B$1:$D$110,2,FALSE) -> 100.88 | BS73: 626 | BT73: PGB: Rekenmodule voorleggen aan Zorgkantoor | DV73: 5VV | DW73: nvt | DX73: Nee | DY73: 21.25 | DZ73: 17 | EW73: Z663 ZZP 6lg incl.bh incl.db | EX73: V663 VPT 6lg incl.bh incl.db | FB73: 7lg | FC73: V673 VPT 7lg incl.bh incl.db | FD73: VPT | FE73: 7lgVPT | FF73: =VLOOKUP(FC73,'Tarieven VPT'!$D$6:$I$113,6,FALSE) -> 314.49 | FG73: 2201.43
B74: 4 | C74: 5 | D74: 6 | H74: =SUM(H70:H73) -> 8 | J74: 17 | K74: =I35-I34-I41 -> 0 | AK74: Z553 ZZP 5lvg incl.bh incl.db | AY74: H856 Dagbesteding ZG kind auditief zwaar | AZ74: H856 | BA74: =VLOOKUP(AZ74,'Tarieven ZIN prestaties'!$B$1:$D$110,2,FALSE) -> 123.02 | BS74: 627 | BT74: PGB: Rekenmodule voorleggen aan Zorgkantoor | DV74: 6VV | DW74: nvt | DX74: Nee | DY74: 21.25 | DZ74: 17 | EW74: Z670 ZZP 7lg excl.bh excl.db | EX74: V670 VPT 7lg excl.bh excl.db | FB74: 1zgaud | FC74: V713 VPT 1zg-auditief incl.bh incl.db | FD74: VPT | FE74: 1zgaudVPT | FF74: =VLOOKUP(FC74,'Tarieven VPT'!$D$6:$I$113,6,FALSE) -> 184.55 | FG74: 1291.85
B75: 4 | C75: 5 | J75: 8 | K75: =I32+I33 -> 0 | AY75: H871 Dagbesteding ZG visueel licht | AZ75: H871 | BA75: =VLOOKUP(AZ75,'Tarieven ZIN prestaties'!$B$1:$D$110,2,FALSE) -> 53.23 | BS75: 628 | BT75: PGB: Rekenmodule voorleggen aan Zorgkantoor | DV75: 7VV | DW75: nvt | DX75: Ja | DY75: 28.75 | DZ75: 23 | EW75: Z671 ZZP 7lg excl.bh incl.db | EX75: V671 VPT 7lg excl.bh incl.db | FB75: 4zgaud | FC75: V743 VPT 4zg-auditief incl.bh incl.db | FD75: VPT | FE75: =CONCATENATE(FB75,FD77) -> 4zgaudVPT | FF75: =VLOOKUP(FC75,'Tarieven VPT'!$D$6:$I$113,6,FALSE) -> 253.48 | FG75: 1774.36
B76: 4 | J76: 9 | K76: =H69-M15 -> 0 | AK76: Z573 ZZP 1sglvg incl.bh incl.db | AY76: H872 Dagbesteding ZG visueel midden | AZ76: H872 | BA76: =VLOOKUP(AZ76,'Tarieven ZIN prestaties'!$B$1:$D$110,2,FALSE) -> 57.53 | BS76: 629 | BT76: PGB: Rekenmodule voorleggen aan Zorgkantoor | DV76: 8VV | DW76: nvt | DX76: Ja | DY76: 35.625 | DZ76: 28.5 | EW76: Z672 ZZP 7lg incl.bh excl.db | EX76: V672 VPT 7lg incl.bh excl.db | FB76: 2zgaud | FC76: V723 VPT 2zg-auditief incl.bh incl.db | FD76: VPT | FE76: =CONCATENATE(FB76,FD75) -> 2zgaudVPT | FF76: =VLOOKUP(FC76,'Tarieven VPT'!$D$6:$I$113,6,FALSE) -> 364.18 | FG76: 2549.26
AY77: H873 Dagbesteding ZG visueel zwaar | AZ77: H873 | BA77: =VLOOKUP(AZ77,'Tarieven ZIN prestaties'!$B$1:$D$110,2,FALSE) -> 66.08 | BS77: 630 | BT77: PGB: Rekenmodule voorleggen aan Zorgkantoor | DV77: 9vvb | DW77: nvt | DX77: Nee | DY77: 25 | DZ77: 20 | EW77: Z673 ZZP 7lg incl.bh incl.db | EX77: V673 VPT 7lg incl.bh incl.db | FB77: 3zgaud | FC77: V733 VPT 3zg-auditief incl.bh incl.db | FD77: VPT | FE77: =CONCATENATE(FB77,FD76) -> 3zgaudVPT | FF77: =VLOOKUP(FC77,'Tarieven VPT'!$D$6:$I$113,6,FALSE) -> 429.84 | FG77: 3008.88
AK78: Z614 ZZP 1lg excl.db | AY78: H874 Dagbesteding ZG kind visueel licht | AZ78: H874 | BA78: =VLOOKUP(AZ78,'Tarieven ZIN prestaties'!$B$1:$D$110,2,FALSE) -> 70.44 | BS78: 631 | BT78: PGB: Rekenmodule voorleggen aan Zorgkantoor | DV78: 1LVG | DW78: nvt | DX78: Nee | DY78: 20 | DZ78: 16 | EW78: Z710 ZZP 1zg-auditief excl.bh excl.db | EX78: V710 VPT 1zg-auditief excl.bh excl.db | FB78: 1zgvis | FC78: V815 VPT 1zg-visueel excl.bh incl.db | FD78: VPT | FE78: 1zgvisVPT | FF78: =VLOOKUP(FC78,'Tarieven VPT'!$D$6:$I$113,6,FALSE) -> 127.81 | FG78: 894.67
B79: =IF($E$25=E26,8,0) -> 8 | C79: =IF($E$26=E27,9,0) -> 9 | D79: =IF($E$27=E28,10,0) -> 10 | E79: =IF($E$28=E29,11,0) -> 11 | AK79: Z624 ZZP 2lg excl.db | AY79: H875 Dagbesteding ZG kind visueel midden | AZ79: H875 | BA79: =VLOOKUP(AZ79,'Tarieven ZIN prestaties'!$B$1:$D$110,2,FALSE) -> 81.58 | BS79: 632 | BT79: PGB: Rekenmodule voorleggen aan Zorgkantoor | DV79: 2LVG | DW79: nvt | DX79: Nee | DY79: 24.375 | DZ79: 19.5 | EW79: Z711 ZZP 1zg-auditief excl.bh incl.db | EX79: V711 VPT 1zg-auditief excl.bh incl.db | FB79: 2zgvis | FC79: V825 VPT 2zg-visueel excl.bh incl.db | FD79: VPT | FE79: 2zgvisVPT | FF79: =VLOOKUP(FC79,'Tarieven VPT'!$D$6:$I$113,6,FALSE) -> 165.46 | FG79: 1158.22
B80: 8 | C80: =IF($E$26=E28,9,0) -> 9 | D80: =IF($E$27=E29,10,0) -> 10 | E80: =IF($E$28=E30,11,0) -> 11 | AK80: Z615 ZZP 1lg incl.db | AY80: H876 Dagbesteding ZG kind visueel zwaar | AZ80: H876 | BA80: =VLOOKUP(AZ80,'Tarieven ZIN prestaties'!$B$1:$D$110,2,FALSE) -> 100.07 | BS80: 633 | BT80: PGB: Rekenmodule voorleggen aan Zorgkantoor | DV80: 3LVG | DW80: nvt | DX80: Nee | DY80: 26.875 | DZ80: 21.5 | EW80: Z712 ZZP 1zg-auditief incl.bh excl.db | EX80: V712 VPT 1zg-auditief incl.bh excl.db | FB80: 3zgvis | FC80: V833 VPT 3zg-visueel incl.bh incl.db | FD80: VPT | FE80: 3zgvisVPT | FF80: =VLOOKUP(FC80,'Tarieven VPT'!$D$6:$I$113,6,FALSE) -> 210.95 | FG80: 1476.65
B81: 8 | C81: =IF($E$26=E29,9,0) -> 9 | D81: =IF($E$27=E30,10,0) -> 10 | E81: =IF($E$28=E31,11,0) -> 11 | AK81: Z625 ZZP 2lg incl.db | AY81: H891 Dagbehandeling LVG | AZ81: H891 | BA81: =VLOOKUP(AZ81,'Tarieven ZIN prestaties'!$B$1:$D$110,2,FALSE) -> 142.01 | BS81: 634 | BT81: PGB: Rekenmodule voorleggen aan Zorgkantoor | DV81: 4LVG | DW81: nvt | DX81: Ja | DY81: 31.875 | DZ81: 25.5 | EW81: Z713 ZZP 1zg-auditief incl.bh incl.db | EX81: V713 VPT 1zg-auditief incl.bh incl.db | FB81: 4zgvis | FC81: V843 VPT 4zg-visueel incl.bh incl.db | FD81: VPT | FE81: 4zgvisVPT | FF81: =VLOOKUP(FC81,'Tarieven VPT'!$D$6:$I$113,6,FALSE) -> 277.72 | FG81: 1944.04
B82: 8 | C82: =IF($E$26=E30,9,0) -> 9 | D82: =IF($E$27=E31,10,0) -> 10 | AK82: Z630 ZZP 3lg excl.bh excl.db | AY82: H803 Vervoer dagbesteding/dagbehandeling V&V | AZ82: H803 | BA82: =VLOOKUP(AZ82,'Tarieven ZIN prestaties'!$B$1:$D$110,2,FALSE) -> 7.46 | BS82: 635 | BT82: PGB: Rekenmodule voorleggen aan Zorgkantoor | DV82: 5LVG | DW82: nvt | DX82: Ja | DY82: =DZ82*1.25 -> 31.875 | DZ82: 25.5 | EW82: Z740 ZZP 4zg-auditief excl.bh excl.db | EX82: V740 VPT 4zg-auditief excl.bh excl.db | FB82: 5zgvis | FC82: V853 VPT 5zg-visueel incl.bh incl.db | FD82: VPT | FE82: 5zgvisVPT | FF82: =VLOOKUP(FC82,'Tarieven VPT'!$D$6:$I$113,6,FALSE) -> 305.65 | FG82: =FF82*7 -> 2139.55
B83: 8 | C83: =IF($E$26=E31,9,0) -> 9 | AK83: Z640 ZZP 4lg excl.bh excl.db | AY83: H881 Vervoer dagbesteding/dagbehandeling ghz - categorie 1 | AZ83: H881 | BA83: =VLOOKUP(AZ83,'Tarieven ZIN prestaties'!$B$1:$D$110,2,FALSE) -> 12.15 | BS83: 636 | BT83: PGB: Rekenmodule voorleggen aan Zorgkantoor | DV83: 1SGLVG | DW83: nvt | DX83: Ja | DY83: =DZ83*1.25 -> 34.375 | DZ83: 27.5 | EW83: Z741 ZZP 4zg-auditief excl.bh incl.db | EX83: V741 VPT 4zg-auditief excl.bh incl.db | FD83: 1VV | FE83: =CONCATENATE(FD83,$FH$1) -> 1VVDTV | FF83: 1 | FG83: =FF83*7 -> 7
B84: 8 | AK84: Z650 ZZP 5lg excl.bh excl.db | AY84: H882 Vervoer dagbesteding/dagbehandeling ghz - categorie 2 | AZ84: H882 | BA84: =VLOOKUP(AZ84,'Tarieven ZIN prestaties'!$B$1:$D$110,2,FALSE) -> 17.16 | BS84: 637 | BT84: PGB: Rekenmodule voorleggen aan Zorgkantoor | EW84: Z742 ZZP 4zg-auditief incl.bh excl.db | EX84: V742 VPT 4zg-auditief incl.bh excl.db | FD84: 2VV | FE84: =CONCATENATE(FD84,$FH$1) -> 2VVDTV | FF84: 1 | FG84: 7
AK85: Z660 ZZP 6lg excl.bh excl.db | AY85: H883 Vervoer dagbesteding/dagbehandeling ghz - categorie 3 | AZ85: H883 | BA85: =VLOOKUP(AZ85,'Tarieven ZIN prestaties'!$B$1:$D$110,2,FALSE) -> 27.19 | BS85: 638 | BT85: PGB: Rekenmodule voorleggen aan Zorgkantoor | EW85: Z743 ZZP 4zg-auditief incl.bh incl.db | EX85: V743 VPT 4zg-auditief incl.bh incl.db | FC85: D031 DTV 3VV | FD85: 3VV | FE85: 3VVDTV | FF85: =VLOOKUP(FC85,'Tarieven ZIN prestaties'!$A$1:$C$110,3,FALSE) -> 159.63 | FG85: =FF85*7 -> 1117.41
AK86: Z670 ZZP 7lg excl.bh excl.db | AY86: H884 Vervoer dagbesteding/dagbehandeling ghz - categorie 4 | AZ86: H884 | BA86: =VLOOKUP(AZ86,'Tarieven ZIN prestaties'!$B$1:$D$110,2,FALSE) -> 46.72 | BS86: 639 | BT86: PGB: Rekenmodule voorleggen aan Zorgkantoor | EW86: Z720 ZZP 2zg-auditief excl.bh excl.db | EX86: V720 VPT 2zg-auditief excl.bh excl.db | FC86: D041 DTV 4VV | FD86: 4VV | FE86: 4VVDTV | FF86: =VLOOKUP(FC86,'Tarieven ZIN prestaties'!$A$1:$C$110,3,FALSE) -> 166.47 | FG86: =FF86*7 -> 1165.29
B87: =IF($E$29=E30,12,0) -> 12 | C87: =IF(E30=E31,13,0) -> 13 | AK87: Z631 ZZP 3lg excl.bh incl.db | AY87: H885 Vervoer dagbesteding/dagbehandeling ghz - categorie 5 | AZ87: H885 | BA87: =VLOOKUP(AZ87,'Tarieven ZIN prestaties'!$B$1:$D$110,2,FALSE) -> 67.05 | BS87: 500 | BT87: PGB: Rekenmodule voorleggen aan Zorgkantoor | EW87: Z721 ZZP 2zg-auditief excl.bh incl.db | EX87: V721 VPT 2zg-auditief excl.bh incl.db | FC87: D051 DTV 5VV | FD87: 5VV | FE87: 5VVDTV | FF87: =VLOOKUP(FC87,'Tarieven ZIN prestaties'!$A$1:$C$110,3,FALSE) -> 216.46 | FG87: 1515.22
B88: =IF($E$29=E31,12,0) -> 12 | AK88: Z641 ZZP 4lg excl.bh incl.db | AY88: H894 Vervoer dagbesteding/dagbehandeling GHZ extramuraal | AZ88: H894 | BA88: =VLOOKUP(AZ88,'Tarieven ZIN prestaties'!$B$1:$D$110,2,FALSE) ->  | BS88: 501 | BT88: Bedrag PGB controleren bij het Zorgkantoor, daarna ZIN aanvragen | EW88: Z722 ZZP 2zg-auditief incl.bh excl.db | EX88: V722 VPT 2zg-auditief incl.bh excl.db | FC88: D061 DTV 6VV | FD88: 6VV | FE88: 6VVDTV | FF88: =VLOOKUP(FC88,'Tarieven ZIN prestaties'!$A$1:$C$110,3,FALSE) -> 216.72 | FG88: 1517.04
AK89: Z651 ZZP 5lg excl.bh incl.db | AY89: H895 Vervoer dagbesteding/dagbehandeling GHZ rolstoel extramuraal | AZ89: H895 | BA89: =VLOOKUP(AZ89,'Tarieven ZIN prestaties'!$B$1:$D$110,2,FALSE) ->  | BS89: 502 | BT89: PGB: Rekenmodule voorleggen aan Zorgkantoor | EW89: Z723 ZZP 2zg-auditief incl.bh incl.db | EX89: V723 VPT 2zg-auditief incl.bh incl.db | FC89: D071 DTV 7VV | FD89: 7VV | FE89: 7VVDTV | FF89: =VLOOKUP(FC89,'Tarieven ZIN prestaties'!$A$1:$C$110,3,FALSE) -> 249.87 | FG89: 1749.09
F90: Aantal dubbel | G90: =COUNTIF(E93:E106,"dubbel") -> 0 | AK90: Z661 ZZP 6lg excl.bh incl.db | AY90: H896 Vervoer dagbesteding/dagbehandeling kind extramuraal | AZ90: H896 | BA90: =VLOOKUP(AZ90,'Tarieven ZIN prestaties'!$B$1:$D$110,2,FALSE) ->  | BS90: 503 | BT90: PGB: Rekenmodule voorleggen aan Zorgkantoor | EW90: Z730 ZZP 3zg-auditief excl.bh excl.db | EX90: V730 VPT 3zg-auditief excl.bh excl.db | FC90: D081 DTV 8VV | FD90: 8VV | FE90: 8VVDTV | FF90: =VLOOKUP(FC90,'Tarieven ZIN prestaties'!$A$1:$C$110,3,FALSE) -> 287.44 | FG90: 2012.08
AK91: Z671 ZZP 7lg excl.bh incl.db | AY91: H940 Toeslag kind dagbesteding VG licht | AZ91: H940 | BA91: =VLOOKUP(AZ91,'Tarieven ZIN prestaties'!$B$1:$D$110,2,FALSE) ->  | BS91: 504 | BT91: PGB: Rekenmodule voorleggen aan Zorgkantoor | EW91: Z731 ZZP 3zg-auditief excl.bh incl.db | EX91: V731 VPT 3zg-auditief excl.bh incl.db | FD91: 9VV | FE91: 9VVDTV | FF91: 1 | FG91: 7
AK92: Z632 ZZP 3lg incl.bh excl.db | AY92: H941 Toeslag kind dagbesteding VG midden | AZ92: H941 | BA92: =VLOOKUP(AZ92,'Tarieven ZIN prestaties'!$B$1:$D$110,2,FALSE) ->  | BS92: 505 | BT92: Bedrag PGB controleren bij het Zorgkantoor, daarna ZIN aanvragen | EW92: Z732 ZZP 3zg-auditief incl.bh excl.db | EX92: V732 VPT 3zg-auditief incl.bh excl.db | FD92: 10VV | FE92: 10VVDTV | FF92: 1 | FG92: 7
B93: =IF(AND(B65=0,B52=1),E18,IF(AND(B65=0,B52=0),E18,"geen AGB")) -> geen AGB | C93: 1e | D93: =E18 -> 0 | E93: 1 | F93: =E18 -> 0 | G93: 1 | M93: 1 | AK93: Z642 ZZP 4lg incl.bh excl.db | AY93: H942 Toeslag kind dagbesteding VG5/VG8 midden emg | AZ93: H942 | BA93: =VLOOKUP(AZ93,'Tarieven ZIN prestaties'!$B$1:$D$110,2,FALSE) ->  | BS93: 506 | BT93: PGB: Rekenmodule voorleggen aan Zorgkantoor | EW93: Z733 ZZP 3zg-auditief incl.bh incl.db | EX93: V733 VPT 3zg-auditief incl.bh incl.db | FD93: 1VG | FE93: 1VGDTV | FF93: 1 | FG93: 7
B94: =IF(AND(D64=1,D51=2),"",IF(AND(D51=0,D64=0),"",E19)) ->  | C94: 2e | D94: 0 | E94: =IF(D94<>D93,E93+1,E93) -> 1 | F94: 0 | G94: =IF(E94=2,2,IF($E$95=3,3,IF($E$96=4,4,IF($E$97=5,5,IF($E$98=6,6,IF($E$99=7,7,IF($E$100=8,8,IF($E$101=9,9,IF($E$102=10,10,IF($E$103=11,11,IF($E$104=12,12,IF($E$105=13,13,IF($E$106=14,14,"onwaar"))))))))))))) -> onwaar | M94: 2 | AK94: Z652 ZZP 5lg incl.bh excl.db | AY94: H943 Toeslag kind dagbesteding VG zwaar | AZ94: H943 | BA94: =VLOOKUP(AZ94,'Tarieven ZIN prestaties'!$B$1:$D$110,2,FALSE) ->  | BS94: 507 | BT94: PGB: Rekenmodule voorleggen aan Zorgkantoor | EW94: Z814 ZZP 1zg-visueel excl.db | EX94: V814 VPT 1zg-visueel excl.bh excl.db | FD94: 2VG | FE94: 2VGDTV | FF94: 1 | FG94: 7
C95: 3e | D95: 0 | E95: =IF(AND(D95<>D94,D95<>D93),E94+1,E94) -> 1 | F95: 0 | G95: =IF($E$96=4,4,IF($E$97=5,5,IF($E$98=6,6,IF($E$99=7,7,IF($E$100=8,8,IF($E$101=9,9,IF($E$102=10,10,IF($E$103=11,11,IF($E$104=12,12,IF($E$105=13,13,IF($E$106=14,14,"onwaar"))))))))))) -> onwaar | M95: 3 | AK95: Z662 ZZP 6lg incl.bh excl.db | AY95: H950 Toeslag kind dagbesteding LG licht | AZ95: H950 | BA95: =VLOOKUP(AZ95,'Tarieven ZIN prestaties'!$B$1:$D$110,2,FALSE) ->  | BS95: 508 | BT95: Bedrag PGB controleren bij het Zorgkantoor, daarna ZIN aanvragen | EW95: Z815 ZZP 1zg-visueel incl.db | EX95: V815 VPT 1zg-visueel excl.bh incl.db | FC95: D430 DTV 3VG | FD95: 3VG | FE95: 3VGDTV | FF95: =VLOOKUP(FC95,'Tarieven ZIN prestaties'!$A$1:$C$110,3,FALSE) -> 126.39 | FG95: 884.73
C96: 4e | D96: 0 | E96: =IF(AND(D96<>D95,D96<>D94,D96<>D93),E95+1,E95) -> 1 | F96: 0 | G96: =IF(E96=2,2,IF($E$95=3,3,IF($E$96=4,4,IF($E$97=5,5,IF($E$98=6,6,IF($E$99=7,7,IF($E$100=8,8,IF($E$101=9,9,IF($E$102=10,10,IF($E$103=11,11,IF($E$104=12,12,IF($E$105=13,13,IF($E$106=14,14,"onwaar"))))))))))))) -> onwaar | M96: 4 | AK96: Z672 ZZP 7lg incl.bh excl.db | AY96: H951 Toeslag kind dagbesteding LG midden | AZ96: H951 | BA96: =VLOOKUP(AZ96,'Tarieven ZIN prestaties'!$B$1:$D$110,2,FALSE) ->  | BS96: 509 | BT96: PGB: Rekenmodule voorleggen aan Zorgkantoor | EW96: Z824 ZZP 2zg-visueel excl.db | EX96: V824 VPT 2zg-visueel excl.bh excl.db | FC96: D440 DTV 4VG | FD96: 4VG | FE96: 4VGDTV | FF96: =VLOOKUP(FC96,'Tarieven ZIN prestaties'!$A$1:$C$110,3,FALSE) -> 153.28 | FG96: 1072.96
C97: 5e | D97: 0 | E97: =IF(AND(D97<>D96,D97<>D95,D97<>D94,D97<>D93),E96+1," ") ->  | F97: 0 | G97: onwaar | M97: 5 | AK97: Z633 ZZP 3lg incl.bh incl.db | AY97: H952 Toeslag kind dagbesteding LG zwaar | AZ97: H952 | BA97: =VLOOKUP(AZ97,'Tarieven ZIN prestaties'!$B$1:$D$110,2,FALSE) ->  | BS97: 510 | BT97: PGB: Rekenmodule voorleggen aan Zorgkantoor | EW97: Z825 ZZP 2zg-visueel incl.db | EX97: V825 VPT 2zg-visueel excl.bh incl.db | FC97: D454 DTV 5VG | FD97: 5VG | FE97: 5VGDTV | FF97: =VLOOKUP(FC97,'Tarieven ZIN prestaties'!$A$1:$C$110,3,FALSE) -> 181.82 | FG97: 1272.74
C98: 6e | D98: 0 | E98: =IF(AND(D98<>D97,D98<>D96,D98<>D95,D96<>D94,D96<>D93),E97+1,E97) ->  | F98: 0 | G98: onwaar | M98: 6 | AK98: Z643 ZZP 4lg incl.bh incl.db | AY98: H960 Toeslag kind dagbesteding ZG auditief licht | AZ98: H960 | BA98: =VLOOKUP(AZ98,'Tarieven ZIN prestaties'!$B$1:$D$110,2,FALSE) ->  | BS98: 511 | BT98: PGB: Rekenmodule voorleggen aan Zorgkantoor | EW98: Z830 ZZP 3zg-visueel excl.bh excl.db | EX98: V830 VPT 3zg-visueel excl.bh excl.db | FC98: D460 DTV 6VG | FD98: 6VG | FE98: 6VGDTV | FF98: =VLOOKUP(FC98,'Tarieven ZIN prestaties'!$A$1:$C$110,3,FALSE) -> 158.85 | FG98: 1111.95
C99: 7e | D99: 0 | E99: =IF(AND(D99<>D98,D99<>D97,D99<>D96,D99<>D95,D99<>D94,D99<>D93),E98+1,E98) ->  | F99: 0 | G99: onwaar | M99: 7 | AK99: Z653 ZZP 5lg incl.bh incl.db | AY99: H961 Toeslag kind dagbesteding ZG auditief midden | AZ99: H961 | BA99: =VLOOKUP(AZ99,'Tarieven ZIN prestaties'!$B$1:$D$110,2,FALSE) ->  | BS99: 512 | BT99: PGB: Rekenmodule voorleggen aan Zorgkantoor | EW99: Z832 ZZP 3zg-visueel incl.bh excl.db | EX99: V832 VPT 3zg-visueel incl.bh excl.db | FC99: D470 DTV 7VG | FD99: 7VG | FE99: 7VGDTV | FF99: =VLOOKUP(FC99,'Tarieven ZIN prestaties'!$A$1:$C$110,3,FALSE) -> 194.96 | FG99: 1364.72
C100: 8e | D100: 0 | E100: =IF(AND(D100<>D99,D100<>D98,D100<>D97,D100<>D96,D100<>D95,D100<>D94,D100<>D93),E99+1,E99) ->  | F100: 0 | G100: onwaar | M100: 8 | AK100: Z663 ZZP 6lg incl.bh incl.db | AY100: H962 Toeslag kind dagbesteding ZG auditief zwaar | AZ100: H962 | BA100: =VLOOKUP(AZ100,'Tarieven ZIN prestaties'!$B$1:$D$110,2,FALSE) ->  | BS100: 513 | BT100: PGB: Rekenmodule voorleggen aan Zorgkantoor | EW100: Z831 ZZP 3zg-visueel excl.bh incl.db | EX100: V831 VPT 3zg-visueel excl.bh incl.db | FC100: D480 DTV 8VG | FD100: 8VG | FE100: 8VGDTV | FF100: =VLOOKUP(FC100,'Tarieven ZIN prestaties'!$A$1:$C$110,3,FALSE) -> 216.85 | FG100: 1517.95
C101: 9e | D101: 0 | E101: =IF(AND(D101<>D100,D101<>D99,D101<>D98,D101<>D97,D101<>D96,D101<>D95,D101<>D94,D101<>D93),E100+1,E100) ->  | F101: 0 | G101: onwaar | M101: 9 | AK101: Z673 ZZP 7lg incl.bh incl.db | AY101: H970 Toeslag kind dagbesteding ZG visueel licht | AZ101: H970 | BA101: =VLOOKUP(AZ101,'Tarieven ZIN prestaties'!$B$1:$D$110,2,FALSE) ->  | BS101: 514 | BT101: PGB: Rekenmodule voorleggen aan Zorgkantoor | EW101: Z833 ZZP 3zg-visueel incl.bh incl.db | EX101: V833 VPT 3zg-visueel incl.bh incl.db | FD101: 1LVG | FE101: 1LVGDTV | FF101: 1 | FG101: 7
C102: 10e | D102: 0 | E102: =IF(AND(D102<>D101,D102<>D100,D102<>D99,D102<>D98,D102<>D97,D102<>D96,D102<>D95,D102<>D94,D102<>D93),E101+1,E101) ->  | F102: 0 | G102: onwaar | M102: 10 | AK102: Z710 ZZP 1zg-auditief excl.bh excl.db | AY102: H971 Toeslag kind dagbesteding ZG visueel midden | AZ102: H971 | BA102: =VLOOKUP(AZ102,'Tarieven ZIN prestaties'!$B$1:$D$110,2,FALSE) ->  | BS102: 515 | BT102: PGB: Rekenmodule voorleggen aan Zorgkantoor | EW102: Z840 ZZP 4zg-visueel excl.bh excl.db | EX102: V840 VPT 4zg-visueel excl.bh excl.db | FD102: 2LVG | FE102: 2LVGDTV | FF102: 1 | FG102: 7
C103: 11e | D103: 0 | F103: 0 | G103: onwaar | M103: 11 | AK103: Z720 ZZP 2zg-auditief excl.bh excl.db | AY103: H972 Toeslag kind dagbesteding ZG visueel zwaar | AZ103: H972 | BA103: =VLOOKUP(AZ103,'Tarieven ZIN prestaties'!$B$1:$D$110,2,FALSE) ->  | BS103: 516 | BT103: PGB: Rekenmodule voorleggen aan Zorgkantoor | EW103: Z841 ZZP 4zg-visueel excl.bh incl.db | EX103: V841 VPT 4zg-visueel excl.bh incl.db | FD103: 3LVG | FE103: 3LVGDTV | FF103: 1 | FG103: 7
C104: 12e | D104: 0 | F104: 0 | G104: onwaar | M104: 12 | AK104: Z730 ZZP 3zg-auditief excl.bh excl.db | AY104: H974 Vervoer dagbesteding GHZ intramuraal | AZ104: H974 | BA104: =VLOOKUP(AZ104,'Tarieven ZIN prestaties'!$B$1:$D$110,2,FALSE) ->  | BS104: 580 | BT104: PGB: Rekenmodule voorleggen aan Zorgkantoor | EW104: Z842 ZZP 4zg-visueel incl.bh excl.db | EX104: V842 VPT 4zg-visueel incl.bh excl.db | FD104: 4LVG | FE104: 4LVGDTV | FF104: 1 | FG104: 7
C105: 13e | D105: 0 | F105: 0 | G105: onwaar | M105: 13 | AK105: Z740 ZZP 4zg-auditief excl.bh excl.db | AY105: H975 Vervoer dagbesteding GHZ rolstoel intramuraal | AZ105: H975 | BA105: =VLOOKUP(AZ105,'Tarieven ZIN prestaties'!$B$1:$D$110,2,FALSE) ->  | BS105: 584 | BT105: PGB: Rekenmodule voorleggen aan Zorgkantoor | EW105: Z843 ZZP 4zg-visueel incl.bh incl.db | EX105: V843 VPT 4zg-visueel incl.bh incl.db | FD105: 5LVG | FE105: 5LVGDTV | FF105: 1 | FG105: 7
C106: 14e | D106: 0 | F106: 0 | G106: onwaar | M106: 14 | AK106: Z711 ZZP 1zg-auditief excl.bh incl.db | AY106: D031 DTV 3VV | AZ106: D031 | BA106: =VLOOKUP(AZ106,'Tarieven ZIN prestaties'!$B$1:$D$110,2,FALSE) -> 159.63 | BS106: 585 | BT106: PGB: Rekenmodule voorleggen aan Zorgkantoor | EW106: Z850 ZZP 5zg-visueel excl.bh excl.db | EX106: V850 VPT 5zg-visueel excl.bh excl.db | FD106: 1SGLVG | FE106: 1SGLVGDTV | FF106: 1 | FG106: 7
AK107: Z721 ZZP 2zg-auditief excl.bh incl.db | AY107: D041 DTV 4VV | AZ107: D041 | BA107: =VLOOKUP(AZ107,'Tarieven ZIN prestaties'!$B$1:$D$110,2,FALSE) -> 166.47 | BR107: 1 | BS107: =BR107+1000 -> 1001 | BT107: Zorg aanvragen via iWLZ, geen extra toestemming vereist | EW107: Z851 ZZP 5zg-visueel excl.bh incl.db | EX107: V851 VPT 5zg-visueel excl.bh incl.db | FD107: 1LG | FE107: 1LGDTV | FF107: 1 | FG107: 7
AK108: Z731 ZZP 3zg-auditief excl.bh incl.db | AY108: D051 DTV 5VV | AZ108: D051 | BA108: =VLOOKUP(AZ108,'Tarieven ZIN prestaties'!$B$1:$D$110,2,FALSE) -> 216.46 | BR108: 2 | BS108: =BR108+1000 -> 1002 | BT108: Rekenmodule voorleggen aan Zorgkantoor | EW108: Z852 ZZP 5zg-visueel incl.bh excl.db | EX108: V852 VPT 5zg-visueel incl.bh excl.db | FC108: D624 DTV 2LG | FD108: 2LG | FE108: 2LGDTV | FF108: =VLOOKUP(FC108,'Tarieven ZIN prestaties'!$A$1:$C$110,3,FALSE) -> 148.95 | FG108: 1042.65
D109: =IF(M15>I33,I33-M15,0) -> 0 | AK109: Z741 ZZP 4zg-auditief excl.bh incl.db | AY109: D061 DTV 6VV | AZ109: D061 | BA109: =VLOOKUP(AZ109,'Tarieven ZIN prestaties'!$B$1:$D$110,2,FALSE) -> 216.72 | BR109: 3 | BS109: 1003 | BT109: Rekenmodule voorleggen aan Zorgkantoor | EW109: Z853 ZZP 5zg-visueel incl.bh incl.db | EX109: V853 VPT 5zg-visueel incl.bh incl.db | FD109: 3LG | FE109: 3LGDTV | FF109: 1 | FG109: 7
D110: =IF(AND(M15>0,Q24="extra budget voor behandeling"),1,0) -> 0 | AK110: Z712 ZZP 1zg-auditief incl.bh excl.db | AY110: D071 DTV 7VV | AZ110: D071 | BA110: =VLOOKUP(AZ110,'Tarieven ZIN prestaties'!$B$1:$D$110,2,FALSE) -> 249.87 | BR110: 4 | BS110: 1004 | BT110: Rekenmodule voorleggen aan Zorgkantoor | EW110: H900 Dagbesteding vg licht (vg1-vg4) | FC110: D640 DTV 4LG | FD110: 4LG | FE110: 4LGDTV | FF110: =VLOOKUP(FC110,'Tarieven ZIN prestaties'!$A$1:$C$110,3,FALSE) -> 177.37 | FG110: 1241.59
B111: Totaal ingezette zorg | D111: =SUM(I32:I34)-I33 -> 0 | G111: zorg | AK111: Z722 ZZP 2zg-auditief incl.bh excl.db | AY111: D081 DTV 8VV | AZ111: D081 | BA111: =VLOOKUP(AZ111,'Tarieven ZIN prestaties'!$B$1:$D$110,2,FALSE) -> 287.44 | BR111: 5 | BS111: 1005 | BT111: Zorg aanvragen via iWLZ, geen extra toestemming vereist | EW111: H903 Dagbesteding vg midden (vg5) | FC111: D650 DTV 5LG | FD111: 5LG | FE111: 5LGDTV | FF111: =VLOOKUP(FC111,'Tarieven ZIN prestaties'!$A$1:$C$110,3,FALSE) -> 174.69 | FG111: 1222.83
B112: Totale ruimte | D112: =IF(I33<M15,M10+T26-I33+I42+I39,M10+T26+FS8+I42+I39) ->  | E112: =D112 ->  | G112: ruimte | AK112: Z732 ZZP 3zg-auditief incl.bh excl.db | AY112: D430 DTV 3VG | AZ112: D430 | BA112: =VLOOKUP(AZ112,'Tarieven ZIN prestaties'!$B$1:$D$110,2,FALSE) -> 126.39 | BR112: 6 | BS112: 1006 | BT112: Rekenmodule voorleggen aan Zorgkantoor | EW112: H904 Dagbesteding vg midden (vg6) | FC112: D660 DTV 6LG | FD112: 6LG | FE112: 6LGDTV | FF112: =VLOOKUP(FC112,'Tarieven ZIN prestaties'!$A$1:$C$110,3,FALSE) -> 248.29 | FG112: 1738.03
D113: =IF(AND(FS8>0,D122=0),0,D118) ->  | E113: =IF(D113>0,"Restant","Overschrijding") ->  | AK113: Z742 ZZP 4zg-auditief incl.bh excl.db | AY113: D440 DTV 4VG | AZ113: D440 | BA113: =VLOOKUP(AZ113,'Tarieven ZIN prestaties'!$B$1:$D$110,2,FALSE) -> 153.28 | BR113: 7 | BS113: 1007 | BT113: Rekenmodule voorleggen aan Zorgkantoor | EW113: H906 Dagbesteding vg zwaar (vg8) | FC113: D670 DTV 7LG | FD113: 7LG | FE113: 7LGDTV | FF113: =VLOOKUP(FC113,'Tarieven ZIN prestaties'!$A$1:$C$110,3,FALSE) -> 268.36 | FG113: 1878.52
E114: =IF(AND(D113=0,FS8>0),0,IF(E113="overschrijding",D111-E112,D113)) ->  | AK114: Z713 ZZP 1zg-auditief incl.bh incl.db | AY114: D454 DTV 5VG | AZ114: D454 | BA114: =VLOOKUP(AZ114,'Tarieven ZIN prestaties'!$B$1:$D$110,2,FALSE) -> 181.82 | BR114: 8 | BS114: 1008 | BT114: Zorg aanvragen via iWLZ, geen extra toestemming vereist | EW114: H902 Dagbesteding vg zwaar (vg7) | FC114: D710 DTV ZGaud1 | FD114: 1ZGAUD | FE114: 1ZGAUDDTV | FF114: =VLOOKUP(FC114,'Tarieven ZIN prestaties'!$A$1:$C$110,3,FALSE) -> 165.8 | FG114: 1160.6
AK115: Z723 ZZP 2zg-auditief incl.bh incl.db | AY115: D460 DTV 6VG | AZ115: D460 | BA115: =VLOOKUP(AZ115,'Tarieven ZIN prestaties'!$B$1:$D$110,2,FALSE) -> 158.85 | BR115: 0 | BS115: 1000 | BT115: Rekenmodule voorleggen aan Zorgkantoor | EW115: H910 Dagbesteding lg licht (lg7) | FC115: D740 DTV Zgaud4 | FD115: 4ZGAUD | FE115: 4ZGAUDDTV | FF115: =VLOOKUP(FC115,'Tarieven ZIN prestaties'!$A$1:$C$110,3,FALSE) -> 199.03 | FG115: 1393.21
AK116: Z733 ZZP 3zg-auditief incl.bh incl.db | AY116: D470 DTV 7VG | AZ116: D470 | BA116: =VLOOKUP(AZ116,'Tarieven ZIN prestaties'!$B$1:$D$110,2,FALSE) -> 194.96 | BR116: 13 | BS116: 1013 | EW116: H913 Dagbesteding lg midden (lg2 en lg4) | FC116: D720 DTV ZGaud2 | FD116: 2ZGAUD | FE116: 2ZGAUDDTV | FF116: =VLOOKUP(FC116,'Tarieven ZIN prestaties'!$A$1:$C$110,3,FALSE) -> 306.66 | FG116: 2146.62
AK117: Z743 ZZP 4zg-auditief incl.bh incl.db | AY117: D480 DTV 8VG | AZ117: D480 | BA117: =VLOOKUP(AZ117,'Tarieven ZIN prestaties'!$B$1:$D$110,2,FALSE) -> 216.85 | BR117: 85 | BS117: 1085 | BT117: Rekenmodule voorleggen aan Zorgkantoor | EW117: H914 Dagbesteding lg midden (lg6) | FC117: D730 DTV ZGaud3 | FD117: 3ZGAUD | FE117: 3ZGAUDDTV | FF117: =VLOOKUP(FC117,'Tarieven ZIN prestaties'!$A$1:$C$110,3,FALSE) -> 345.09 | FG117: 2415.63
D118: =$E$112-$D$111 ->  | AK118: Z814 ZZP 1zg-visueel excl.db | AY118: D624 DTV 2LG | AZ118: D624 | BA118: =VLOOKUP(AZ118,'Tarieven ZIN prestaties'!$B$1:$D$110,2,FALSE) -> 148.95 | BR118: 84 | BS118: 1084 | BT118: Rekenmodule voorleggen aan Zorgkantoor | EW118: H915 Dagbesteding lg zwaar (lg1 en lg3) | FC118: D814 DTV ZGvis1 | FD118: 1ZGVIS | FE118: 1ZGVISDTV | FF118: =VLOOKUP(FC118,'Tarieven ZIN prestaties'!$A$1:$C$110,3,FALSE) -> 106.52 | FG118: 745.64
AK119: Z824 ZZP 2zg-visueel excl.db | AY119: D640 DTV 4LG | AZ119: D640 | BA119: =VLOOKUP(AZ119,'Tarieven ZIN prestaties'!$B$1:$D$110,2,FALSE) -> 177.37 | BR119: 83 | BS119: 1083 | BT119: Rekenmodule voorleggen aan Zorgkantoor | EW119: H916 Dagbesteding lg zwaar (lg5) | FC119: D824 DTV ZGvis2 | FD119: 2ZGVIS | FE119: 2ZGVISDTV | FF119: =VLOOKUP(FC119,'Tarieven ZIN prestaties'!$A$1:$C$110,3,FALSE) -> 144.35 | FG119: 1010.45
AK120: Z815 ZZP 1zg-visueel incl.db | AY120: D650 DTV 5LG | AZ120: D650 | BA120: =VLOOKUP(AZ120,'Tarieven ZIN prestaties'!$B$1:$D$110,2,FALSE) -> 174.69 | BR120: 80 | BS120: 1080 | BT120: Rekenmodule voorleggen aan Zorgkantoor | EW120: H920 Dagbesteding zg aud licht (zg aud1 en zg aud4) | FC120: D830 DTV ZGvis3 | FD120: 3ZGVIS | FE120: 3ZGVISDTV | FF120: =VLOOKUP(FC120,'Tarieven ZIN prestaties'!$A$1:$C$110,3,FALSE) -> 170.26 | FG120: 1191.82
D121: =D118-FS8 ->  | AK121: Z825 ZZP 2zg-visueel incl.db | AY121: D660 DTV 6LG | AZ121: D660 | BA121: =VLOOKUP(AZ121,'Tarieven ZIN prestaties'!$B$1:$D$110,2,FALSE) -> 248.29 | BR121: 88 | BS121: 1088 | BT121: Zorg aanvragen via iWLZ, geen extra toestemming vereist | EW121: H921 Dagbesteding zg aud midden (zg aud2) | FC121: D840 DTV ZGvis4 | FD121: 4ZGVIS | FE121: 4ZGVISDTV | FF121: =VLOOKUP(FC121,'Tarieven ZIN prestaties'!$A$1:$C$110,3,FALSE) -> 208.86 | FG121: 1462.02
D122: =IF(OR(D121>2,D121<2),1,0) ->  | AK122: Z830 ZZP 3zg-visueel excl.bh excl.db | AY122: D670 DTV 7LG | AZ122: D670 | BA122: =VLOOKUP(AZ122,'Tarieven ZIN prestaties'!$B$1:$D$110,2,FALSE) -> 268.36 | BR122: 101 | BS122: 1101 | BT122: Eerst zorgvraag invullen | EW122: H922 Dagbesteding zg aud zwaar (zg aud3) | FC122: D850 DTV ZGvis5 | FD122: 5ZGVIS | FE122: 5ZGVISDTV | FF122: =VLOOKUP(FC122,'Tarieven ZIN prestaties'!$A$1:$C$110,3,FALSE) -> 231.99 | FG122: 1623.93
AK123: Z840 ZZP 4zg-visueel excl.bh excl.db | AY123: D710 DTV ZGaud1 | AZ123: D710 | BA123: =VLOOKUP(AZ123,'Tarieven ZIN prestaties'!$B$1:$D$110,2,FALSE) -> 165.8 | BR123: 102 | BS123: 1102 | BT123: Eerst zorgvraag invullen | EW123: H930 Dagbesteding zg vis licht (zg vis2 en zg vis3)
AK124: Z850 ZZP 5zg-visueel excl.bh excl.db | AY124: D720 DTV ZGaud2 | AZ124: D720 | BA124: =VLOOKUP(AZ124,'Tarieven ZIN prestaties'!$B$1:$D$110,2,FALSE) -> 306.66 | EW124: H931 Dagbesteding zg vis midden (zg vis1)
B125: Ruimte | AK125: Z831 ZZP 3zg-visueel excl.bh incl.db | AY125: D730 DTV ZGaud3 | AZ125: D730 | BA125: =VLOOKUP(AZ125,'Tarieven ZIN prestaties'!$B$1:$D$110,2,FALSE) -> 345.09 | BR125: 103 | BS125: 1103 | BT125: Eerst zorgvraag invullen | EW125: H933 Dagbesteding zg vis zwaar (zg vis4)
B126: Ruimte ZZP | D126: =$M$6 -> 0 | AK126: Z841 ZZP 4zg-visueel excl.bh incl.db | AY126: D740 DTV Zgaud4 | AZ126: D740 | BA126: =VLOOKUP(AZ126,'Tarieven ZIN prestaties'!$B$1:$D$110,2,FALSE) -> 199.03 | BR126: 104 | BS126: 1104 | BT126: Eerst zorgvraag invullen | EW126: H934 Dagbesteding zg vis zwaar (zg vis5)
B127: Ruimte EKT | D127: =$FS$8 -> 0 | F127: Ruimte minus uitgegeven | AK127: Z851 ZZP 5zg-visueel excl.bh incl.db | AY127: D814 DTV ZGvis1 | AZ127: D814 | BA127: =VLOOKUP(AZ127,'Tarieven ZIN prestaties'!$B$1:$D$110,2,FALSE) -> 106.52 | BR127: 105 | BS127: 1105 | BT127: Eerst zorgvraag invullen
B128: Ruimte behandeling | D128: =IF(E141="ja",$M$15,D133) -> 0 | F128: =D129-D135 -> 0 | AK128: Z832 ZZP 3zg-visueel incl.bh excl.db | AY128: D824 DTV ZGvis2 | AZ128: D824 | BA128: =VLOOKUP(AZ128,'Tarieven ZIN prestaties'!$B$1:$D$110,2,FALSE) -> 144.35 | BR128: 106 | BS128: 1106 | BT128: Eerst zorgvraag invullen
B129: Totaal ruimte | D129: =SUM($D$126:$D$128) -> 0 | AK129: Z842 ZZP 4zg-visueel incl.bh excl.db | AY129: D830 DTV ZGvis3 | AZ129: D830 | BA129: =VLOOKUP(AZ129,'Tarieven ZIN prestaties'!$B$1:$D$110,2,FALSE) -> 170.26 | BR129: 107 | BS129: 1107 | BT129: Eerst zorgvraag invullen
F130: Uitgegeven minus ruimte | AK130: Z852 ZZP 5zg-visueel incl.bh excl.db | AY130: D840 DTV ZGvis4 | AZ130: D840 | BA130: =VLOOKUP(AZ130,'Tarieven ZIN prestaties'!$B$1:$D$110,2,FALSE) -> 208.86 | BR130: 108 | BS130: 1108 | BT130: Eerst zorgvraag invullen
B131: Uitgegeven | F131: =D135-D129 -> 0 | AK131: Z833 ZZP 3zg-visueel incl.bh incl.db | AY131: D850 DTV ZGvis5 | AZ131: D850 | BA131: =VLOOKUP(AZ131,'Tarieven ZIN prestaties'!$B$1:$D$110,2,FALSE) -> 231.99 | BR131: 109 | BS131: 1109 | BT131: Eerst zorgvraag invullen
B132: ZIN EXCL BH | D132: =$I$32 -> 0 | AK132: Z843 ZZP 4zg-visueel incl.bh incl.db | AY132: H976 Vervoer dagbesteding kind intramuraal | AZ132: H976 | BA132: =VLOOKUP(AZ132,'Tarieven ZIN prestaties'!$B$1:$D$110,2,FALSE) ->  | BR132: 600 | BS132: 1600 | BT132: PGB: Rekenmodule voorleggen aan Zorgkantoor
B133: ZIN BH | D133: =$I$33 -> 0 | AK133: Z853 ZZP 5zg-visueel incl.bh incl.db | AY133: Z1000 Logeren GHZ-LG | AZ133: Z1000 | BA133: =VLOOKUP(AZ133,'Tarieven ZIN prestaties'!$B$1:$D$110,2,FALSE) -> 277.5053859 | BR133: 601 | BS133: 1601 | BT133: PGB: Rekenmodule voorleggen aan Zorgkantoor
B134: PGB | D134: =$M$8 -> 0 | AY134: Z1001 Logeren GHZ-LVG | AZ134: Z1001 | BA134: =VLOOKUP(AZ134,'Tarieven ZIN prestaties'!$B$1:$D$110,2,FALSE) -> 268.7953859 | BR134: 602 | BS134: 1602 | BT134: PGB: Rekenmodule voorleggen aan Zorgkantoor
B135: Totaal uitgegeven | D135: =SUM($D$132:$D$134) -> 0 | AY135: Z1002 Logeren GHZ-ZG | AZ135: Z1002 | BA135: =VLOOKUP(AZ135,'Tarieven ZIN prestaties'!$B$1:$D$110,2,FALSE) -> 390.8555999 | BR135: 603 | BS135: 1603 | BT135: PGB: Rekenmodule voorleggen aan Zorgkantoor
AY136: Z1003 Logeren VV | AZ136: Z1003 | BA136: =VLOOKUP(AZ136,'Tarieven ZIN prestaties'!$B$1:$D$110,2,FALSE) -> 219.1837924 | BR136: 604 | BS136: 1604 | BT136: PGB: Rekenmodule voorleggen aan Zorgkantoor
B137: =IF(D129-D135<0,"Overschrijding","Restant") -> Restant | D137: =IF($B$137="overschrijding",$F$131,$F$128) -> 0 | AY137: Z999 Logeren GHZ-VG | AZ137: Z999 | BA137: =VLOOKUP(AZ137,'Tarieven ZIN prestaties'!$B$1:$D$110,2,FALSE) -> 242.5053859 | BR137: 605 | BS137: 1605 | BT137: Bedrag PGB controleren bij het Zorgkantoor, daarna ZIN aanvragen
AY138: V015 VPT 1vv excl.bh incl.db | AZ138: V015 | BA138: =VLOOKUP(AZ138,'Tarieven VPT'!$B$6:I178,8,FALSE) -> 72.23 | BR138: 606 | BS138: 1606 | BT138: PGB: Rekenmodule voorleggen aan Zorgkantoor
B139: Indien B137 "restant" is, geldt de regel dat de ruimte voor behandeling alleen voor behandeling ingezet wordt. Dus wordt de rekenmethode anders | AY139: V025 VPT 2vv excl.bh incl.db | AZ139: V025 | BA139: =VLOOKUP(AZ139,'Tarieven VPT'!$B$6:I179,8,FALSE) -> 95.63 | BR139: 607 | BS139: 1607 | BT139: PGB: Rekenmodule voorleggen aan Zorgkantoor
AY140: V031 VPT 3vv excl.bh incl.db | AZ140: V031 | BA140: =VLOOKUP(AZ140,'Tarieven VPT'!$B$6:I180,8,FALSE) -> 126.62 | BR140: 608 | BS140: 1608 | BT140: PGB: Rekenmodule voorleggen aan Zorgkantoor
B141: Is behandeling-INZET meer dan de ruimte? | E141: =IF(D127-D133<0,"ja","nee") -> nee | AY141: V041 VPT 4vv excl.bh incl.db | AZ141: V041 | BA141: =VLOOKUP(AZ141,'Tarieven VPT'!$B$6:I181,8,FALSE) -> 104.32 | BR141: 609 | BS141: 1609 | BT141: PGB: Rekenmodule voorleggen aan Zorgkantoor
B142: Is er sprake EKT? | E142: =IF(D127>0,"ja","nee") -> nee | AY142: V051 VPT 5vv excl.bh incl.db | AZ142: V051 | BA142: =VLOOKUP(AZ142,'Tarieven VPT'!$B$6:I182,8,FALSE) -> 206.15 | BR142: 610 | BS142: 1610 | BT142: PGB: Rekenmodule voorleggen aan Zorgkantoor
AY143: V061 VPT 6vv excl.bh incl.db | AZ143: V061 | BA143: =VLOOKUP(AZ143,'Tarieven VPT'!$B$6:I183,8,FALSE) -> 182.62 | BB143: 31.96 | BR143: 611 | BS143: 1611 | BT143: PGB: Rekenmodule voorleggen aan Zorgkantoor
AY144: V071 VPT 7vv excl.bh incl.db | AZ144: V071 | BA144: =VLOOKUP(AZ144,'Tarieven VPT'!$B$6:I184,8,FALSE) -> 251.48 | BB144: 34.37 | BR144: 612 | BS144: 1612 | BT144: PGB: Rekenmodule voorleggen aan Zorgkantoor
AY145: V081 VPT 8vv excl.bh incl.db | AZ145: V081 | BA145: =VLOOKUP(AZ145,'Tarieven VPT'!$B$6:I185,8,FALSE) -> 332.33 | BB145: 28.7 | BR145: 613 | BS145: 1613 | BT145: PGB: Rekenmodule voorleggen aan Zorgkantoor
B146: Ruimte | AY146: V095 VPT 9bvv excl.bh incl.db | AZ146: V095 | BA146: =VLOOKUP(AZ146,'Tarieven VPT'!$B$6:I186,8,FALSE) -> 179.8 | BR146: 614 | BS146: 1614 | BT146: PGB: Rekenmodule voorleggen aan Zorgkantoor
B147: Ruimte ZZP | D147: =$M$6 -> 0 | AY147: V101 VPT 10vv excl.bh incl.db | AZ147: V101 | BA147: =VLOOKUP(AZ147,'Tarieven VPT'!$B$6:I187,8,FALSE) -> 398.44 | BB147: 222.74 | BR147: 615 | BS147: 1615 | BT147: PGB: Rekenmodule voorleggen aan Zorgkantoor
B148: Ruimte EKT | D148: =$FS$8 -> 0 | AY148: V033 VPT 3vv incl.bh incl.db | AZ148: V033 | BA148: =VLOOKUP(AZ148,'Tarieven VPT'!$B$6:I188,8,FALSE) -> 148.89 | BB148: 254.89 | BR148: 616 | BS148: 1616 | BT148: PGB: Rekenmodule voorleggen aan Zorgkantoor
B149: Ruimte behandeling | D149: =IF(E141="nee",D133,D128) -> 0 | AY149: V043 VPT 4vv incl.bh incl.db | AZ149: V043 | BA149: =VLOOKUP(AZ149,'Tarieven VPT'!$B$6:I189,8,FALSE) -> 115.46 | BB149: 246.48 | BR149: 617 | BS149: 1617 | BT149: PGB: Rekenmodule voorleggen aan Zorgkantoor
B150: Totaal ruimte | D150: =SUM(D147:D149) -> 0 | AY150: V053 VPT 5vv incl.bh incl.db | AZ150: V053 | BA150: =VLOOKUP(AZ150,'Tarieven VPT'!$B$6:I190,8,FALSE) -> 219.93 | BR150: 618 | BS150: 1618 | BT150: PGB: Rekenmodule voorleggen aan Zorgkantoor
AY151: V063 VPT 6vv incl.bh incl.db | AZ151: V063 | BA151: =VLOOKUP(AZ151,'Tarieven VPT'!$B$6:I191,8,FALSE) -> 197.54 | BR151: 619 | BS151: 1619 | BT151: PGB: Rekenmodule voorleggen aan Zorgkantoor
B152: Uitgegeven | AY152: V073 VPT 7vv incl.bh incl.db | AZ152: V073 | BA152: =VLOOKUP(AZ152,'Tarieven VPT'!$B$6:I192,8,FALSE) -> 269.98 | BR152: 620 | BS152: 1620 | BT152: PGB: Rekenmodule voorleggen aan Zorgkantoor
B153: ZIN EXCL BH | D153: =$I$32 -> 0 | AY153: V083 VPT 8vv incl.bh incl.db | AZ153: V083 | BA153: =VLOOKUP(AZ153,'Tarieven VPT'!$B$6:I193,8,FALSE) -> 346.39 | BR153: 621 | BS153: 1621 | BT153: PGB: Rekenmodule voorleggen aan Zorgkantoor
B154: ZIN BH | D154: =$I$33 -> 0 | AY154: V097 VPT 9bvv incl.bhincl.db | AZ154: V097 | BA154: =VLOOKUP(AZ154,'Tarieven VPT'!$B$6:I194,8,FALSE) -> 238.44 | BR154: 622 | BS154: 1622 | BT154: PGB: Rekenmodule voorleggen aan Zorgkantoor
B155: PGB | D155: =$M$8 -> 0 | AY155: V103 VPT 10vv incl.bhincl.db | AZ155: V103 | BA155: =VLOOKUP(AZ155,'Tarieven VPT'!$B$6:I195,8,FALSE) -> 392.85 | BR155: 623 | BS155: 1623 | BT155: PGB: Rekenmodule voorleggen aan Zorgkantoor
B156: Totaal uitgegeven | D156: =SUM(D153:D155) -> 0 | AY156: V414 VPT 1vg excl.bh excl.db | AZ156: V414 | BA156: =VLOOKUP(AZ156,'Tarieven VPT'!$B$6:I196,8,FALSE) -> 56.02 | BR156: 624 | BS156: 1624 | BT156: PGB: Rekenmodule voorleggen aan Zorgkantoor
AY157: V424 VPT 2vg excl.bh excl.db | AZ157: V424 | BA157: =VLOOKUP(AZ157,'Tarieven VPT'!$B$6:I197,8,FALSE) -> 68.79 | BR157: 625 | BS157: 1625 | BT157: PGB: Rekenmodule voorleggen aan Zorgkantoor
B158: =IF(D150-D156<0,"Overschrijding","Restant") -> Restant | D158: =IF((D147-D156)<0,0,E158) -> 0 | E158: =IF($B$137="overschrijding",$F$131,$F$128) -> 0 | AY158: V415 VPT 1vg excl.bh incl.db | AZ158: V415 | BA158: =VLOOKUP(AZ158,'Tarieven VPT'!$B$6:I198,8,FALSE) -> 98.27 | BR158: 626 | BS158: 1626 | BT158: PGB: Rekenmodule voorleggen aan Zorgkantoor
AY159: V425 VPT 2vg excl.bh incl.db | AZ159: V425 | BA159: =VLOOKUP(AZ159,'Tarieven VPT'!$B$6:I199,8,FALSE) -> 109.79 | BR159: 627 | BS159: 1627 | BT159: PGB: Rekenmodule voorleggen aan Zorgkantoor
AY160: V430 VPT 3vg excl.bh excl.db | AZ160: V430 | BA160: =VLOOKUP(AZ160,'Tarieven VPT'!$B$6:I200,8,FALSE) -> 94.95 | BR160: 628 | BS160: 1628 | BT160: PGB: Rekenmodule voorleggen aan Zorgkantoor
AY161: V440 VPT 4vg excl.bh excl.db | AZ161: V440 | BA161: =VLOOKUP(AZ161,'Tarieven VPT'!$B$6:I201,8,FALSE) -> 116.22 | BR161: 629 | BS161: 1629 | BT161: PGB: Rekenmodule voorleggen aan Zorgkantoor
AY162: V454 VPT 5vg excl.bh excl.db | AZ162: V454 | BA162: =VLOOKUP(AZ162,'Tarieven VPT'!$B$6:I202,8,FALSE) -> 155.47 | BR162: 630 | BS162: 1630 | BT162: PGB: Rekenmodule voorleggen aan Zorgkantoor
AY163: V460 VPT 6vg excl.bh excl.db | AZ163: V460 | BA163: =VLOOKUP(AZ163,'Tarieven VPT'!$B$6:I203,8,FALSE) -> 121.13 | BR163: 631 | BS163: 1631 | BT163: PGB: Rekenmodule voorleggen aan Zorgkantoor
AY164: V470 VPT 7vg excl.bh excl.db | AZ164: V470 | BA164: =VLOOKUP(AZ164,'Tarieven VPT'!$B$6:I204,8,FALSE) -> 168.85 | BR164: 632 | BS164: 1632 | BT164: PGB: Rekenmodule voorleggen aan Zorgkantoor
AY165: V480 VPT 8vg excl.bh excl.db | AZ165: V480 | BA165: =VLOOKUP(AZ165,'Tarieven VPT'!$B$6:I205,8,FALSE) -> 183.23 | BR165: 633 | BS165: 1633 | BT165: PGB: Rekenmodule voorleggen aan Zorgkantoor
AY166: V431 VPT 3vg excl.bh incl.db | AZ166: V431 | BA166: =VLOOKUP(AZ166,'Tarieven VPT'!$B$6:I206,8,FALSE) -> 133.97 | BR166: 634 | BS166: 1634 | BT166: PGB: Rekenmodule voorleggen aan Zorgkantoor
AY167: V441 VPT 4vg excl.bh incl.db | AZ167: V441 | BA167: =VLOOKUP(AZ167,'Tarieven VPT'!$B$6:I207,8,FALSE) -> 154.39 | BR167: 635 | BS167: 1635 | BT167: PGB: Rekenmodule voorleggen aan Zorgkantoor
AY168: V455 VPT 5vg excl.bh incl.db | AZ168: V455 | BA168: =VLOOKUP(AZ168,'Tarieven VPT'!$B$6:I208,8,FALSE) -> 214.7 | BR168: 636 | BS168: 1636 | BT168: PGB: Rekenmodule voorleggen aan Zorgkantoor
AY169: V461 VPT 6vg excl.bh incl.db | AZ169: V461 | BA169: =VLOOKUP(AZ169,'Tarieven VPT'!$B$6:I209,8,FALSE) -> 178.83 | BR169: 637 | BS169: 1637 | BT169: PGB: Rekenmodule voorleggen aan Zorgkantoor
AY170: V471 VPT 7vg excl.bh incl.db | AZ170: V471 | BA170: =VLOOKUP(AZ170,'Tarieven VPT'!$B$6:I210,8,FALSE) -> 234.98 | BR170: 638 | BS170: 1638 | BT170: PGB: Rekenmodule voorleggen aan Zorgkantoor
AY171: V481 VPT 8vg excl.bh incl.db | AZ171: V481 | BA171: =VLOOKUP(AZ171,'Tarieven VPT'!$B$6:I211,8,FALSE) -> 264.48 | BR171: 639 | BS171: 1639 | BT171: PGB: Rekenmodule voorleggen aan Zorgkantoor
AY172: V432 VPT 3vg incl.bh excl.db | AZ172: V432 | BA172: =VLOOKUP(AZ172,'Tarieven VPT'!$B$6:I212,8,FALSE) -> 117.51 | BR172: 500 | BS172: =BR172+1000 -> 1500 | BT172: PGB: Rekenmodule voorleggen aan Zorgkantoor
AY173: V442 VPT 4vg incl.bh excl.db | AZ173: V442 | BA173: =VLOOKUP(AZ173,'Tarieven VPT'!$B$6:I213,8,FALSE) -> 154.85 | BR173: 501 | BS173: 1501 | BT173: Bedrag PGB controleren bij het Zorgkantoor, daarna ZIN aanvragen
AY174: V456 VPT 5vg incl.bh excl.db | AZ174: V456 | BA174: =VLOOKUP(AZ174,'Tarieven VPT'!$B$6:I214,8,FALSE) -> 187.74 | BR174: 502 | BS174: 1502 | BT174: PGB: Rekenmodule voorleggen aan Zorgkantoor
AY175: V462 VPT 6vg incl.bh excl.db | AZ175: V462 | BA175: =VLOOKUP(AZ175,'Tarieven VPT'!$B$6:I215,8,FALSE) -> 164.04 | BR175: 503 | BS175: 1503 | BT175: PGB: Rekenmodule voorleggen aan Zorgkantoor
AY176: V472 VPT 7vg incl.bh excl.db | AZ176: V472 | BA176: =VLOOKUP(AZ176,'Tarieven VPT'!$B$6:I216,8,FALSE) -> 243.56 | BR176: 504 | BS176: 1504 | BT176: PGB: Rekenmodule voorleggen aan Zorgkantoor
AY177: V482 VPT 8vg incl.bh excl.db | AZ177: V482 | BA177: =VLOOKUP(AZ177,'Tarieven VPT'!$B$6:I217,8,FALSE) -> 227.75 | BR177: 505 | BS177: 1505 | BT177: Bedrag PGB controleren bij het Zorgkantoor, daarna ZIN aanvragen
AY178: V433 VPT 3vg incl.bh incl.db | AZ178: V433 | BA178: =VLOOKUP(AZ178,'Tarieven VPT'!$B$6:I218,8,FALSE) -> 157.58 | BR178: 506 | BS178: 1506 | BT178: PGB: Rekenmodule voorleggen aan Zorgkantoor
AY179: V443 VPT 4vg incl.bh incl.db | AZ179: V443 | BA179: =VLOOKUP(AZ179,'Tarieven VPT'!$B$6:I219,8,FALSE) -> 182.69 | BR179: 507 | BS179: 1507 | BT179: PGB: Rekenmodule voorleggen aan Zorgkantoor
AY180: V457 VPT 5vg incl.bh incl.db | AZ180: V457 | BA180: =VLOOKUP(AZ180,'Tarieven VPT'!$B$6:I220,8,FALSE) -> 249.53 | BR180: 508 | BS180: 1508 | BT180: Bedrag PGB controleren bij het Zorgkantoor, daarna ZIN aanvragen
AY181: V463 VPT 6vg incl.bh incl.db | AZ181: V463 | BA181: =VLOOKUP(AZ181,'Tarieven VPT'!$B$6:I221,8,FALSE) -> 212.57 | BR181: 509 | BS181: 1509 | BT181: PGB: Rekenmodule voorleggen aan Zorgkantoor
AY182: V473 VPT 7vg incl.bh incl.db | AZ182: V473 | BA182: =VLOOKUP(AZ182,'Tarieven VPT'!$B$6:I222,8,FALSE) -> 242.58 | BR182: 510 | BS182: 1510 | BT182: PGB: Rekenmodule voorleggen aan Zorgkantoor
AY183: V483 VPT 8vg incl.bh incl.db | AZ183: V483 | BA183: =VLOOKUP(AZ183,'Tarieven VPT'!$B$6:I223,8,FALSE) -> 307.46 | BR183: 511 | BS183: 1511 | BT183: PGB: Rekenmodule voorleggen aan Zorgkantoor
AY184: V513 VPT 1lvg incl.bh incl.db | AZ184: V513 | BA184: =VLOOKUP(AZ184,'Tarieven VPT'!$B$6:I224,8,FALSE) -> 184.96 | BR184: 512 | BS184: 1512 | BT184: PGB: Rekenmodule voorleggen aan Zorgkantoor
AY185: V523 VPT 2lvg incl.bh incl.db | AZ185: V523 | BA185: =VLOOKUP(AZ185,'Tarieven VPT'!$B$6:I225,8,FALSE) -> 227.03 | BR185: 513 | BS185: 1513 | BT185: PGB: Rekenmodule voorleggen aan Zorgkantoor
AY186: V533 VPT 3lvg incl.bh incl.db | AZ186: V533 | BA186: =VLOOKUP(AZ186,'Tarieven VPT'!$B$6:I226,8,FALSE) -> 293.25 | BR186: 514 | BS186: 1514 | BT186: PGB: Rekenmodule voorleggen aan Zorgkantoor
AY187: V543 VPT 4lvg incl.bh incl.db | AZ187: V543 | BA187: =VLOOKUP(AZ187,'Tarieven VPT'!$B$6:I227,8,FALSE) -> 342.28 | BR187: 515 | BS187: 1515 | BT187: PGB: Rekenmodule voorleggen aan Zorgkantoor
AY188: V553 VPT 5lvg incl.bh incl.db | AZ188: V553 | BA188: =VLOOKUP(AZ188,'Tarieven VPT'!$B$6:I228,8,FALSE) -> 324.23 | BR188: 516 | BS188: 1516 | BT188: PGB: Rekenmodule voorleggen aan Zorgkantoor
AY189: V573 VPT 1sglvg incl.bh incl.db | AZ189: V573 | BA189: =VLOOKUP(AZ189,'Tarieven VPT'!$B$6:I229,8,FALSE) -> 355.13 | BR189: 580 | BS189: 1580 | BT189: PGB: Rekenmodule voorleggen aan Zorgkantoor
AY190: V614 VPT 1lg excl.bh excl.db | AZ190: V614 | BA190: =VLOOKUP(AZ190,'Tarieven VPT'!$B$6:I230,8,FALSE) -> 81.62 | BR190: 584 | BS190: 1584 | BT190: PGB: Rekenmodule voorleggen aan Zorgkantoor
AY191: V624 VPT 2lg excl.bh excl.db | AZ191: V624 | BA191: =VLOOKUP(AZ191,'Tarieven VPT'!$B$6:I231,8,FALSE) -> 119.05 | BR191: 585 | BS191: 1585 | BT191: PGB: Rekenmodule voorleggen aan Zorgkantoor
AY192: V615 VPT 1lg excl.bh incl.db | AZ192: V615 | BA192: =VLOOKUP(AZ192,'Tarieven VPT'!$B$6:I232,8,FALSE) -> 139.99 | BR192: 1001 | BS192: =BR192+1000 -> 2001 | BT192: Zorg aanvragen via iWLZ, geen extra toestemming vereist
AY193: V625 VPT 2lg excl.bh incl.db | AZ193: V625 | BA193: =VLOOKUP(AZ193,'Tarieven VPT'!$B$6:I233,8,FALSE) -> 166.83 | BR193: 1002 | BS193: =BR193+1000 -> 2002 | BT193: Zorg aanvragen via iWLZ, geen extra toestemming vereist
AY194: V630 VPT 3lg excl.bh excl.db | AZ194: V630 | BA194: =VLOOKUP(AZ194,'Tarieven VPT'!$B$6:I234,8,FALSE) -> 92.26 | BR194: 1003 | BS194: 2003 | BT194: Zorg aanvragen via iWLZ, geen extra toestemming vereist
AY195: V640 VPT 4lg excl.bh excl.db | AZ195: V640 | BA195: =VLOOKUP(AZ195,'Tarieven VPT'!$B$6:I235,8,FALSE) -> 144.65 | BR195: 1004 | BS195: 2004 | BT195: Zorg aanvragen via iWLZ, geen extra toestemming vereist
AY196: V650 VPT 5lg excl.bh excl.db | AZ196: V650 | BA196: =VLOOKUP(AZ196,'Tarieven VPT'!$B$6:I236,8,FALSE) -> 146.27 | BR196: 1005 | BS196: 2005 | BT196: Zorg aanvragen via iWLZ, geen extra toestemming vereist
AY197: V660 VPT 6lg excl.bh excl.db | AZ197: V660 | BA197: =VLOOKUP(AZ197,'Tarieven VPT'!$B$6:I237,8,FALSE) -> 203.15 | BR197: 1006 | BS197: 2006 | BT197: Zorg aanvragen via iWLZ, geen extra toestemming vereist
AY198: V670 VPT 7lg excl.bh excl.db | AZ198: V670 | BA198: =VLOOKUP(AZ198,'Tarieven VPT'!$B$6:I238,8,FALSE) -> 230.24 | BR198: 1007 | BS198: 2007 | BT198: Zorg aanvragen via iWLZ, geen extra toestemming vereist
AY199: V631 VPT 3lg excl.bh incl.db | AZ199: V631 | BA199: =VLOOKUP(AZ199,'Tarieven VPT'!$B$6:I239,8,FALSE) -> 153.19 | BR199: 1008 | BS199: 2008 | BT199: Zorg aanvragen via iWLZ, geen extra toestemming vereist
AY200: V641 VPT 4lg excl.bh incl.db | AZ200: V641 | BA200: =VLOOKUP(AZ200,'Tarieven VPT'!$B$6:I240,8,FALSE) -> 193.96 | BR200: 1000 | BS200: 2000 | BT200: Zorg aanvragen via iWLZ, geen extra toestemming vereist
... 187 more rows

Sheet Lijst codes (hidden)
A1: Lijst extramurale prestaties te decclareren als MPT | F1: MPT budget wordt getoond
A2: per extramurale prestatie aangeven bij welke ZZP's dit gedeclareerd mag worden. | F2: % van landleijke tarief
A3: Prestatiecode (AW319-PRESTATIECODE) | B3: Omschrijving prestatiecode | C3: Functiecode (COD732) | E3: Tijdeenheid | F3: Tarief | G3: Uren | H3: Soort | I3: Binnen Rekenmodule | J3: Buiten rekenmodule
A4: H531 | B4: Dagactiviteit basis | C4: 64, 82 | D4: keuze | E4: Dagdeel (4 uur) | F4: 1 | G4: 5 | H4: BG-GRP | I4: alle ZZP's excl geindiceerd BGGRP | J4: alle ZZP's incl geindiceerd BGGRP tot max 9 dd/wk. Hoger aantal meetellen in doelmatigheid
A5: H800 | B5: Module cliëntkenmerk (som-ondersteunend) | C5: 82 | E5: Dagdeel (4 uur) | H5: BG-GRP | I5: alle ZZP's excl geindiceerd BGGRP | J5: alle ZZP's incl geindiceerd BGGRP tot max 9 dd/wk. Hoger aantal meetellen in doelmatigheid
A6: H533 | B6: Module cliëntkenmerk (pg) | C6: 82 | E6: Dagdeel (4 uur) | H6: BG-GRP | I6: alle ZZP's excl geindiceerd BGGRP | J6: alle ZZP's incl geindiceerd BGGRP tot max 9 dd/wk. Hoger aantal meetellen in doelmatigheid
A7: H811 | B7: Dagactiviteit (begeleiding) VG licht | C7: 82 | E7: Dagdeel (4 uur) | H7: BG-GRP | I7: alle ZZP's excl geindiceerd BGGRP | J7: alle ZZP's incl geindiceerd BGGRP tot max 9 dd/wk. Hoger aantal meetellen in doelmatigheid
A8: H812 | B8: Dagactiviteit (begeleiding) VG midden | C8: 82 | E8: Dagdeel (4 uur) | H8: BG-GRP | I8: alle ZZP's excl geindiceerd BGGRP | J8: alle ZZP's incl geindiceerd BGGRP tot max 9 dd/wk. Hoger aantal meetellen in doelmatigheid
A9: H813 | B9: Dagactiviteit (begeleiding) VG zwaar | C9: 64, 82 | D9: keuze | E9: Dagdeel (4 uur) | H9: BG-GRP | I9: alle ZZP's excl geindiceerd BGGRP | J9: alle ZZP's incl geindiceerd BGGRP tot max 9 dd/wk. Hoger aantal meetellen in doelmatigheid
A10: H814 | B10: Dagactiviteit (begeleiding) VG kind licht | C10: 82 | E10: Dagdeel (4 uur) | F10: 1 | G10: 3 | H10: BG-GRP | I10: alle ZZP's excl geindiceerd BGGRP | J10: alle ZZP's incl geindiceerd BGGRP tot max 9 dd/wk. Hoger aantal meetellen in doelmatigheid
A11: H815 | B11: Dagactiviteit (begeleiding) VG kind midden | C11: 82 | E11: Dagdeel (4 uur) | H11: BG-GRP | I11: alle ZZP's excl geindiceerd BGGRP | J11: alle ZZP's incl geindiceerd BGGRP tot max 9 dd/wk. Hoger aantal meetellen in doelmatigheid
A12: H816 | B12: Dagactiviteit (begeleiding) VG kind zwaar | C12: 82 | E12: Dagdeel (4 uur) | H12: BG-GRP | I12: alle ZZP's excl geindiceerd BGGRP | J12: alle ZZP's incl geindiceerd BGGRP tot max 9 dd/wk. Hoger aantal meetellen in doelmatigheid
A13: H818 | B13: Dagactiviteit (begeleiding) VG kind gedrag | C13: 82 | E13: Dagdeel (4 uur) | H13: BG-GRP | I13: alle ZZP's excl geindiceerd BGGRP | J13: alle ZZP's incl geindiceerd BGGRP tot max 9 dd/wk. Hoger aantal meetellen in doelmatigheid
A14: H831 | B14: Dagactiviteit (begeleiding) LG licht | C14: 82 | E14: Dagdeel (4 uur) | H14: BG-GRP | I14: alle ZZP's excl geindiceerd BGGRP | J14: alle ZZP's incl geindiceerd BGGRP tot max 9 dd/wk. Hoger aantal meetellen in doelmatigheid
A15: H832 | B15: Dagactiviteit (begeleiding) LG midden | C15: 82 | E15: Dagdeel (4 uur) | H15: BG-GRP | I15: alle ZZP's excl geindiceerd BGGRP | J15: alle ZZP's incl geindiceerd BGGRP tot max 9 dd/wk. Hoger aantal meetellen in doelmatigheid
A16: H833 | B16: Dagactiviteit (begeleiding) LG zwaar | C16: 82 | E16: Dagdeel (4 uur) | H16: BG-GRP | I16: alle ZZP's excl geindiceerd BGGRP | J16: alle ZZP's incl geindiceerd BGGRP tot max 9 dd/wk. Hoger aantal meetellen in doelmatigheid
A17: H834 | B17: Dagactiviteit (begeleiding) LG kind licht | C17: 64, 82 | D17: keuze | E17: Dagdeel (4 uur) | H17: BG-GRP | I17: alle ZZP's excl geindiceerd BGGRP | J17: alle ZZP's incl geindiceerd BGGRP tot max 9 dd/wk. Hoger aantal meetellen in doelmatigheid
A18: H835 | B18: Dagactiviteit (begeleiding) LG kind midden | C18: 64, 82 | D18: keuze | E18: Dagdeel (4 uur) | H18: BG-GRP | I18: alle ZZP's excl geindiceerd BGGRP | J18: alle ZZP's incl geindiceerd BGGRP tot max 9 dd/wk. Hoger aantal meetellen in doelmatigheid
A19: H836 | B19: Dagactiviteit (begeleiding) LG kind zwaar | C19: 64, 82 | D19: keuze | E19: Dagdeel (4 uur) | H19: BG-GRP | I19: alle ZZP's excl geindiceerd BGGRP | J19: alle ZZP's incl geindiceerd BGGRP tot max 9 dd/wk. Hoger aantal meetellen in doelmatigheid
A20: H851 | B20: Dagactiviteit (begeleiding) ZG auditief licht | C20: 82 | E20: Dagdeel (4 uur) | H20: BG-GRP | I20: alle ZZP's excl geindiceerd BGGRP | J20: alle ZZP's incl geindiceerd BGGRP tot max 9 dd/wk. Hoger aantal meetellen in doelmatigheid
A21: H852 | B21: Dagactiviteit (begeleiding) ZG auditief midden | C21: 82 | E21: Dagdeel (4 uur) | H21: BG-GRP | I21: alle ZZP's excl geindiceerd BGGRP | J21: alle ZZP's incl geindiceerd BGGRP tot max 9 dd/wk. Hoger aantal meetellen in doelmatigheid
A22: H853 | B22: Dagactiviteit (begeleiding) ZG auditief zwaar | C22: 82 | E22: Dagdeel (4 uur) | H22: BG-GRP | I22: alle ZZP's excl geindiceerd BGGRP | J22: alle ZZP's incl geindiceerd BGGRP tot max 9 dd/wk. Hoger aantal meetellen in doelmatigheid
A23: H854 | B23: Dagactiviteit (begeleiding) ZG kind auditief licht | C23: 82 | E23: Dagdeel (4 uur) | H23: BG-GRP | I23: alle ZZP's excl geindiceerd BGGRP | J23: alle ZZP's incl geindiceerd BGGRP tot max 9 dd/wk. Hoger aantal meetellen in doelmatigheid
A24: H855 | B24: Dagactiviteit (begeleiding) ZG kind auditief midden | C24: 82 | E24: Dagdeel (4 uur) | H24: BG-GRP | I24: alle ZZP's excl geindiceerd BGGRP | J24: alle ZZP's incl geindiceerd BGGRP tot max 9 dd/wk. Hoger aantal meetellen in doelmatigheid
A25: H856 | B25: Dagactiviteit (begeleiding) ZG kind auditief zwaar | C25: 82 | E25: Dagdeel (4 uur) | H25: BG-GRP | I25: alle ZZP's excl geindiceerd BGGRP | J25: alle ZZP's incl geindiceerd BGGRP tot max 9 dd/wk. Hoger aantal meetellen in doelmatigheid
A26: H871 | B26: Dagactiviteit (begeleiding) ZG visueel licht | C26: 82 | E26: Dagdeel (4 uur) | H26: BG-GRP | I26: alle ZZP's excl geindiceerd BGGRP | J26: alle ZZP's incl geindiceerd BGGRP tot max 9 dd/wk. Hoger aantal meetellen in doelmatigheid
A27: H872 | B27: Dagactiviteit (begeleiding) ZG visueel midden | C27: 82 | E27: Dagdeel (4 uur) | H27: BG-GRP | I27: alle ZZP's excl geindiceerd BGGRP | J27: alle ZZP's incl geindiceerd BGGRP tot max 9 dd/wk. Hoger aantal meetellen in doelmatigheid
A28: H873 | B28: Dagactiviteit (begeleiding) ZG visueel zwaar | C28: 82 | E28: Dagdeel (4 uur) | H28: BG-GRP | I28: alle ZZP's excl geindiceerd BGGRP | J28: alle ZZP's incl geindiceerd BGGRP tot max 9 dd/wk. Hoger aantal meetellen in doelmatigheid
A29: H874 | B29: Dagactiviteit (begeleiding) ZG kind visueel licht | C29: 82 | E29: Dagdeel (4 uur) | H29: BG-GRP | I29: alle ZZP's excl geindiceerd BGGRP | J29: alle ZZP's incl geindiceerd BGGRP tot max 9 dd/wk. Hoger aantal meetellen in doelmatigheid
A30: H875 | B30: Dagactiviteit (begeleiding) ZG kind visueel midden | C30: 82 | E30: Dagdeel (4 uur) | H30: BG-GRP | I30: alle ZZP's excl geindiceerd BGGRP | J30: alle ZZP's incl geindiceerd BGGRP tot max 9 dd/wk. Hoger aantal meetellen in doelmatigheid
A31: H876 | B31: Dagactiviteit (begeleiding) ZG kind visueel zwaar | C31: 82 | E31: Dagdeel (4 uur) | H31: BG-GRP | I31: alle ZZP's excl geindiceerd BGGRP | J31: alle ZZP's incl geindiceerd BGGRP tot max 9 dd/wk. Hoger aantal meetellen in doelmatigheid
A32: H803 | B32: Vervoer dagbesteding/dagbehandeling V&V | C32: 64, 82 | D32: keuze | E32: Etmaal | H32: BH of BG-GRP | I32: afhankelijk of BH of BG gedeclareerd is, en bij welk ZZP. | J32: afhankelijk of BH of BG gedeclareerd is, en bij welk ZZP.
A33: H894 | B33: Vervoer dagbesteding/dagbehandeling GHZ extramuraal | C33: 64, 82 | D33: keuze | E33: Etmaal | H33: BH of BG-GRP | I33: afhankelijk of BH of BG gedeclareerd is, en bij welk ZZP. | J33: afhankelijk of BH of BG gedeclareerd is, en bij welk ZZP.
A34: H895 | B34: Vervoer dagbesteding/dagbehandeling GHZ rolstoel extramuraal | C34: 64, 82 | D34: keuze | E34: Etmaal | H34: BH of BG-GRP | I34: afhankelijk of BH of BG gedeclareerd is, en bij welk ZZP. | J34: afhankelijk of BH of BG gedeclareerd is, en bij welk ZZP.
A35: H896 | B35: Vervoer dagbesteding/dagbehandeling kind extramuraal | C35: 64, 82 | D35: keuze | E35: Etmaal | H35: BH of BG-GRP | I35: afhankelijk of BH of BG gedeclareerd is, en bij welk ZZP. | J35: afhankelijk of BH of BG gedeclareerd is, en bij welk ZZP.
A36: H802 | B36: Dagbehandeling ouderen som en pg | C36: 61, 64 | D36: keuze | E36: Dagdeel (4 uur) | H36: BH-GRP | I36: nooit | J36: ja, tot max budget BH bijbehorend bij VPT incl. BH
A37: H817 | B37: Dagbehandeling VG kind emg | C37: 61, 64 | D37: keuze | E37: Dagdeel (4 uur) | H37: BH-GRP | I37: nooit | J37: ja, tot max budget BH bijbehorend bij VPT incl. BH
A38: H819 | B38: Dagbehandeling VG EMG | C38: 64 | E38: Dagdeel (4 uur) | H38: BH-GRP | I38: nooit | J38: ja, tot max budget BH bijbehorend bij VPT incl. BH
A39: H820 | B39: Dagbehandeling VG kind midden | C39: 64 | E39: Dagdeel (4 uur) | H39: BH-GRP | I39: nooit | J39: ja, tot max budget BH bijbehorend bij VPT incl. BH
A40: H821 | B40: Dagbehandeling VG kind zwaar | C40: 64 | E40: Dagdeel (4 uur) | H40: BH-GRP | I40: nooit | J40: ja, tot max budget BH bijbehorend bij VPT incl. BH
A41: H822 | B41: Dagbehandeling VG kind gedrag | C41: 64 | E41: Dagdeel (4 uur) | H41: BH-GRP | I41: nooit | J41: ja, tot max budget BH bijbehorend bij VPT incl. BH
A42: H837 | B42: Dagbehandeling LG licht | C42: 64 | E42: Dagdeel (4 uur) | H42: BH-GRP | I42: nooit | J42: ja, tot max budget BH bijbehorend bij VPT incl. BH
A43: H838 | B43: Dagbehandeling LG midden | C43: 64 | E43: Dagdeel (4 uur) | H43: BH-GRP | I43: nooit | J43: ja, tot max budget BH bijbehorend bij VPT incl. BH
A44: H839 | B44: Dagbehandeling LG zwaar | C44: 64 | E44: Dagdeel (4 uur) | H44: BH-GRP | I44: nooit | J44: ja, tot max budget BH bijbehorend bij VPT incl. BH
A45: H891 | B45: Dagbehandeling LVG | C45: 61, 64 | D45: keuze | E45: Dagdeel (4 uur) | H45: BH-GRP | I45: nooit | J45: ja, tot max budget BH bijbehorend bij VPT incl. BH
A46: H325 | B46: Behandeling basis lvg | C46: 61, 63 | D46: keuze | E46: Minuut | H46: BH-IND | I46: nooit | J46: ja, tot max budget BH bijbehorend bij VPT incl. BH
A47: H326 | B47: Behandeling basis sglvg traject | C47: 61, 63 | D47: keuze | E47: Minuut | H47: BH-IND | I47: nooit | J47: ja, tot max budget BH bijbehorend bij VPT incl. BH
A48: H327 | B48: Behandeling basis sglvg deeltijd | C48: 61, 63, 64 | D48: keuze | E48: Minuut | H48: BH-IND | I48: nooit | J48: ja, tot max budget BH bijbehorend bij VPT incl. BH
A49: H328 | B49: Behandeling basis som, pg, vg, lg, zg | C49: 61, 63 | D49: keuze | E49: Minuut | H49: BH-IND | I49: nooit | J49: ja, tot max budget BH bijbehorend bij VPT incl. BH
A50: H328 | B50: Behandeling basis som, pg, vg, lg, zg | C50: 61, 63 | D50: keuze | E50: Minuut | H50: BH-IND | I50: nooit | J50: ja, tot max budget BH bijbehorend bij VPT incl. BH
A51: H329 | B51: Behandeling gedragswetenschapper | C51: 61, 63 | D51: keuze | E51: Minuut | H51: BH-IND | I51: nooit | J51: ja, tot max budget BH bijbehorend bij VPT incl. BH
A52: H330 | B52: Behandeling paramedisch | C52: 61, 63 | D52: keuze | E52: Minuut | H52: BH-IND | I52: nooit | J52: ja, tot max budget BH bijbehorend bij VPT incl. BH
A53: H331 | B53: Behandeling Families First lvg | C53: 61, 63 | D53: keuze | E53: Minuut | H53: BH-IND | I53: nooit | J53: ja, tot max budget BH bijbehorend bij VPT incl. BH
A54: H334 | B54: Behandeling IOG lvg | C54: 61, 63, 81 | D54: keuze | E54: Minuut | H54: BH-IND | I54: nooit | J54: ja, tot max budget BH bijbehorend bij VPT incl. BH
A55: H321 | B55: Reiskosten prestaties Behandeling (H325-H334) | C55: 61, 63, 81 | D55: keuze | E55: Tijdsonafhankelijk | H55: BH-IND | I55: nooit | J55: ja, tot max budget BH bijbehorend bij VPT incl. BH
A56: H321 | B56: Reiskosten prestaties Behandeling (H325-H334) | C56: 61, 63, 81 | D56: keuze | E56: Tijdsonafhankelijk | H56: BH-IND | I56: nooit | J56: ja, tot max budget BH bijbehorend bij VPT incl. BH
A57: H332 | B57: Behandeling ZG visueel | C57: 0 | E57: Minuut | H57: BH-IND | I57: nooit | J57: ja, tot max budget BH bijbehorend bij VPT incl. BH
A58: H333 | B58: Behandeling ZG auditief | C58: 0 | E58: Minuut | H58: BH-IND | I58: nooit | J58: ja, tot max budget BH bijbehorend bij VPT incl. BH
A59: Z995 | B59: Verblijfscomponent niet-geïndiceerde partner V&V | C59: 0 | E59: Etmaal | H59: Logeren | I59: ja, max 104 etm omrekenen naar bedrag, mag niet koste van zorgfuncties | J59: nee
A60: Z997 | B60: Verblijfscomponent niet-geïndiceerde partner GHZ: VG en LG | C60: 0 | E60: Etmaal | H60: Logeren | I60: ja, max 104 etm omrekenen naar bedrag, mag niet koste van zorgfuncties | J60: nee
A61: Z998 | B61: Verblijfscomponent niet-geïndiceerde partner GHZ: ZG | C61: 0 | E61: Etmaal | H61: Logeren | I61: ja, max 104 etm omrekenen naar bedrag, mag niet koste van zorgfuncties | J61: nee
A62: Z996 | B62: Verblijfscomponent kortdurend verblijf V&V | C62: 71 | E62: Etmaal | H62: Logeren | I62: ja, max 104 etm omrekenen naar bedrag, mag niet koste van zorgfuncties | J62: nee
A63: Z992 | B63: Verblijfscomponent kortdurend verblijf GGZ | C63: 71 | E63: Etmaal | H63: Logeren | I63: ja, max 104 etm omrekenen naar bedrag, mag niet koste van zorgfuncties | J63: nee
A64: Z993 | B64: Verblijfscomponent kortdurend verblijf GHZ: VG en LG | C64: 71 | E64: Etmaal | H64: Logeren | I64: ja, max 104 etm omrekenen naar bedrag, mag niet koste van zorgfuncties | J64: nee
A65: Z994 | B65: Verblijfscomponent kortdurend verblijf GHZ: ZG | C65: 71 | E65: Etmaal | H65: Logeren | I65: ja, max 104 etm omrekenen naar bedrag, mag niet koste van zorgfuncties | J65: nee
A66: H126 | B66: Persoonlijke verzorging | C66: 31, 71 | D66: keuze | E66: Minuut | H66: Rekenmodule | I66: ja | J66: nee
A67: H127 | B67: Persoonlijke verzorging extra | C67: 31 | E67: Minuut | H67: Rekenmodule | I67: ja | J67: nee
A68: H120 | B68: Persoonlijke verzorging speciaal | C68: 31 | E68: Minuut | H68: Rekenmodule | I68: ja | J68: nee
A69: H136 | B69: Persoonlijke verzorging zorg op afstand aanvullend | C69: 31 | E69: Minuut | H69: Rekenmodule | I69: ja | J69: nee
A70: H137 | B70: Persoonlijke verzorging farmaceutische telezorg | C70: 31 | E70: Minuut | H70: Rekenmodule | I70: ja | J70: nee
A71: H104 | B71: Verpleging | C71: 41, 71 | D71: keuze | E71: Minuut | H71: Rekenmodule | I71: ja | J71: nee
A72: H128 | B72: Verpleging extra | C72: 41 | E72: Minuut | H72: Rekenmodule | I72: ja | J72: nee
A73: H106 | B73: Gespecialiseerde verpleging | C73: 41 | E73: Minuut | H73: Rekenmodule | I73: ja | J73: nee
A74: H107 | B74: Verpleging zorg op afstand aanvullend | C74: 41 | E74: Minuut | H74: Rekenmodule | I74: ja | J74: nee
A75: H300 | B75: Begeleiding | C75: 71, 81 | D75: keuze | E75: Minuut | H75: Rekenmodule | I75: ja | J75: nee
A76: H150 | B76: Begeleiding extra | C76: 81 | E76: Minuut | H76: Rekenmodule | I76: ja | J76: nee
A77: H152 | B77: Begeleiding speciaal 1 (nah) | C77: 81 | E77: Minuut | H77: Rekenmodule | I77: ja | J77: nee
A78: H153 | B78: Gespecialiseerde begeleiding (psy) | C78: 81 | E78: Minuut | H78: Rekenmodule | I78: ja | J78: nee
A79: H301 | B79: Begeleiding ZG visueel | C79: 81 | E79: Minuut | H79: Rekenmodule | I79: ja | J79: nee
A80: H302 | B80: Begeleiding speciaal 2 (visueel) | C80: 81 | E80: Minuut | H80: Rekenmodule | I80: ja | J80: nee
A81: H303 | B81: Begeleiding ZG auditief | C81: 81 | E81: Minuut | H81: Rekenmodule | I81: ja | J81: nee
A82: H304 | B82: Begeleiding speciaal 2 (auditief) | C82: 81 | E82: Minuut | H82: Rekenmodule | I82: ja | J82: nee
A83: H305 | B83: Begeleiding zorg op afstand aanvullend | C83: 81 | E83: Minuut | H83: Rekenmodule | I83: ja | J83: nee
A84: H114 | B84: Verpleging: AIV | E84: Minuut | H84: Rekenmodule | I84: ja | J84: nee
A85: H132 | B85: Nachtverzorging | C85: 82 | E85: Dagdeel (4 uur) | H85: Rekenmodule | I85: ja | J85: nee
A86: H180 | B86: Nachtverpleging | C86: 82 | E86: Dagdeel (4 uur) | H86: Rekenmodule | I86: ja | J86: nee

Sheet koppel ZZP budget (hidden)
A1: Jaargang | B1: SG Kenmerk | C1: ZZP not2 | D1: ZZP not1 | E1: meerzorg mogelijk | F1: overgangsrecht | G1: PGB instroom nieuwe cliënten | H1: ZZP: Maximum dagtarief | I1: ZZP: NHC/NIC dag | J1: ZZP: per jaar (max tarief + NHC/NIC) | K1: ZZP: BGGRP | L1: ZZP: BH | M1: ZZP: Max | N1: VPT: Maximum tarief | O1: VPT: per jaar | P1: VPT: BGGRP | Q1: VPT: BH (kosten BH voor MPT) | S1: VPT excl BH excl DB | T1: VPT excl BH incl DB | U1: VPT incl. BH excl DB | V1: VPT: Max | W1: PGB excl DB | X1: PGB DB+V | Y1: PGB inclDB+V | Z1: correctie HV/eten | AA1: PGB corr excl DB | AB1: PGB corr inclDB+V
A2: 2015 | B2: Intramuraal | C2: VV1 | D2: 1VV | E2: nee | F2: laag | G2: nee | H2: 66.75 | I2: 13.31 | J2: 29221.9 | K2: nvt | L2: nvt | M2: =SUM(J2:L2) -> 29221.9 | N2: 65.28 | O2: 23827.2 | P2: nvt | Q2: nvt | R2: =Q2/52 ->  | S2: 23827.2 | T2: nvt | U2: nvt | V2: =SUM(O2:Q2) -> 23827.2 | W2: =VLOOKUP(D2,'PGB (2)'!$A$3:$O$50,13,FALSE) -> 14658 | X2: =VLOOKUP(D2,'PGB (2)'!$A$3:$O$50,15,FALSE) -> 0 | Y2: =VLOOKUP(D2,'PGB (2)'!$A$3:$O$50,14,FALSE) -> 14658 | Z2: 3357 | AA2: =W2-Z2 -> 11301 | AB2: =Y2-Z2 -> 11301
A3: 2015 | B3: Intramuraal | C3: VV2 | D3: 2VV | E3: nee | F3: laag | G3: nee | H3: 85.09 | I3: 13.93 | J3: 36142.3 | K3: nvt | L3: nvt | M3: 36142.3 | N3: 82.93 | O3: 30269.45 | P3: nvt | Q3: nvt | R3: =Q3/52 ->  | S3: 30269.45 | T3: nvt | U3: nvt | V3: 30269.45 | W3: =VLOOKUP(D3,'PGB (2)'!$A$3:$O$50,13,FALSE) -> 21254 | X3: =VLOOKUP(D3,'PGB (2)'!$A$3:$O$50,15,FALSE) -> 0 | Y3: =VLOOKUP(D3,'PGB (2)'!$A$3:$O$50,14,FALSE) -> 21254 | Z3: 3357 | AA3: =W3-Z3 -> 17897 | AB3: =Y3-Z3 -> 17897
A4: 2015 | B4: Intramuraal | C4: VV3 | D4: 3VV | E4: nee | F4: laag | G4: nee | H4: 103.14 | I4: 15.13 | J4: 43168.55 | K4: nvt | L4: 9639.65 | M4: 52808.2 | N4: 99.99 | O4: 36496.35 | P4: nvt | Q4: 7161.3 | R4: 137.7173077 | S4: 36496.35 | T4: nvt | U4: =SUM(O4,Q4) -> 43657.65 | V4: 43657.65 | W4: =VLOOKUP(D4,'PGB (2)'!$A$3:$O$50,13,FALSE) -> 25872 | X4: =VLOOKUP(D4,'PGB (2)'!$A$3:$O$50,15,FALSE) -> 0 | Y4: =VLOOKUP(D4,'PGB (2)'!$A$3:$O$50,14,FALSE) -> 25872 | Z4: 3357 | AA4: 22515 | AB4: 22515
A5: 2015 | B5: Intramuraal | C5: VV4 | D5: 4VV | E5: nee | F5: hoog | G5: ja | H5: 117.33 | I5: 15.33 | J5: 48420.9 | K5: nvt | L5: 9650.6 | M5: 58071.5 | N5: 113.98 | O5: 41602.7 | P5: nvt | Q5: 7164.95 | R5: 137.7875 | S5: 41602.7 | T5: nvt | U5: 48767.65 | V5: 48767.65 | W5: =VLOOKUP(D5,'PGB (2)'!$A$3:$O$50,13,FALSE) -> 34665 | X5: =VLOOKUP(D5,'PGB (2)'!$A$3:$O$50,15,FALSE) -> 0 | Y5: =VLOOKUP(D5,'PGB (2)'!$A$3:$O$50,14,FALSE) -> 34665 | Z5: 3357 | AA5: 31308 | AB5: 31308
A6: 2015 | B6: Intramuraal | C6: VV5 | D6: 5VV | E6: nee | F6: hoog | G6: ja | H6: 161.03 | I6: 15.39 | J6: 64393.3 | K6: nvt | L6: 10340.45 | M6: 74733.75 | N6: 157.28 | O6: 57407.2 | P6: nvt | Q6: 7719.75 | R6: 148.4567308 | S6: 57407.2 | T6: nvt | U6: 65126.95 | V6: 65126.95 | W6: =VLOOKUP(D6,'PGB (2)'!$A$3:$O$50,13,FALSE) -> 47033 | X6: =VLOOKUP(D6,'PGB (2)'!$A$3:$O$50,15,FALSE) -> 0 | Y6: =VLOOKUP(D6,'PGB (2)'!$A$3:$O$50,14,FALSE) -> 47033 | Z6: 3357 | AA6: 43676 | AB6: 43676
A7: 2015 | B7: Intramuraal | C7: VV6 | D7: 6VV | E7: nee | F7: hoog | G7: ja | H7: 161.33 | I7: 15.35 | J7: 64488.2 | K7: nvt | L7: 10475.5 | M7: 74963.7 | N7: 157.26 | O7: 57399.9 | P7: nvt | Q7: 7716.1 | R7: 148.3865385 | S7: 57399.9 | T7: nvt | U7: 65116 | V7: 65116 | W7: =VLOOKUP(D7,'PGB (2)'!$A$3:$O$50,13,FALSE) -> 47033 | X7: =VLOOKUP(D7,'PGB (2)'!$A$3:$O$50,15,FALSE) -> 0 | Y7: =VLOOKUP(D7,'PGB (2)'!$A$3:$O$50,14,FALSE) -> 47033 | Z7: 3357 | AA7: 43676 | AB7: 43676
A8: 2015 | B8: Intramuraal | C8: VV7 | D8: 7VV | E8: 2016? | F8: hoog | G8: ja | H8: 189.53 | I8: 15.82 | J8: 74952.75 | K8: nvt | L8: 13344.4 | M8: 88297.15 | N8: 184.63 | O8: 67389.95 | P8: nvt | Q8: 10449.95 | R8: 200.9605769 | S8: 67389.95 | T8: nvt | U8: 77839.9 | V8: 77839.9 | W8: =VLOOKUP(D8,'PGB (2)'!$A$3:$O$50,13,FALSE) -> 58915 | X8: =VLOOKUP(D8,'PGB (2)'!$A$3:$O$50,15,FALSE) -> 0 | Y8: =VLOOKUP(D8,'PGB (2)'!$A$3:$O$50,14,FALSE) -> 58915 | Z8: 3357 | AA8: 55558 | AB8: 55558
A9: 2015 | B9: Intramuraal | C9: VV8 | D9: 8VV | E9: 2016? | F9: hoog | G9: ja | H9: 221.17 | I9: 16.5 | J9: 86749.55 | K9: nvt | L9: 13446.6 | M9: 100196.15 | N9: 214.51 | O9: 78296.15 | P9: nvt | Q9: 10453.6 | R9: 201.0307692 | S9: 78296.15 | T9: nvt | U9: 88749.75 | V9: 88749.75 | W9: =VLOOKUP(D9,'PGB (2)'!$A$3:$O$50,13,FALSE) -> 70314 | X9: =VLOOKUP(D9,'PGB (2)'!$A$3:$O$50,15,FALSE) -> 0 | Y9: =VLOOKUP(D9,'PGB (2)'!$A$3:$O$50,14,FALSE) -> 70314 | Z9: 3357 | AA9: 66957 | AB9: 66957
A10: 2015 | B10: Intramuraal | C10: VV9b | D10: 9VVb | E10: nee | F10: hoog | G10: ja | H10: 156.97 | I10: 15.25 | J10: 62860.3 | K10: nvt | L10: 26513.6 | M10: 89373.9 | N10: 153.15 | O10: 55899.75 | P10: nvt | Q10: 21407.25 | R10: 411.6778846 | S10: 55899.75 | T10: nvt | U10: 77307 | V10: 77307 | W10: =VLOOKUP(D10,'PGB (2)'!$A$3:$O$50,13,FALSE) -> 45089 | X10: =VLOOKUP(D10,'PGB (2)'!$A$3:$O$50,15,FALSE) -> 0 | Y10: =VLOOKUP(D10,'PGB (2)'!$A$3:$O$50,14,FALSE) -> 45089 | Z10: 3357 | AA10: 41732 | AB10: 41732
A11: 2015 | B11: Intramuraal | C11: VV10 | D11: 10VV | E11: nee | F11: hoog | G11: ja | H11: 242 | I11: 16.26 | J11: 94264.9 | K11: nvt | L11: 13351.7 | M11: 107616.6 | N11: 234.3 | O11: 85519.5 | P11: nvt | Q11: 10457.25 | R11: 201.1009615 | S11: 85519.5 | T11: nvt | U11: 95976.75 | V11: 95976.75 | W11: =VLOOKUP(D11,'PGB (2)'!$A$3:$O$50,13,FALSE) -> 76597 | X11: =VLOOKUP(D11,'PGB (2)'!$A$3:$O$50,15,FALSE) -> 0 | Y11: =VLOOKUP(D11,'PGB (2)'!$A$3:$O$50,14,FALSE) -> 76597 | Z11: 3357 | AA11: 73240 | AB11: 73240
A12: 2015 | B12: Intramuraal | C12: GGZ1B | D12: 1GGZB | E12: nee | G12: nee | H12: 80.16 | I12: 9.66 | J12: 32784.3 | K12: 10844.15 | L12: nvt | M12: 43628.45 | N12: nvt | O12: nvt | P12: nvt | Q12: nvt | S12: nvt | T12: nvt | U12: nvt | V12: nvt | W12: nvt | X12: nvt | Y12: nvt | Z12: nvt | AA12: nvt | AB12: nvt
A13: 2015 | B13: Intramuraal | C13: GGZ2B | D13: 2GGZB | E13: nee | G13: nee | H13: 118.23 | I13: 9.66 | J13: 46679.85 | K13: 10048.45 | L13: nvt | M13: 56728.3 | N13: nvt | O13: nvt | P13: nvt | Q13: nvt | S13: nvt | T13: nvt | U13: nvt | V13: nvt | W13: nvt | X13: nvt | Y13: nvt | Z13: nvt | AA13: nvt | AB13: nvt
A14: 2015 | B14: Intramuraal | C14: GGZ3B | D14: 3GGZB | E14: nee | G14: nee | H14: 128.72 | I14: 14.03 | J14: 52103.75 | K14: 11041.25 | L14: nvt | M14: 63145 | N14: nvt | O14: nvt | P14: nvt | Q14: nvt | S14: nvt | T14: nvt | U14: nvt | V14: nvt | W14: nvt | X14: nvt | Y14: nvt | Z14: nvt | AA14: nvt | AB14: nvt
A15: 2015 | B15: Intramuraal | C15: GGZ4B | D15: 4GGZB | E15: nee | G15: nee | H15: 148.41 | I15: 14.03 | J15: 59290.6 | K15: 11534 | L15: nvt | M15: 70824.6 | N15: nvt | O15: nvt | P15: nvt | Q15: nvt | S15: nvt | T15: nvt | U15: nvt | V15: nvt | W15: nvt | X15: nvt | Y15: nvt | Z15: nvt | AA15: nvt | AB15: nvt
A16: 2015 | B16: Intramuraal | C16: GGZ5B | D16: 5GGZB | E16: nee | G16: nee | H16: 160.44 | I16: 18.15 | J16: 65185.35 | K16: 11902.65 | L16: nvt | M16: 77088 | N16: nvt | O16: nvt | P16: nvt | Q16: nvt | S16: nvt | T16: nvt | U16: nvt | V16: nvt | W16: nvt | X16: nvt | Y16: nvt | Z16: nvt | AA16: nvt | AB16: nvt
A17: 2015 | B17: Intramuraal | C17: GGZ6B | D17: 6GGZB | E17: 2016? | G17: nee | H17: 217.79 | I17: 16.71 | J17: 85592.5 | K17: 11804.1 | L17: nvt | M17: 97396.6 | N17: nvt | O17: nvt | P17: nvt | Q17: nvt | S17: nvt | T17: nvt | U17: nvt | V17: nvt | W17: nvt | X17: nvt | Y17: nvt | Z17: nvt | AA17: nvt | AB17: nvt
A18: 2015 | B18: Intramuraal | C18: GGZ7B | D18: GGZ7B | E18: 2016? | G18: nee | H18: 290.49 | I18: 18.73 | J18: 112865.3 | K18: 18567.55 | L18: nvt | M18: 131432.85 | N18: nvt | O18: nvt | P18: nvt | Q18: nvt | S18: nvt | T18: nvt | U18: nvt | V18: nvt | W18: nvt | X18: nvt | Y18: nvt | Z18: nvt | AA18: nvt | AB18: nvt
A19: 2015 | B19: Intramuraal | C19: VG1 | D19: 1VG | E19: nee | F19: laag | G19: nee | H19: 66.45 | I19: 12.12 | J19: 28678.05 | K19: 14402.9 | L19: nvt | M19: 43080.95 | N19: 64.38 | O19: 23498.7 | P19: 13121.75 | Q19: nvt | S19: 23498.7 | T19: =SUM(O19,P19) -> 36620.45 | U19: =SUM(O19,Q19) -> 23498.7 | V19: =SUM(O19:Q19) -> 36620.45 | W19: =VLOOKUP(D19,'PGB (2)'!$A$3:$O$50,13,FALSE) -> 18755 | X19: =VLOOKUP(D19,'PGB (2)'!$A$3:$O$50,15,FALSE) -> 13721 | Y19: =VLOOKUP(D19,'PGB (2)'!$A$3:$O$50,14,FALSE) -> 32476 | Z19: 3357 | AA19: =W19-Z19 -> 15398 | AB19: =Y19-Z19 -> 29119
A20: 2015 | B20: Intramuraal | C20: VG2 | D20: 2VG | E20: nee | F20: laag | G20: nee | H20: 83.58 | I20: 12.12 | J20: 34930.5 | K20: 14406.55 | L20: nvt | M20: 49337.05 | N20: 80.69 | O20: 29451.85 | P20: 13118.1 | Q20: nvt | S20: 29451.85 | T20: 42569.95 | U20: 29451.85 | V20: 42569.95 | W20: =VLOOKUP(D20,'PGB (2)'!$A$3:$O$50,13,FALSE) -> 24714 | X20: =VLOOKUP(D20,'PGB (2)'!$A$3:$O$50,15,FALSE) -> 13721 | Y20: =VLOOKUP(D20,'PGB (2)'!$A$3:$O$50,14,FALSE) -> 38435 | Z20: 3357 | AA20: =W20-Z20 -> 21357 | AB20: =Y20-Z20 -> 35078
A21: 2015 | B21: Intramuraal | C21: VG3 | D21: 3VG | E21: nee | F21: hoog | G21: ja | H21: 98.09 | I21: 12.12 | J21: 40226.65 | K21: 14402.9 | L21: 6015.2 | M21: 60644.75 | N21: 94.49 | O21: 34488.85 | P21: 13125.4 | Q21: 3248.5 | R21: 62.47115385 | S21: 34488.85 | T21: 47614.25 | U21: 37737.35 | V21: 50862.75 | W21: =VLOOKUP(D21,'PGB (2)'!$A$3:$O$50,13,FALSE) -> 27642 | X21: =VLOOKUP(D21,'PGB (2)'!$A$3:$O$50,15,FALSE) -> 16170 | Y21: =VLOOKUP(D21,'PGB (2)'!$A$3:$O$50,14,FALSE) -> 43812 | Z21: 3357 | AA21: 24285 | AB21: 40455
A22: 2015 | B22: Intramuraal | C22: VG4 | D22: 4VG | E22: nee | F22: hoog | G22: ja | H22: 111.4 | I22: 12.12 | J22: 45084.8 | K22: 14413.85 | L22: 6639.35 | M22: 66138 | N22: 107.2 | O22: 39128 | P22: 13114.45 | Q22: 3832.5 | R22: 73.70192308 | S22: 39128 | T22: 52242.45 | U22: 42960.5 | V22: 56074.95 | W22: =VLOOKUP(D22,'PGB (2)'!$A$3:$O$50,13,FALSE) -> 31917 | X22: =VLOOKUP(D22,'PGB (2)'!$A$3:$O$50,15,FALSE) -> 16170 | Y22: =VLOOKUP(D22,'PGB (2)'!$A$3:$O$50,14,FALSE) -> 48087 | Z22: 3357 | AA22: 28560 | AB22: 44730
A23: 2015 | B23: Intramuraal | C23: VG5 | D23: 5VG | E23: ja | F23: hoog | G23: ja | H23: 134.44 | I23: 13.03 | J23: 53826.55 | K23: 19399.75 | L23: 9391.45 | M23: 82617.75 | N23: 129.14 | O23: 47136.1 | P23: 17939.75 | Q23: 5551.65 | R23: 106.7625 | S23: 47136.1 | T23: 65075.85 | U23: 52687.75 | V23: 70627.5 | W23: =VLOOKUP(D23,'PGB (2)'!$A$3:$O$50,13,FALSE) -> 42701 | X23: =VLOOKUP(D23,'PGB (2)'!$A$3:$O$50,15,FALSE) -> 18622 | Y23: =VLOOKUP(D23,'PGB (2)'!$A$3:$O$50,14,FALSE) -> 61323 | Z23: 3357 | AA23: 39344 | AB23: 57966
A24: 2015 | B24: Intramuraal | C24: VG6 | D24: 6VG | E24: nee | F24: hoog | G24: ja | H24: 127.45 | I24: 12.04 | J24: 50913.85 | K24: 19381.5 | L24: 9698.05 | M24: 79993.4 | N24: 122.45 | O24: 44694.25 | P24: 17947.05 | Q24: 5869.2 | R24: 112.8692308 | S24: 44694.25 | T24: 62641.3 | U24: 50563.45 | V24: 68510.5 | W24: =VLOOKUP(D24,'PGB (2)'!$A$3:$O$50,13,FALSE) -> 36596 | X24: =VLOOKUP(D24,'PGB (2)'!$A$3:$O$50,15,FALSE) -> 21072 | Y24: =VLOOKUP(D24,'PGB (2)'!$A$3:$O$50,14,FALSE) -> 57668 | Z24: 3357 | AA24: 33239 | AB24: 54311
A25: 2015 | B25: Intramuraal | C25: VG7 | D25: 7VG | E25: ja | F25: hoog | G25: ja | H25: 165.45 | I25: 13.03 | J25: 65145.2 | K25: 31638.2 | L25: 11577.8 | M25: 108361.2 | N25: 158.64 | O25: 57903.6 | P25: 30349.75 | Q25: 7643.1 | R25: 146.9826923 | S25: 57903.6 | T25: 88253.35 | U25: 65546.7 | V25: 95896.45 | W25: =VLOOKUP(D25,'PGB (2)'!$A$3:$O$50,13,FALSE) -> 53031 | X25: =VLOOKUP(D25,'PGB (2)'!$A$3:$O$50,15,FALSE) -> 23523 | Y25: =VLOOKUP(D25,'PGB (2)'!$A$3:$O$50,14,FALSE) -> 76554 | Z25: 3357 | AA25: 49674 | AB25: 73197
A26: 2015 | B26: Intramuraal | C26: VG8 | D26: 8VG | E26: ja | F26: hoog | G26: ja | H26: 160.71 | I26: 16.7 | J26: 64754.65 | K26: 19724.6 | L26: 9384.15 | M26: 93863.4 | N26: 154.12 | O26: 56253.8 | P26: 17950.7 | Q26: 5562.6 | R26: 106.9730769 | S26: 56253.8 | T26: 74204.5 | U26: 61816.4 | V26: 79767.1 | W26: =VLOOKUP(D26,'PGB (2)'!$A$3:$O$50,13,FALSE) -> 48848 | X26: =VLOOKUP(D26,'PGB (2)'!$A$3:$O$50,15,FALSE) -> 18622 | Y26: =VLOOKUP(D26,'PGB (2)'!$A$3:$O$50,14,FALSE) -> 67470 | Z26: 3357 | AA26: 45491 | AB26: 64113
A27: 2015 | B27: Intramuraal | C27: LVG1 | D27: 1LVG | E27: nee | F27: hoog | G27: ja | H27: 140.71 | I27: 16.69 | J27: 57451 | K27: nvt | L27: nvt | M27: 57451 | N27: 129.03 | O27: 47095.95 | P27: nvt | Q27: nvt | S27: 47095.95 | T27: nvt | U27: nvt | V27: 47095.95 | W27: =VLOOKUP(D27,'PGB (2)'!$A$3:$O$50,13,FALSE) -> 24714 | X27: =VLOOKUP(D27,'PGB (2)'!$A$3:$O$50,15,FALSE) -> 2744 | Y27: =VLOOKUP(D27,'PGB (2)'!$A$3:$O$50,14,FALSE) -> 27458 | Z27: 3357 | AA27: 21357 | AB27: 24101
A28: 2015 | B28: Intramuraal | C28: LVG2 | D28: 2LVG | E28: nee | F28: hoog | G28: ja | H28: 181.3 | I28: 16.69 | J28: 72266.35 | K28: nvt | L28: nvt | M28: 72266.35 | N28: 167.75 | O28: 61228.75 | P28: nvt | Q28: nvt | S28: 61228.75 | T28: nvt | U28: nvt | V28: 61228.75 | W28: =VLOOKUP(D28,'PGB (2)'!$A$3:$O$50,13,FALSE) -> 36596 | X28: =VLOOKUP(D28,'PGB (2)'!$A$3:$O$50,15,FALSE) -> 2744 | Y28: =VLOOKUP(D28,'PGB (2)'!$A$3:$O$50,14,FALSE) -> 39340 | Z28: 3357 | AA28: 33239 | AB28: 35983
A29: 2015 | B29: Intramuraal | C29: LVG3 | D29: 3LVG | E29: nee | F29: hoog | G29: nee | H29: 223.71 | I29: 22.66 | J29: 89925.05 | K29: nvt | L29: nvt | M29: 89925.05 | N29: 208.01 | O29: 75923.65 | P29: nvt | Q29: nvt | S29: 75923.65 | T29: nvt | U29: nvt | V29: 75923.65 | W29: =VLOOKUP(D29,'PGB (2)'!$A$3:$O$50,13,FALSE) -> 44816 | X29: =VLOOKUP(D29,'PGB (2)'!$A$3:$O$50,15,FALSE) -> 2744 | Y29: =VLOOKUP(D29,'PGB (2)'!$A$3:$O$50,14,FALSE) -> 47560 | Z29: 3357 | AA29: 41459 | AB29: 44203
A30: 2015 | B30: Intramuraal | C30: LVG4 | D30: 4LVG | E30: ja | F30: hoog | G30: nee | H30: 263.13 | I30: 22.66 | J30: 104313.35 | K30: nvt | L30: nvt | M30: 104313.35 | N30: 246.46 | O30: 89957.9 | P30: nvt | Q30: nvt | S30: 89957.9 | T30: nvt | U30: nvt | V30: 89957.9 | W30: =VLOOKUP(D30,'PGB (2)'!$A$3:$O$50,13,FALSE) -> 56215 | X30: =VLOOKUP(D30,'PGB (2)'!$A$3:$O$50,15,FALSE) -> 5487 | Y30: =VLOOKUP(D30,'PGB (2)'!$A$3:$O$50,14,FALSE) -> 61702 | Z30: 3357 | AA30: 52858 | AB30: 58345
A31: 2015 | B31: Intramuraal | C31: LVG5 | D31: 5LVG | E31: ja | F31: hoog | G31: nee | H31: 261.93 | I31: 22.66 | J31: 103875.35 | K31: nvt | L31: nvt | M31: 103875.35 | N31: 245.29 | O31: 89530.85 | P31: nvt | Q31: nvt | S31: 89530.85 | T31: nvt | U31: nvt | V31: 89530.85 | W31: =VLOOKUP(D31,'PGB (2)'!$A$3:$O$50,13,FALSE) -> 56215 | X31: =VLOOKUP(D31,'PGB (2)'!$A$3:$O$50,15,FALSE) -> 5487 | Y31: =VLOOKUP(D31,'PGB (2)'!$A$3:$O$50,14,FALSE) -> 61702 | Z31: 3357 | AA31: 52858 | AB31: 58345
A32: 2015 | B32: Intramuraal | C32: SGLVG1 | D32: 1SGLVG | E32: ja | F32: hoog | G32: nee | H32: 340.98 | I32: 23.72 | J32: 133115.5 | K32: nvt | L32: nvt | M32: 133115.5 | N32: 320.96 | O32: 117150.4 | P32: nvt | Q32: nvt | S32: 117150.4 | T32: nvt | U32: nvt | V32: 117150.4 | W32: =VLOOKUP(D32,'PGB (2)'!$A$3:$O$50,13,FALSE) -> 47259 | X32: =VLOOKUP(D32,'PGB (2)'!$A$3:$O$50,15,FALSE) -> 8232 | Y32: =VLOOKUP(D32,'PGB (2)'!$A$3:$O$50,14,FALSE) -> 55491 | Z32: 3357 | AA32: 43902 | AB32: 52134
A33: 2015 | B33: Intramuraal | C33: 1LG | D33: 1LG | E33: nee | F33: laag | G33: nee | H33: 89.48 | I33: 12.4 | J33: 37186.2 | K33: 17512.7 | L33: nvt | M33: 54698.9 | N33: 86.31 | O33: 31503.15 | P33: 16187.75 | Q33: nvt | S33: 31503.15 | T33: =SUM(O33,P33) -> 47690.9 | U33: nvt | V33: 47690.9 | W33: =VLOOKUP(D33,'PGB (2)'!$A$3:$O$50,13,FALSE) -> 25995 | X33: =VLOOKUP(D33,'PGB (2)'!$A$3:$O$50,15,FALSE) -> 16170 | Y33: =VLOOKUP(D33,'PGB (2)'!$A$3:$O$50,14,FALSE) -> 42165 | Z33: 3357 | AA33: 22638 | AB33: 38808
A34: 2015 | B34: Intramuraal | C34: 2LG | D34: 2LG | E34: nee | F34: hoog | G34: ja | H34: 118.87 | I34: 12.4 | J34: 47913.55 | K34: 16085.55 | L34: nvt | M34: 63999.1 | N34: 114.28 | O34: 41712.2 | P34: 14738.7 | Q34: nvt | S34: 41712.2 | T34: 56450.9 | U34: nvt | V34: 56450.9 | W34: =VLOOKUP(D34,'PGB (2)'!$A$3:$O$50,13,FALSE) -> 34215 | X34: =VLOOKUP(D34,'PGB (2)'!$A$3:$O$50,15,FALSE) -> 16170 | Y34: =VLOOKUP(D34,'PGB (2)'!$A$3:$O$50,14,FALSE) -> 50385 | Z34: 3357 | AA34: 30858 | AB34: 47028
A35: 2015 | B35: Intramuraal | C35: 3LG | D35: 3LG | E35: nee | F35: laag | G35: nee | H35: 104.18 | I35: 12.4 | J35: 42551.7 | K35: 17512.7 | L35: 11563.2 | M35: 71627.6 | N35: 100.3 | O35: 36609.5 | P35: 16191.4 | Q35: 8511.8 | R35: 163.6884615 | S35: 36609.5 | T35: 52800.9 | U35: =SUM(O35,Q35) -> 45121.3 | V35: 61312.7 | W35: =VLOOKUP(D35,'PGB (2)'!$A$3:$O$50,13,FALSE) -> 28256 | X35: =VLOOKUP(D35,'PGB (2)'!$A$3:$O$50,15,FALSE) -> 18622 | Y35: =VLOOKUP(D35,'PGB (2)'!$A$3:$O$50,14,FALSE) -> 46878 | Z35: 3357 | AA35: 24899 | AB35: 43521
A36: 2015 | B36: Intramuraal | C36: 4LG | D36: 4LG | E36: nee | F36: hoog | G36: ja | H36: 120.74 | I36: 12.4 | J36: 48596.1 | K36: 16081.9 | L36: 11756.65 | M36: 76434.65 | N36: 116.06 | O36: 42361.9 | P36: 14735.05 | Q36: 8697.95 | R36: 167.2682692 | S36: 42361.9 | T36: 57096.95 | U36: 51059.85 | V36: 65794.9 | W36: =VLOOKUP(D36,'PGB (2)'!$A$3:$O$50,13,FALSE) -> 34215 | X36: =VLOOKUP(D36,'PGB (2)'!$A$3:$O$50,15,FALSE) -> 16170 | Y36: =VLOOKUP(D36,'PGB (2)'!$A$3:$O$50,14,FALSE) -> 50385 | Z36: 3357 | AA36: 30858 | AB36: 47028
A37: 2015 | B37: Intramuraal | C37: 5LG | D37: 5LG | E37: ja | F37: hoog | G37: ja | H37: 143.06 | I37: 13.92 | J37: 57297.7 | K37: 17658.7 | L37: 14457.65 | M37: 89414.05 | N37: 137.32 | O37: 50121.8 | P37: 16191.4 | Q37: 10384.25 | R37: 199.6971154 | S37: 50121.8 | T37: 66313.2 | U37: 60506.05 | V37: 76697.45 | W37: =VLOOKUP(D37,'PGB (2)'!$A$3:$O$50,13,FALSE) -> 41244 | X37: =VLOOKUP(D37,'PGB (2)'!$A$3:$O$50,15,FALSE) -> 18622 | Y37: =VLOOKUP(D37,'PGB (2)'!$A$3:$O$50,14,FALSE) -> 59866 | Z37: 3357 | AA37: 37887 | AB37: 56509
A38: 2015 | B38: Intramuraal | C38: 6LG | D38: 6LG | E38: nee | F38: hoog | G38: ja | H38: 157.17 | I38: 16.34 | J38: 63331.15 | K38: 16552.75 | L38: 16362.95 | M38: 96246.85 | N38: 150.75 | O38: 55023.75 | P38: 14738.7 | Q38: 12194.65 | R38: 234.5125 | S38: 55023.75 | T38: 69762.45 | U38: 67218.4 | V38: 81957.1 | W38: =VLOOKUP(D38,'PGB (2)'!$A$3:$O$50,13,FALSE) -> 49580 | X38: =VLOOKUP(D38,'PGB (2)'!$A$3:$O$50,15,FALSE) -> 16170 | Y38: =VLOOKUP(D38,'PGB (2)'!$A$3:$O$50,14,FALSE) -> 65750 | Z38: 3357 | AA38: 46223 | AB38: 62393
A39: 2015 | B39: Intramuraal | C39: 7LG | D39: 7LG | E39: ja | F39: hoog | G39: ja | H39: 175.64 | I39: 16.34 | J39: 70072.7 | K39: 14216.75 | L39: 15103.7 | M39: 99393.15 | N39: 168.35 | O39: 61447.75 | P39: 12366.2 | Q39: 10993.8 | R39: 211.4192308 | S39: 61447.75 | T39: 73813.95 | U39: 72441.55 | V39: 84807.75 | W39: =VLOOKUP(D39,'PGB (2)'!$A$3:$O$50,13,FALSE) -> 55502 | X39: =VLOOKUP(D39,'PGB (2)'!$A$3:$O$50,15,FALSE) -> 13721 | Y39: =VLOOKUP(D39,'PGB (2)'!$A$3:$O$50,14,FALSE) -> 69223 | Z39: 3357 | AA39: 52145 | AB39: 65866
A40: 2015 | B40: Intramuraal | C40: 1ZGaud | D40: 1ZGaud | E40: nee | F40: laag | G40: nee | H40: 106.17 | I40: 13.84 | J40: 43803.65 | K40: 19527.5 | L40: 6989.75 | M40: 70320.9 | N40: 102.22 | O40: 37310.3 | P40: 18264.6 | Q40: 3916.45 | R40: 75.31634615 | S40: 37310.3 | T40: 55574.9 | U40: 41226.75 | V40: 59491.35 | W40: =VLOOKUP(D40,'PGB (2)'!$A$3:$O$50,13,FALSE) -> 27642 | X40: =VLOOKUP(D40,'PGB (2)'!$A$3:$O$50,15,FALSE) -> 21072 | Y40: =VLOOKUP(D40,'PGB (2)'!$A$3:$O$50,14,FALSE) -> 48714 | Z40: 3357 | AA40: 24285 | AB40: 45357
A41: 2015 | B41: Intramuraal | C41: 2ZGaud | D41: 2ZGaud | E41: nee | F41: hoog | G41: ja | H41: 208.76 | I41: 13.84 | J41: 81249 | K41: 24601 | L41: 11096 | M41: 116946 | N41: 199.88 | O41: 72956.2 | P41: 23411.1 | Q41: 7832.9 | R41: 150.6326923 | S41: 72956.2 | T41: 96367.3 | U41: 80789.1 | V41: 104200.2 | W41: =VLOOKUP(D41,'PGB (2)'!$A$3:$O$50,13,FALSE) -> 63905 | X41: =VLOOKUP(D41,'PGB (2)'!$A$3:$O$50,15,FALSE) -> 23523 | Y41: =VLOOKUP(D41,'PGB (2)'!$A$3:$O$50,14,FALSE) -> 87428 | Z41: 3357 | AA41: 60548 | AB41: 84071
A42: 2015 | B42: Intramuraal | C42: 3ZGaud | D42: 3ZGaud | E42: ja | F42: hoog | G42: ja | H42: 243.59 | I42: 13.13 | J42: 93702.8 | K42: 28247.35 | L42: 11815.05 | M42: 133765.2 | N42: 233.06 | O42: 85066.9 | P42: 26845.75 | Q42: 7829.25 | R42: 150.5625 | S42: 85066.9 | T42: 111912.65 | U42: 92896.15 | V42: 119741.9 | W42: =VLOOKUP(D42,'PGB (2)'!$A$3:$O$50,13,FALSE) -> 80032 | X42: =VLOOKUP(D42,'PGB (2)'!$A$3:$O$50,15,FALSE) -> 23523 | Y42: =VLOOKUP(D42,'PGB (2)'!$A$3:$O$50,14,FALSE) -> 103555 | Z42: 3357 | AA42: 76675 | AB42: 100198
A43: 2015 | B43: Intramuraal | C43: 4ZGaud | D43: 4ZGaud | E43: nee | F43: hoog | G43: ja | H43: 155.97 | I43: 13.84 | J43: 61980.65 | K43: 19527.5 | L43: 11106.95 | M43: 92615.1 | N43: 149.64 | O43: 54618.6 | P43: 18257.3 | Q43: 7829.25 | R43: 150.5625 | S43: 54618.6 | T43: 72875.9 | U43: 62447.85 | V43: 80705.15 | W43: =VLOOKUP(D43,'PGB (2)'!$A$3:$O$50,13,FALSE) -> 47259 | X43: =VLOOKUP(D43,'PGB (2)'!$A$3:$O$50,15,FALSE) -> 18622 | Y43: =VLOOKUP(D43,'PGB (2)'!$A$3:$O$50,14,FALSE) -> 65881 | Z43: 3357 | AA43: 43902 | AB43: 62524
A44: 2015 | B44: Intramuraal | C44: 1ZGvis | D44: 1ZGvis | E44: nee | F44: laag | G44: nee | H44: 70.88 | I44: 13.84 | J44: 30922.8 | K44: 16523.55 | L44: nvt | M44: 47446.35 | N44: 68.62 | O44: 25046.3 | P44: 15216.85 | Q44: nvt | S44: 25046.3 | T44: 40263.15 | U44: nvt | V44: 40263.15 | W44: =VLOOKUP(D44,'PGB (2)'!$A$3:$O$50,13,FALSE) -> 18755 | X44: =VLOOKUP(D44,'PGB (2)'!$A$3:$O$50,15,FALSE) -> 16170 | Y44: =VLOOKUP(D44,'PGB (2)'!$A$3:$O$50,14,FALSE) -> 34925 | Z44: 3357 | AA44: 15398 | AB44: 31568
A45: 2015 | B45: Intramuraal | C45: 2ZGvis | D45: 2ZGvis | E45: nee | F45: hoog | G45: ja | H45: 105.68 | I45: 13.84 | J45: 43624.8 | K45: 14023.3 | L45: nvt | M45: 57648.1 | N45: 101.75 | O45: 37138.75 | P45: 12680.1 | Q45: nvt | S45: 37138.75 | T45: 49818.85 | U45: nvt | V45: 49818.85 | W45: =VLOOKUP(D45,'PGB (2)'!$A$3:$O$50,13,FALSE) -> 30636 | X45: =VLOOKUP(D45,'PGB (2)'!$A$3:$O$50,15,FALSE) -> 13721 | Y45: =VLOOKUP(D45,'PGB (2)'!$A$3:$O$50,14,FALSE) -> 44357 | Z45: 3357 | AA45: 27279 | AB45: 41000
A46: 2015 | B46: Intramuraal | C46: 3ZGvis | D46: 3ZGvis | E46: nee | F46: hoog | G46: ja | H46: 129.51 | I46: 13.84 | J46: 52322.75 | K46: 14023.3 | L46: 7825.6 | M46: 74171.65 | N46: 124.46 | O46: 45427.9 | P46: 12680.1 | Q46: 4697.55 | R46: 90.3375 | S46: 45427.9 | T46: 58108 | U46: =SUM(O46,Q46) -> 50125.45 | V46: 62805.55 | W46: =VLOOKUP(D46,'PGB (2)'!$A$3:$O$50,13,FALSE) -> 38210 | X46: =VLOOKUP(D46,'PGB (2)'!$A$3:$O$50,15,FALSE) -> 13721 | Y46: =VLOOKUP(D46,'PGB (2)'!$A$3:$O$50,14,FALSE) -> 51931 | Z46: 3357 | AA46: 34853 | AB46: 48574
A47: 2015 | B47: Intramuraal | C47: 4ZGvis | D47: 4ZGvis | E47: nee | F47: hoog | G47: ja | H47: 164.61 | I47: 14.05 | J47: 65210.9 | K47: 18647.85 | L47: 9891.5 | M47: 93750.25 | N47: 157.88 | O47: 57626.2 | P47: 17111.2 | Q47: 6000.6 | R47: 115.3961538 | S47: 57626.2 | T47: 74737.4 | U47: =SUM(O47,Q47) -> 63626.8 | V47: 80738 | W47: =VLOOKUP(D47,'PGB (2)'!$A$3:$O$50,13,FALSE) -> 51657 | X47: =VLOOKUP(D47,'PGB (2)'!$A$3:$O$50,15,FALSE) -> 18622 | Y47: =VLOOKUP(D47,'PGB (2)'!$A$3:$O$50,14,FALSE) -> 70279 | Z47: 3357 | AA47: 48300 | AB47: 66922
A48: 2015 | B48: Intramuraal | C48: 5ZGvis | D48: 5ZGvis | E48: ja | F48: hoog | G48: ja | H48: 181.11 | I48: 16.51 | J48: 72131.3 | K48: 18965.4 | L48: 11413.55 | M48: 102510.25 | N48: 173.58 | O48: 63356.7 | P48: 17111.2 | Q48: 7449.65 | R48: 143.2625 | S48: 63356.7 | T48: 80467.9 | U48: =SUM(O48,Q48) -> 70806.35 | V48: 87917.55 | W48: =VLOOKUP(D48,'PGB (2)'!$A$3:$O$50,13,FALSE) -> 57617 | X48: =VLOOKUP(D48,'PGB (2)'!$A$3:$O$50,15,FALSE) -> 18622 | Y48: =VLOOKUP(D48,'PGB (2)'!$A$3:$O$50,14,FALSE) -> 76239 | Z48: 3357 | AA48: 54260 | AB48: 72882

Sheet Alles (hidden)
A1: Functie | B1: Prestatiecode | C1: Jaargang | D1: Functie | E1: SG Kenmerk | F1: Prestatiecode | G1: Prestatie | H1: Prestatie | I1: Maximum tarief | J1: Prestatie | K1: Deze kolom gebruiken voor zoeken op prestatie ZZP | L1: Maximum tarief | M1: NHC/NIC | N1: per jaar
A2: BG-GRP | B2: H909 | C2: 2015 | D2: BG-GRP | E2: Dagbesteding | F2: H909 | G2: Inventaris dagbesteding VG H909 | H2: =CONCATENATE(F2," ",G2) -> H909 Inventaris dagbesteding VG H909 | I2: 1.08 | J2: Inventaris dagbesteding VG H909 | K2: Inventaris dagbesteding VG H909 | L2: 1.08 | N2: =SUM(L2:M2)*365 -> 394.2
A3: BG-GRP | B3: H919 | C3: 2015 | D3: BG-GRP | E3: Dagbesteding | F3: H919 | G3: Inventaris dagbesteding LG H919 | H3: H919 Inventaris dagbesteding LG H919 | I3: 1.43 | J3: Inventaris dagbesteding LG H919 | K3: Inventaris dagbesteding LG H919 | L3: 1.43 | N3: 521.95
A4: BG-GRP | B4: H929 | C4: 2015 | D4: BG-GRP | E4: Dagbesteding | F4: H929 | G4: Inventaris dagbesteding ZG H929 | H4: H929 Inventaris dagbesteding ZG H929 | I4: 1.44 | J4: Inventaris dagbesteding ZG H929 | K4: Inventaris dagbesteding ZG H929 | L4: 1.44 | N4: 525.6
A5: BG-GRP | B5: H908 | C5: 2015 | D5: BG-GRP | E5: Dagbesteding | F5: H908 | G5: Kapitaallasten dagbesteding VG H908 | H5: H908 Kapitaallasten dagbesteding VG H908 | I5: 6.66 | J5: Kapitaallasten dagbesteding VG H908 | K5: Kapitaallasten dagbesteding VG H908 | L5: 6.66 | N5: 2430.9
A6: BG-GRP | B6: H974 | C6: 2015 | D6: BG-GRP | E6: Dagbesteding | F6: H974 | G6: Vervoer dagbesteding GHZ intramuraal H974 | H6: H974 Vervoer dagbesteding GHZ intramuraal H974 | I6: 6.9 | J6: Vervoer dagbesteding GHZ intramuraal H974 | K6: Vervoer dagbesteding GHZ intramuraal H974 | L6: 6.9 | N6: 2518.5
A7: BG-GRP | B7: H803 | C7: 2015 | D7: BG-GRP | E7: Dagbesteding | F7: H803 | G7: Vervoer dagbesteding/dagbehandeling V&V H803 | H7: H803 Vervoer dagbesteding/dagbehandeling V&V H803 | I7: 6.98 | J7: Vervoer dagbesteding/dagbehandeling V&V H803 | K7: Vervoer dagbesteding/dagbehandeling V&V H803 | L7: 6.98 | N7: 2547.7
A8: BG-GRP | B8: H928 | C8: 2015 | D8: BG-GRP | E8: Dagbesteding | F8: H928 | G8: Kapitaallasten dagbesteding ZG H928 | H8: H928 Kapitaallasten dagbesteding ZG H928 | I8: 7.01 | J8: Kapitaallasten dagbesteding ZG H928 | K8: Kapitaallasten dagbesteding ZG H928 | L8: 7.01 | N8: 2558.65
A9: BG-GRP | B9: H894 | C9: 2015 | D9: BG-GRP | E9: Dagbesteding | F9: H894 | G9: Vervoer dagbesteding/dagbehandeling GHZ extramuraal H894 | H9: H894 Vervoer dagbesteding/dagbehandeling GHZ extramuraal H894 | I9: 8.24 | J9: Vervoer dagbesteding/dagbehandeling GHZ extramuraal H894 | K9: Vervoer dagbesteding/dagbehandeling GHZ extramuraal H894 | L9: 8.24 | N9: 3007.6
A10: BG-GRP | B10: H918 | C10: 2015 | D10: BG-GRP | E10: Dagbesteding | F10: H918 | G10: Kapitaallasten dagbesteding LG H918 | H10: H918 Kapitaallasten dagbesteding LG H918 | I10: 10.77 | J10: Kapitaallasten dagbesteding LG H918 | K10: Kapitaallasten dagbesteding LG H918 | L10: 10.77 | N10: 3931.05
A11: BG-GRP | B11: F125 | C11: 2015 | D11: BG-GRP | E11: Dagbesteding | F11: F125 | G11: Dagactiviteit GGZ-LZA F125 | H11: F125 Dagactiviteit GGZ-LZA F125 | I11: 11.06 | J11: Dagactiviteit GGZ-LZA F125 | K11: Dagactiviteit GGZ-LZA F125 | L11: 11.06 | N11: 4036.9
A12: BG-GRP | B12: H895 | C12: 2015 | D12: BG-GRP | E12: Dagbesteding | F12: H895 | G12: Vervoer dagbesteding/dagbehandeling GHZ rolstoel extram. H895 | H12: H895 Vervoer dagbesteding/dagbehandeling GHZ rolstoel extram. H895 | I12: 19.9 | J12: Vervoer dagbesteding/dagbehandeling GHZ rolstoel extram. H895 | K12: Vervoer dagbesteding/dagbehandeling GHZ rolstoel extram. H895 | L12: 19.9 | N12: 7263.5
A13: BG-GRP | B13: H896 | C13: 2015 | D13: BG-GRP | E13: Dagbesteding | F13: H896 | G13: Vervoer dagbesteding/dagbeh. kind extramuraal H896 | H13: H896 Vervoer dagbesteding/dagbeh. kind extramuraal H896 | I13: 19.9 | J13: Vervoer dagbesteding/dagbeh. kind extramuraal H896 | K13: Vervoer dagbesteding/dagbeh. kind extramuraal H896 | L13: 19.9 | N13: 7263.5
A14: BG-GRP | B14: H975 | C14: 2015 | D14: BG-GRP | E14: Dagbesteding | F14: H975 | G14: Vervoer dagbesteding GHZ rolstoel intram. H975 | H14: H975 Vervoer dagbesteding GHZ rolstoel intram. H975 | I14: 19.9 | J14: Vervoer dagbesteding GHZ rolstoel intram. H975 | K14: Vervoer dagbesteding GHZ rolstoel intram. H975 | L14: 19.9 | N14: 7263.5
A15: BG-GRP | B15: H976 | C15: 2015 | D15: BG-GRP | E15: Dagbesteding | F15: H976 | G15: Vervoer dagbesteding kind intramuraal H976 | H15: H976 Vervoer dagbesteding kind intramuraal H976 | I15: 19.9 | J15: Vervoer dagbesteding kind intramuraal H976 | K15: Vervoer dagbesteding kind intramuraal H976 | L15: 19.9 | N15: 7263.5
A16: BG-GRP | B16: H940 | C16: 2015 | D16: BG-GRP | E16: Dagbesteding | F16: H940 | G16: Toeslag kind dagbesteding VG licht H940 | H16: H940 Toeslag kind dagbesteding VG licht H940 | I16: 20.83 | J16: Toeslag kind dagbesteding VG licht H940 | K16: Toeslag kind dagbesteding VG licht H940 | L16: 20.83 | N16: 7602.95
A17: BG-GRP | B17: H950 | C17: 2015 | D17: BG-GRP | E17: Dagbesteding | F17: H950 | G17: Toeslag kind dagbesteding LG licht H950 | H17: H950 Toeslag kind dagbesteding LG licht H950 | I17: 20.83 | J17: Toeslag kind dagbesteding LG licht H950 | K17: Toeslag kind dagbesteding LG licht H950 | L17: 20.83 | N17: 7602.95
A18: BG-GRP | B18: H960 | C18: 2015 | D18: BG-GRP | E18: Dagbesteding | F18: H960 | G18: Toeslag kind dagbesteding ZG auditief licht H960 | H18: H960 Toeslag kind dagbesteding ZG auditief licht H960 | I18: 20.83 | J18: Toeslag kind dagbesteding ZG auditief licht H960 | K18: Toeslag kind dagbesteding ZG auditief licht H960 | L18: 20.83 | N18: 7602.95
A19: BG-GRP | B19: H970 | C19: 2015 | D19: BG-GRP | E19: Dagbesteding | F19: H970 | G19: Toeslag kind dagbesteding ZG visueel licht H970 | H19: H970 Toeslag kind dagbesteding ZG visueel licht H970 | I19: 20.83 | J19: Toeslag kind dagbesteding ZG visueel licht H970 | K19: Toeslag kind dagbesteding ZG visueel licht H970 | L19: 20.83 | N19: 7602.95
A20: BG-GRP | B20: H941 | C20: 2015 | D20: BG-GRP | E20: Dagbesteding | F20: H941 | G20: Toeslag kind dagbesteding VG midden H941 | H20: H941 Toeslag kind dagbesteding VG midden H941 | I20: 25.51 | J20: Toeslag kind dagbesteding VG midden H941 | K20: Toeslag kind dagbesteding VG midden H941 | L20: 25.51 | N20: 9311.15
A21: BG-GRP | B21: H951 | C21: 2015 | D21: BG-GRP | E21: Dagbesteding | F21: H951 | G21: Toeslag kind dagbesteding LG midden H951 | H21: H951 Toeslag kind dagbesteding LG midden H951 | I21: 25.51 | J21: Toeslag kind dagbesteding LG midden H951 | K21: Toeslag kind dagbesteding LG midden H951 | L21: 25.51 | N21: 9311.15
A22: BG-GRP | B22: H961 | C22: 2015 | D22: BG-GRP | E22: Dagbesteding | F22: H961 | G22: Toeslag kind dagbesteding ZG auditief midden H961 | H22: H961 Toeslag kind dagbesteding ZG auditief midden H961 | I22: 25.51 | J22: Toeslag kind dagbesteding ZG auditief midden H961 | K22: Toeslag kind dagbesteding ZG auditief midden H961 | L22: 25.51 | N22: 9311.15
A23: BG-GRP | B23: H971 | C23: 2015 | D23: BG-GRP | E23: Dagbesteding | F23: H971 | G23: Toeslag kind dagbesteding ZG visueel midden H971 | H23: H971 Toeslag kind dagbesteding ZG visueel midden H971 | I23: 25.51 | J23: Toeslag kind dagbesteding ZG visueel midden H971 | K23: Toeslag kind dagbesteding ZG visueel midden H971 | L23: 25.51 | N23: 9311.15
A24: BG-GRP | B24: H930 | C24: 2015 | D24: BG-GRP | E24: Dagbesteding | F24: H930 | G24: Dagbesteding ZG vis licht ( ZG vis2, ZG vis3) H930 | H24: H930 Dagbesteding ZG vis licht ( ZG vis2, ZG vis3) H930 | I24: 26.69 | J24: Dagbesteding ZG vis licht ( ZG vis2, ZG vis3) H930 | K24: Dagbesteding ZG vis licht ( ZG vis2, ZG vis3) H930 | L24: 26.69 | N24: 9741.85
A25: BH-GRP | B25: H321 | C25: 2015 | D25: BH-GRP | E25: Behandeling | F25: H321 | G25: Reiskosten prestaties behandeling (H325-H333) H321 | H25: H321 Reiskosten prestaties behandeling (H325-H333) H321 | I25: 27.02 | J25: Reiskosten prestaties behandeling (H325-H333) H321 | K25: Reiskosten prestaties behandeling (H325-H333) H321 | L25: 27.02 | N25: 9862.3
A26: BG-GRP | B26: H900 | C26: 2015 | D26: BG-GRP | E26: Dagbesteding | F26: H900 | G26: Dagbesteding VG-licht (VG1-VG4) H900 | H26: H900 Dagbesteding VG-licht (VG1-VG4) H900 | I26: 27.6 | J26: Dagbesteding VG-licht (VG1-VG4) H900 | K26: Dagbesteding VG-licht (1VG-4VG) H900 | L26: 27.6 | N26: 10074
A27: BG-GRP | B27: H931 | C27: 2015 | D27: BG-GRP | E27: Dagbesteding | F27: H931 | G27: Dagbesteding ZG vis midden (ZG vis1) H931 | H27: H931 Dagbesteding ZG vis midden (ZG vis1) H931 | I27: 32.01 | J27: Dagbesteding ZG vis midden (ZG vis1) H931 | K27: Dagbesteding ZG vis midden (ZG vis1) H931 | L27: 32.01 | N27: 11683.65
A28: BG-GRP | B28: H910 | C28: 2015 | D28: BG-GRP | E28: Dagbesteding | F28: H910 | G28: Dagbesteding LG-licht (7LG) H910 | H28: H910 Dagbesteding LG-licht (7LG) H910 | I28: 33.47 | J28: Dagbesteding LG-licht (7LG) H910 | K28: Dagbesteding LG-licht (7LG) H910 | L28: 33.47 | N28: 12216.55
A29: BG-GRP | B29: H932 | C29: 2015 | D29: BG-GRP | E29: Dagbesteding | F29: H932 | G29: Dagbesteding ZG vis zwaar (ZG vis4, ZG vis5) H932 | H29: H932 Dagbesteding ZG vis zwaar (ZG vis4, ZG vis5) H932 | I29: 36.03 | J29: Dagbesteding ZG vis zwaar (ZG vis4, ZG vis5) H932 | K29: Dagbesteding ZG vis zwaar (ZG vis4, ZG vis5) H932 | L29: 36.03 | N29: 13150.95
A30: BG-GRP | B30: H531 | C30: 2015 | D30: BG-GRP | E30: Dagbesteding | F30: H531 | G30: Dagactiviteit basis H531 | H30: H531 Dagactiviteit basis H531 | I30: 36.34 | J30: Dagactiviteit basis H531 | K30: Dagactiviteit basis H531 | L30: 36.34 | N30: 13264.1
A31: BG-GRP | B31: H901 | C31: 2015 | D31: BG-GRP | E31: Dagbesteding | F31: H901 | G31: Dagbesteding VG-midden (VG5, VG6) H901 | H31: H901 Dagbesteding VG-midden (VG5, VG6) H901 | I31: 37.77 | J31: Dagbesteding VG-midden (VG5, VG6) H901 | K31: Dagbesteding VG-midden (5VG, 6VG) H901 | L31: 37.77 | N31: 13786.05
A32: BG-GRP | B32: H943 | C32: 2015 | D32: BG-GRP | E32: Dagbesteding | F32: H943 | G32: Toeslag kind dagbesteding VG zwaar H943 | H32: H943 Toeslag kind dagbesteding VG zwaar H943 | I32: 38.19 | J32: Toeslag kind dagbesteding VG zwaar H943 | K32: Toeslag kind dagbesteding VG zwaar H943 | L32: 38.19 | N32: 13939.35
A33: BG-GRP | B33: H952 | C33: 2015 | D33: BG-GRP | E33: Dagbesteding | F33: H952 | G33: Toeslag kind dagbesteding LG zwaar H952 | H33: H952 Toeslag kind dagbesteding LG zwaar H952 | I33: 38.19 | J33: Toeslag kind dagbesteding LG zwaar H952 | K33: Toeslag kind dagbesteding LG zwaar H952 | L33: 38.19 | N33: 13939.35
A34: BG-GRP | B34: H962 | C34: 2015 | D34: BG-GRP | E34: Dagbesteding | F34: H962 | G34: Toeslag kind dagbesteding ZG auditief zwaar H962 | H34: =CONCATENATE(F34," ",G34) -> H962 Toeslag kind dagbesteding ZG auditief zwaar H962 | I34: 38.19 | J34: Toeslag kind dagbesteding ZG auditief zwaar H962 | K34: Toeslag kind dagbesteding ZG auditief zwaar H962 | L34: 38.19 | N34: =SUM(L34:M34)*365 -> 13939.35
A35: BG-GRP | B35: H972 | C35: 2015 | D35: BG-GRP | E35: Dagbesteding | F35: H972 | G35: Toeslag kind dagbesteding ZG visueel zwaar H972 | H35: H972 Toeslag kind dagbesteding ZG visueel zwaar H972 | I35: 38.19 | J35: Toeslag kind dagbesteding ZG visueel zwaar H972 | K35: Toeslag kind dagbesteding ZG visueel zwaar H972 | L35: 38.19 | N35: 13939.35
A36: BG-GRP | B36: H920 | C36: 2015 | D36: BG-GRP | E36: Dagbesteding | F36: H920 | G36: Dagbesteding ZG aud licht (ZG aud1, ZG aud4) H920 | H36: H920 Dagbesteding ZG aud licht (ZG aud1, ZG aud4) H920 | I36: 38.41 | J36: Dagbesteding ZG aud licht (ZG aud1, ZG aud4) H920 | K36: Dagbesteding ZG aud licht (ZG aud1, ZG aud4) H920 | L36: 38.41 | N36: 14019.65
A37: BG-GRP | B37: H871 | C37: 2015 | D37: BG-GRP | E37: Dagbesteding | F37: H871 | G37: Dagactiviteit ZG vis licht H871 | H37: H871 Dagactiviteit ZG vis licht H871 | I37: 38.52 | J37: Dagactiviteit ZG vis licht H871 | K37: Dagactiviteit ZG vis licht H871 | L37: 38.52 | N37: 14059.8
A38: BG-GRP | B38: H811 | C38: 2015 | D38: BG-GRP | E38: Dagbesteding | F38: H811 | G38: Dagactiviteit VG licht H811 | H38: H811 Dagactiviteit VG licht H811 | I38: 38.7 | J38: Dagactiviteit VG licht H811 | K38: Dagactiviteit VG licht H811 | L38: 38.7 | N38: 14125.5
A39: BG-GRP | B39: H911 | C39: 2015 | D39: BG-GRP | E39: Dagbesteding | F39: H911 | G39: Dagbesteding LG-midden (2LG,4LG,6LG) H911 | H39: H911 Dagbesteding LG-midden (2LG,4LG,6LG) H911 | I39: 39.87 | J39: Dagbesteding LG-midden (2LG,4LG,6LG) H911 | K39: Dagbesteding LG-midden (2LG,4LG,6LG) H911 | L39: 39.87 | N39: 14552.55
A40: BG-GRP | B40: H912 | C40: 2015 | D40: BG-GRP | E40: Dagbesteding | F40: H912 | G40: Dagbesteding LG-zwaar (1LG,3LG,5LG) H912 | H40: H912 Dagbesteding LG-zwaar (1LG,3LG,5LG) H912 | I40: 43.78 | J40: Dagbesteding LG-zwaar (1LG,3LG,5LG) H912 | K40: Dagbesteding LG-zwaar (1LG,3LG,5LG) H912 | L40: 43.78 | N40: 15979.7
A41: BG-GRP | B41: H872 | C41: 2015 | D41: BG-GRP | E41: Dagbesteding | F41: H872 | G41: Dagactiviteit ZG vis midden H872 | H41: H872 Dagactiviteit ZG vis midden H872 | I41: 43.91 | J41: Dagactiviteit ZG vis midden H872 | K41: Dagactiviteit ZG vis midden H872 | L41: 43.91 | N41: 16027.15
A42: PV | B42: H132 | C42: 2015 | D42: PV | E42: Extramuraal | F42: H132 | G42: Nachtverzorging H132 | H42: H132 Nachtverzorging H132 | I42: 47.76 | J42: Nachtverzorging H132 | K42: Nachtverzorging H132 | L42: 47.76 | N42: 17432.4
A43: BG-GRP | B43: H874 | C43: 2015 | D43: BG-GRP | E43: Dagbesteding | F43: H874 | G43: Dagactiviteit ZG vis kind licht H874 | H43: H874 Dagactiviteit ZG vis kind licht H874 | I43: 47.8 | J43: Dagactiviteit ZG vis kind licht H874 | K43: Dagactiviteit ZG vis kind licht H874 | L43: 47.8 | N43: 17447
A44: BG-GRP | B44: H873 | C44: 2015 | D44: BG-GRP | E44: Dagbesteding | F44: H873 | G44: Dagactiviteit ZG vis zwaar H873 | H44: H873 Dagactiviteit ZG vis zwaar H873 | I44: 47.95 | J44: Dagactiviteit ZG vis zwaar H873 | K44: Dagactiviteit ZG vis zwaar H873 | L44: 47.95 | N44: 17501.75
A45: BG-GRP | B45: H814 | C45: 2015 | D45: BG-GRP | E45: Dagbesteding | F45: H814 | G45: Dagactiviteit VG kind licht H814 | H45: H814 Dagactiviteit VG kind licht H814 | I45: 48.72 | J45: Dagactiviteit VG kind licht H814 | K45: Dagactiviteit VG kind licht H814 | L45: 48.72 | N45: 17782.8
A46: BG-GRP | B46: H812 | C46: 2015 | D46: BG-GRP | E46: Dagbesteding | F46: H812 | G46: Dagactiviteit VG midden H812 | H46: H812 Dagactiviteit VG midden H812 | I46: 48.99 | J46: Dagactiviteit VG midden H812 | K46: Dagactiviteit VG midden H812 | L46: 48.99 | N46: 17881.35
A47: BG-GRP | B47: H921 | C47: 2015 | D47: BG-GRP | E47: Dagbesteding | F47: H921 | G47: Dagbesteding ZG aud midden (ZG aud2) H921 | H47: H921 Dagbesteding ZG aud midden (ZG aud2) H921 | I47: 49.23 | J47: Dagbesteding ZG aud midden (ZG aud2) H921 | K47: Dagbesteding ZG aud midden (ZG aud2) H921 | L47: 49.23 | N47: 17968.95
A48: BG-GRP | B48: H831 | C48: 2015 | D48: BG-GRP | E48: Dagbesteding | F48: H831 | G48: Dagactiviteit LG licht H831 | H48: H831 Dagactiviteit LG licht H831 | I48: 49.41 | J48: Dagactiviteit LG licht H831 | K48: Dagactiviteit LG licht H831 | L48: 49.41 | N48: 18034.65
A49: BG-GRP | B49: H851 | C49: 2015 | D49: BG-GRP | E49: Dagbesteding | F49: H851 | G49: Dagactiviteit ZG aud licht H851 | H49: H851 Dagactiviteit ZG aud licht H851 | I49: 50.4 | J49: Dagactiviteit ZG aud licht H851 | K49: Dagactiviteit ZG aud licht H851 | L49: 50.4 | N49: 18396
A50: PV | B50: H126 | C50: 2015 | D50: PV | E50: Extramuraal | F50: H126 | G50: Persoonlijke Verzorging basis H126 | H50: H126 Persoonlijke Verzorging basis H126 | I50: 51.39 | J50: Persoonlijke Verzorging basis H126 | K50: Persoonlijke Verzorging basis H126 | L50: 51.39 | N50: 18757.35
A51: PV | B51: H136 | C51: 2015 | D51: PV | E51: Extramuraal | F51: H136 | G51: Persoonlijke verzorging zorg op afstand aanvullend H136 | H51: H136 Persoonlijke verzorging zorg op afstand aanvullend H136 | I51: 51.39 | J51: Persoonlijke verzorging zorg op afstand aanvullend H136 | K51: Persoonlijke verzorging zorg op afstand aanvullend H136 | L51: 51.39 | N51: 18757.35
A52: PV | B52: H137 | C52: 2015 | D52: PV | E52: Extramuraal | F52: H137 | G52: Persoonlijke Verzorging farmaceutische telezorg H137 | H52: H137 Persoonlijke Verzorging farmaceutische telezorg H137 | I52: 51.39 | J52: Persoonlijke Verzorging farmaceutische telezorg H137 | K52: Persoonlijke Verzorging farmaceutische telezorg H137 | L52: 51.39 | N52: 18757.35
A53: BG-GRP | B53: H834 | C53: 2015 | D53: BG-GRP | E53: Dagbesteding | F53: H834 | G53: Dagactiviteit LG kind licht H834 | H53: H834 Dagactiviteit LG kind licht H834 | I53: 54.65 | J53: Dagactiviteit LG kind licht H834 | K53: Dagactiviteit LG kind licht H834 | L53: 54.65 | N53: 19947.25
A54: PV | B54: H127 | C54: 2015 | D54: PV | E54: Extramuraal | F54: H127 | G54: Persoonlijke Verzorging extra H127 | H54: H127 Persoonlijke Verzorging extra H127 | I54: 55.04 | J54: Persoonlijke Verzorging extra H127 | K54: Persoonlijke Verzorging extra H127 | L54: 55.04 | N54: 20089.6
A55: BG-IND | B55: H300 | C55: 2015 | D55: BG-IND | E55: Extramuraal | F55: H300 | G55: Begeleiding basis H300 | H55: H300 Begeleiding basis H300 | I55: 55.39 | J55: Begeleiding basis H300 | K55: Begeleiding basis H300 | L55: 55.39 | N55: 20217.35
A56: BG-IND | B56: H305 | C56: 2015 | D56: BG-IND | E56: Extramuraal | F56: H305 | G56: Begeleiding zorg op afstand aanvullend H305 | H56: H305 Begeleiding zorg op afstand aanvullend H305 | I56: 55.39 | J56: Begeleiding zorg op afstand aanvullend H305 | K56: Begeleiding zorg op afstand aanvullend H305 | L56: 55.39 | N56: 20217.35
A57: BG-GRP | B57: H832 | C57: 2015 | D57: BG-GRP | E57: Dagbesteding | F57: H832 | G57: Dagactiviteit LG midden H832 | H57: H832 Dagactiviteit LG midden H832 | I57: 55.9 | J57: Dagactiviteit LG midden H832 | K57: Dagactiviteit LG midden H832 | L57: 55.9 | N57: 20403.5
A58: BG-GRP | B58: H922 | C58: 2015 | D58: BG-GRP | E58: Dagbesteding | F58: H922 | G58: Dagbesteding ZG aud zwaar (ZG aud3) H922 | H58: H922 Dagbesteding ZG aud zwaar (ZG aud3) H922 | I58: 56.48 | J58: Dagbesteding ZG aud zwaar (ZG aud3) H922 | K58: Dagbesteding ZG aud zwaar (ZG aud3) H922 | L58: 56.48 | N58: 20615.2
A59: BG-GRP | B59: H875 | C59: 2015 | D59: BG-GRP | E59: Dagbesteding | F59: H875 | G59: Dagactiviteit ZG vis kind midden H875 | H59: H875 Dagactiviteit ZG vis kind midden H875 | I59: 57.88 | J59: Dagactiviteit ZG vis kind midden H875 | K59: Dagactiviteit ZG vis kind midden H875 | L59: 57.88 | N59: 21126.2
A60: BG-IND | B60: H150 | C60: 2015 | D60: BG-IND | E60: Extramuraal | F60: H150 | G60: Begeleiding extra H150 | H60: H150 Begeleiding extra H150 | I60: 59.33 | J60: Begeleiding extra H150 | K60: Begeleiding extra H150 | L60: 59.33 | N60: 21655.45
A61: BG-GRP | B61: H854 | C61: 2015 | D61: BG-GRP | E61: Dagbesteding | F61: H854 | G61: Dagactiviteit ZG aud kind licht H854 | H61: H854 Dagactiviteit ZG aud kind licht H854 | I61: 59.67 | J61: Dagactiviteit ZG aud kind licht H854 | K61: Dagactiviteit ZG aud kind licht H854 | L61: 59.67 | N61: 21779.55
A62: BG-GRP | B62: H833 | C62: 2015 | D62: BG-GRP | E62: Dagbesteding | F62: H833 | G62: Dagactiviteit LG zwaar H833 | H62: H833 Dagactiviteit LG zwaar H833 | I62: 59.87 | J62: Dagactiviteit LG zwaar H833 | K62: Dagactiviteit LG zwaar H833 | L62: 59.87 | N62: 21852.55
A63: BG-GRP | B63: H852 | C63: 2015 | D63: BG-GRP | E63: Dagbesteding | F63: H852 | G63: Dagactiviteit ZG aud midden H852 | H63: H852 Dagactiviteit ZG aud midden H852 | I63: 61.35 | J63: Dagactiviteit ZG aud midden H852 | K63: Dagactiviteit ZG aud midden H852 | L63: 61.35 | N63: 22392.75
A64: BH-IND | B64: H330 | C64: 2015 | D64: BH-IND | E64: Behandeling | F64: H330 | G64: Behandeling paramedisch H330 | H64: H330 Behandeling paramedisch H330 | I64: 62.22 | J64: Behandeling paramedisch H330 | K64: Behandeling paramedisch H330 | L64: 62.22 | N64: 22710.3
A65: BG-GRP | B65: H815 | C65: 2015 | D65: BG-GRP | E65: Dagbesteding | F65: H815 | G65: Dagactiviteit VG kind midden H815 | H65: H815 Dagactiviteit VG kind midden H815 | I65: 63.7 | J65: Dagactiviteit VG kind midden H815 | K65: Dagactiviteit VG kind midden H815 | L65: 63.7 | N65: 23250.5
A66: BG-GRP | B66: H902 | C66: 2015 | D66: BG-GRP | E66: Dagbesteding | F66: H902 | G66: Dagbesteding VG-zwaar (VG7) H902 | H66: =CONCATENATE(F66," ",G66) -> H902 Dagbesteding VG-zwaar (VG7) H902 | I66: 63.84 | J66: Dagbesteding VG-zwaar (VG7) H902 | K66: Dagbesteding VG-zwaar (7VG) H902 | L66: 63.84 | N66: =SUM(L66:M66)*365 -> 23301.6
A67: BG-GRP | B67: H942 | C67: 2015 | D67: BG-GRP | E67: Dagbesteding | F67: H942 | G67: Toeslag kind dagbesteding VG5/VG8 midden emg H942 | H67: H942 Toeslag kind dagbesteding VG5/VG8 midden emg H942 | I67: 64.26 | J67: Toeslag kind dagbesteding VG5/VG8 midden emg H942 | K67: Toeslag kind dagbesteding 5VG/8VG midden emg H942 | L67: 64.26 | N67: 23454.9
A68: BG-GRP | B68: H835 | C68: 2015 | D68: BG-GRP | E68: Dagbesteding | F68: H835 | G68: Dagactiviteit LG kind midden H835 | H68: H835 Dagactiviteit LG kind midden H835 | I68: 65.83 | J68: Dagactiviteit LG kind midden H835 | K68: Dagactiviteit LG kind midden H835 | L68: 65.83 | N68: 24027.95
A69: BG-GRP | B69: H533 | C69: 2015 | D69: BG-GRP | E69: Dagbesteding | F69: H533 | G69: Dagactiviteit pg H533 | H69: H533 Dagactiviteit pg H533 | I69: 67.16 | J69: Dagactiviteit pg H533 | K69: Dagactiviteit pg H533 | L69: 67.16 | N69: 24513.4
A70: BG-GRP | B70: H800 | C70: 2015 | D70: BG-GRP | E70: Dagbesteding | F70: H800 | G70: Dagactiviteit som-ondersteunend H800 | H70: H800 Dagactiviteit som-ondersteunend H800 | I70: 67.16 | J70: Dagactiviteit som-ondersteunend H800 | K70: Dagactiviteit som-ondersteunend H800 | L70: 67.16 | N70: 24513.4
A71: BG-GRP | B71: H802 | C71: 2015 | D71: BG-GRP | E71: Dagbesteding | F71: H802 | G71: Dagbehandeling ouderen som en pg H802 | H71: H802 Dagbehandeling ouderen som en pg H802 | I71: 67.16 | J71: Dagbehandeling ouderen som en pg H802 | K71: Dagbehandeling ouderen som en pg H802 | L71: 67.16 | N71: 24513.4
A72: BG-GRP | B72: H853 | C72: 2015 | D72: BG-GRP | E72: Dagbesteding | F72: H853 | G72: Dagactiviteit ZG aud zwaar H853 | H72: H853 Dagactiviteit ZG aud zwaar H853 | I72: 68.68 | J72: Dagactiviteit ZG aud zwaar H853 | K72: Dagactiviteit ZG aud zwaar H853 | L72: 68.68 | N72: 25068.2
A73: BG-GRP | B73: H837 | C73: 2015 | D73: BG-GRP | E73: Dagbesteding | F73: H837 | G73: Dagbehandeling LG licht H837 | H73: H837 Dagbehandeling LG licht H837 | I73: 72.37 | J73: Dagbehandeling LG licht H837 | K73: Dagbehandeling LG licht H837 | L73: 72.37 | N73: 26415.05
A74: BG-GRP | B74: H876 | C74: 2015 | D74: BG-GRP | E74: Dagbesteding | F74: H876 | G74: Dagactiviteit ZG vis kind zwaar H876 | H74: H876 Dagactiviteit ZG vis kind zwaar H876 | I74: 74.59 | J74: Dagactiviteit ZG vis kind zwaar H876 | K74: Dagactiviteit ZG vis kind zwaar H876 | L74: 74.59 | N74: 27225.35
A75: BG-GRP | B75: H855 | C75: 2015 | D75: BG-GRP | E75: Dagbesteding | F75: H855 | G75: Dagactiviteit ZG aud kind midden H855 | H75: H855 Dagactiviteit ZG aud kind midden H855 | I75: 75.31 | J75: Dagactiviteit ZG aud kind midden H855 | K75: Dagactiviteit ZG aud kind midden H855 | L75: 75.31 | N75: 27488.15
A76: BG-GRP | B76: H813 | C76: 2015 | D76: BG-GRP | E76: Dagbesteding | F76: H813 | G76: Dagactiviteit VG zwaar H813 | H76: H813 Dagactiviteit VG zwaar H813 | I76: 75.38 | J76: Dagactiviteit VG zwaar H813 | K76: Dagactiviteit VG zwaar H813 | L76: 75.38 | N76: 27513.7
A77: VP | B77: H104 | C77: 2015 | D77: VP | E77: Extramuraal | F77: H104 | G77: Verpleging basis H104 | H77: H104 Verpleging basis H104 | I77: 76.07 | J77: Verpleging basis H104 | K77: Verpleging basis H104 | L77: 76.07 | N77: 27765.55
A78: VP | B78: H107 | C78: 2015 | D78: VP | E78: Extramuraal | F78: H107 | G78: Verpleging zorg op afstand aanvullend H107 | H78: H107 Verpleging zorg op afstand aanvullend H107 | I78: 76.07 | J78: Verpleging zorg op afstand aanvullend H107 | K78: Verpleging zorg op afstand aanvullend H107 | L78: 76.07 | N78: 27765.55
A79: VP | B79: H114 | C79: 2015 | D79: VP | E79: Extramuraal | F79: H114 | G79: Verpleging: AIV H114 | H79: H114 Verpleging: AIV H114 | I79: 76.07 | J79: Verpleging: AIV H114 | K79: Verpleging: AIV H114 | L79: 76.07 | N79: 27765.55
A80: PV | B80: H120 | C80: 2015 | D80: PV | E80: Extramuraal | F80: H120 | G80: Persoonlijke Verzorging speciaal H120 | H80: H120 Persoonlijke Verzorging speciaal H120 | I80: 76.78 | J80: Persoonlijke Verzorging speciaal H120 | K80: Persoonlijke Verzorging speciaal H120 | L80: 76.78 | N80: 28024.7
A81: BG-GRP | B81: H838 | C81: 2015 | D81: BG-GRP | E81: Dagbesteding | F81: H838 | G81: Dagbehandeling LG midden H838 | H81: H838 Dagbehandeling LG midden H838 | I81: 78.94 | J81: Dagbehandeling LG midden H838 | K81: Dagbehandeling LG midden H838 | L81: 78.94 | N81: 28813.1
A82: PV | B82: H128 | C82: 2015 | D82: PV | E82: Extramuraal | F82: H128 | G82: Verpleging extra H128 | H82: H128 Verpleging extra H128 | I82: 81.48 | J82: Verpleging extra H128 | K82: Verpleging extra H128 | L82: 81.48 | N82: 29740.2
A83: BG-GRP | B83: H820 | C83: 2015 | D83: BG-GRP | E83: Dagbesteding | F83: H820 | G83: Dagbehandeling VG kind midden H820 | H83: H820 Dagbehandeling VG kind midden H820 | I83: 81.86 | J83: Dagbehandeling VG kind midden H820 | K83: Dagbehandeling VG kind midden H820 | L83: 81.86 | N83: 29878.9
A84: VP | B84: H106 | C84: 2015 | D84: VP | E84: Extramuraal | F84: H106 | G84: Gespecialiseerde verpleging H106 | H84: H106 Gespecialiseerde verpleging H106 | I84: 82.37 | J84: Gespecialiseerde verpleging H106 | K84: Gespecialiseerde verpleging H106 | L84: 82.37 | N84: 30065.05
A85: BG-GRP | B85: H836 | C85: 2015 | D85: BG-GRP | E85: Dagbesteding | F85: H836 | G85: Dagactiviteit LG kind zwaar H836 | H85: H836 Dagactiviteit LG kind zwaar H836 | I85: 82.47 | J85: Dagactiviteit LG kind zwaar H836 | K85: Dagactiviteit LG kind zwaar H836 | L85: 82.47 | N85: 30101.55
A86: BG-GRP | B86: H839 | C86: 2015 | D86: BG-GRP | E86: Dagbesteding | F86: H839 | G86: Dagbehandeling LG zwaar H839 | H86: H839 Dagbehandeling LG zwaar H839 | I86: 82.96 | J86: Dagbehandeling LG zwaar H839 | K86: Dagbehandeling LG zwaar H839 | L86: 82.96 | N86: 30280.4
A87: BG-IND | B87: H303 | C87: 2015 | D87: BG-IND | E87: Extramuraal | F87: H303 | G87: Begeleiding ZG auditief H303 | H87: H303 Begeleiding ZG auditief H303 | I87: 84.09 | J87: Begeleiding ZG auditief H303 | K87: Begeleiding ZG auditief H303 | L87: 84.09 | N87: 30692.85
A88: BG-GRP | B88: H819 | C88: 2015 | D88: BG-GRP | E88: Dagbesteding | F88: H819 | G88: Dagbehandeling VG emg H819 | H88: H819 Dagbehandeling VG emg H819 | I88: 84.23 | J88: Dagbehandeling VG emg H819 | K88: Dagbehandeling VG emg H819 | L88: 84.23 | N88: 30743.95
A89: BG-IND | B89: H180 | C89: 2015 | D89: BG-IND | E89: Extramuraal | F89: H180 | G89: Nachtverpleging H180 | H89: H180 Nachtverpleging H180 | I89: 88.76 | J89: Nachtverpleging H180 | K89: Nachtverpleging H180 | L89: 88.76 | N89: 32397.4
A90: BG-IND | B90: H152 | C90: 2015 | D90: BG-IND | E90: Extramuraal | F90: H152 | G90: Begeleiding speciaal 1 (nah) H152 | H90: H152 Begeleiding speciaal 1 (nah) H152 | I90: 90.59 | J90: Begeleiding speciaal 1 (nah) H152 | K90: Begeleiding speciaal 1 (nah) H152 | L90: 90.59 | N90: 33065.35
A91: BG-GRP | B91: H856 | C91: 2015 | D91: BG-GRP | E91: Dagbesteding | F91: H856 | G91: Dagactiviteit ZG aud kind zwaar H856 | H91: H856 Dagactiviteit ZG aud kind zwaar H856 | I91: 95.32 | J91: Dagactiviteit ZG aud kind zwaar H856 | K91: Dagactiviteit ZG aud kind zwaar H856 | L91: 95.32 | N91: 34791.8
A92: BG-IND | B92: H153 | C92: 2015 | D92: BG-IND | E92: Extramuraal | F92: H153 | G92: Gespecialiseerde begeleiding (psy) H153 | H92: H153 Gespecialiseerde begeleiding (psy) H153 | I92: 96.37 | J92: Gespecialiseerde begeleiding (psy) H153 | K92: Gespecialiseerde begeleiding (psy) H153 | L92: 96.37 | N92: 35175.05
A93: BG-IND | B93: H301 | C93: 2015 | D93: BG-IND | E93: Extramuraal | F93: H301 | G93: Begeleiding ZG visueel H301 | H93: H301 Begeleiding ZG visueel H301 | I93: 100.7 | J93: Begeleiding ZG visueel H301 | K93: Begeleiding ZG visueel H301 | L93: 100.7 | N93: 36755.5
A94: BG-GRP | B94: H816 | C94: 2015 | D94: BG-GRP | E94: Dagbesteding | F94: H816 | G94: Dagactiviteit VG kind zwaar H816 | H94: H816 Dagactiviteit VG kind zwaar H816 | I94: 102.76 | J94: Dagactiviteit VG kind zwaar H816 | K94: Dagactiviteit VG kind zwaar H816 | L94: 102.76 | N94: 37507.4
A95: BG-GRP | B95: H818 | C95: 2015 | D95: BG-GRP | E95: Dagbesteding | F95: H818 | G95: Dagactiviteit VG kind gedrag H818 | H95: H818 Dagactiviteit VG kind gedrag H818 | I95: 102.76 | J95: Dagactiviteit VG kind gedrag H818 | K95: Dagactiviteit VG kind gedrag H818 | L95: 102.76 | N95: 37507.4
A96: BH-IND | B96: H334 | C96: 2015 | D96: BH-IND | E96: Behandeling | F96: H334 | G96: Behandeling IOG (j)lvg H334 | H96: H334 Behandeling IOG (j)lvg H334 | I96: 106.38 | J96: Behandeling IOG (j)lvg H334 | K96: Behandeling IOG (j)lvg H334 | L96: 106.38 | N96: 38828.7
A97: BG-IND | B97: H304 | C97: 2015 | D97: BG-IND | E97: Extramuraal | F97: H304 | G97: Begeleiding speciaal 2 (auditief) H304 | H97: H304 Begeleiding speciaal 2 (auditief) H304 | I97: 107.18 | J97: Begeleiding speciaal 2 (auditief) H304 | K97: Begeleiding speciaal 2 (auditief) H304 | L97: 107.18 | N97: 39120.7
A98: BH-IND | B98: H325 | C98: 2015 | D98: BH-IND | E98: Behandeling | F98: H325 | G98: Behandeling basis jlvg H325 | H98: =CONCATENATE(F98," ",G98) -> H325 Behandeling basis jlvg H325 | I98: 117.08 | J98: Behandeling basis jlvg H325 | K98: Behandeling basis jlvg H325 | L98: 117.08 | N98: =SUM(L98:M98)*365 -> 42734.2
A99: BH-IND | B99: H326 | C99: 2015 | D99: BH-IND | E99: Behandeling | F99: H326 | G99: Behandeling basis sglvg traject H326 | H99: H326 Behandeling basis sglvg traject H326 | I99: 117.08 | J99: Behandeling basis sglvg traject H326 | K99: Behandeling basis sglvg traject H326 | L99: 117.08 | N99: 42734.2
A100: BH-IND | B100: H327 | C100: 2015 | D100: BH-IND | E100: Behandeling | F100: H327 | G100: Behandeling basis sglvg deeltijd H327 | H100: H327 Behandeling basis sglvg deeltijd H327 | I100: 117.08 | J100: Behandeling basis sglvg deeltijd H327 | K100: Behandeling basis sglvg deeltijd H327 | L100: 117.08 | N100: 42734.2
A101: BH-IND | B101: H328 | C101: 2015 | D101: BH-IND | E101: Behandeling | F101: H328 | G101: Behandeling basis som, pg, vg, lg H328 | H101: H328 Behandeling basis som, pg, vg, lg H328 | I101: 117.08 | J101: Behandeling basis som, pg, vg, lg H328 | K101: Behandeling basis som, pg, vg, lg H328 | L101: 117.08 | N101: 42734.2
A102: BH-IND | B102: H329 | C102: 2015 | D102: BH-IND | E102: Behandeling | F102: H329 | G102: Behandeling gedragswetenschapper H329 | H102: H329 Behandeling gedragswetenschapper H329 | I102: 117.08 | J102: Behandeling gedragswetenschapper H329 | K102: Behandeling gedragswetenschapper H329 | L102: 117.08 | N102: 42734.2
A103: BG-GRP | B103: H817 | C103: 2015 | D103: BG-GRP | E103: Dagbesteding | F103: H817 | G103: Dagbehandeling VG kind emg H817 | H103: H817 Dagbehandeling VG kind emg H817 | I103: 121.39 | J103: Dagbehandeling VG kind emg H817 | K103: Dagbehandeling VG kind emg H817 | L103: 121.39 | N103: 44307.35
A104: BG-GRP | B104: H821 | C104: 2015 | D104: BG-GRP | E104: Dagbesteding | F104: H821 | G104: Dagbehandeling VG kind zwaar H821 | H104: H821 Dagbehandeling VG kind zwaar H821 | I104: 121.39 | J104: Dagbehandeling VG kind zwaar H821 | K104: Dagbehandeling VG kind zwaar H821 | L104: 121.39 | N104: 44307.35
A105: BH-IND | B105: H331 | C105: 2015 | D105: BH-IND | E105: Behandeling | F105: H331 | G105: Behandeling Families First (j)lvg H331 | H105: H331 Behandeling Families First (j)lvg H331 | I105: 122.39 | J105: Behandeling Families First (j)lvg H331 | K105: Behandeling Families First (j)lvg H331 | L105: 122.39 | N105: 44672.35
A106: BG-IND | B106: H302 | C106: 2015 | D106: BG-IND | E106: Extramuraal | F106: H302 | G106: Begeleiding speciaal 2 (visueel) H302 | H106: H302 Begeleiding speciaal 2 (visueel) H302 | I106: 123.79 | J106: Begeleiding speciaal 2 (visueel) H302 | K106: Begeleiding speciaal 2 (visueel) H302 | L106: 123.79 | N106: 45183.35
A107: BG-GRP | B107: H891 | C107: 2015 | D107: BG-GRP | E107: Dagbesteding | F107: H891 | G107: Dagbehandeling JLVG H891 | H107: H891 Dagbehandeling JLVG H891 | I107: 128.36 | J107: Dagbehandeling JLVG H891 | K107: Dagbehandeling JLVG H891 | L107: 128.36 | N107: 46851.4
A108: BH-IND | B108: H333 | C108: 2015 | D108: BH-IND | E108: Behandeling | F108: H333 | G108: Behandeling ZG auditief H333 | H108: H333 Behandeling ZG auditief H333 | I108: 139.34 | J108: Behandeling ZG auditief H333 | K108: Behandeling ZG auditief H333 | L108: 139.34 | N108: 50859.1
A109: BG-GRP | B109: H822 | C109: 2015 | D109: BG-GRP | E109: Dagbesteding | F109: H822 | G109: Dagbehandeling VG kind gedrag H822 | H109: H822 Dagbehandeling VG kind gedrag H822 | I109: 147.47 | J109: Dagbehandeling VG kind gedrag H822 | K109: Dagbehandeling VG kind gedrag H822 | L109: 147.47 | N109: 53826.55
A110: BH-IND | B110: H332 | C110: 2015 | D110: BH-IND | E110: Behandeling | F110: H332 | G110: Behandeling ZG visueel H332 | H110: H332 Behandeling ZG visueel H332 | I110: 155.15 | J110: Behandeling ZG visueel H332 | K110: Behandeling ZG visueel H332 | L110: 155.15 | N110: 56629.75

Sheet VPT (hidden)
A1: Jaargang | B1: SG Kenmerk | C1: Prestatiecode | D1: Prestatie | E1: Prestatie | F1: Deze kolom gebruiken voor zoeken op prestatie ZZP | G1: relevant | H1: Maximum tarief | I1: NHC/NIC | J1: per jaar
A2: 2015 | B2: VPT | C2: V015 | D2: VPT VV1 excl. BH incl. DB V015 | E2: VPT VV1 excl. BHincl. DB | F2: VPT 1VV excl.BH incl.DB | G2: VPT | H2: 65.28 | J2: 23827.2
A3: 2015 | B3: VPT | C3: V025 | D3: VPT VV2 excl. BH incl. DB V025 | E3: VPT VV2 excl. BHincl. DB | F3: VPT 2VV excl.BH incl.DB | G3: VPT | H3: 82.93 | J3: 30269.45
A4: 2015 | B4: VPT | C4: V031 | D4: VPT VV3 excl. BH incl. DB V031 | E4: VPT VV3 excl. BHincl. DB | F4: VPT 3VV excl.BH incl.DB | G4: VPT | H4: 99.99 | J4: 36496.35
A5: 2015 | B5: VPT | C5: V033 | D5: VPT VV3 incl. BH incl. DB V033 | E5: VPT VV3 incl. BHincl. DB | F5: VPT 3VV incl.BH incl.DB | G5: VPT | H5: 119.61 | J5: 43657.65
A6: 2015 | B6: VPT | C6: V041 | D6: VPT VV4 excl. BH incl. DB V041 | E6: VPT VV4 excl. BHincl. DB | F6: VPT 4VV excl.BH incl.DB | G6: VPT | H6: 113.98 | J6: 41602.7
A7: 2015 | B7: VPT | C7: V043 | D7: VPT VV4 incl. BH incl. DB V043 | E7: VPT VV4 incl. BHincl. DB | F7: VPT 4VV incl.BH incl.DB | G7: VPT | H7: 133.61 | J7: 48767.65
A8: 2015 | B8: VPT | C8: V051 | D8: VPT VV5 excl. BH incl. DB V051 | E8: VPT VV5 excl. BHincl. DB | F8: VPT 5VV excl.BH incl.DB | G8: VPT | H8: 157.28 | J8: 57407.2
A9: 2015 | B9: VPT | C9: V053 | D9: VPT VV5 incl. BH incl. DB V053 | E9: VPT VV5 incl. BHincl. DB | F9: VPT 5VV incl.BH incl.DB | G9: VPT | H9: 178.43 | J9: 65126.95
A10: 2015 | B10: VPT | C10: V061 | D10: VPT VV6 excl. BH incl. DB V061 | E10: VPT VV6 excl. BHincl. DB | F10: VPT 6VV excl.BH incl.DB | G10: VPT | H10: 157.26 | J10: 57399.9
A11: 2015 | B11: VPT | C11: V063 | D11: VPT VV6 incl. BH incl. DB V063 | E11: VPT VV6 incl. BHincl. DB | F11: VPT 6VV incl.BH incl.DB | G11: VPT | H11: 178.4 | J11: 65116
A12: 2015 | B12: VPT | C12: V071 | D12: VPT VV7 excl. BH incl. DB V071 | E12: VPT VV7 excl. BHincl. DB | F12: VPT 7VV excl.BH incl.DB | G12: VPT | H12: 184.63 | J12: 67389.95
A13: 2015 | B13: VPT | C13: V073 | D13: VPT VV7 incl. BH incl. DB V073 | E13: VPT VV7 incl. BHincl. DB | F13: VPT 7VV incl.BH incl.DB | G13: VPT | H13: 213.26 | J13: 77839.9
A14: 2015 | B14: VPT | C14: V081 | D14: VPT VV8 excl. BH incl. DB V081 | E14: VPT VV8 excl. BHincl. DB | F14: VPT 8VV excl.BH incl.DB | G14: VPT | H14: 214.51 | J14: 78296.15
A15: 2015 | B15: VPT | C15: V083 | D15: VPT VV8 incl. BH incl. DB V083 | E15: VPT VV8 incl. BHincl. DB | F15: VPT 8VV incl.BH incl.DB | G15: VPT | H15: 243.15 | J15: 88749.75
A16: 2015 | B16: VPT | C16: V095 | D16: VPT VV9b excl. BH incl. DB V095 | E16: VPT VV9b excl. BHincl. DB | F16: VPT 9VVb excl.BH incl.DB | G16: VPT | H16: 153.15 | J16: 55899.75
A17: 2015 | B17: VPT | C17: V097 | D17: VPT VV9b incl. BH incl. DB V097 | E17: VPT VV9b incl. BHincl. DB | F17: VPT 9VVb incl.BH incl.DB | G17: VPT | H17: 211.8 | J17: 77307
A18: 2015 | B18: VPT | C18: V101 | D18: VPT VV10 excl. BH incl. DB V101 | E18: VPT VV10 excl. BHincl. DB | F18: VPT 10VV excl.BH incl.DB | G18: VPT | H18: 234.3 | J18: 85519.5
A19: 2015 | B19: VPT | C19: V103 | D19: VPT VV10 incl. BH incl. DB V103 | E19: VPT VV10 incl. BHincl. DB | F19: VPT 10VV incl.BH incl.DB | G19: VPT | H19: 262.95 | J19: 95976.75
A20: 2015 | B20: VPT | C20: V414 | D20: VPT VG1 excl. BH excl. DB V414 | E20: VPT VG1 excl. BH excl. DB | F20: VPT 1VG excl.BH excl.DB | G20: VPT | H20: 64.38 | J20: 23498.7
A21: 2015 | B21: VPT | C21: V415 | D21: VPT VG1 excl. BH incl. DB V415 | E21: VPT VG1 excl. BHincl. DB | F21: VPT 1VG excl.BH incl.DB | G21: VPT | H21: 100.33 | J21: 36620.45
A22: 2015 | B22: VPT | C22: V424 | D22: VPT VG2 excl. BH excl. DB V424 | E22: VPT VG2 excl. BH excl. DB | F22: VPT 2VG excl.BH excl.DB | G22: VPT | H22: 80.69 | J22: 29451.85
A23: 2015 | B23: VPT | C23: V425 | D23: VPT VG2 excl. BH incl. DB V425 | E23: VPT VG2 excl. BHincl. DB | F23: VPT 2VG excl.BH incl.DB | G23: VPT | H23: 116.63 | J23: 42569.95
A24: 2015 | B24: VPT | C24: V430 | D24: VPT VG3 excl. BH excl. DB V430 | E24: VPT VG3 excl. BH excl. DB | F24: VPT 3VG excl.BH excl.DB | G24: VPT | H24: 94.49 | J24: 34488.85
A25: 2015 | B25: VPT | C25: V431 | D25: VPT VG3 excl. BH incl. DB V431 | E25: VPT VG3 excl. BHincl. DB | F25: VPT 3VG excl.BH incl.DB | G25: VPT | H25: 130.45 | J25: 47614.25
A26: 2015 | B26: VPT | C26: V432 | D26: VPT VG3 incl. BH excl. DB V432 | E26: VPT VG3 incl. BH excl. DB | F26: VPT 3VG incl.BH excl.DB | G26: VPT | H26: 103.39 | J26: 37737.35
A27: 2015 | B27: VPT | C27: V433 | D27: VPT VG3 incl. BH incl. DB V433 | E27: VPT VG3 incl. BHincl. DB | F27: VPT 3VG incl.BH incl.DB | G27: VPT | H27: 139.35 | J27: 50862.75
A28: 2015 | B28: VPT | C28: V440 | D28: VPT VG4 excl. BH excl. DB V440 | E28: VPT VG4 excl. BH excl. DB | F28: VPT 4VG excl.BH excl.DB | G28: VPT | H28: 107.2 | J28: 39128
A29: 2015 | B29: VPT | C29: V441 | D29: VPT VG4 excl. BH incl. DB V441 | E29: VPT VG4 excl. BHincl. DB | F29: VPT 4VG excl.BH incl.DB | G29: VPT | H29: 143.13 | J29: 52242.45
A30: 2015 | B30: VPT | C30: V442 | D30: VPT VG4 incl. BH excl. DB V442 | E30: VPT VG4 incl. BH excl. DB | F30: VPT 4VG incl.BH excl.DB | G30: VPT | H30: 117.7 | J30: 42960.5
A31: 2015 | B31: VPT | C31: V443 | D31: VPT VG4 incl. BH incl. DB V443 | E31: VPT VG4 incl. BHincl. DB | F31: VPT 4VG incl.BH incl.DB | G31: VPT | H31: 153.65 | J31: 56082.25
A32: 2015 | B32: VPT | C32: V454 | D32: VPT VG5 excl. BH excl. DB V454 | E32: VPT VG5 excl. BH excl. DB | F32: VPT 5VG excl.BH excl.DB | G32: VPT | H32: 129.14 | J32: 47136.1
A33: 2015 | B33: VPT | C33: V455 | D33: VPT VG5 excl. BH incl. DB V455 | E33: VPT VG5 excl. BHincl. DB | F33: VPT 5VG excl.BH incl.DB | G33: VPT | H33: 178.29 | J33: 65075.85
A34: 2015 | B34: VPT | C34: V456 | D34: VPT VG5 incl. BH excl. DB V456 | E34: VPT VG5 incl. BH excl. DB | F34: VPT 5VG incl.BH excl.DB | G34: VPT | H34: 144.35 | J34: 52687.75
A35: 2015 | B35: VPT | C35: V457 | D35: VPT VG5 incl. BH incl. DB V457 | E35: VPT VG5 incl. BHincl. DB | F35: VPT 5VG incl.BH incl.DB | G35: VPT | H35: 193.54 | J35: 70642.1
A36: 2015 | B36: VPT | C36: V460 | D36: VPT VG6 excl. BH excl. DB V460 | E36: VPT VG6 excl. BH excl. DB | F36: VPT 6VG excl.BH excl.DB | G36: VPT | H36: 122.45 | J36: 44694.25
A37: 2015 | B37: VPT | C37: V461 | D37: VPT VG6 excl. BH incl. DB V461 | E37: VPT VG6 excl. BHincl. DB | F37: VPT 6VG excl.BH incl.DB | G37: VPT | H37: 171.62 | J37: 62641.3
A38: 2015 | B38: VPT | C38: V462 | D38: VPT VG6 incl. BH excl. DB V462 | E38: VPT VG6 incl. BH excl. DB | F38: VPT 6VG incl.BH excl.DB | G38: VPT | H38: 138.53 | J38: 50563.45
A39: 2015 | B39: VPT | C39: V463 | D39: VPT VG6 incl. BH incl. DB V463 | E39: VPT VG6 incl. BHincl. DB | F39: VPT 6VG incl.BH incl.DB | G39: VPT | H39: 187.71 | J39: 68514.15
A40: 2015 | B40: VPT | C40: V470 | D40: VPT VG7 excl. BH excl. DB V470 | E40: VPT VG7 excl. BH excl. DB | F40: VPT 7VG excl.BH excl.DB | G40: VPT | H40: 158.64 | J40: 57903.6
A41: 2015 | B41: VPT | C41: V471 | D41: VPT VG7 excl. BH incl. DB V471 | E41: VPT VG7 excl. BHincl. DB | F41: VPT 7VG excl.BH incl.DB | G41: VPT | H41: 241.79 | J41: 88253.35
A42: 2015 | B42: VPT | C42: V472 | D42: VPT VG7 incl. BH excl. DB V472 | E42: VPT VG7 incl. BH excl. DB | F42: VPT 7VG incl.BH excl.DB | G42: VPT | H42: 179.58 | J42: 65546.7
A43: 2015 | B43: VPT | C43: V473 | D43: VPT VG7 incl. BH incl. DB V473 | E43: VPT VG7 incl. BHincl. DB | F43: VPT 7VG incl.BH incl.DB | G43: VPT | H43: 262.73 | J43: 95896.45
A44: 2015 | B44: VPT | C44: V480 | D44: VPT VG8 excl. BH excl. DB V480 | E44: VPT VG8 excl. BH excl. DB | F44: VPT 8VG excl.BH excl.DB | G44: VPT | H44: 154.12 | J44: 56253.8
A45: 2015 | B45: VPT | C45: V481 | D45: VPT VG8 excl. BH incl. DB V481 | E45: VPT VG8 excl. BHincl. DB | F45: VPT 8VG excl.BH incl.DB | G45: VPT | H45: 203.3 | J45: 74204.5
A46: 2015 | B46: VPT | C46: V482 | D46: VPT VG8 incl. BH excl. DB V482 | E46: VPT VG8 incl. BH excl. DB | F46: VPT 8VG incl.BH excl.DB | G46: VPT | H46: 169.36 | J46: 61816.4
A47: 2015 | B47: VPT | C47: V483 | D47: VPT VG8 incl. BH incl. DB V483 | E47: VPT VG8 incl. BHincl. DB | F47: VPT 8VG incl.BH incl.DB | G47: VPT | H47: 218.54 | J47: 79767.1
A48: 2015 | B48: VPT | C48: V513 | D48: VPT LVG1 incl. BH incl. DB V513 | E48: VPT LVG1 incl. BHincl. DB | F48: VPT 1LVG incl.BH incl.DB | G48: VPT | H48: 129.03 | J48: 47095.95
A49: 2015 | B49: VPT | C49: V523 | D49: VPT LVG2 incl. BH incl. DB V523 | E49: VPT LVG2 incl. BHincl. DB | F49: VPT 2LVG incl.BH incl.DB | G49: VPT | H49: 167.75 | J49: 61228.75
A50: 2015 | B50: VPT | C50: V533 | D50: VPT LVG3 incl. BH incl. DB V533 | E50: VPT LVG3 incl. BHincl. DB | F50: VPT 3LVG incl.BH incl.DB | G50: VPT | H50: 208.01 | J50: 75923.65
A51: 2015 | B51: VPT | C51: V543 | D51: VPT LVG4 incl. BH incl. DB V543 | E51: VPT LVG4 incl. BHincl. DB | F51: VPT 4LVG incl.BH incl.DB | G51: VPT | H51: 246.46 | J51: 89957.9
A52: 2015 | B52: VPT | C52: V553 | D52: VPT LVG5 incl. BH incl. DB V553 | E52: VPT LVG5 incl. BHincl. DB | F52: VPT 5LVG incl.BH incl.DB | G52: VPT | H52: 245.29 | J52: 89530.85
A53: 2015 | B53: VPT | C53: V573 | D53: VPT SGLVG1 incl. BH incl. DB V573 | E53: VPT SGLVG1 incl. BHincl. DB | F53: VPT SG1LVG incl.BH incl.DB | G53: VPT | H53: 320.96 | J53: 117150.4
A54: 2015 | B54: VPT | C54: V614 | D54: VPT 1LG excl. BH excl. DB V614 | E54: VPT 1LG excl. BH excl. DB | F54: VPT 1LG excl.BH excl.DB | G54: VPT | H54: 86.31 | J54: 31503.15
A55: 2015 | B55: VPT | C55: V615 | D55: VPT 1LG excl. BH incl. DB V615 | E55: VPT 1LG excl. BHincl. DB | F55: VPT 1LG excl.BH incl.DB | G55: VPT | H55: 130.66 | J55: 47690.9
A56: 2015 | B56: VPT | C56: V624 | D56: VPT 2LG excl. BH excl. DB V624 | E56: VPT 2LG excl. BH excl. DB | F56: VPT 2LG excl.BH excl.DB | G56: VPT | H56: 114.28 | J56: 41712.2
A57: 2015 | B57: VPT | C57: V625 | D57: VPT 2LG excl. BH incl. DB V625 | E57: VPT 2LG excl. BHincl. DB | F57: VPT 2LG excl.BH incl.DB | G57: VPT | H57: 154.66 | J57: 56450.9
A58: 2015 | B58: VPT | C58: V630 | D58: VPT 3LG excl. BH excl. DB V630 | E58: VPT 3LG excl. BH excl. DB | F58: VPT 3LG excl.BH excl.DB | G58: VPT | H58: 100.3 | J58: 36609.5
A59: 2015 | B59: VPT | C59: V631 | D59: VPT 3LG excl. BH incl. DB V631 | E59: VPT 3LG excl. BHincl. DB | F59: VPT 3LG excl.BH incl.DB | G59: VPT | H59: 144.66 | J59: 52800.9
A60: 2015 | B60: VPT | C60: V632 | D60: VPT 3LG incl. BH excl. DB V632 | E60: VPT 3LG incl. BH excl. DB | F60: VPT 3LG incl.BH excl.DB | G60: VPT | H60: 123.62 | J60: 45121.3
A61: 2015 | B61: VPT | C61: V633 | D61: VPT 3LG incl. BH incl. DB V633 | E61: VPT 3LG incl. BHincl. DB | F61: VPT 3LG incl.BH incl.DB | G61: VPT | H61: 167.97 | J61: 61309.05
A62: 2015 | B62: VPT | C62: V640 | D62: VPT 4LG excl. BH excl. DB V640 | E62: VPT 4LG excl. BH excl. DB | F62: VPT 4LG excl.BH excl.DB | G62: VPT | H62: 116.06 | J62: 42361.9
A63: 2015 | B63: VPT | C63: V641 | D63: VPT 4LG excl. BH incl. DB V641 | E63: VPT 4LG excl. BHincl. DB | F63: VPT 4LG excl.BH incl.DB | G63: VPT | H63: 156.43 | J63: 57096.95
A64: 2015 | B64: VPT | C64: V642 | D64: VPT 4LG incl. BH excl. DB V642 | E64: VPT 4LG incl. BH excl. DB | F64: VPT 4LG incl.BH excl.DB | G64: VPT | H64: 139.89 | J64: 51059.85
A65: 2015 | B65: VPT | C65: V643 | D65: VPT 4LG incl. BH incl. DB V643 | E65: VPT 4LG incl. BHincl. DB | F65: VPT 4LG incl.BH incl.DB | G65: VPT | H65: 180.27 | J65: 65798.55
A66: 2015 | B66: VPT | C66: V650 | D66: VPT 5LG excl. BH excl. DB V650 | E66: VPT 5LG excl. BH excl. DB | F66: VPT 5LG excl.BH excl.DB | G66: VPT | H66: 137.32 | J66: 50121.8
A67: 2015 | B67: VPT | C67: V651 | D67: VPT 5LG excl. BH incl. DB V651 | E67: VPT 5LG excl. BHincl. DB | F67: VPT 5LG excl.BH incl.DB | G67: VPT | H67: 181.68 | J67: 66313.2
A68: 2015 | B68: VPT | C68: V652 | D68: VPT 5LG incl. BH excl. DB V652 | E68: VPT 5LG incl. BH excl. DB | F68: VPT 5LG incl.BH excl.DB | G68: VPT | H68: 165.77 | J68: 60506.05
A69: 2015 | B69: VPT | C69: V653 | D69: VPT 5LG incl. BH incl. DB V653 | E69: VPT 5LG incl. BHincl. DB | F69: VPT 5LG incl.BH incl.DB | G69: VPT | H69: 210.12 | J69: 76693.8
A70: 2015 | B70: VPT | C70: V660 | D70: VPT 6LG excl. BH excl. DB V660 | E70: VPT 6LG excl. BH excl. DB | F70: VPT 6LG excl.BH excl.DB | G70: VPT | H70: 150.75 | J70: 55023.75
A71: 2015 | B71: VPT | C71: V661 | D71: VPT 6LG excl. BH incl. DB V661 | E71: VPT 6LG excl. BHincl. DB | F71: VPT 6LG excl.BH incl.DB | G71: VPT | H71: 191.13 | J71: 69762.45
A72: 2015 | B72: VPT | C72: V662 | D72: VPT 6LG incl. BH excl. DB V662 | E72: VPT 6LG incl. BH excl. DB | F72: VPT 6LG incl.BH excl.DB | G72: VPT | H72: 184.16 | J72: 67218.4
A73: 2015 | B73: VPT | C73: V663 | D73: VPT 6LG incl. BH incl. DB V663 | E73: VPT 6LG incl. BHincl. DB | F73: VPT 6LG incl.BH incl.DB | G73: VPT | H73: 224.55 | J73: 81960.75
A74: 2015 | B74: VPT | C74: V670 | D74: VPT 7LG excl. BH excl. DB V670 | E74: VPT 7LG excl. BH excl. DB | F74: VPT 7LG excl.BH excl.DB | G74: VPT | H74: 168.35 | J74: 61447.75
A75: 2015 | B75: VPT | C75: V671 | D75: VPT 7LG excl. BH incl. DB V671 | E75: VPT 7LG excl. BHincl. DB | F75: VPT 7LG excl.BH incl.DB | G75: VPT | H75: 202.23 | J75: 73813.95
A76: 2015 | B76: VPT | C76: V672 | D76: VPT 7LG incl. BH excl. DB V672 | E76: VPT 7LG incl. BH excl. DB | F76: VPT 7LG incl.BH excl.DB | G76: VPT | H76: 198.47 | J76: 72441.55
A77: 2015 | B77: VPT | C77: V673 | D77: VPT 7LG incl. BH incl. DB V673 | E77: VPT 7LG incl. BHincl. DB | F77: VPT 7LG incl.BH incl.DB | G77: VPT | H77: 232.35 | J77: 84807.75
A78: 2015 | B78: VPT | C78: V710 | D78: VPT 1ZGaud excl. BH excl. DB V710 | E78: VPT 1ZGaud excl. BH excl. DB | F78: VPT 1ZGaud excl.BH excl.DB | G78: VPT | H78: 102.22 | J78: 37310.3
A79: 2015 | B79: VPT | C79: V711 | D79: VPT 1ZGaud excl. BH incl. DB V711 | E79: VPT 1ZGaud excl. BHincl. DB | F79: VPT 1ZGaud excl.BH incl.DB | G79: VPT | H79: 152.26 | J79: 55574.9
A80: 2015 | B80: VPT | C80: V712 | D80: VPT 1ZGaud incl. BH excl. DB V712 | E80: VPT 1ZGaud incl. BH excl. DB | F80: VPT 1ZGaud incl.BH excl.DB | G80: VPT | H80: 112.95 | J80: 41226.75
A81: 2015 | B81: VPT | C81: V713 | D81: VPT 1ZGaud incl. BH incl. DB V713 | E81: VPT 1ZGaud incl. BHincl. DB | F81: VPT 1ZGaud incl.BH incl.DB | G81: VPT | H81: 162.99 | J81: 59491.35
A82: 2015 | B82: VPT | C82: V720 | D82: VPT 2ZGaud excl. BH excl. DB V720 | E82: VPT 2ZGaud excl. BH excl. DB | F82: VPT 2ZGaud excl.BH excl.DB | G82: VPT | H82: 199.88 | J82: 72956.2
A83: 2015 | B83: VPT | C83: V721 | D83: VPT 2ZGaud excl. BH incl. DB V721 | E83: VPT 2ZGaud excl. BHincl. DB | F83: VPT 2ZGaud excl.BH incl.DB | G83: VPT | H83: 264.02 | J83: 96367.3
A84: 2015 | B84: VPT | C84: V722 | D84: VPT 2ZGaud incl. BH excl. DB V722 | E84: VPT 2ZGaud incl. BH excl. DB | F84: VPT 2ZGaud incl.BH excl.DB | G84: VPT | H84: 221.34 | J84: 80789.1
A85: 2015 | B85: VPT | C85: V723 | D85: VPT 2ZGaud incl. BH incl. DB V723 | E85: VPT 2ZGaud incl. BHincl. DB | F85: VPT 2ZGaud incl.BH incl.DB | G85: VPT | H85: 285.47 | J85: 104196.55
A86: 2015 | B86: VPT | C86: V730 | D86: VPT 3ZGaud excl. BH excl. DB V730 | E86: VPT 3ZGaud excl. BH excl. DB | F86: VPT 3ZGaud excl.BH excl.DB | G86: VPT | H86: 233.06 | J86: 85066.9
A87: 2015 | B87: VPT | C87: V731 | D87: VPT 3ZGaud excl. BH incl. DB V731 | E87: VPT 3ZGaud excl. BHincl. DB | F87: VPT 3ZGaud excl.BH incl.DB | G87: VPT | H87: 306.61 | J87: 111912.65
A88: 2015 | B88: VPT | C88: V732 | D88: VPT 3ZGaud incl. BH excl. DB V732 | E88: VPT 3ZGaud incl. BH excl. DB | F88: VPT 3ZGaud incl.BH excl.DB | G88: VPT | H88: 254.51 | J88: 92896.15
A89: 2015 | B89: VPT | C89: V733 | D89: VPT 3ZGaud incl. BH incl. DB V733 | E89: VPT 3ZGaud incl. BHincl. DB | F89: VPT 3ZGaud incl.BH incl.DB | G89: VPT | H89: 328.08 | J89: 119749.2
A90: 2015 | B90: VPT | C90: V740 | D90: VPT 4ZGaud excl. BH excl. DB V740 | E90: VPT 4ZGaud excl. BH excl. DB | F90: VPT 4ZGaud excl.BH excl.DB | G90: VPT | H90: 149.64 | J90: 54618.6
A91: 2015 | B91: VPT | C91: V741 | D91: VPT 4ZGaud excl. BH incl. DB V741 | E91: VPT 4ZGaud excl. BHincl. DB | F91: VPT 4ZGaud excl.BH incl.DB | G91: VPT | H91: 199.66 | J91: 72875.9
A92: 2015 | B92: VPT | C92: V742 | D92: VPT 4ZGaud incl. BH excl. DB V742 | E92: VPT 4ZGaud incl. BH excl. DB | F92: VPT 4ZGaud incl.BH excl.DB | G92: VPT | H92: 171.09 | J92: 62447.85
A93: 2015 | B93: VPT | C93: V743 | D93: VPT 4ZGaud incl. BH incl. DB V743 | E93: VPT 4ZGaud incl. BHincl. DB | F93: VPT 4ZGaud incl.BH incl.DB | G93: VPT | H93: 221.12 | J93: 80708.8
A94: 2015 | B94: VPT | C94: V814 | D94: VPT 1ZGvis excl. BH excl. DB V814 | E94: VPT 1ZGvis excl. BH excl. DB | F94: VPT 1ZGvis excl.BH excl.DB | G94: VPT | H94: 68.62 | J94: 25046.3
A95: 2015 | B95: VPT | C95: V815 | D95: VPT 1ZGvis excl. BH incl. DB V815 | E95: VPT 1ZGvis excl. BHincl. DB | F95: VPT 1ZGvis excl.BH incl.DB | G95: VPT | H95: 110.31 | J95: 40263.15
A96: 2015 | B96: VPT | C96: V824 | D96: VPT 2ZGvis excl. BH excl. DB V824 | E96: VPT 2ZGvis excl. BH excl. DB | F96: VPT 2ZGvis excl.BH excl.DB | G96: VPT | H96: 101.75 | J96: 37138.75
A97: 2015 | B97: VPT | C97: V825 | D97: VPT 2ZGvis excl. BH incl. DB V825 | E97: VPT 2ZGvis excl. BHincl. DB | F97: VPT 2ZGvis excl.BH incl.DB | G97: VPT | H97: 136.49 | J97: 49818.85
A98: 2015 | B98: VPT | C98: V830 | D98: VPT 3ZGvis excl. BH excl. DB V830 | E98: VPT 3ZGvis excl. BH excl. DB | F98: VPT 3ZGvis excl.BH excl.DB | G98: VPT | H98: 124.46 | J98: 45427.9
A99: 2015 | B99: VPT | C99: V831 | D99: VPT 3ZGvis excl. BH incl. DB V831 | E99: VPT 3ZGvis excl. BHincl. DB | F99: VPT 3ZGvis excl.BH incl.DB | G99: VPT | H99: 159.2 | J99: 58108
A100: 2015 | B100: VPT | C100: V832 | D100: VPT 3ZGvis incl. BH excl. DB V832 | E100: VPT 3ZGvis incl. BH excl. DB | F100: VPT 3ZGvis incl.BH excl.DB | G100: VPT | H100: 137.33 | J100: 50125.45
A101: 2015 | B101: VPT | C101: V833 | D101: VPT 3ZGvis incl. BH incl. DB V833 | E101: VPT 3ZGvis incl. BHincl. DB | F101: VPT 3ZGvis incl.BH incl.DB | G101: VPT | H101: 172.08 | J101: 62809.2
A102: 2015 | B102: VPT | C102: V840 | D102: VPT 4ZGvis excl. BH excl. DB V840 | E102: VPT 4ZGvis excl. BH excl. DB | F102: VPT 4ZGvis excl.BH excl.DB | G102: VPT | H102: 157.88 | J102: 57626.2
A103: 2015 | B103: VPT | C103: V841 | D103: VPT 4ZGvis excl. BH incl. DB V841 | E103: VPT 4ZGvis excl. BHincl. DB | F103: VPT 4ZGvis excl.BH incl.DB | G103: VPT | H103: 204.76 | J103: 74737.4
A104: 2015 | B104: VPT | C104: V842 | D104: VPT 4ZGvis incl. BH excl. DB V842 | E104: VPT 4ZGvis incl. BH excl. DB | F104: VPT 4ZGvis incl.BH excl.DB | G104: VPT | H104: 174.32 | J104: 63626.8
A105: 2015 | B105: VPT | C105: V843 | D105: VPT 4ZGvis incl. BH incl. DB V843 | E105: VPT 4ZGvis incl. BHincl. DB | F105: VPT 4ZGvis incl.BH incl.DB | G105: VPT | H105: 221.2 | J105: 80738
A106: 2015 | B106: VPT | C106: V850 | D106: VPT 5ZGvis excl. BH excl. DB V850 | E106: VPT 5ZGvis excl. BH excl. DB | F106: VPT 5ZGvis excl.BH excl.DB | G106: VPT | H106: 173.58 | J106: 63356.7
A107: 2015 | B107: VPT | C107: V851 | D107: VPT 5ZGvis excl. BH incl. DB V851 | E107: VPT 5ZGvis excl. BHincl. DB | F107: VPT 5ZGvis excl.BH incl.DB | G107: VPT | H107: 220.46 | J107: 80467.9
A108: 2015 | B108: VPT | C108: V852 | D108: VPT 5ZGvis incl. BH excl. DB V852 | E108: VPT 5ZGvis incl. BH excl. DB | F108: VPT 5ZGvis incl.BH excl.DB | G108: VPT | H108: 193.99 | J108: 70806.35
A109: 2015 | B109: VPT | C109: V853 | D109: VPT 5ZGvis incl. BH incl. DB V853 | E109: VPT 5ZGvis incl. BHincl. DB | F109: VPT 5ZGvis incl.BH incl.DB | G109: VPT | H109: 240.87 | J109: 87917.55

Sheet ZZP (hidden)
A1: Jaargang | B1: SG Kenmerk | C1: Prestatiecode | D1: Prestatie | E1: Prestatie | F1: Deze kolom gebruiken voor zoeken op prestatie ZZP | G1: relevant | H1: Maximum tarief | I1: NHC/NIC | J1: per jaar | K1: BGGRP | L1: BH | M1: NHC/NIC
A2: 2015 | B2: Intramuraal | C2: Z015 | D2: VV1 incl. DB Z015 | E2: VV1incl. DB | F2: 1VV excl.BH incl.DB | G2: ZZP | H2: 66.75 | I2: 13.31 | J2: 29221.9
A3: 2015 | B3: Intramuraal | C3: Z025 | D3: VV2 incl. DB Z025 | E3: VV2incl. DB | F3: 2VV excl.BH incl.DB | G3: ZZP | H3: 85.09 | I3: 13.93 | J3: 36142.3
A4: 2015 | B4: Intramuraal | C4: Z031 | D4: VV3 excl. BH incl. DB Z031 | E4: VV3 excl. BHincl. DB | F4: 3VV excl.BH incl.DB | G4: ZZP | H4: 103.14 | I4: 15.13 | J4: 43168.55 | L4: =J5-J4 -> 9639.65 | M4: =I5-I4 -> 0.54
A5: 2015 | B5: Intramuraal | C5: Z033 | D5: VV3 incl. BH incl. DB Z033 | E5: VV3 incl. BHincl. DB | F5: 3VV incl.BH incl.DB | G5: ZZP | H5: 129.01 | I5: 15.67 | J5: 52808.2
A6: 2015 | B6: Intramuraal | C6: Z041 | D6: VV4 excl. BH incl. DB Z041 | E6: VV4 excl. BHincl. DB | F6: 4VV excl.BH incl.DB | G6: ZZP | H6: 117.33 | I6: 15.33 | J6: 48420.9 | L6: =J7-J6 -> 9650.6 | M6: =I7-I6 -> 0.55
A7: 2015 | B7: Intramuraal | C7: Z043 | D7: VV4 incl. BH incl. DB Z043 | E7: VV4 incl. BHincl. DB | F7: 4VV incl.BH incl.DB | G7: ZZP | H7: 143.22 | I7: 15.88 | J7: 58071.5
A8: 2015 | B8: Intramuraal | C8: Z051 | D8: VV5 excl. BH incl. DB Z051 | E8: VV5 excl. BHincl. DB | F8: 5VV excl.BH incl.DB | G8: ZZP | H8: 161.03 | I8: 15.39 | J8: 64393.3 | L8: =J9-J8 -> 10340.45 | M8: =I9-I8 -> 1.12
A9: 2015 | B9: Intramuraal | C9: Z053 | D9: VV5 incl. BH incl. DB Z053 | E9: VV5 incl. BHincl. DB | F9: 5VV incl.BH incl.DB | G9: ZZP | H9: 188.24 | I9: 16.51 | J9: 74733.75
A10: 2015 | B10: Intramuraal | C10: Z061 | D10: VV6 excl. BH incl. DB Z061 | E10: VV6 excl. BHincl. DB | F10: 6VV excl.BH incl.DB | G10: ZZP | H10: 161.33 | I10: 15.35 | J10: 64488.2 | L10: =J11-J10 -> 10475.5 | M10: =I11-I10 -> 1.48
A11: 2015 | B11: Intramuraal | C11: Z063 | D11: VV6 incl. BH incl. DB Z063 | E11: VV6 incl. BHincl. DB | F11: 6VV incl.BH incl.DB | G11: ZZP | H11: 188.55 | I11: 16.83 | J11: 74963.7
A12: 2015 | B12: Intramuraal | C12: Z071 | D12: VV7 excl. BH incl. DB Z071 | E12: VV7 excl. BHincl. DB | F12: 7VV excl.BH incl.DB | G12: ZZP | H12: 189.53 | I12: 15.82 | J12: 74952.75 | L12: =J13-J12 -> 13344.4 | M12: =I13-I12 -> 1.47
A13: 2015 | B13: Intramuraal | C13: Z073 | D13: VV7 incl. BH incl. DB Z073 | E13: VV7 incl. BHincl. DB | F13: 7VV incl.BH incl.DB | G13: ZZP | H13: 224.62 | I13: 17.29 | J13: 88297.15
A14: 2015 | B14: Intramuraal | C14: Z081 | D14: VV8 excl. BH incl. DB Z081 | E14: VV8 excl. BHincl. DB | F14: 8VV excl.BH incl.DB | G14: ZZP | H14: 221.17 | I14: 16.5 | J14: 86749.55 | L14: =J15-J14 -> 13446.6 | M14: =I15-I14 -> 1.76
A15: 2015 | B15: Intramuraal | C15: Z083 | D15: VV8 incl. BH incl. DB Z083 | E15: VV8 incl. BHincl. DB | F15: 8VV incl.BH incl.DB | G15: ZZP | H15: 256.25 | I15: 18.26 | J15: 100196.15
A16: 2015 | B16: Intramuraal | C16: Z095 | D16: VV9b excl. BH incl. DB Z095 | E16: VV9b excl. BHincl. DB | F16: 9VVb excl.BH incl.DB | G16: ZZP | H16: 156.97 | I16: 15.25 | J16: 62860.3 | L16: =J17-J16 -> 26513.6 | M16: =I17-I16 -> 6.04
A17: 2015 | B17: Intramuraal | C17: Z097 | D17: VV9b incl. BH incl. DB Z097 | E17: VV9b incl. BHincl. DB | F17: 9VVb incl.BH incl.DB | G17: ZZP | H17: 223.57 | I17: 21.29 | J17: 89373.9
A18: 2015 | B18: Intramuraal | C18: Z101 | D18: VV10 excl. BH incl. DB Z101 | E18: VV10 excl. BHincl. DB | F18: 10VV excl.BH incl.DB | G18: ZZP | H18: 242 | I18: 16.26 | J18: 94264.9 | L18: =J19-J18 -> 13351.7 | M18: =I19-I18 -> 1.47
A19: 2015 | B19: Intramuraal | C19: Z103 | D19: VV10 incl. BH incl. DB Z103 | E19: VV10 incl. BHincl. DB | F19: 10VV incl.BH incl.DB | G19: ZZP | H19: 277.11 | I19: 17.73 | J19: 107616.6
A20: 2015 | B20: Intramuraal | C20: Z212 | D20: GGZ1B incl. BH excl. DB Z212 | E20: GGZ1B incl. BH excl. DB | F20: 1GGZB incl.BH excl.DB | G20: ZZP | H20: 80.16 | I20: 9.66 | J20: 32784.3
A21: 2015 | B21: Intramuraal | C21: Z213 | D21: GGZ1B incl. BH incl. DB Z213 | E21: GGZ1B incl. BHincl. DB | F21: 1GGZB incl.BH incl.DB | G21: ZZP | H21: 104.78 | I21: 14.75 | J21: 43628.45
A22: 2015 | B22: Intramuraal | C22: Z222 | D22: GGZ2B incl. BH excl. DB Z222 | E22: GGZ2B incl. BH excl. DB | F22: 2GGZB incl.BH excl.DB | G22: ZZP | H22: 118.23 | I22: 9.66 | J22: 46679.85
A23: 2015 | B23: Intramuraal | C23: Z223 | D23: GGZ2B incl. BH incl. DB Z223 | E23: GGZ2B incl. BHincl. DB | F23: 2GGZB incl.BH incl.DB | G23: ZZP | H23: 140.67 | I23: 14.75 | J23: 56728.3
A24: 2015 | B24: Intramuraal | C24: Z232 | D24: GGZ3B incl. BH excl. DB Z232 | E24: GGZ3B incl. BH excl. DB | F24: 3GGZB incl.BH excl.DB | G24: ZZP | H24: 128.72 | I24: 14.03 | J24: 52103.75
A25: 2015 | B25: Intramuraal | C25: Z233 | D25: GGZ3B incl. BH incl. DB Z233 | E25: GGZ3B incl. BHincl. DB | F25: 3GGZB incl.BH incl.DB | G25: ZZP | H25: 153.95 | I25: 19.05 | J25: 63145
A26: 2015 | B26: Intramuraal | C26: Z242 | D26: GGZ4B incl. BH excl. DB Z242 | E26: GGZ4B incl. BH excl. DB | F26: 4GGZB incl.BH excl.DB | G26: ZZP | H26: 148.41 | I26: 14.03 | J26: 59290.6
A27: 2015 | B27: Intramuraal | C27: Z243 | D27: GGZ4B incl. BH incl. DB Z243 | E27: GGZ4B incl. BHincl. DB | F27: 4GGZB incl.BH incl.DB | G27: ZZP | H27: 174.99 | I27: 19.05 | J27: 70824.6
A28: 2015 | B28: Intramuraal | C28: Z252 | D28: GGZ5B incl. BH excl. DB Z252 | E28: GGZ5B incl. BH excl. DB | F28: 5GGZB incl.BH excl.DB | G28: ZZP | H28: 160.44 | I28: 18.15 | J28: 65185.35
A29: 2015 | B29: Intramuraal | C29: Z253 | D29: GGZ5B incl. BH incl. DB Z253 | E29: GGZ5B incl. BHincl. DB | F29: 5GGZB incl.BH incl.DB | G29: ZZP | H29: 187.5 | I29: 23.7 | J29: 77088
A30: 2015 | B30: Intramuraal | C30: Z262 | D30: GGZ6B incl. BH excl. DB Z262 | E30: GGZ6B incl. BH excl. DB | F30: 6GGZB incl.BH excl.DB | G30: ZZP | H30: 217.79 | I30: 16.71 | J30: 85592.5
A31: 2015 | B31: Intramuraal | C31: Z263 | D31: GGZ6B incl. BH incl. DB Z263 | E31: GGZ6B incl. BHincl. DB | F31: 6GGZB incl.BH incl.DB | G31: ZZP | H31: 245.5 | I31: 21.34 | J31: 97396.6
A32: 2015 | B32: Intramuraal | C32: Z272 | D32: GGZ7B incl. BH excl. DB Z272 | E32: GGZ7B incl. BH excl. DB | F32: GGZ7B incl.BH excl.DB | G32: ZZP | H32: 290.49 | I32: 18.73 | J32: 112865.3
A33: 2015 | B33: Intramuraal | C33: Z273 | D33: GGZ7B incl. BH incl. DB Z273 | E33: GGZ7B incl. BHincl. DB | F33: GGZ7B incl.BH incl.DB | G33: ZZP | H33: 334 | I33: 26.09 | J33: 131432.85
A34: 2015 | B34: Intramuraal | C34: Z414 | D34: VG1 excl. DB Z414 | E34: VG1 excl. DB | F34: 1VG excl.BH excl.DB | G34: ZZP | H34: 66.45 | I34: 12.12 | J34: 28678.05
A35: 2015 | B35: Intramuraal | C35: Z415 | D35: VG1 incl. DB Z415 | E35: VG1incl. DB | F35: 1VG excl.BH incl.DB | G35: ZZP | H35: 101.93 | I35: 16.1 | J35: 43080.95
A36: 2015 | B36: Intramuraal | C36: Z424 | D36: VG2 excl. DB Z424 | E36: VG2 excl. DB | F36: 2VG excl.BH excl.DB | G36: ZZP | H36: 83.58 | I36: 12.12 | J36: 34930.5
A37: 2015 | B37: Intramuraal | C37: Z425 | D37: VG2 incl. DB Z425 | E37: VG2incl. DB | F37: 2VG excl.BH incl.DB | G37: ZZP | H37: 119.07 | I37: 16.1 | J37: 49337.05
A38: 2015 | B38: Intramuraal | C38: Z430 | D38: VG3 excl. BH excl. DB Z430 | E38: VG3 excl. BH excl. DB | F38: 3VG excl.BH excl.DB | G38: ZZP | H38: 98.09 | I38: 12.12 | J38: 40226.65
A39: 2015 | B39: Intramuraal | C39: Z431 | D39: VG3 excl. BH incl. DB Z431 | E39: VG3 excl. BHincl. DB | F39: 3VG excl.BH incl.DB | G39: ZZP | H39: 133.57 | I39: 16.1 | J39: 54629.55
A40: 2015 | B40: Intramuraal | C40: Z432 | D40: VG3 incl. BH excl. DB Z432 | E40: VG3 incl. BH excl. DB | F40: 3VG incl.BH excl.DB | G40: ZZP | H40: 113.99 | I40: 12.7 | J40: 46241.85
A41: 2015 | B41: Intramuraal | C41: Z433 | D41: VG3 incl. BH incl. DB Z433 | E41: VG3 incl. BHincl. DB | F41: 3VG incl.BH incl.DB | G41: ZZP | H41: 149.48 | I41: 16.69 | J41: 60652.05
A42: 2015 | B42: Intramuraal | C42: Z440 | D42: VG4 excl. BH excl. DB Z440 | E42: VG4 excl. BH excl. DB | F42: 4VG excl.BH excl.DB | G42: ZZP | H42: 111.4 | I42: 12.12 | J42: 45084.8
A43: 2015 | B43: Intramuraal | C43: Z441 | D43: VG4 excl. BH incl. DB Z441 | E43: VG4 excl. BHincl. DB | F43: 4VG excl.BH incl.DB | G43: ZZP | H43: 146.91 | I43: 16.1 | J43: 59498.65
A44: 2015 | B44: Intramuraal | C44: Z442 | D44: VG4 incl. BH excl. DB Z442 | E44: VG4 incl. BH excl. DB | F44: 4VG incl.BH excl.DB | G44: ZZP | H44: 129.01 | I44: 12.7 | J44: 51724.15
A45: 2015 | B45: Intramuraal | C45: Z443 | D45: VG4 incl. BH incl. DB Z443 | E45: VG4 incl. BHincl. DB | F45: 4VG incl.BH incl.DB | G45: ZZP | H45: 164.5 | I45: 16.69 | J45: 66134.35
A46: 2015 | B46: Intramuraal | C46: Z454 | D46: VG5 excl. BH excl. DB Z454 | E46: VG5 excl. BH excl. DB | F46: 5VG excl.BH excl.DB | G46: ZZP | H46: 134.44 | I46: 13.03 | J46: 53826.55
A47: 2015 | B47: Intramuraal | C47: Z455 | D47: VG5 excl. BH incl. DB Z455 | E47: VG5 excl. BHincl. DB | F47: 5VG excl.BH incl.DB | G47: ZZP | H47: 183 | I47: 17.62 | J47: 73226.3
A48: 2015 | B48: Intramuraal | C48: Z456 | D48: VG5 incl. BH excl. DB Z456 | E48: VG5 incl. BH excl. DB | F48: 5VG incl.BH excl.DB | G48: ZZP | H48: 157 | I48: 16.2 | J48: 63218
A49: 2015 | B49: Intramuraal | C49: Z457 | D49: VG5 incl. BH incl. DB Z457 | E49: VG5 incl. BHincl. DB | F49: 5VG incl.BH incl.DB | G49: ZZP | H49: 205.56 | I49: 20.79 | J49: 82617.75
A50: 2015 | B50: Intramuraal | C50: Z460 | D50: VG6 excl. BH excl. DB Z460 | E50: VG6 excl. BH excl. DB | F50: 6VG excl.BH excl.DB | G50: ZZP | H50: 127.45 | I50: 12.04 | J50: 50913.85
A51: 2015 | B51: Intramuraal | C51: Z461 | D51: VG6 excl. BH incl. DB Z461 | E51: VG6 excl. BHincl. DB | F51: 6VG excl.BH incl.DB | G51: ZZP | H51: 175.98 | I51: 16.61 | J51: 70295.35
A52: 2015 | B52: Intramuraal | C52: Z462 | D52: VG6 incl. BH excl. DB Z462 | E52: VG6 incl. BH excl. DB | F52: 6VG incl.BH excl.DB | G52: ZZP | H52: 150.9 | I52: 15.16 | J52: 60611.9
A53: 2015 | B53: Intramuraal | C53: Z463 | D53: VG6 incl. BH incl. DB Z463 | E53: VG6 incl. BHincl. DB | F53: 6VG incl.BH incl.DB | G53: ZZP | H53: 199.45 | I53: 19.73 | J53: 80000.7
A54: 2015 | B54: Intramuraal | C54: Z470 | D54: VG7 excl. BH excl. DB Z470 | E54: VG7 excl. BH excl. DB | F54: 7VG excl.BH excl.DB | G54: ZZP | H54: 165.45 | I54: 13.03 | J54: 65145.2
A55: 2015 | B55: Intramuraal | C55: Z471 | D55: VG7 excl. BH incl. DB Z471 | E55: VG7 excl. BHincl. DB | F55: 7VG excl.BH incl.DB | G55: ZZP | H55: 247.54 | I55: 17.62 | J55: 96783.4
A56: 2015 | B56: Intramuraal | C56: Z472 | D56: VG7 incl. BH excl. DB Z472 | E56: VG7 incl. BH excl. DB | F56: 7VG incl.BH excl.DB | G56: ZZP | H56: 194 | I56: 16.2 | J56: 76723
A57: 2015 | B57: Intramuraal | C57: Z473 | D57: VG7 incl. BH incl. DB Z473 | E57: VG7 incl. BHincl. DB | F57: 7VG incl.BH incl.DB | G57: ZZP | H57: 276.08 | I57: 20.79 | J57: 108357.55
A58: 2015 | B58: Intramuraal | C58: Z480 | D58: VG8 Excl. BH Excl. DB Z480 | E58: VG8 Excl. BH excl. DB | F58: 8VG excl.BH excl.DB | G58: ZZP | H58: 160.71 | I58: 16.7 | J58: 64754.65
A59: 2015 | B59: Intramuraal | C59: Z481 | D59: VG8 Excl. BH Incl. DB Z481 | E59: VG8 Excl. BHincl. DB | F59: 8VG excl.BH incl.DB | G59: ZZP | H59: 209.27 | I59: 22.18 | J59: 84479.25
A60: 2015 | B60: Intramuraal | C60: Z482 | D60: VG8 Incl. BH Excl. DB Z482 | E60: VG8 Incl. BH excl. DB | F60: 8VG incl.BH excl.DB | G60: ZZP | H60: 183.26 | I60: 19.86 | J60: 74138.8
A61: 2015 | B61: Intramuraal | C61: Z483 | D61: VG8 Incl. BH Incl. DB Z483 | E61: VG8 Incl. BHincl. DB | F61: 8VG incl.BH incl.DB | G61: ZZP | H61: 231.81 | I61: 25.35 | J61: 93863.4
A62: 2015 | B62: Intramuraal | C62: Z513 | D62: LVG1 incl. BH incl. DB Z513 | E62: LVG1 incl. BHincl. DB | F62: 1LVG incl.BH incl.DB | G62: ZZP | H62: 140.71 | I62: 16.69 | J62: 57451
A63: 2015 | B63: Intramuraal | C63: Z523 | D63: LVG2 incl. BH incl. DB Z523 | E63: LVG2 incl. BHincl. DB | F63: 2LVG incl.BH incl.DB | G63: ZZP | H63: 181.3 | I63: 16.69 | J63: 72266.35
A64: 2015 | B64: Intramuraal | C64: Z533 | D64: LVG3 incl. BH incl. DB Z533 | E64: LVG3 incl. BHincl. DB | F64: 3LVG incl.BH incl.DB | G64: ZZP | H64: 223.71 | I64: 22.66 | J64: 89925.05
A65: 2015 | B65: Intramuraal | C65: Z543 | D65: LVG4 incl. BH incl. DB Z543 | E65: LVG4 incl. BHincl. DB | F65: 4LVG incl.BH incl.DB | G65: ZZP | H65: 263.13 | I65: 22.66 | J65: 104313.35
A66: 2015 | B66: Intramuraal | C66: Z553 | D66: LVG5 incl. BH incl. DB Z553 | E66: LVG5 incl. BHincl. DB | F66: 5LVG incl.BH incl.DB | G66: ZZP | H66: 261.93 | I66: 22.66 | J66: 103875.35
A67: 2015 | B67: Intramuraal | C67: Z573 | D67: SGLVG1 incl. BH incl. DB Z573 | E67: SGLVG1 incl. BHincl. DB | F67: 1SGLVG incl.BH incl.DB | G67: ZZP | H67: 340.98 | I67: 23.72 | J67: 133115.5
A68: 2015 | B68: Intramuraal | C68: Z614 | D68: 1LG excl. DB Z614 | E68: 1LG excl. DB | F68: 1LG excl.BH excl.DB | G68: ZZP | H68: 89.48 | I68: 12.4 | J68: 37186.2
A69: 2015 | B69: Intramuraal | C69: Z615 | D69: 1LG incl. DB Z615 | E69: 1LGincl. DB | F69: 1LG excl.BH incl.DB | G69: ZZP | H69: 133.26 | I69: 16.6 | J69: 54698.9
A70: 2015 | B70: Intramuraal | C70: Z624 | D70: 2LG excl. DB Z624 | E70: 2LG excl. DB | F70: 2LG excl.BH excl.DB | G70: ZZP | H70: 118.87 | I70: 12.4 | J70: 47913.55
A71: 2015 | B71: Intramuraal | C71: Z625 | D71: 2LG incl. DB Z625 | E71: 2LGincl. DB | F71: 2LG excl.BH incl.DB | G71: ZZP | H71: 158.74 | I71: 16.6 | J71: 63999.1
A72: 2015 | B72: Intramuraal | C72: Z630 | D72: 3LG excl. BH excl. DB Z630 | E72: 3LG excl. BH excl. DB | F72: 3LG excl.BH excl.DB | G72: ZZP | H72: 104.18 | I72: 12.4 | J72: 42551.7
A73: 2015 | B73: Intramuraal | C73: Z631 | D73: 3LG excl. BH incl. DB Z631 | E73: 3LG excl. BHincl. DB | F73: 3LG excl.BH incl.DB | G73: ZZP | H73: 147.96 | I73: 16.6 | J73: 60064.4
A74: 2015 | B74: Intramuraal | C74: Z632 | D74: 3LG incl. BH excl. DB Z632 | E74: 3LG incl. BH excl. DB | F74: 3LG incl.BH excl.DB | G74: ZZP | H74: 135.22 | I74: 13.04 | J74: 54114.9
A75: 2015 | B75: Intramuraal | C75: Z633 | D75: 3LG incl. BH incl. DB Z633 | E75: 3LG incl. BHincl. DB | F75: 3LG incl.BH incl.DB | G75: ZZP | H75: 179.02 | I75: 17.25 | J75: 71638.55
A76: 2015 | B76: Intramuraal | C76: Z640 | D76: 4LG excl. BH excl. DB Z640 | E76: 4LG excl. BH excl. DB | F76: 4LG excl.BH excl.DB | G76: ZZP | H76: 120.74 | I76: 12.4 | J76: 48596.1
A77: 2015 | B77: Intramuraal | C77: Z641 | D77: 4LG excl. BH incl. DB Z641 | E77: 4LG excl. BHincl. DB | F77: 4LG excl.BH incl.DB | G77: ZZP | H77: 160.6 | I77: 16.6 | J77: 64678
A78: 2015 | B78: Intramuraal | C78: Z642 | D78: 4LG incl. BH excl. DB Z642 | E78: 4LG incl. BH excl. DB | F78: 4LG incl.BH excl.DB | G78: ZZP | H78: 152.31 | I78: 13.04 | J78: 60352.75
A79: 2015 | B79: Intramuraal | C79: Z643 | D79: 4LG incl. BH incl. DB Z643 | E79: 4LG incl. BHincl. DB | F79: 4LG incl.BH incl.DB | G79: ZZP | H79: 192.17 | I79: 17.25 | J79: 76438.3
A80: 2015 | B80: Intramuraal | C80: Z650 | D80: 5LG excl. BH excl. DB Z650 | E80: 5LG excl. BH excl. DB | F80: 5LG excl.BH excl.DB | G80: ZZP | H80: 143.06 | I80: 13.92 | J80: 57297.7
A81: 2015 | B81: Intramuraal | C81: Z651 | D81: 5LG excl. BH incl. DB Z651 | E81: 5LG excl. BHincl. DB | F81: 5LG excl.BH incl.DB | G81: ZZP | H81: 186.85 | I81: 18.51 | J81: 74956.4
A82: 2015 | B82: Intramuraal | C82: Z652 | D82: 5LG incl. BH excl. DB Z652 | E82: 5LG incl. BH excl. DB | F82: 5LG incl.BH excl.DB | G82: ZZP | H82: 179.5 | I82: 17.09 | J82: 71755.35
A83: 2015 | B83: Intramuraal | C83: Z653 | D83: 5LG incl. BH incl. DB Z653 | E83: 5LG incl. BHincl. DB | F83: 5LG incl.BH incl.DB | G83: ZZP | H83: 223.28 | I83: 21.68 | J83: 89410.4
A84: 2015 | B84: Intramuraal | C84: Z660 | D84: 6LG excl. BH excl. DB Z660 | E84: 6LG excl. BH excl. DB | F84: 6LG excl.BH excl.DB | G84: ZZP | H84: 157.17 | I84: 16.34 | J84: 63331.15
A85: 2015 | B85: Intramuraal | C85: Z661 | D85: 6LG excl. BH incl. DB Z661 | E85: 6LG excl. BHincl. DB | F85: 6LG excl.BH incl.DB | G85: ZZP | H85: 197.04 | I85: 21.82 | J85: 79883.9
A86: 2015 | B86: Intramuraal | C86: Z662 | D86: 6LG incl. BH excl. DB Z662 | E86: 6LG incl. BH excl. DB | F86: 6LG incl.BH excl.DB | G86: ZZP | H86: 198.83 | I86: 19.51 | J86: 79694.1
A87: 2015 | B87: Intramuraal | C87: Z663 | D87: 6LG incl. BH incl. DB Z663 | E87: 6LG incl. BHincl. DB | F87: 6LG incl.BH incl.DB | G87: ZZP | H87: 238.67 | I87: 24.99 | J87: 96235.9
A88: 2015 | B88: Intramuraal | C88: Z670 | D88: 7LG excl. BH excl. DB Z670 | E88: 7LG excl. BH excl. DB | F88: 7LG excl.BH excl.DB | G88: ZZP | H88: 175.64 | I88: 16.34 | J88: 70072.7
A89: 2015 | B89: Intramuraal | C89: Z671 | D89: 7LG excl. BH incl. DB Z671 | E89: 7LG excl. BHincl. DB | F89: 7LG excl.BH incl.DB | G89: ZZP | H89: 209.11 | I89: 21.82 | J89: 84289.45
A90: 2015 | B90: Intramuraal | C90: Z672 | D90: 7LG incl. BH excl. DB Z672 | E90: 7LG incl. BH excl. DB | F90: 7LG incl.BH excl.DB | G90: ZZP | H90: 213.85 | I90: 19.51 | J90: 85176.4
A91: 2015 | B91: Intramuraal | C91: Z673 | D91: 7LG incl. BH incl. DB Z673 | E91: 7LG incl. BHincl. DB | F91: 7LG incl.BH incl.DB | G91: ZZP | H91: 247.3 | I91: 24.99 | J91: 99385.85
A92: 2015 | B92: Intramuraal | C92: Z710 | D92: 1ZGaud excl. BH excl. DB Z710 | E92: 1ZGaud excl. BH excl. DB | F92: 1ZGaud excl.BH excl.DB | G92: ZZP | H92: 106.17 | I92: 13.84 | J92: 43803.65
A93: 2015 | B93: Intramuraal | C93: Z711 | D93: 1ZGaud excl. BH incl. DB Z711 | E93: 1ZGaud excl. BHincl. DB | F93: 1ZGaud excl.BH incl.DB | G93: ZZP | H93: 155.56 | I93: 17.95 | J93: 63331.15
A94: 2015 | B94: Intramuraal | C94: Z712 | D94: 1ZGaud incl. BH excl. DB Z712 | E94: 1ZGaud incl. BH excl. DB | F94: 1ZGaud incl.BH excl.DB | G94: ZZP | H94: 124.12 | I94: 15.04 | J94: 50793.4
A95: 2015 | B95: Intramuraal | C95: Z713 | D95: 1ZGaud incl. BH incl. DB Z713 | E95: 1ZGaud incl. BHincl. DB | F95: 1ZGaud incl.BH incl.DB | G95: ZZP | H95: 173.52 | I95: 19.15 | J95: 70324.55
A96: 2015 | B96: Intramuraal | C96: Z720 | D96: 2ZGaud excl. BH excl. DB Z720 | E96: 2ZGaud excl. BH excl. DB | F96: 2ZGaud excl.BH excl.DB | G96: ZZP | H96: 208.76 | I96: 13.84 | J96: 81249
A97: 2015 | B97: Intramuraal | C97: Z721 | D97: 2ZGaud excl. BH incl. DB Z721 | E97: 2ZGaud excl. BHincl. DB | F97: 2ZGaud excl.BH incl.DB | G97: ZZP | H97: 272.05 | I97: 17.95 | J97: 105850
A98: 2015 | B98: Intramuraal | C98: Z722 | D98: 2ZGaud incl. BH excl. DB Z722 | E98: 2ZGaud incl. BH excl. DB | F98: 2ZGaud incl.BH excl.DB | G98: ZZP | H98: 237.96 | I98: 15.04 | J98: 92345
A99: 2015 | B99: Intramuraal | C99: Z723 | D99: 2ZGaud incl. BH incl. DB Z723 | E99: 2ZGaud incl. BHincl. DB | F99: 2ZGaud incl.BH incl.DB | G99: ZZP | H99: 301.29 | I99: 19.15 | J99: 116960.6
A100: 2015 | B100: Intramuraal | C100: Z730 | D100: 3ZGaud excl. BH excl. DB Z730 | E100: 3ZGaud excl. BH excl. DB | F100: 3ZGaud excl.BH excl.DB | G100: ZZP | H100: 243.59 | I100: 13.13 | J100: 93702.8
A101: 2015 | B101: Intramuraal | C101: Z731 | D101: 3ZGaud excl. BH incl. DB Z731 | E101: 3ZGaud excl. BHincl. DB | F101: 3ZGaud excl.BH incl.DB | G101: ZZP | H101: 316.21 | I101: 17.9 | J101: 121950.15
A102: 2015 | B102: Intramuraal | C102: Z732 | D102: 3ZGaud incl. BH excl. DB Z732 | E102: 3ZGaud incl. BH excl. DB | F102: 3ZGaud incl.BH excl.DB | G102: ZZP | H102: 272.82 | I102: 16.27 | J102: 105517.85
A103: 2015 | B103: Intramuraal | C103: Z733 | D103: 3ZGaud incl. BH incl. DB Z733 | E103: 3ZGaud incl. BHincl. DB | F103: 3ZGaud incl.BH incl.DB | G103: ZZP | H103: 345.44 | I103: 21.04 | J103: 133765.2
A104: 2015 | B104: Intramuraal | C104: Z740 | D104: 4ZGaud excl. BH excl. DB Z740 | E104: 4ZGaud excl. BH excl. DB | F104: 4ZGaud excl.BH excl.DB | G104: ZZP | H104: 155.97 | I104: 13.84 | J104: 61980.65
A105: 2015 | B105: Intramuraal | C105: Z741 | D105: 4ZGaud excl. BH incl. DB Z741 | E105: 4ZGaud excl. BHincl. DB | F105: 4ZGaud excl.BH incl.DB | G105: ZZP | H105: 205.36 | I105: 17.95 | J105: 81508.15
A106: 2015 | B106: Intramuraal | C106: Z742 | D106: 4ZGaud incl. BH excl. DB Z742 | E106: 4ZGaud incl. BH excl. DB | F106: 4ZGaud incl.BH excl.DB | G106: ZZP | H106: 185.2 | I106: 15.04 | J106: 73087.6
A107: 2015 | B107: Intramuraal | C107: Z743 | D107: 4ZGaud incl. BH incl. DB Z743 | E107: 4ZGaud incl. BHincl. DB | F107: 4ZGaud incl.BH incl.DB | G107: ZZP | H107: 234.59 | I107: 19.15 | J107: 92615.1
A108: 2015 | B108: Intramuraal | C108: Z814 | D108: 1ZGvis excl. BH excl. DB Z814 | E108: 1ZGvis excl. BH excl. DB | F108: 1ZGvis excl.BH excl.DB | G108: ZZP | H108: 70.88 | I108: 13.84 | J108: 30922.8
A109: 2015 | B109: Intramuraal | C109: Z815 | D109: 1ZGvis excl. BH incl. DB Z815 | E109: 1ZGvis excl. BHincl. DB | F109: 1ZGvis excl.BH incl.DB | G109: ZZP | H109: 112.04 | I109: 17.95 | J109: 47446.35
A110: 2015 | B110: Intramuraal | C110: Z824 | D110: 2ZGvis excl. BH excl. DB Z824 | E110: 2ZGvis excl. BH excl. DB | F110: 2ZGvis excl.BH excl.DB | G110: ZZP | H110: 105.68 | I110: 13.84 | J110: 43624.8
A111: 2015 | B111: Intramuraal | C111: Z825 | D111: 2ZGvis excl. BH incl. DB Z825 | E111: 2ZGvis excl. BHincl. DB | F111: 2ZGvis excl.BH incl.DB | G111: ZZP | H111: 139.99 | I111: 17.95 | J111: 57648.1
A112: 2015 | B112: Intramuraal | C112: Z830 | D112: 3ZGvis excl. BH excl. DB Z830 | E112: 3ZGvis excl. BH excl. DB | F112: 3ZGvis excl.BH excl.DB | G112: ZZP | H112: 129.51 | I112: 13.84 | J112: 52322.75
A113: 2015 | B113: Intramuraal | C113: Z831 | D113: 3ZGvis excl. BH incl. DB Z831 | E113: 3ZGvis excl. BHincl. DB | F113: 3ZGvis excl.BH incl.DB | G113: ZZP | H113: 163.82 | I113: 17.95 | J113: 66346.05
A114: 2015 | B114: Intramuraal | C114: Z832 | D114: 3ZGvis incl. BH excl. DB Z832 | E114: 3ZGvis incl. BH excl. DB | F114: 3ZGvis incl.BH excl.DB | G114: ZZP | H114: 149.75 | I114: 15.04 | J114: 60148.35
A115: 2015 | B115: Intramuraal | C115: Z833 | D115: 3ZGvis incl. BH incl. DB Z833 | E115: 3ZGvis incl. BHincl. DB | F115: 3ZGvis incl.BH incl.DB | G115: ZZP | H115: 184.07 | I115: 19.15 | J115: 74175.3
A116: 2015 | B116: Intramuraal | C116: Z840 | D116: 4ZGvis excl. BH excl. DB Z840 | E116: 4ZGvis excl. BH excl. DB | F116: 4ZGvis excl.BH excl.DB | G116: ZZP | H116: 164.61 | I116: 14.05 | J116: 65210.9
A117: 2015 | B117: Intramuraal | C117: Z841 | D117: 4ZGvis excl. BH incl. DB Z841 | E117: 4ZGvis excl. BHincl. DB | F117: 4ZGvis excl.BH incl.DB | G117: ZZP | H117: 210.93 | I117: 18.82 | J117: 83858.75
A118: 2015 | B118: Intramuraal | C118: Z842 | D118: 4ZGvis incl. BH excl. DB Z842 | E118: 4ZGvis incl. BH excl. DB | F118: 4ZGvis incl.BH excl.DB | G118: ZZP | H118: 188.58 | I118: 17.18 | J118: 75102.4
A119: 2015 | B119: Intramuraal | C119: Z843 | D119: 4ZGvis incl. BH incl. DB Z843 | E119: 4ZGvis incl. BHincl. DB | F119: 4ZGvis incl.BH incl.DB | G119: ZZP | H119: 234.87 | I119: 21.96 | J119: 93742.95
A120: 2015 | B120: Intramuraal | C120: Z850 | D120: 5ZGvis excl. BH excl. DB Z850 | E120: 5ZGvis excl. BH excl. DB | F120: 5ZGvis excl.BH excl.DB | G120: ZZP | H120: 181.11 | I120: 16.51 | J120: 72131.3
A121: 2015 | B121: Intramuraal | C121: Z851 | D121: 5ZGvis excl. BH incl. DB Z851 | E121: 5ZGvis excl. BHincl. DB | F121: 5ZGvis excl.BH incl.DB | G121: ZZP | H121: 227.41 | I121: 22.17 | J121: 91096.7
A122: 2015 | B122: Intramuraal | C122: Z852 | D122: 5ZGvis incl. BH excl. DB Z852 | E122: 5ZGvis incl. BH excl. DB | F122: 5ZGvis incl.BH excl.DB | G122: ZZP | H122: 209.25 | I122: 19.64 | J122: 83544.85
A123: 2015 | B123: Intramuraal | C123: Z853 | D123: 5ZGvis incl. BH incl. DB Z853 | E123: 5ZGvis incl. BHincl. DB | F123: 5ZGvis incl.BH incl.DB | G123: ZZP | H123: 255.53 | I123: 25.31 | J123: 102506.6

Sheet VPT en ZZP (hidden)
A1: Jaargang | B1: SG Kenmerk | C1: Prestatiecode | D1: Prestatie | E1: Prestatie | F1: Deze kolom gebruiken voor zoeken op prestatie ZZP | G1: relevant | H1: Maximum tarief | I1: NHC/NIC | J1: per jaar | K1: BGGRP | L1: BH | M1: BH | N1: NHC/NIC
A2: 2015 | B2: Intramuraal | C2: Z095 | D2: VV9b excl. BH incl. DB Z095 | E2: VV9b excl. BHincl. DB | F2: 9VVb excl.BH incl.DB | G2: ZZP | H2: 156.97 | I2: 15.25 | J2: 62860.3 | L2: =J3-J2 -> -6960.55 | M2: 26513.6 | N2: =I3-I2 -> -15.25
A3: 2015 | B3: VPT | C3: V095 | D3: VPT VV9b excl. BH incl. DB V095 | E3: VPT VV9b excl. BHincl. DB | F3: VPT 9VVb excl.BH incl.DB | G3: VPT | H3: 153.15 | J3: 55899.75 | L3: =J4-J3 -> 7431.4 | M3: 21407.25
A4: 2015 | B4: Intramuraal | C4: Z660 | D4: 6LG excl. BH excl. DB Z660 | E4: 6LG excl. BH excl. DB | F4: 6LG excl.BH excl.DB | G4: ZZP | H4: 157.17 | I4: 16.34 | J4: 63331.15 | K4: =J5-J4 -> 6741.55 | L4: =J6-J4 -> -6033.45 | M4: 16362.95
A5: 2015 | B5: Intramuraal | C5: Z670 | D5: 7LG excl. BH excl. DB Z670 | E5: 7LG excl. BH excl. DB | F5: 7LG excl.BH excl.DB | G5: ZZP | H5: 175.64 | I5: 16.34 | J5: 70072.7 | K5: =J6-J5 -> -12775 | L5: =J7-J5 -> 16676.85 | M5: 15103.7
A6: 2015 | B6: Intramuraal | C6: Z650 | D6: 5LG excl. BH excl. DB Z650 | E6: 5LG excl. BH excl. DB | F6: 5LG excl.BH excl.DB | G6: ZZP | H6: 143.06 | I6: 13.92 | J6: 57297.7 | K6: =J7-J6 -> 29451.85 | L6: =J8-J6 -> 36967.2 | M6: 14457.65
A7: 2015 | B7: Intramuraal | C7: Z081 | D7: VV8 excl. BH incl. DB Z081 | E7: VV8 excl. BHincl. DB | F7: 8VV excl.BH incl.DB | G7: ZZP | H7: 221.17 | I7: 16.5 | J7: 86749.55 | L7: =J8-J7 -> 7515.35 | M7: 13446.6 | N7: =I8-I7 -> -0.24
A8: 2015 | B8: Intramuraal | C8: Z101 | D8: VV10 excl. BH incl. DB Z101 | E8: VV10 excl. BHincl. DB | F8: 10VV excl.BH incl.DB | G8: ZZP | H8: 242 | I8: 16.26 | J8: 94264.9 | L8: =J9-J8 -> -19312.15 | M8: 13351.7 | N8: =I9-I8 -> -0.44
A9: 2015 | B9: Intramuraal | C9: Z071 | D9: VV7 excl. BH incl. DB Z071 | E9: VV7 excl. BHincl. DB | F9: 7VV excl.BH incl.DB | G9: ZZP | H9: 189.53 | I9: 15.82 | J9: 74952.75 | L9: =J10-J9 -> -19929 | M9: 13344.4 | N9: =I10-I9 -> -15.82
A10: 2015 | B10: VPT | C10: V660 | D10: VPT 6LG excl. BH excl. DB V660 | E10: VPT 6LG excl. BH excl. DB | F10: VPT 6LG excl.BH excl.DB | G10: VPT | H10: 150.75 | J10: 55023.75 | K10: =J11-J10 -> 38679.05 | L10: =J12-J10 -> -6427.65 | M10: 12194.65
A11: 2015 | B11: Intramuraal | C11: Z730 | D11: 3ZGaud excl. BH excl. DB Z730 | E11: 3ZGaud excl. BH excl. DB | F11: 3ZGaud excl.BH excl.DB | G11: ZZP | H11: 243.59 | I11: 13.13 | J11: 93702.8 | K11: -45106.7 | L11: -28557.6 | M11: 11815.05
A12: 2015 | B12: Intramuraal | C12: Z640 | D12: 4LG excl. BH excl. DB Z640 | E12: 4LG excl. BH excl. DB | F12: 4LG excl.BH excl.DB | G12: ZZP | H12: 120.74 | I12: 12.4 | J12: 48596.1 | K12: 16549.1 | L12: -6044.4 | M12: 11756.65
A13: 2015 | B13: Intramuraal | C13: Z470 | D13: VG7 excl. BH excl. DB Z470 | E13: VG7 excl. BH excl. DB | F13: 7VG excl.BH excl.DB | G13: ZZP | H13: 165.45 | I13: 13.03 | J13: 65145.2 | K13: -22593.5 | L13: 6986.1 | M13: 11577.8
A14: 2015 | B14: Intramuraal | C14: Z630 | D14: 3LG excl. BH excl. DB Z630 | E14: 3LG excl. BH excl. DB | F14: 3LG excl.BH excl.DB | G14: ZZP | H14: 104.18 | I14: 12.4 | J14: 42551.7 | K14: 29579.6 | L14: 19428.95 | M14: 11563.2
A15: 2015 | B15: Intramuraal | C15: Z850 | D15: 5ZGvis excl. BH excl. DB Z850 | E15: 5ZGvis excl. BH excl. DB | F15: 5ZGvis excl.BH excl.DB | G15: ZZP | H15: 181.11 | I15: 16.51 | J15: 72131.3 | K15: -10150.65 | L15: 9117.7 | M15: 11413.55
A16: 2015 | B16: Intramuraal | C16: Z740 | D16: 4ZGaud excl. BH excl. DB Z740 | E16: 4ZGaud excl. BH excl. DB | F16: 4ZGaud excl.BH excl.DB | G16: ZZP | H16: 155.97 | I16: 13.84 | J16: 61980.65 | K16: 19268.35 | L16: -532.9 | M16: 11106.95
A17: 2015 | B17: Intramuraal | C17: Z720 | D17: 2ZGaud excl. BH excl. DB Z720 | E17: 2ZGaud excl. BH excl. DB | F17: 2ZGaud excl.BH excl.DB | G17: ZZP | H17: 208.76 | I17: 13.84 | J17: 81249 | K17: -19801.25 | L17: -16760.8 | M17: 11096
A18: 2015 | B18: VPT | C18: V670 | D18: VPT 7LG excl. BH excl. DB V670 | E18: VPT 7LG excl. BH excl. DB | F18: VPT 7LG excl.BH excl.DB | G18: VPT | H18: 168.35 | J18: 61447.75 | K18: 3040.45 | L18: 24071.75 | M18: 10993.8
A19: 2015 | B19: Intramuraal | C19: Z061 | D19: VV6 excl. BH incl. DB Z061 | E19: VV6 excl. BHincl. DB | F19: 6VV excl.BH incl.DB | G19: ZZP | H19: 161.33 | I19: 15.35 | J19: 64488.2 | L19: =J20-J19 -> 21031.3 | M19: 10475.5 | N19: =I20-I19 -> -15.35
A20: 2015 | B20: VPT | C20: V101 | D20: VPT VV10 excl. BH incl. DB V101 | E20: VPT VV10 excl. BHincl. DB | F20: VPT 10VV excl.BH incl.DB | G20: VPT | H20: 234.3 | J20: 85519.5 | L20: =J21-J20 -> -7223.35 | M20: 10457.25
A21: 2015 | B21: VPT | C21: V081 | D21: VPT VV8 excl. BH incl. DB V081 | E21: VPT VV8 excl. BHincl. DB | F21: VPT 8VV excl.BH incl.DB | G21: VPT | H21: 214.51 | J21: 78296.15 | L21: =J22-J21 -> -10906.2 | M21: 10453.6
A22: 2015 | B22: VPT | C22: V071 | D22: VPT VV7 excl. BH incl. DB V071 | E22: VPT VV7 excl. BHincl. DB | F22: VPT 7VV excl.BH incl.DB | G22: VPT | H22: 184.63 | J22: 67389.95 | L22: =J23-J22 -> -17268.15 | M22: 10449.95
A23: 2015 | B23: VPT | C23: V650 | D23: VPT 5LG excl. BH excl. DB V650 | E23: VPT 5LG excl. BH excl. DB | F23: VPT 5LG excl.BH excl.DB | G23: VPT | H23: 137.32 | J23: 50121.8 | K23: =J24-J23 -> 14271.5 | L23: =J25-J23 -> 15089.1 | M23: 10384.25
A24: 2015 | B24: Intramuraal | C24: Z051 | D24: VV5 excl. BH incl. DB Z051 | E24: VV5 excl. BHincl. DB | F24: 5VV excl.BH incl.DB | G24: ZZP | H24: 161.03 | I24: 15.39 | J24: 64393.3 | L24: =J25-J24 -> 817.6 | M24: 10340.45 | N24: =I25-I24 -> -1.34
A25: 2015 | B25: Intramuraal | C25: Z840 | D25: 4ZGvis excl. BH excl. DB Z840 | E25: 4ZGvis excl. BH excl. DB | F25: 4ZGvis excl.BH excl.DB | G25: ZZP | H25: 164.61 | I25: 14.05 | J25: 65210.9 | K25: =J26-J25 -> -14297.05 | L25: =J27-J25 -> -16790 | M25: 9891.5
A26: 2015 | B26: Intramuraal | C26: Z460 | D26: VG6 excl. BH excl. DB Z460 | E26: VG6 excl. BH excl. DB | F26: 6VG excl.BH excl.DB | G26: ZZP | H26: 127.45 | I26: 12.04 | J26: 50913.85 | K26: =J27-J26 -> -2492.95 | L26: =J28-J26 -> -7745.3 | M26: 9698.05
A27: 2015 | B27: Intramuraal | C27: Z041 | D27: VV4 excl. BH incl. DB Z041 | E27: VV4 excl. BHincl. DB | F27: 4VV excl.BH incl.DB | G27: ZZP | H27: 117.33 | I27: 15.33 | J27: 48420.9 | L27: =J28-J27 -> -5252.35 | M27: 9650.6 | N27: =I28-I27 -> -0.2
A28: 2015 | B28: Intramuraal | C28: Z031 | D28: VV3 excl. BH incl. DB Z031 | E28: VV3 excl. BHincl. DB | F28: 3VV excl.BH incl.DB | G28: ZZP | H28: 103.14 | I28: 15.13 | J28: 43168.55 | L28: =J29-J28 -> 10658 | M28: 9639.65 | N28: =I29-I28 -> -2.1 | O28: =L28/52 -> 204.9615385
A29: 2015 | B29: Intramuraal | C29: Z454 | D29: VG5 excl. BH excl. DB Z454 | E29: VG5 excl. BH excl. DB | F29: 5VG excl.BH excl.DB | G29: ZZP | H29: 134.44 | I29: 13.03 | J29: 53826.55 | K29: =J30-J29 -> 10928.1 | L29: =J31-J29 -> -11464.65 | M29: 9391.45
A30: 2015 | B30: Intramuraal | C30: Z480 | D30: VG8 Excl. BH Excl. DB Z480 | E30: VG8 Excl. BH excl. DB | F30: 8VG excl.BH excl.DB | G30: ZZP | H30: 160.71 | I30: 16.7 | J30: 64754.65 | K30: -22392.75 | L30: -28145.15 | M30: 9384.15
A31: 2015 | B31: VPT | C31: V640 | D31: VPT 4LG excl. BH excl. DB V640 | E31: VPT 4LG excl. BH excl. DB | F31: VPT 4LG excl.BH excl.DB | G31: VPT | H31: 116.06 | J31: 42361.9 | K31: -5752.4 | L31: 30594.3 | M31: 8697.95
A32: 2015 | B32: VPT | C32: V630 | D32: VPT 3LG excl. BH excl. DB V630 | E32: VPT 3LG excl. BH excl. DB | F32: VPT 3LG excl.BH excl.DB | G32: VPT | H32: 100.3 | J32: 36609.5 | K32: 36346.7 | L32: 48457.4 | M32: 8511.8
A33: 2015 | B33: VPT | C33: V720 | D33: VPT 2ZGaud excl. BH excl. DB V720 | E33: VPT 2ZGaud excl. BH excl. DB | F33: VPT 2ZGaud excl.BH excl.DB | G33: VPT | H33: 199.88 | J33: 72956.2 | K33: 12110.7 | L33: -18337.6 | M33: 7832.9
A34: 2015 | B34: VPT | C34: V730 | D34: VPT 3ZGaud excl. BH excl. DB V730 | E34: VPT 3ZGaud excl. BH excl. DB | F34: VPT 3ZGaud excl.BH excl.DB | G34: VPT | H34: 233.06 | J34: 85066.9 | K34: -30448.3 | L34: -32744.15 | M34: 7829.25
A35: 2015 | B35: VPT | C35: V740 | D35: VPT 4ZGaud excl. BH excl. DB V740 | E35: VPT 4ZGaud excl. BH excl. DB | F35: VPT 4ZGaud excl.BH excl.DB | G35: VPT | H35: 149.64 | J35: 54618.6 | K35: -2295.85 | L35: 2788.6 | M35: 7829.25
A36: 2015 | B36: Intramuraal | C36: Z830 | D36: 3ZGvis excl. BH excl. DB Z830 | E36: 3ZGvis excl. BH excl. DB | F36: 3ZGvis excl.BH excl.DB | G36: ZZP | H36: 129.51 | I36: 13.84 | J36: 52322.75 | K36: 5084.45 | L36: 5077.15 | M36: 7825.6
A37: 2015 | B37: VPT | C37: V051 | D37: VPT VV5 excl. BH incl. DB V051 | E37: VPT VV5 excl. BHincl. DB | F37: VPT 5VV excl.BH incl.DB | G37: VPT | H37: 157.28 | J37: 57407.2 | L37: =J38-J37 -> -7.3 | M37: 7719.75
A38: 2015 | B38: VPT | C38: V061 | D38: VPT VV6 excl. BH incl. DB V061 | E38: VPT VV6 excl. BHincl. DB | F38: VPT 6VV excl.BH incl.DB | G38: VPT | H38: 157.26 | J38: 57399.9 | L38: =J39-J38 -> 503.7 | M38: 7716.1
A39: 2015 | B39: VPT | C39: V470 | D39: VPT VG7 excl. BH excl. DB V470 | E39: VPT VG7 excl. BH excl. DB | F39: VPT 7VG excl.BH excl.DB | G39: VPT | H39: 158.64 | J39: 57903.6 | K39: =J40-J39 -> 5453.1 | L39: =J41-J39 -> -16300.9 | M39: 7643.1
A40: 2015 | B40: VPT | C40: V850 | D40: VPT 5ZGvis excl. BH excl. DB V850 | E40: VPT 5ZGvis excl. BH excl. DB | F40: VPT 5ZGvis excl.BH excl.DB | G40: VPT | H40: 173.58 | J40: 63356.7 | K40: =J41-J40 -> -21754 | L40: =J42-J40 -> -26860.35 | M40: 7449.65
A41: 2015 | B41: VPT | C41: V041 | D41: VPT VV4 excl. BH incl. DB V041 | E41: VPT VV4 excl. BHincl. DB | F41: VPT 4VV excl.BH incl.DB | G41: VPT | H41: 113.98 | J41: 41602.7 | L41: =J42-J41 -> -5106.35 | M41: 7164.95
A42: 2015 | B42: VPT | C42: V031 | D42: VPT VV3 excl. BH incl. DB V031 | E42: VPT VV3 excl. BHincl. DB | F42: VPT 3VV excl.BH incl.DB | G42: VPT | H42: 99.99 | J42: 36496.35 | L42: =J43-J42 -> 7307.3 | M42: 7161.3
A43: 2015 | B43: Intramuraal | C43: Z710 | D43: 1ZGaud excl. BH excl. DB Z710 | E43: 1ZGaud excl. BH excl. DB | F43: 1ZGaud excl.BH excl.DB | G43: ZZP | H43: 106.17 | I43: 13.84 | J43: 43803.65 | K43: =J44-J43 -> 1281.15 | L43: =J45-J43 -> -3577 | M43: 6989.75
A44: 2015 | B44: Intramuraal | C44: Z440 | D44: VG4 excl. BH excl. DB Z440 | E44: VG4 excl. BH excl. DB | F44: 4VG excl.BH excl.DB | G44: ZZP | H44: 111.4 | I44: 12.12 | J44: 45084.8 | K44: -4858.15 | L44: 12541.4 | M44: 6639.35
A45: 2015 | B45: Intramuraal | C45: Z430 | D45: VG3 excl. BH excl. DB Z430 | E45: VG3 excl. BH excl. DB | F45: 3VG excl.BH excl.DB | G45: ZZP | H45: 98.09 | I45: 12.12 | J45: 40226.65 | K45: 17399.55 | L45: 4467.6 | M45: 6015.2
A46: 2015 | B46: VPT | C46: V840 | D46: VPT 4ZGvis excl. BH excl. DB V840 | E46: VPT 4ZGvis excl. BH excl. DB | F46: VPT 4ZGvis excl.BH excl.DB | G46: VPT | H46: 157.88 | J46: 57626.2 | K46: -12931.95 | L46: -1372.4 | M46: 6000.6
A47: 2015 | B47: VPT | C47: V460 | D47: VPT VG6 excl. BH excl. DB V460 | E47: VPT VG6 excl. BH excl. DB | F47: VPT 6VG excl.BH excl.DB | G47: VPT | H47: 122.45 | J47: 44694.25 | K47: 11559.55 | L47: 2441.85 | M47: 5869.2
A48: 2015 | B48: VPT | C48: V480 | D48: VPT VG8 excl. BH excl. DB V480 | E48: VPT VG8 excl. BH excl. DB | F48: VPT 8VG excl.BH excl.DB | G48: VPT | H48: 154.12 | J48: 56253.8 | K48: -9117.7 | L48: -10825.9 | M48: 5562.6
A49: 2015 | B49: VPT | C49: V454 | D49: VPT VG5 excl. BH excl. DB V454 | E49: VPT VG5 excl. BH excl. DB | F49: VPT 5VG excl.BH excl.DB | G49: VPT | H49: 129.14 | J49: 47136.1 | K49: -1708.2 | L49: -9825.8 | M49: 5551.65
A50: 2015 | B50: VPT | C50: V830 | D50: VPT 3ZGvis excl. BH excl. DB V830 | E50: VPT 3ZGvis excl. BH excl. DB | F50: VPT 3ZGvis excl.BH excl.DB | G50: VPT | H50: 124.46 | J50: 45427.9 | K50: -8117.6 | L50: -6299.9 | M50: 4697.55
A51: 2015 | B51: VPT | C51: V710 | D51: VPT 1ZGaud excl. BH excl. DB V710 | E51: VPT 1ZGaud excl. BH excl. DB | F51: VPT 1ZGaud excl.BH excl.DB | G51: VPT | H51: 102.22 | J51: 37310.3 | K51: 1817.7 | L51: -2821.45 | M51: 3916.45
A52: 2015 | B52: VPT | C52: V440 | D52: VPT VG4 excl. BH excl. DB V440 | E52: VPT VG4 excl. BH excl. DB | F52: VPT 4VG excl.BH excl.DB | G52: VPT | H52: 107.2 | J52: 39128 | K52: -4639.15 | L52: -9906.1 | M52: 3832.5
A53: 2015 | B53: VPT | C53: V430 | D53: VPT VG3 excl. BH excl. DB V430 | E53: VPT VG3 excl. BH excl. DB | F53: VPT 3VG excl.BH excl.DB | G53: VPT | H53: 94.49 | J53: 34488.85 | K53: -5266.95 | L53: 1653.45 | M53: 3248.5
A54: 2015 | B54: Intramuraal | C54: Z015 | D54: VV1 incl. DB Z015 | E54: VV1incl. DB | F54: 1VV excl.BH incl.DB | G54: ZZP | H54: 66.75 | I54: 13.31 | J54: 29221.9
A55: 2015 | B55: Intramuraal | C55: Z025 | D55: VV2 incl. DB Z025 | E55: VV2incl. DB | F55: 2VV excl.BH incl.DB | G55: ZZP | H55: 85.09 | I55: 13.93 | J55: 36142.3
A56: 2015 | B56: Intramuraal | C56: Z033 | D56: VV3 incl. BH incl. DB Z033 | E56: VV3 incl. BHincl. DB | F56: 3VV incl.BH incl.DB | G56: ZZP | H56: 129.01 | I56: 15.67 | J56: 52808.2
A57: 2015 | B57: Intramuraal | C57: Z043 | D57: VV4 incl. BH incl. DB Z043 | E57: VV4 incl. BHincl. DB | F57: 4VV incl.BH incl.DB | G57: ZZP | H57: 143.22 | I57: 15.88 | J57: 58071.5
A58: 2015 | B58: Intramuraal | C58: Z053 | D58: VV5 incl. BH incl. DB Z053 | E58: VV5 incl. BHincl. DB | F58: 5VV incl.BH incl.DB | G58: ZZP | H58: 188.24 | I58: 16.51 | J58: 74733.75
A59: 2015 | B59: Intramuraal | C59: Z063 | D59: VV6 incl. BH incl. DB Z063 | E59: VV6 incl. BHincl. DB | F59: 6VV incl.BH incl.DB | G59: ZZP | H59: 188.55 | I59: 16.83 | J59: 74963.7
A60: 2015 | B60: Intramuraal | C60: Z073 | D60: VV7 incl. BH incl. DB Z073 | E60: VV7 incl. BHincl. DB | F60: 7VV incl.BH incl.DB | G60: ZZP | H60: 224.62 | I60: 17.29 | J60: 88297.15
A61: 2015 | B61: Intramuraal | C61: Z083 | D61: VV8 incl. BH incl. DB Z083 | E61: VV8 incl. BHincl. DB | F61: 8VV incl.BH incl.DB | G61: ZZP | H61: 256.25 | I61: 18.26 | J61: 100196.15
A62: 2015 | B62: Intramuraal | C62: Z097 | D62: VV9b incl. BH incl. DB Z097 | E62: VV9b incl. BHincl. DB | F62: 9VVb incl.BH incl.DB | G62: ZZP | H62: 223.57 | I62: 21.29 | J62: 89373.9
A63: 2015 | B63: Intramuraal | C63: Z103 | D63: VV10 incl. BH incl. DB Z103 | E63: VV10 incl. BHincl. DB | F63: 10VV incl.BH incl.DB | G63: ZZP | H63: 277.11 | I63: 17.73 | J63: 107616.6
A64: 2015 | B64: Intramuraal | C64: Z212 | D64: GGZ1B incl. BH excl. DB Z212 | E64: GGZ1B incl. BH excl. DB | F64: 1GGZB incl.BH excl.DB | G64: ZZP | H64: 80.16 | I64: 9.66 | J64: 32784.3 | K64: =J65-J64 -> 10844.15
A65: 2015 | B65: Intramuraal | C65: Z213 | D65: GGZ1B incl. BH incl. DB Z213 | E65: GGZ1B incl. BHincl. DB | F65: 1GGZB incl.BH incl.DB | G65: ZZP | H65: 104.78 | I65: 14.75 | J65: 43628.45
A66: 2015 | B66: Intramuraal | C66: Z222 | D66: GGZ2B incl. BH excl. DB Z222 | E66: GGZ2B incl. BH excl. DB | F66: 2GGZB incl.BH excl.DB | G66: ZZP | H66: 118.23 | I66: 9.66 | J66: 46679.85 | K66: =J67-J66 -> 10048.45
A67: 2015 | B67: Intramuraal | C67: Z223 | D67: GGZ2B incl. BH incl. DB Z223 | E67: GGZ2B incl. BHincl. DB | F67: 2GGZB incl.BH incl.DB | G67: ZZP | H67: 140.67 | I67: 14.75 | J67: 56728.3
A68: 2015 | B68: Intramuraal | C68: Z232 | D68: GGZ3B incl. BH excl. DB Z232 | E68: GGZ3B incl. BH excl. DB | F68: 3GGZB incl.BH excl.DB | G68: ZZP | H68: 128.72 | I68: 14.03 | J68: 52103.75 | K68: =J69-J68 -> 11041.25
A69: 2015 | B69: Intramuraal | C69: Z233 | D69: GGZ3B incl. BH incl. DB Z233 | E69: GGZ3B incl. BHincl. DB | F69: 3GGZB incl.BH incl.DB | G69: ZZP | H69: 153.95 | I69: 19.05 | J69: 63145
A70: 2015 | B70: Intramuraal | C70: Z242 | D70: GGZ4B incl. BH excl. DB Z242 | E70: GGZ4B incl. BH excl. DB | F70: 4GGZB incl.BH excl.DB | G70: ZZP | H70: 148.41 | I70: 14.03 | J70: 59290.6 | K70: =J71-J70 -> 11534
A71: 2015 | B71: Intramuraal | C71: Z243 | D71: GGZ4B incl. BH incl. DB Z243 | E71: GGZ4B incl. BHincl. DB | F71: 4GGZB incl.BH incl.DB | G71: ZZP | H71: 174.99 | I71: 19.05 | J71: 70824.6
A72: 2015 | B72: Intramuraal | C72: Z252 | D72: GGZ5B incl. BH excl. DB Z252 | E72: GGZ5B incl. BH excl. DB | F72: 5GGZB incl.BH excl.DB | G72: ZZP | H72: 160.44 | I72: 18.15 | J72: 65185.35 | K72: =J73-J72 -> 11902.65
A73: 2015 | B73: Intramuraal | C73: Z253 | D73: GGZ5B incl. BH incl. DB Z253 | E73: GGZ5B incl. BHincl. DB | F73: 5GGZB incl.BH incl.DB | G73: ZZP | H73: 187.5 | I73: 23.7 | J73: 77088
A74: 2015 | B74: Intramuraal | C74: Z262 | D74: GGZ6B incl. BH excl. DB Z262 | E74: GGZ6B incl. BH excl. DB | F74: 6GGZB incl.BH excl.DB | G74: ZZP | H74: 217.79 | I74: 16.71 | J74: 85592.5 | K74: =J75-J74 -> 11804.1
A75: 2015 | B75: Intramuraal | C75: Z263 | D75: GGZ6B incl. BH incl. DB Z263 | E75: GGZ6B incl. BHincl. DB | F75: 6GGZB incl.BH incl.DB | G75: ZZP | H75: 245.5 | I75: 21.34 | J75: 97396.6
A76: 2015 | B76: Intramuraal | C76: Z272 | D76: GGZ7B incl. BH excl. DB Z272 | E76: GGZ7B incl. BH excl. DB | F76: GGZ7B incl.BH excl.DB | G76: ZZP | H76: 290.49 | I76: 18.73 | J76: 112865.3 | K76: =J77-J76 -> 18567.55
A77: 2015 | B77: Intramuraal | C77: Z273 | D77: GGZ7B incl. BH incl. DB Z273 | E77: GGZ7B incl. BHincl. DB | F77: GGZ7B incl.BH incl.DB | G77: ZZP | H77: 334 | I77: 26.09 | J77: 131432.85
A78: 2015 | B78: Intramuraal | C78: Z414 | D78: VG1 excl. DB Z414 | E78: VG1 excl. DB | F78: 1VG excl.BH excl.DB | G78: ZZP | H78: 66.45 | I78: 12.12 | J78: 28678.05 | K78: =J79-J78 -> 14402.9
A79: 2015 | B79: Intramuraal | C79: Z415 | D79: VG1 incl. DB Z415 | E79: VG1incl. DB | F79: 1VG excl.BH incl.DB | G79: ZZP | H79: 101.93 | I79: 16.1 | J79: 43080.95
A80: 2015 | B80: Intramuraal | C80: Z424 | D80: VG2 excl. DB Z424 | E80: VG2 excl. DB | F80: 2VG excl.BH excl.DB | G80: ZZP | H80: 83.58 | I80: 12.12 | J80: 34930.5 | K80: =J81-J80 -> 14406.55
A81: 2015 | B81: Intramuraal | C81: Z425 | D81: VG2 incl. DB Z425 | E81: VG2incl. DB | F81: 2VG excl.BH incl.DB | G81: ZZP | H81: 119.07 | I81: 16.1 | J81: 49337.05
A82: 2015 | B82: Intramuraal | C82: Z431 | D82: VG3 excl. BH incl. DB Z431 | E82: VG3 excl. BHincl. DB | F82: 3VG excl.BH incl.DB | G82: ZZP | H82: 133.57 | I82: 16.1 | J82: 54629.55
A83: 2015 | B83: Intramuraal | C83: Z432 | D83: VG3 incl. BH excl. DB Z432 | E83: VG3 incl. BH excl. DB | F83: 3VG incl.BH excl.DB | G83: ZZP | H83: 113.99 | I83: 12.7 | J83: 46241.85
A84: 2015 | B84: Intramuraal | C84: Z433 | D84: VG3 incl. BH incl. DB Z433 | E84: VG3 incl. BHincl. DB | F84: 3VG incl.BH incl.DB | G84: ZZP | H84: 149.48 | I84: 16.69 | J84: 60652.05
A85: 2015 | B85: Intramuraal | C85: Z441 | D85: VG4 excl. BH incl. DB Z441 | E85: VG4 excl. BHincl. DB | F85: 4VG excl.BH incl.DB | G85: ZZP | H85: 146.91 | I85: 16.1 | J85: 59498.65
A86: 2015 | B86: Intramuraal | C86: Z442 | D86: VG4 incl. BH excl. DB Z442 | E86: VG4 incl. BH excl. DB | F86: 4VG incl.BH excl.DB | G86: ZZP | H86: 129.01 | I86: 12.7 | J86: 51724.15
A87: 2015 | B87: Intramuraal | C87: Z443 | D87: VG4 incl. BH incl. DB Z443 | E87: VG4 incl. BHincl. DB | F87: 4VG incl.BH incl.DB | G87: ZZP | H87: 164.5 | I87: 16.69 | J87: 66134.35
A88: 2015 | B88: Intramuraal | C88: Z455 | D88: VG5 excl. BH incl. DB Z455 | E88: VG5 excl. BHincl. DB | F88: 5VG excl.BH incl.DB | G88: ZZP | H88: 183 | I88: 17.62 | J88: 73226.3
A89: 2015 | B89: Intramuraal | C89: Z456 | D89: VG5 incl. BH excl. DB Z456 | E89: VG5 incl. BH excl. DB | F89: 5VG incl.BH excl.DB | G89: ZZP | H89: 157 | I89: 16.2 | J89: 63218
A90: 2015 | B90: Intramuraal | C90: Z457 | D90: VG5 incl. BH incl. DB Z457 | E90: VG5 incl. BHincl. DB | F90: 5VG incl.BH incl.DB | G90: ZZP | H90: 205.56 | I90: 20.79 | J90: 82617.75
A91: 2015 | B91: Intramuraal | C91: Z461 | D91: VG6 excl. BH incl. DB Z461 | E91: VG6 excl. BHincl. DB | F91: 6VG excl.BH incl.DB | G91: ZZP | H91: 175.98 | I91: 16.61 | J91: 70295.35
A92: 2015 | B92: Intramuraal | C92: Z462 | D92: VG6 incl. BH excl. DB Z462 | E92: VG6 incl. BH excl. DB | F92: 6VG incl.BH excl.DB | G92: ZZP | H92: 150.9 | I92: 15.16 | J92: 60611.9
A93: 2015 | B93: Intramuraal | C93: Z463 | D93: VG6 incl. BH incl. DB Z463 | E93: VG6 incl. BHincl. DB | F93: 6VG incl.BH incl.DB | G93: ZZP | H93: 199.45 | I93: 19.73 | J93: 80000.7
A94: 2015 | B94: Intramuraal | C94: Z471 | D94: VG7 excl. BH incl. DB Z471 | E94: VG7 excl. BHincl. DB | F94: 7VG excl.BH incl.DB | G94: ZZP | H94: 247.54 | I94: 17.62 | J94: 96783.4
A95: 2015 | B95: Intramuraal | C95: Z472 | D95: VG7 incl. BH excl. DB Z472 | E95: VG7 incl. BH excl. DB | F95: 7VG incl.BH excl.DB | G95: ZZP | H95: 194 | I95: 16.2 | J95: 76723
A96: 2015 | B96: Intramuraal | C96: Z473 | D96: VG7 incl. BH incl. DB Z473 | E96: VG7 incl. BHincl. DB | F96: 7VG incl.BH incl.DB | G96: ZZP | H96: 276.08 | I96: 20.79 | J96: 108357.55
A97: 2015 | B97: Intramuraal | C97: Z481 | D97: VG8 Excl. BH Incl. DB Z481 | E97: VG8 Excl. BHincl. DB | F97: 8VG excl.BH incl.DB | G97: ZZP | H97: 209.27 | I97: 22.18 | J97: 84479.25
A98: 2015 | B98: Intramuraal | C98: Z482 | D98: VG8 Incl. BH Excl. DB Z482 | E98: VG8 Incl. BH excl. DB | F98: 8VG incl.BH excl.DB | G98: ZZP | H98: 183.26 | I98: 19.86 | J98: 74138.8
A99: 2015 | B99: Intramuraal | C99: Z483 | D99: VG8 Incl. BH Incl. DB Z483 | E99: VG8 Incl. BHincl. DB | F99: 8VG incl.BH incl.DB | G99: ZZP | H99: 231.81 | I99: 25.35 | J99: 93863.4
A100: 2015 | B100: Intramuraal | C100: Z513 | D100: LVG1 incl. BH incl. DB Z513 | E100: LVG1 incl. BHincl. DB | F100: 1LVG incl.BH incl.DB | G100: ZZP | H100: 140.71 | I100: 16.69 | J100: 57451
A101: 2015 | B101: Intramuraal | C101: Z523 | D101: LVG2 incl. BH incl. DB Z523 | E101: LVG2 incl. BHincl. DB | F101: 2LVG incl.BH incl.DB | G101: ZZP | H101: 181.3 | I101: 16.69 | J101: 72266.35
A102: 2015 | B102: Intramuraal | C102: Z533 | D102: LVG3 incl. BH incl. DB Z533 | E102: LVG3 incl. BHincl. DB | F102: 3LVG incl.BH incl.DB | G102: ZZP | H102: 223.71 | I102: 22.66 | J102: 89925.05
A103: 2015 | B103: Intramuraal | C103: Z543 | D103: LVG4 incl. BH incl. DB Z543 | E103: LVG4 incl. BHincl. DB | F103: 4LVG incl.BH incl.DB | G103: ZZP | H103: 263.13 | I103: 22.66 | J103: 104313.35
A104: 2015 | B104: Intramuraal | C104: Z553 | D104: LVG5 incl. BH incl. DB Z553 | E104: LVG5 incl. BHincl. DB | F104: 5LVG incl.BH incl.DB | G104: ZZP | H104: 261.93 | I104: 22.66 | J104: 103875.35
A105: 2015 | B105: Intramuraal | C105: Z573 | D105: SGLVG1 incl. BH incl. DB Z573 | E105: SGLVG1 incl. BHincl. DB | F105: 1SGLVG incl.BH incl.DB | G105: ZZP | H105: 340.98 | I105: 23.72 | J105: 133115.5
A106: 2015 | B106: Intramuraal | C106: Z614 | D106: 1LG excl. DB Z614 | E106: 1LG excl. DB | F106: 1LG excl.BH excl.DB | G106: ZZP | H106: 89.48 | I106: 12.4 | J106: 37186.2 | K106: =J107-J106 -> 17512.7
A107: 2015 | B107: Intramuraal | C107: Z615 | D107: 1LG incl. DB Z615 | E107: 1LGincl. DB | F107: 1LG excl.BH incl.DB | G107: ZZP | H107: 133.26 | I107: 16.6 | J107: 54698.9
A108: 2015 | B108: Intramuraal | C108: Z624 | D108: 2LG excl. DB Z624 | E108: 2LG excl. DB | F108: 2LG excl.BH excl.DB | G108: ZZP | H108: 118.87 | I108: 12.4 | J108: 47913.55 | K108: =J109-J108 -> 16085.55
A109: 2015 | B109: Intramuraal | C109: Z625 | D109: 2LG incl. DB Z625 | E109: 2LGincl. DB | F109: 2LG excl.BH incl.DB | G109: ZZP | H109: 158.74 | I109: 16.6 | J109: 63999.1
A110: 2015 | B110: Intramuraal | C110: Z631 | D110: 3LG excl. BH incl. DB Z631 | E110: 3LG excl. BHincl. DB | F110: 3LG excl.BH incl.DB | G110: ZZP | H110: 147.96 | I110: 16.6 | J110: 60064.4
A111: 2015 | B111: Intramuraal | C111: Z632 | D111: 3LG incl. BH excl. DB Z632 | E111: 3LG incl. BH excl. DB | F111: 3LG incl.BH excl.DB | G111: ZZP | H111: 135.22 | I111: 13.04 | J111: 54114.9
A112: 2015 | B112: Intramuraal | C112: Z633 | D112: 3LG incl. BH incl. DB Z633 | E112: 3LG incl. BHincl. DB | F112: 3LG incl.BH incl.DB | G112: ZZP | H112: 179.02 | I112: 17.25 | J112: 71638.55
A113: 2015 | B113: Intramuraal | C113: Z641 | D113: 4LG excl. BH incl. DB Z641 | E113: 4LG excl. BHincl. DB | F113: 4LG excl.BH incl.DB | G113: ZZP | H113: 160.6 | I113: 16.6 | J113: 64678
A114: 2015 | B114: Intramuraal | C114: Z642 | D114: 4LG incl. BH excl. DB Z642 | E114: 4LG incl. BH excl. DB | F114: 4LG incl.BH excl.DB | G114: ZZP | H114: 152.31 | I114: 13.04 | J114: 60352.75
A115: 2015 | B115: Intramuraal | C115: Z643 | D115: 4LG incl. BH incl. DB Z643 | E115: 4LG incl. BHincl. DB | F115: 4LG incl.BH incl.DB | G115: ZZP | H115: 192.17 | I115: 17.25 | J115: 76438.3
A116: 2015 | B116: Intramuraal | C116: Z651 | D116: 5LG excl. BH incl. DB Z651 | E116: 5LG excl. BHincl. DB | F116: 5LG excl.BH incl.DB | G116: ZZP | H116: 186.85 | I116: 18.51 | J116: 74956.4
A117: 2015 | B117: Intramuraal | C117: Z652 | D117: 5LG incl. BH excl. DB Z652 | E117: 5LG incl. BH excl. DB | F117: 5LG incl.BH excl.DB | G117: ZZP | H117: 179.5 | I117: 17.09 | J117: 71755.35
A118: 2015 | B118: Intramuraal | C118: Z653 | D118: 5LG incl. BH incl. DB Z653 | E118: 5LG incl. BHincl. DB | F118: 5LG incl.BH incl.DB | G118: ZZP | H118: 223.28 | I118: 21.68 | J118: 89410.4
A119: 2015 | B119: Intramuraal | C119: Z661 | D119: 6LG excl. BH incl. DB Z661 | E119: 6LG excl. BHincl. DB | F119: 6LG excl.BH incl.DB | G119: ZZP | H119: 197.04 | I119: 21.82 | J119: 79883.9
A120: 2015 | B120: Intramuraal | C120: Z662 | D120: 6LG incl. BH excl. DB Z662 | E120: 6LG incl. BH excl. DB | F120: 6LG incl.BH excl.DB | G120: ZZP | H120: 198.83 | I120: 19.51 | J120: 79694.1
A121: 2015 | B121: Intramuraal | C121: Z663 | D121: 6LG incl. BH incl. DB Z663 | E121: 6LG incl. BHincl. DB | F121: 6LG incl.BH incl.DB | G121: ZZP | H121: 238.67 | I121: 24.99 | J121: 96235.9
A122: 2015 | B122: Intramuraal | C122: Z671 | D122: 7LG excl. BH incl. DB Z671 | E122: 7LG excl. BHincl. DB | F122: 7LG excl.BH incl.DB | G122: ZZP | H122: 209.11 | I122: 21.82 | J122: 84289.45
A123: 2015 | B123: Intramuraal | C123: Z672 | D123: 7LG incl. BH excl. DB Z672 | E123: 7LG incl. BH excl. DB | F123: 7LG incl.BH excl.DB | G123: ZZP | H123: 213.85 | I123: 19.51 | J123: 85176.4
A124: 2015 | B124: Intramuraal | C124: Z673 | D124: 7LG incl. BH incl. DB Z673 | E124: 7LG incl. BHincl. DB | F124: 7LG incl.BH incl.DB | G124: ZZP | H124: 247.3 | I124: 24.99 | J124: 99385.85
A125: 2015 | B125: Intramuraal | C125: Z711 | D125: 1ZGaud excl. BH incl. DB Z711 | E125: 1ZGaud excl. BHincl. DB | F125: 1ZGaud excl.BH incl.DB | G125: ZZP | H125: 155.56 | I125: 17.95 | J125: 63331.15
A126: 2015 | B126: Intramuraal | C126: Z712 | D126: 1ZGaud incl. BH excl. DB Z712 | E126: 1ZGaud incl. BH excl. DB | F126: 1ZGaud incl.BH excl.DB | G126: ZZP | H126: 124.12 | I126: 15.04 | J126: 50793.4
A127: 2015 | B127: Intramuraal | C127: Z713 | D127: 1ZGaud incl. BH incl. DB Z713 | E127: 1ZGaud incl. BHincl. DB | F127: 1ZGaud incl.BH incl.DB | G127: ZZP | H127: 173.52 | I127: 19.15 | J127: 70324.55
A128: 2015 | B128: Intramuraal | C128: Z721 | D128: 2ZGaud excl. BH incl. DB Z721 | E128: 2ZGaud excl. BHincl. DB | F128: 2ZGaud excl.BH incl.DB | G128: ZZP | H128: 272.05 | I128: 17.95 | J128: 105850
